Workbook

Sheet Users Guide
C10: MSU 2023 Farm Bill Analyzer USERS GUIDE
C12: USER’S GUIDE
C13: Version 1.10 Jan 15, 2023
C14: Roger Betz, Senior Farm Management Agent
C15: Michigan State University Extension
C17: The MSU 2023 FARM BILL ANALYZER provides an analysis of the one important decision that are included in the Agricultural Act of 2018 (the 2018 Farm Bill). Owners and/or tenants can elect either the Agricultural Risk Coverage (ARC-CO or ARC-IC) or Price Loss Coverage (PLC) programs for each covered commodity on each of their farms. Neither the PLC or ARC co programs are expected to have payments for the 2023 production year as commodity prices are much above the benchmark prices. However, a big decision is the choice of the "86% SCO". SCO can only be used if the PLC program is chosen. It cannot be used if enrolled in ARC. The Analyzer addresses the question of various crop insurance choices including RP Revenue Protection, SCO Supplemental Coverage Option and ECO or Enhanced Coverage Options.
C18: This FARM BILL ANALYZER provides farm management information on the ARC Co versus PLC decisions based on assumptions about farm yields, county yields, and national market prices. Given the inputted variables listed below, the MSU 2023 FARM BILL ANALYZER will calculate the results for the farm manager’s alternative decisions regarding the election of ARC-CO, or PLC programs and testing various insurance choice producers have. The ARC Individual program is no longer a part of the program as usage is Nealy non-existent in Michigan and across the nation.
C21: Disclaimer: This MSU 2023 FARM BILL ANALYZER is designed with the most recent information available about the provisions of the 2018 Farm Bill.
C23: I. To operate the MSU 2023 FARM BILL ANALYZER, the user will need the following information:
C24: A. The Farm Service Agency (FSA) base acres and PLC program yields by FSA farm number.
C25: B. Historical yields by FSA farm number from 2017 - 2021.
C26: C. If the farm has irrigated yields, the irrigated and non-irrigated yields by acres by year need to be separated.
C27: D. Assumed county average yields (irrigated and non-irrigated) for the county in which the farm is located for 2023.
C28: E. Assumed national market year average prices (MYA) for 2023.
C29: F. Estimated cost of revenue based crop insurance products and cost of SCO and ECO insurance options
C31: II. Operation of the tool:
C32: A. The green colored cells are where data and information can be entered. All non-green cells are protected from changes.
C33: B. Where the program says to < SELECT, highlight the green colored cells to the left by clicking on it and a "scroll button" will appear to make your selection. Click on the "scroll button" to activate the choices.
C34: C. The tool has several grey colored buttons to perform various macros contained with in the spreadsheet.
C35: D. Various formulas may appear in green cells that can be changed. It is ok and encouraged to use your own values in these cells. The various macro buttons will restore these formulas and default values.
C37: III. Steps for Data Entry:
C38: Step 1. Select from pull down menu the Farm's County. Then enter a farm name of your choice and the FSA Farm Number.
C39: Step 2. Enter the farm’s PLC program yield for all covered commodities on the farm. FSA form CCC-861
C40: Note: In the 2018 Farm Bill, “covered commodities” with base acres in Michigan include barley, oats, and some others. If you have a significant base in these crops, please contact Roger Betz or use one of the other national analyzer programs.
C41: Step 3 . Enter your APH crop insurance actual yields for the FSA farm number. This needs to be the weighted yield (dry and irrigated combined).
C42: Step 4 . Enter anticipated farm yields. This is an area to test different yields to see the results if…............
C43: Step 5. Enter anticipated county yields. This too ia an area to test different county yields to see results. Test SCO and ECO with county yield variations
C44: Step 6. Enter various crop insurance options. The program only uses Revenue Protection policies from 55 to 85% coverage. ECO can be 90% or 95% coverage.
C45: Step 7. Enter cost of insurance or the premium. The calculator makes a SWAG (Scientific Wild Ass Guess) but as noted this is only an estimate and numerous variations exist. User shold get quotes from qualified crop insurance agent.
C46: Step 8 . Select or Enter Projected Market Year National Average Prices. (MYA) and expected futures prices for both "planting time" and "harvest time" for each crop.
C47: Note:
C48: A. Various projected prices from alternative sources can be chosen by using the “drop-down” menu.
C49: B. The user can also increase or decrease these base price projections by entering the desired percent change.
C50: C. The default values can be restored by using the “Restore Default Price Projections” button.
C51: Step 9. Evaluate the results to see ARC vesus PLC and to see crop insurance indemities based on the assumptions enter into the program.
C52: Step 10. The scenario evaluated can be saved and compared to other saved scenarios. Use the "Save 1" to "Save 5" buttons to save selected scenarios for comparison.
C54: IV. Conclusion:
C55: Given the many factors that could affect the decisions contained in the 2018 Farm Bill for the 2023 year, users are encouraged to consider:
C56: A. Running a wide range of scenarios for prices and yields for the 2023 year. Use the best information available for the 2023 year as sign up deadline is March 15th of 2023 for the 2023 crop year decision. Testing various prices, farm and county yields along with various insurance options is highly recommended and the calculator is designed to accommodate this testing of the USDA programs including crop insurace choices as they relate to the PLC and ACR decision for the 2023 year.
C57: B. The farm managers risk preference will effect the final decision made; not simply the result from the most likely prices and yields. What happens when prices and/or yields……………..and how much benefit from crop insurance choices along with the USDA risk management program?
C60: MSU 2023 Farm Bill ARC-PLC Decision Making Tool © 2022 Michigan State University Board of Trustees. 4-H and other Cooperative Extension System groups and other nonprofit educational groups may print hard copies of this material for noncommercial, educational use, provided that attribution is given to Michigan State University Extension. All other rights reserved. For information, contact MSU Extension, 108 Agriculture Hall, 446 West Circle Drive, East Lansing, MI 48824.
C61: MSU is an affirmative-action, equal-opportunity employer, committed to achieving excellence through a diverse workforce and inclusive culture that encourages all people to reach their full potential. Michigan State University Extension programs and materials are open to all without regard to race, color, national origin, gender, gender identity, religion, age, height, weight, disability, political beliefs, sexual orientation, marital status, family status or veteran status. Issued in furtherance of MSU Extension work, acts of May 8 and June 30, 1914, in cooperation with the U.S. Department of Agriculture, Director, MSU Extension, East Lansing, MI 48824. This information is for educational purposes only. Reference to commercial products or trade names does not imply endorsement by MSU Extension or bias against those not mentioned.
C63: VII. Version Updates

Sheet 2023 Farm Bill Calculator
D1: MSUE 2023 FARM BILL ANALYZER
D2: Roger Betz, Farm Business Management Agent | G2: Version 1.1
A3: Step 1. Select Farm's County
B4: County Farm located: | C4: EATON | D4: < Select County | F4: Farm Name: | G4: Smith
F5: Farm Number: | G5: 1234
A6: Step 2. Enter Farms Base Acres (FSA CCC-861,156) for each farm separately
B8: Commodity | C8: Corn | D8: Soybeans | E8: Wheat | F8: Total Base Acres
B9: Base Acres | C9: 400 | D9: 200 | E9: 100 | F9: =SUM(C9:E9) -> 700
B10: PLC Yield | C10: 150 | D10: 40 | E10: 65
B11: 16-20 Historical Irrigated Percentage | C11: 0 | D11: 0 | E11: 0 | Y11: FSA 2018 BASE Acres (FSA CCC-861) | Z11: =C9 -> 400 | AA11: Acres | AB11: =D9 -> 200 | AC11: Acres | AD11: =E9 -> 100 | AE11: Acres
A12: Step 3. Enter Farms Crop Insurance Trend Adjusted Actual Production History
B13: Farm Trend Adjusted APH | C13: 165 | D13: 49 | E13: 74
AD14: Total FSA Base Acres | AE14: =Z11+AB11+AD11 -> 700
E15: CORN | G15: SOYBEANS | I15: WHEAT
D16: National Loan Rates | E16: 2.2 | G16: 6.2 | I16: 3.38
D17: Reference Prices | E17: 3.7 | G17: 8.4 | I17: 5.5
D18: 2023 Benchmark Prices | E18: 3.98 | G18: 9.57 | I18: 5.5
F20: Benchmark Years 2017 - 2021
D21: Farm # | E21: =G5 -> 1234 | F21: Projected Farm Yield for Farm Number | T21: WARNING!! Use "BLANK" for no yield.
E22: CORN | G22: SOYBEANS | I22: WHEAT | S22: Default FARM Yields = Actual County Yields | Y22: Irrigation Yields
E23: Yield | F23: Acres | G23: Yield | H23: Acres | I23: Yield | J23: Acres | K23: Total Commodity Acres | S23: corn | U23: soys | W23: wheat | Y23: corn | AA23: soys | AC23: wheat
R24: 2014 | S24: =('Background Calculations'!$S$63)+('Background Calculations'!$S$66*'2023 Farm Bill Calculator'!$C$11)+('Background Calculations'!$S$68*(1-'2023 Farm Bill Calculator'!$C$11)) -> 0 | U24: =('Background Calculations'!$S$64)+('Background Calculations'!$S$67*'2023 Farm Bill Calculator'!$D$11)+('Background Calculations'!$S$69*(1-'2023 Farm Bill Calculator'!$D$11)) -> 0 | W24: =('Background Calculations'!$S$65) -> 0 | Y24: =IRRIGATION!$K$5 ->  | AA24: =IRRIGATION!$K$18 ->  | AC24: =IRRIGATION!$K$30 -> 
C25: Historical Yields are not needed only for reference | D25: 2016 | E25: =('Background Calculations'!$U$63)+('Background Calculations'!$U$66*'2023 Farm Bill Calculator'!$C$11)+('Background Calculations'!$U$68*(1-'2023 Farm Bill Calculator'!$C$11)) -> 0 | F25: =IF(E25>0.00001,1,0) -> 0 | G25: =('Background Calculations'!$U$64)+('Background Calculations'!$U$67*'2023 Farm Bill Calculator'!$D$11)+('Background Calculations'!$U$69*(1-'2023 Farm Bill Calculator'!$D$11)) -> 0 | H25: =IF(G25>0.00001,1,0) -> 0 | I25: =('Background Calculations'!$U$65) -> 0 | J25: =IF(I25>0.00001,1,0) -> 0 | K25: =F25+H25+J25 -> 0 | R25: 2016 | S25: =('Background Calculations'!$U$63)+('Background Calculations'!$U$66*'2023 Farm Bill Calculator'!$C$11)+('Background Calculations'!$U$68*(1-'2023 Farm Bill Calculator'!$C$11)) -> 0 | U25: =('Background Calculations'!$U$64)+('Background Calculations'!$U$67*'2023 Farm Bill Calculator'!$D$11)+('Background Calculations'!$U$69*(1-'2023 Farm Bill Calculator'!$D$11)) -> 0 | W25: =('Background Calculations'!$U$65) -> 0 | Y25: =IRRIGATION!$K$6 ->  | AA25: =IRRIGATION!$K$19 ->  | AC25: =IRRIGATION!$K$31 -> 
D26: 2017 | E26: =('Background Calculations'!$V$63)+('Background Calculations'!$V$66*'2023 Farm Bill Calculator'!$C$11)+('Background Calculations'!$V$68*(1-'2023 Farm Bill Calculator'!$C$11)) -> 0 | F26: 0 | G26: =('Background Calculations'!$V$64)+('Background Calculations'!$V$67*'2023 Farm Bill Calculator'!$D$11)+('Background Calculations'!$V$69*(1-'2023 Farm Bill Calculator'!$D$11)) -> 0 | H26: 0 | I26: =('Background Calculations'!$V$65) -> 0 | J26: 0 | K26: =F26+H26+J26 -> 0 | R26: 2017 | S26: =('Background Calculations'!$V$63)+('Background Calculations'!$V$66*'2023 Farm Bill Calculator'!$C$11)+('Background Calculations'!$V$68*(1-'2023 Farm Bill Calculator'!$C$11)) -> 0 | U26: =('Background Calculations'!$V$64)+('Background Calculations'!$V$67*'2023 Farm Bill Calculator'!$D$11)+('Background Calculations'!$V$69*(1-'2023 Farm Bill Calculator'!$D$11)) -> 0 | W26: =('Background Calculations'!$V$65) -> 0 | Y26: =IRRIGATION!$K$7 ->  | AA26: =IRRIGATION!$K$20 ->  | AC26: =IRRIGATION!$K$32 -> 
D27: 2018 | E27: =('Background Calculations'!$W$63)+('Background Calculations'!$W$66*'2023 Farm Bill Calculator'!$C$11)+('Background Calculations'!$W$68*(1-'2023 Farm Bill Calculator'!$C$11)) -> 163.37 | F27: 1 | G27: =('Background Calculations'!$W$64)+('Background Calculations'!$W$67*'2023 Farm Bill Calculator'!$D$11)+('Background Calculations'!$W$69*(1-'2023 Farm Bill Calculator'!$D$11)) -> 51.8 | H27: 1 | I27: =('Background Calculations'!$W$65) -> 78.86 | J27: 1 | K27: 3 | P27: Default Values | R27: 2018 | S27: =('Background Calculations'!$W$63)+('Background Calculations'!$W$66*'2023 Farm Bill Calculator'!$C$11)+('Background Calculations'!$W$68*(1-'2023 Farm Bill Calculator'!$C$11)) -> 163.37 | U27: =('Background Calculations'!$W$64)+('Background Calculations'!$W$67*'2023 Farm Bill Calculator'!$D$11)+('Background Calculations'!$W$69*(1-'2023 Farm Bill Calculator'!$D$11)) -> 51.8 | W27: =('Background Calculations'!$W$65) -> 78.86 | Y27: =IRRIGATION!$K$8 ->  | AA27: =IRRIGATION!$K$21 ->  | AC27: =IRRIGATION!$K$33 -> 
D28: 2019 | E28: =('Background Calculations'!$X$63)+('Background Calculations'!$X$66*'2023 Farm Bill Calculator'!$C$11)+('Background Calculations'!$X$68*(1-'2023 Farm Bill Calculator'!$C$11)) -> 142.08 | F28: 1 | G28: =('Background Calculations'!$X$64)+('Background Calculations'!$X$67*'2023 Farm Bill Calculator'!$D$11)+('Background Calculations'!$X$69*(1-'2023 Farm Bill Calculator'!$D$11)) -> 37.46 | H28: 1 | I28: =('Background Calculations'!$X$65) -> 62.73 | J28: 1 | K28: 3 | P28: 0 | R28: 2019 | S28: =('Background Calculations'!$X$63)+('Background Calculations'!$X$66*'2023 Farm Bill Calculator'!$C$11)+('Background Calculations'!$X$68*(1-'2023 Farm Bill Calculator'!$C$11)) -> 142.08 | U28: =('Background Calculations'!$X$64)+('Background Calculations'!$X$67*'2023 Farm Bill Calculator'!$D$11)+('Background Calculations'!$X$69*(1-'2023 Farm Bill Calculator'!$D$11)) -> 37.46 | W28: =('Background Calculations'!$X$65) -> 62.73 | Y28: =IRRIGATION!$K$9 ->  | AA28: =IRRIGATION!$K$22 ->  | AC28: =IRRIGATION!$K$34 -> 
D29: 2020 | E29: =('Background Calculations'!$Y$63)+('Background Calculations'!$Y$66*'2023 Farm Bill Calculator'!$C$11)+('Background Calculations'!$Y$68*(1-'2023 Farm Bill Calculator'!$C$11)) -> 161.4 | F29: =IF(E28>0.00001,1,0) -> 1 | G29: =('Background Calculations'!$Y$64)+('Background Calculations'!$Y$67*'2023 Farm Bill Calculator'!$D$11)+('Background Calculations'!$Y$69*(1-'2023 Farm Bill Calculator'!$D$11)) -> 50.28 | H29: 1 | I29: =('Background Calculations'!$Y$65) -> 74.75 | J29: 1 | K29: 3 | P29: 0 | R29: 2020 | S29: =('Background Calculations'!$Y$63)+('Background Calculations'!$Y$66*'2023 Farm Bill Calculator'!$C$11)+('Background Calculations'!$Y$68*(1-'2023 Farm Bill Calculator'!$C$11)) -> 161.4 | U29: =('Background Calculations'!$Y$64)+('Background Calculations'!$Y$67*'2023 Farm Bill Calculator'!$D$11)+('Background Calculations'!$Y$69*(1-'2023 Farm Bill Calculator'!$D$11)) -> 50.28 | W29: =('Background Calculations'!$Y$65) -> 74.75
D30: 2021 | E30: =('Background Calculations'!$Z$63)+('Background Calculations'!$Z$66*'2023 Farm Bill Calculator'!$C$11)+('Background Calculations'!$Z$68*(1-'2023 Farm Bill Calculator'!$C$11)) -> 176.76 | F30: =IF(E28>0.00001,1,0) -> 1 | G30: =('Background Calculations'!$Z$64)+('Background Calculations'!$Z$67*'2023 Farm Bill Calculator'!$D$11)+('Background Calculations'!$Z$69*(1-'2023 Farm Bill Calculator'!$D$11)) -> 53.33 | H30: 1 | I30: =('Background Calculations'!$Z$65) -> 73.64 | J30: 1 | K30: =F30+H30+J30 -> 3 | P30: 0 | R30: 2021 | S30: =('Background Calculations'!$Z$63)+('Background Calculations'!$Z$66*'2023 Farm Bill Calculator'!$C$11)+('Background Calculations'!$Z$68*(1-'2023 Farm Bill Calculator'!$C$11)) -> 176.76 | U30: =('Background Calculations'!$Z$64)+('Background Calculations'!$Z$67*'2023 Farm Bill Calculator'!$D$11)+('Background Calculations'!$Z$69*(1-'2023 Farm Bill Calculator'!$D$11)) -> 53.33 | W30: =('Background Calculations'!$Z$65) -> 73.64
A31: Step 4. Enter Anticipated FARM Yields and | D31: 2023 | E31: =E37 -> 167.1766667 | F31: 450 | G31: =G37 -> 49.22333333 | H31: 450 | I31: =I37 -> 75.29666667 | J31: 100 | K31: =F31+H31+J31 -> 1000 | P31: 0 | R31: 2023 | S31: =('Background Calculations'!$AB$63)+('Background Calculations'!$AB$66*'2023 Farm Bill Calculator'!$C$11)+('Background Calculations'!$AB$68*(1-'2023 Farm Bill Calculator'!$C$11)) -> 164.4356 | U31: =('Background Calculations'!$AB$64)+('Background Calculations'!$AB$67*'2023 Farm Bill Calculator'!$D$11)+('Background Calculations'!$AB$69*(1-'2023 Farm Bill Calculator'!$D$11)) -> 48.6764 | W31: =('Background Calculations'!$AA$65) -> 74.286
C32: Planted Acres for 2023 | E32: =K31 -> 1000 | F32: =IF(F31+H31+J31=0,K33,"") ->  | P32: =P28 -> 0
A33: Step 5. Enter Anticipated COUNTY Yields for 2023 | H33: =IF(F31+H31+J31=0,K33,"") ->  | K33: ERROR Must have Acres in 2023 | P33: =P32 -> 0
D34: =C4 -> EATON | E34: County Weighted Yield (Irrigated and Dry) | K34: Actual County Yields Not Trended with Adjustment | S34: Default = Olympic Weighted Average Trend Yields (Benchmark) | Y34: County Yield Increase
D35: % Irrigated | E35: =C11 -> 0 | G35: =D11 -> 0 | I35: =E11 -> 0 | K35: County | L35: corn | M35: soys | N35: wht | R35: County | S35: Corn | U35: Soybeans | W35: Wheat | Y35: Corn % | Z35: =F37 -> 0 | AA35: Soys % | AB35: =H37 -> 0 | AC35: Wheat % | AD35: =J37 -> 0
A36: High Low Yield = The highest or Lowest Actual County Yield in last 5 years | E36: 2023 Anticipated COUNTY Yields | K36: High Yld | L36: =MAX('Background Calculations'!$S$37:$W$37)*(1+$F$37) -> 176.76 | M36: =MAX('Background Calculations'!$S$38:$W$38)*(1+$H$37) -> 53.33 | N36: =MAX('Background Calculations'!$S$39:$W$39)*(1+$J$37) -> 78.86 | O36: Market Year Prices | R36: 2022 | S36: ='Background Calculations'!$W$32 -> 160.4566667 | T36: 0 | U36: ='Background Calculations'!$W$33 -> 49.22333333 | V36: =T36 -> 0 | W36: ='Background Calculations'!$W$34 -> 77.03666667 | X36: =V36 -> 0 | Y36: 2022 | Z36: =F37 -> 0 | AA36: 2022 | AB36: =H37 -> 0 | AC36: 2022 | AD36: =J37 -> 0
D37: 2023 | E37: ='Background Calculations'!$X$32*(1+$Z$36) -> 167.1766667 | F37: 0 | G37: ='Background Calculations'!$X$33*(1+$AB$36) -> 49.22333333 | H37: =F37 -> 0 | I37: ='Background Calculations'!$X$34*(1+$AD$36) -> 75.29666667 | J37: =H37 -> 0 | K37: Low Yld | L37: =MIN('Background Calculations'!$S$37:$W$37)*(1+$F$37) -> 142.08 | M37: =MIN('Background Calculations'!$S$38:$W$38)*(1+$H$37) -> 37.46 | N37: =MIN('Background Calculations'!$S$39:$W$39)*(1+$J$37) -> 62.73 | O37: Corn | P37: Soybeans | Q37: Wheat | R37: 2023 | S37: ='Background Calculations'!$X$32 -> 167.1766667 | T37: 0 | U37: ='Background Calculations'!$X$33 -> 49.22333333 | V37: =T37 -> 0 | W37: ='Background Calculations'!$X$34 -> 75.29666667 | X37: =V37 -> 0
D38: Percent of '23 Benchmark Yield | E38: =E37/S37 -> 1 | G38: =G37/U37 -> 1 | I38: =I37/W37 -> 1 | N38: 2013 | O38: =VLOOKUP($E$51,'MYA Prices'!$B$4:$AL$11,2,FALSE) -> 4.46 | P38: =VLOOKUP($E$51,'MYA Prices'!$B$4:$AL$11,14,FALSE) -> 13 | Q38: =VLOOKUP($E$51,'MYA Prices'!$B$4:$AL$11,26,FALSE) -> 6.87
L39: 0 | N39: 2014 | O39: =VLOOKUP($E$51,'MYA Prices'!$B$4:$AL$11,3,FALSE) -> 3.7 | P39: =VLOOKUP($E$51,'MYA Prices'!$B$4:$AL$11,15,FALSE) -> 10.1 | Q39: =VLOOKUP($E$51,'MYA Prices'!$B$4:$AL$11,27,FALSE) -> 5.99 | R39: 2022 86% | S39: =$S$36*0.86*(1+$F$37) -> 137.9927333 | T39: 0 | U39: =$U$36*0.86*(1+$H$37) -> 42.33206667 | V39: =T39 -> 0 | W39: =$W$36*0.86*(1+$J$37) -> 66.25153333 | X39: =V39 -> 0
A40: Step 6. Choose Crop Insurance Options | E40: 2023 Crop Insurance Options (Enroll by March 15th 2021) | L40: 0.5 | N40: 2015 | O40: =VLOOKUP($E$51,'MYA Prices'!$B$4:$AL$11,4,FALSE) -> 3.61 | P40: =VLOOKUP($E$51,'MYA Prices'!$B$4:$AL$11,16,FALSE) -> 8.95 | Q40: =VLOOKUP($E$51,'MYA Prices'!$B$4:$AL$11,28,FALSE) -> 4.89 | R40: 2023 86% | S40: =$S$37*0.86*(1+$F$37) -> 143.7719333 | T40: 0 | U40: =$U$37*0.86*(1+$H$37) -> 42.33206667 | V40: =T40 -> 0 | W40: =$W$37*0.86*(1+$J$37) -> 64.75513333 | X40: =V40 -> 0
E41: CORN | G41: SOYBEANS | I41: WHEAT | L41: 0.55 | N41: 2016 | O41: =VLOOKUP($E$51,'MYA Prices'!$B$4:$AL$11,5,FALSE) -> 3.36 | P41: =VLOOKUP($E$51,'MYA Prices'!$B$4:$AL$11,17,FALSE) -> 9.47 | Q41: =VLOOKUP($E$51,'MYA Prices'!$B$4:$AL$11,29,FALSE) -> 3.89 | S41: Trend yield with Annual Increase
D42: Revenue % Coverage (Farm Yield Based) Choice | E42: 0.8 | G42: 0.8 | I42: 0.8 | L42: 0.6 | N42: 2017 | O42: =VLOOKUP($E$51,'MYA Prices'!$B$4:$AL$11,6,FALSE) -> 3.36 | P42: =VLOOKUP($E$51,'MYA Prices'!$B$4:$AL$11,18,FALSE) -> 9.33 | Q42: =VLOOKUP($E$51,'MYA Prices'!$B$4:$AL$11,30,FALSE) -> 4.72 | R42: 2022 | S42: ='Background Calculations'!$W$32*(1+$Z$35) -> 160.4566667 | T42: 0 | U42: ='Background Calculations'!$W$33*(1+$AB$35) -> 49.22333333 | V42: =T42 -> 0 | W42: ='Background Calculations'!$W$34*(1+$AD$35) -> 77.03666667 | X42: =V42 -> 0
C43: Supplemental Coverage Option (County Yield Based) | D43: SCO Choice | E43: =IF($S$46=TRUE,86%,"NO") -> NO | G43: =IF($T$46=TRUE,86%,"NO") -> NO | I43: =IF($U$46=TRUE,86%,"NO") -> NO | L43: 0.65 | M43: 0 | N43: 2018 | O43: =VLOOKUP($E$51,'MYA Prices'!$B$4:$AL$11,7,FALSE) -> 3.61 | P43: =VLOOKUP($E$51,'MYA Prices'!$B$4:$AL$11,19,FALSE) -> 8.48 | Q43: =VLOOKUP($E$51,'MYA Prices'!$B$4:$AL$11,31,FALSE) -> 5.16 | R43: 2023 | S43: ='Background Calculations'!$X$32*(1+$Z$36) -> 167.1766667 | T43: 0 | U43: ='Background Calculations'!$X$33*(1+$AB$36) -> 49.22333333 | V43: =T43 -> 0 | W43: ='Background Calculations'!$X$34*(1+$AD$36) -> 75.29666667 | X43: =V43 -> 0
C44: Enhanced Coverage Option (County Yield Based) | D44: ECO Choice | E44: 0 | G44: 0 | I44: 0 | J44: Past SignUp | L44: 0.7 | M44: 0.9 | N44: 2019 | O44: =VLOOKUP($E$51,'MYA Prices'!$B$4:$AL$11,8,FALSE) -> 3.56 | P44: =VLOOKUP($E$51,'MYA Prices'!$B$4:$AL$11,20,FALSE) -> 8.57 | Q44: =VLOOKUP($E$51,'MYA Prices'!$B$4:$AL$11,32,FALSE) -> 4.58
E45: =IF(E43=0.86,$N$51,"") ->  | G45: =IF(G43=0.86,$N$51,"") ->  | I45: =IF(I43=0.86,$N$51,"") ->  | L45: 0.75 | M45: 0.95 | N45: 2020 | O45: =VLOOKUP($E$51,'MYA Prices'!$B$4:$AL$11,9,FALSE) -> 4.53 | P45: =VLOOKUP($E$51,'MYA Prices'!$B$4:$AL$11,21,FALSE) -> 10.8 | Q45: =VLOOKUP($E$51,'MYA Prices'!$B$4:$AL$11,33,FALSE) -> 5.05 | R45: NASS 2019 Yields | S45: =VLOOKUP($D$34,#REF!,2,0) ->  | T45: 0 | U45: =VLOOKUP($D$34,#REF!,3,0) ->  | V45: 0 | W45: =VLOOKUP($D$34,#REF!,4,0) ->  | X45: 0
A46: Step 7. Enter Cost of Insurance | D46: Farm Revenue cost/ac | E46: =K54*K49*E42*E42*E42*E42*E42 -> 22.86017073 | F46: SWAG | G46: =L54*L49*G42*G42*G42*G42*G42 -> 18.67334689 | H46: SWAG | I46: =M54*M49*I42*I42*I42*I42*I42 -> 25.92613063 | J46: SWAG | L46: 0.8 | N46: 2021 | O46: =VLOOKUP($E$51,'MYA Prices'!$B$4:$AL$11,10,FALSE) -> 5.95 | P46: =VLOOKUP($E$51,'MYA Prices'!$B$4:$AL$11,22,FALSE) -> 13.3 | Q46: =VLOOKUP($E$51,'MYA Prices'!$B$4:$AL$11,34,FALSE) -> 7.63 | S46: FALSE | T46: FALSE | U46: FALSE
A47: Note: Enter Premium Cost (After Subsidy) | D47: SCO Choice cost/ac (65% Subsidy) | E47: =IFERROR(((E43-E42)*K55*K50),0)*E42*E42*0.9 -> 0 | F47: SWAG | G47: =IFERROR(((G43-G42)*L55*L50),0)*G42*G42*0.9 -> 0 | H47: SWAG | I47: =IFERROR(((I43-I42)*M55*M50),0)*I42*I42*0.9 -> 0 | J47: SWAG | L47: 0.85 | N47: 2022 | O47: =VLOOKUP($E$51,'MYA Prices'!$B$4:$AL$11,11,FALSE) -> 0 | P47: =VLOOKUP($E$51,'MYA Prices'!$B$4:$AL$11,23,FALSE) -> 0 | Q47: =VLOOKUP($E$51,'MYA Prices'!$B$4:$AL$11,35,FALSE) -> 9.2
D48: ECO Choice cost/ac (44% Subsidy) | E48: =IF(E44=0.9,K56*K51,IF(E44=0.95,K52*K57,0)) -> 0 | F48: SWAG | G48: =IF(G44=0.9,L56*L51,IF(G44=0.95,L52*L57,0)) -> 0 | H48: SWAG | I48: =IF(I44=0.9,M56*M51,IF(I44=0.95,M52*M57,0)) -> 0 | J48: SWAG | K48: Insurance Factor | N48: 2023 | O48: =VLOOKUP($E$51,'MYA Prices'!$B$4:$AL$11,12,FALSE) -> 5.68 | P48: =VLOOKUP($E$51,'MYA Prices'!$B$4:$AL$11,24,FALSE) -> 13.53 | Q48: =VLOOKUP($E$51,'MYA Prices'!$B$4:$AL$11,36,FALSE) -> 7.766666667 | S48: CORN | U48: SOYBEANS | W48: WHEAT
D49: Total Producer Cost of Insurance/ac | E49: =SUM(E46:E48) -> 22.86017073 | G49: =SUM(G46:G48) -> 18.67334689 | I49: =SUM(I46:I48) -> 25.92613063 | K49: =0.07/22.36*22.93 -> 0.07178443649 | L49: =0.08/17.18*17.26 -> 0.08037252619 | M49: =0.1/18.77*23.75 -> 0.1265316995 | N49: REV | O49: =VLOOKUP($E$51,'MYA Prices'!$B$4:$AL$11,13,FALSE) -> 0 | P49: =VLOOKUP($E$51,'MYA Prices'!$B$4:$AL$11,25,FALSE) -> 0 | Q49: =VLOOKUP($E$51,'MYA Prices'!$B$4:$AL$11,37,FALSE) -> 0 | R49: 2021 | S49: =$O$48*(1+$F$54) -> 5.68 | T49: 0 | U49: =$P$48*(1+$H$54) -> 13.53 | V49: =T49 -> 0 | W49: =$Q$48*(1+$J$54) -> 7.766666667 | X49: =V49 -> 0
A50: Step 8. Enter or Select Projected Prices | K50: =0.2/5.79*6.69 -> 0.2310880829 | L50: =0.25/4.87*4.77 -> 0.2448665298 | M50: =0.23/3.92*3.93 -> 0.2305867347 | N50: SCO
D51: Base Assumptions for MYA Prices to Use: | E51: Futures 1/13/23 | G51: < Select Base Prices Source | K51: =K52/9*4 -> 0.01346772258 | L51: =L52/9*4 -> 0.01249821556 | M51: =M52/9*4 -> 0.01299154272 | N51: ARC not avail. with SCO
D52: Price Change from Base assumptions: | E52: 2022 Crop Projected Prices | K52: =0.03/27.78*28.06 -> 0.03030237581 | L52: =0.03/18.68*17.51 -> 0.02812098501 | M52: =0.028/15.24*15.91 -> 0.02923097113
E53: CORN | G53: SOYBEANS | I53: WHEAT
B54: (Weighted Average for Year after Harvest) | D54: 2023 Nat. MYA Farmer Final Prices | E54: =$O$48*(1+$F$54) -> 5.68 | F54: 0 | G54: =$P$48*(1+$H$54) -> 13.53 | H54: =F54 -> 0 | I54: =$Q$48*(1+$J$54) -> 7.766666667 | J54: =H54 -> 0 | K54: =C13*E55 -> 971.85 | L54: =D13*G55 -> 709.03 | M54: =E13*I55 -> 625.3 | N54: =IFERROR(E43+0,0) -> 0 | P54: =IFERROR(G43+0,0) -> 0 | R54: =IFERROR(I43+0,0) -> 0
D55: Planting Futures Guaranteed Price | E55: 5.89 | F55: Feb/Dec | G55: 14.47 | H55: Feb/Nov | I55: 8.45 | J55: Aug22/Sept23 | K55: =K54*E43 ->  | L55: =L54*G43 ->  | M55: =M54*I43 ->  | S55: FALSE | T55: TRUE | U55: TRUE
D56: Harvest Futures Price | E56: =E54+0.3 -> 5.98 | F56: Nov/Dec | G56: =G54+0.4 -> 13.93 | H56: Oct/Nov | I56: =I54+0.5 -> 8.266666667 | J56: Aug22/Sept22 | K56: =K54*0.9 -> 874.665 | L56: =L54*0.9 -> 638.127 | M56: =M54*0.9 -> 562.77 | O56: =K54*0.8 -> 777.48 | S56: FALSE
E57: =E54-E56 -> -0.3 | F57: Basis? | G57: =G54-G56 -> -0.4 | H57: Basis? | I57: =I54-I56 -> -0.5 | J57: Basis? | K57: =K54*0.95 -> 923.2575 | L57: =L54*0.95 -> 673.5785 | M57: =M54*0.95 -> 594.035
A59: Step 9. Evaluate the Results | E59: 2023 Program Year Choice?
B60: Projected 2023 Program Payments | E60: CORN | G60: SOYBEANS | I60: WHEAT
C61: PLC | E61: =SUM('Background Calculations'!D5*C9*0.85) -> 0 | G61: =SUM('Background Calculations'!F5)*D9*0.85 -> 0 | I61: =SUM('Background Calculations'!H5)*E9*0.85 -> 0 | N61: ARC-IC from Multiple ARC-IC Farms | O61: ARC IC from Back ground calculations
C62: ARC-CO | E62: =IF((N54)<0.5,(SUM('Background Calculations'!D12)*C9*0.85),0) -> 0 | G62: =IF(P54<0.5,(SUM('Background Calculations'!F12)*D9*0.85),0) -> 0 | I62: =IF(R54<0.5,(SUM('Background Calculations'!H12)*E9*0.85),0) -> 0 | O62: ='Background Calculations'!$J$96+'Background Calculations'!$J$97 -> 0
E63: NA | G63: NA | I63: NA
A64: Decision Point > | B64: =SUM(E64+G64+I64) -> 0 | C64: Best PLC or ARC-CO | E64: =MAX(E61:E62) -> 0 | G64: =MAX(G61:G62) -> 0 | I64: =MAX(I61:I62) -> 0 | O64: ECO Calculations | P64: 0.9 | Q64: 0.95 | S64: Enhanced Coverage Option
E65: =IF(E43=0.86,$N$51,"") ->  | G65: =IF(G43=0.86,$N$51,"") ->  | I65: =IF(I43=0.86,$N$51,"") ->  | O65: SCO Calculations | P65: 0.86 | S65: Supplemental Coverage Option
B67: =(B64)/F9 -> 0 | C67: ARC/PLC Payments Used Evenly Across All Base Acres
C68: 2023 Crop Revenues
A69: Decision Point > | B69: Crop Insurance Indemnity Payments | E69: CORN | G69: SOYS | I69: WHEAT
C70: Farm Based | D70: RP | E70: =IF(F31>0,R97,0) -> 0 | G70: =IF(H31>0,T97,0) -> 0 | I70: =IF(J31>0,V97,0) -> 0
C71: County Based | D71: SCO | E71: =IF(F31>0,R101,0) -> 0 | G71: =IF(H31>0,T101,0) -> 0 | I71: =IF(J31>0,V101,0) -> 0
C72: County Based | D72: ECO | E72: =IF(F31>0,R102,0) -> 0 | G72: =IF(H31>0,T102,0) -> 0 | I72: =IF(J31>0,V102,0) -> 0
A73: ` | B73: ARC/PLC Payments on ALL Base Acres | E73: =B67 -> 0 | G73: =B67 -> 0 | I73: =B67 -> 0
B74: Harvested Crop Value/acre | E74: =IF(K31>0,('2023 Farm Bill Calculator'!Q103*'2023 Farm Bill Calculator'!E54),0) -> 949.5634667 | G74: =IF(H31>0,('2023 Farm Bill Calculator'!S103*'2023 Farm Bill Calculator'!G54),0) -> 665.9917 | I74: =IF(J31>0,('2023 Farm Bill Calculator'!U103*'2023 Farm Bill Calculator'!I54),0) -> 584.8041111
A75: Net = After Insurance | B75: Net Revenue on Base Acres/acre | E75: =IF(F31>1,SUM(E70:F74)-E49,0) -> 926.7032959 | G75: =IF(H31>1,SUM(G70:H74)-G49,0) -> 647.3183531 | I75: =IF(J31>1,SUM(I70:J74)-I49,0) -> 558.8779805
A76: Net = After Insurance | B76: Net Revenue on Non Base Acres/acre | E76: =IF(F31>1,(E74+E72+E71+E70-E49),0) -> 926.7032959 | G76: =IF(H31>1,(G74+G72+G71+G70-G49),0) -> 647.3183531 | I76: =IF(J31>1,(I74+I72+I71+I70-I49),0) -> 558.8779805
I77: Total Net Revenue (Subtracting Insurance Cost) on Planted and/or Base Acres
E78: =(E75*C9)+(E76*(F31-C9)) -> 417016.4832 | G78: =(G75*D9)+(G76*(H31-D9)) -> 291293.2589 | I78: =(I75*E9)+(I76*(J31-E9)) -> 55887.79805
E79: =E78+G78+I78 -> 764197.5401 | G79: Total Net Revenue after Insurance Premiums
A80: Step 10. Save up to 5 Different Scenarios to Compare.
D81: Revenue Protection Level | K81: =E42 -> 0.8 | M81: =G42 -> 0.8 | O81: =I42 -> 0.8
D82: SCO Choice? | K82: =E43 -> NO | M82: =G43 -> NO | O82: =I43 -> NO
D83: ECO Choice? | K83: =E44 -> 0 | M83: =G44 -> 0 | O83: =I44 -> 0
D84: MYA | K84: =E153 -> 5.68 | M84: =G153 -> 13.53 | O84: =I153 -> 7.766666667
D85: Harvest Price (Futures) | K85: =E154 -> 5.98 | M85: =G154 -> 13.93 | O85: =I154 -> 8.266666667
D86: Farm Yield | K86: =E155 -> 167.1766667 | M86: =G155 -> 49.22333333 | O86: =I155 -> 75.29666667
K87: =E156 -> 167.1766667 | M87: =G156 -> 49.22333333 | O87: =I156 -> 75.29666667
K88: =E78 -> 417016.4832 | M88: =G78 -> 291293.2589 | O88: =I78 -> 55887.79805
A89: Total Net Revenue after Insurance Premiums | D89: =E88+G88+I88 -> 0
D91: Revenue Protection Level | O91: Expected Yields | Q91: Corn | S91: Soybeans | U91: Wheat
D92: SCO Choice? | P92: County trend adjusted | Q92: ='Background Calculations'!V32 -> 164.77 | S92: ='Background Calculations'!V33 -> 48.93666667 | U92: ='Background Calculations'!V34 -> 77.16333333
D93: ECO Choice? | P93: Farm (Trend Adjusted APH) | Q93: =C13 -> 165 | S93: =D13 -> 49 | U93: =E13 -> 74
D94: MYA | P94: County Level 100% of Revenue | Q94: =Q92*MAX(E55,E56) -> 985.3246 | S94: =S92*MAX(G55,G56) -> 708.1135667 | U94: =U92*MAX(I55,I56) -> 652.0301667
D95: Harvest Price (Futures) | P95: Farm Level 100% of Revenue | Q95: =Q93*MAX(E55,E56) -> 986.7 | S95: =S93*MAX(G55,G56) -> 709.03 | U95: =U93*MAX(I55,I56) -> 625.3
D96: Farm Yield | M96: =C13*E42*E55 -> 777.48 | O96: Guarantees With HO | R96: Insurance Level | T96: Insurance Level | V96: Insurance Level
D97: County Yield | N97: =Q97/Q95 -> 0.8 | O97: RP Farm level | P97: FR | Q97: ='2023 Farm Bill Calculator'!C13*MAX('2023 Farm Bill Calculator'!E55,'2023 Farm Bill Calculator'!E56)*'2023 Farm Bill Calculator'!E42 -> 789.36 | R97: =IF(Q97>Q107,Q97-Q107,0) -> 0 | S97: ='2023 Farm Bill Calculator'!D13*MAX('2023 Farm Bill Calculator'!G55,'2023 Farm Bill Calculator'!G56)*'2023 Farm Bill Calculator'!G42 -> 567.224 | T97: =IF(S97>S107,S97-S107,0) -> 0 | U97: ='2023 Farm Bill Calculator'!E13*MAX('2023 Farm Bill Calculator'!I55,'2023 Farm Bill Calculator'!I56)*'2023 Farm Bill Calculator'!I42 -> 500.24 | V97: =IF(U97>U107,U97-U107,0) -> 0
D98: Results 2 | O98: SCO County level | P98: SCO | Q98: =IFERROR((E43*Q93*MAX(E55,E56)),0) -> 0 | R98: =Q95*(0.86-E42) -> 59.202 | S98: =IFERROR((G43*S93*MAX('2023 Farm Bill Calculator'!G55,'2023 Farm Bill Calculator'!G56)),0) -> 0 | T98: =S95*(0.86-G42) -> 42.5418 | U98: =IFERROR((I43*U93*MAX('2023 Farm Bill Calculator'!I55,'2023 Farm Bill Calculator'!I56)),0) -> 0 | V98: =U95*(0.86-I42) -> 37.518
A99: Total Net Revenue after Insurance Premiums | D99: =E98+G98+I98 -> 0 | E99: =D99-D89 -> 0 | G99: From Scenario # 1 | O99: ECO County Level | P99: ECO 90 | Q99: =0.9*Q93*MAX('2023 Farm Bill Calculator'!E55,'2023 Farm Bill Calculator'!E56) -> 888.03 | R99: =Q95*(0.9-0.86) -> 39.468 | S99: =G44*S93*MAX('2023 Farm Bill Calculator'!G55,'2023 Farm Bill Calculator'!G56) -> 0 | T99: =S95*(G44-0.86) -> -609.7658 | U99: =I44*U93*MAX('2023 Farm Bill Calculator'!I55,'2023 Farm Bill Calculator'!I56) -> 0 | V99: =U95*(I44-0.86) -> -537.758
N100: =Q108/Q94 -> 1.014606219 | P100: ECO 95 | Q100: =0.95*Q93*MAX('2023 Farm Bill Calculator'!E55,'2023 Farm Bill Calculator'!E56) -> 937.365 | R100: =Q95*(0.95-0.86) -> 88.803 | S100: =0.95*S93*MAX('2023 Farm Bill Calculator'!G55,'2023 Farm Bill Calculator'!G56) -> 673.5785 | T100: =S95*(0.95-0.86) -> 63.8127 | U100: =0.95*U93*MAX('2023 Farm Bill Calculator'!I55,'2023 Farm Bill Calculator'!I56) -> 594.035 | V100: =U95*(0.95-0.86) -> 56.277
D101: Revenue Protection Level | O101: Harvested Actual Yields | Q101: SCO ENDEM | R101: =R109*R98 -> 0 | S101: SCO ENDEM | T101: =T109*T98 -> 0 | U101: SCO ENDEM | V101: =V109*V98 -> 0
D102: SCO Choice? | M102: =Q95-R102-R101 -> 986.7 | N102: =M102/Q95 -> 1 | P102: Farm Level | Q102: ECO ENDEM | R102: =R99*R111 -> 0 | S102: ECO ENDEM | T102: =T99*T111 -> 0 | U102: ECO ENDEM | V102: =V99*V111 -> 0
D103: ECO Choice? | P103: County Level | Q103: ='2023 Farm Bill Calculator'!E31 -> 167.1766667 | S103: ='2023 Farm Bill Calculator'!G31 -> 49.22333333 | U103: ='2023 Farm Bill Calculator'!I31 -> 75.29666667
D104: MYA | Q104: ='2023 Farm Bill Calculator'!E37 -> 167.1766667 | S104: ='2023 Farm Bill Calculator'!G37 -> 49.22333333 | U104: ='2023 Farm Bill Calculator'!I37 -> 75.29666667
D105: Harvest Price (Futures) | O105: Actual Revenue | Q105: SCO Percent loss | R105: =IFERROR(MIN(E43-E42,(MAX(((Q94-Q108)/Q94)-(1-0.86),0))),0) -> 0 | S105: SCO Percent loss | T105: =IFERROR(MIN(G43-G42,(MAX(((S94-S108)/S94)-(1-0.86),0))),0) -> 0 | U105: SCO Percent loss | V105: =IFERROR(MIN(I43-I42,(MAX(((U94-U108)/U94)-(1-0.86),0))),0) -> 0
D106: Farm Yield | P106: Farm Level | Q106: ECO Percent loss | R106: =MAX(MIN((E44-0.86),E44-(Q108/Q94)),0) -> 0 | S106: ECO Percent loss | T106: =MAX(MIN((G44-0.86),G44-(S108/S94)),0) -> 0 | U106: ECO Percent loss | V106: =MAX(MIN((I44-0.86),I44-(U108/U94)),0) -> 0
D107: County Yield | N107: =Q108/Q95 -> 1.013191919 | P107: County Level | Q107: =E56*Q103 -> 999.7164667 | S107: =G56*S103 -> 685.6810333 | U107: =I56*U103 -> 622.4524444
D108: Results 3 | Q108: =E56*Q104 -> 999.7164667 | S108: =G56*S104 -> 685.6810333 | U108: =I56*U104 -> 622.4524444
A109: Total Net Revenue after Insurance Premiums | D109: =E108+G108+I108 -> 0 | E109: =D109-D99 -> 0 | G109: From Scenario # 2 | Q109: SCO Payment Factor | R109: =IFERROR(R105/(0.86-E42),0) -> 0 | S109: SCO Payment Factor | T109: =T105/(0.86-G42) -> 0 | U109: SCO Payment Factor | V109: =V105/(0.86-I42) -> 0
D111: Revenue Protection Level | Q111: ECO Payment Factor | R111: =R106/(E44-0.86) -> 0 | S111: ECO Payment Factor | T111: =T106/(G44-0.86) -> 0 | U111: ECO Payment Factor | V111: =V106/(I44-0.86) -> 0
D112: SCO Choice?
D113: ECO Choice?
D114: MYA
D115: Harvest Price (Futures)
D116: Farm Yield
D117: County Yield
D118: Results 4
A119: Total Net Revenue after Insurance Premiums | D119: =E118+G118+I118 -> 0 | E119: =D119-D109 -> 0 | F119: From Scenario # 3 | G119: From Scenario # 3
D121: Revenue Protection Level
D122: SCO Choice?
D123: ECO Choice?
D124: MYA
D125: Harvest Price (Futures)
D126: Farm Yield
D127: County Yield
D128: Results 5
A129: Total Net Revenue after Insurance Premiums | D129: =E128+G128+I128 -> 0 | E129: =D129-D119 -> 0 | F129: From Scenario # 3 | G129: From Scenario # 4
E146: Corn | G146: Soybeans | I146: Wheat
D147: Crop Value | E147: =E74 -> 949.5634667 | G147: =G74 -> 665.9917 | I147: =I74 -> 584.8041111
D148: ARC PLC | E148: =E73 -> 0 | G148: =G73 -> 0 | I148: =I73 -> 0
D149: RP | E149: =E70 -> 0 | G149: =G70 -> 0 | I149: =I70 -> 0
D150: SCO | E150: =E71 -> 0 | G150: =G71 -> 0 | I150: =I71 -> 0
D151: ECO | E151: =E72 -> 0 | G151: =G72 -> 0 | I151: =I72 -> 0
D153: MYA | E153: =E54 -> 5.68 | G153: =G54 -> 13.53 | I153: =I54 -> 7.766666667
D154: Harvest Price (Futures) | E154: =E56 -> 5.98 | G154: =G56 -> 13.93 | I154: =I56 -> 8.266666667
D155: Farm Yield | E155: =E31 -> 167.1766667 | G155: =G31 -> 49.22333333 | I155: =I31 -> 75.29666667
D156: County Yield | E156: =E37 -> 167.1766667 | G156: =G37 -> 49.22333333 | I156: =I37 -> 75.29666667

Sheet Background Calculations (hidden)
L1: ='2023 Farm Bill Calculator'!C4 -> EATON
C2: 81% or 85.91% wheat PLC Update Yield Calculation | D2: =AVERAGE('2023 Farm Bill Calculator'!E24:E28)*0.81 -> 61.853625 | F2: =AVERAGE('2023 Farm Bill Calculator'!G24:G28)*0.81 -> 18.07515 | H2: =AVERAGE('2023 Farm Bill Calculator'!I24:I28)*0.8591 -> 30.40999225 | M2: County Trend Yield from FSA ARC-CO | N2: 2013 | O2: 2014 | P2: 2015 | Q2: 2016 | R2: 2017 | S2: 2018 | T2: 2019 | U2: 2020 | V2: 2021 | W2: 2022 | X2: 2023
C3: 2019-23 PLC Price Guarantee | D3: 3.7 | F3: 8.4 | H3: 5.5 | K3: all | L3: Corn | M3: ='2023 Farm Bill Calculator'!$C$4&L3&K3 -> EATONCornall | N3: =IFERROR(VLOOKUP($M3,'County Trend Yields'!$B$3:$AF$289,2,0),0) -> 0 | O3: =IFERROR(VLOOKUP($M3,'County Trend Yields'!$B$3:$AF$289,3,0),0) -> 0 | P3: =IFERROR(VLOOKUP($M3,'County Trend Yields'!$B$3:$AF$289,4,0),0) -> 174.34 | Q3: =IFERROR(VLOOKUP($M3,'FSA22'!$E$5:$Q$286,3,0),0) -> 156.6 | R3: =IFERROR(VLOOKUP($M3,'FSA23'!$E$5:$Q$286,3,0),0) -> 186.83 | S3: =IFERROR(VLOOKUP($M3,'FSA23'!$E$5:$Q$286,4,0),0) -> 163.37 | T3: =IFERROR(VLOOKUP($M3,'FSA23'!$E$5:$Q$286,5,0),0) -> 142.08 | U3: =IFERROR(VLOOKUP($M3,'FSA23'!$E$5:$Q$286,6,0),0) -> 161.4 | V3: =IFERROR(VLOOKUP($M3,'FSA23'!$E$5:$Q$286,7,0),0) -> 176.76
C4: PLC / Acre/Before 85% | D4: CORN | E4: Farm w/85% | F4: SOYBEANS | G4: Farm w/85% | H4: WHEAT | I4: Farm w/85% | K4: all | L4: soybeans | M4: ='2023 Farm Bill Calculator'!$C$4&L4&K4 -> EATONsoybeansall | N4: =IFERROR(VLOOKUP($M4,'County Trend Yields'!$B$3:$AF$289,2,0),0) -> 0 | O4: =IFERROR(VLOOKUP($M4,'County Trend Yields'!$B$3:$AF$289,3,0),0) -> 0 | P4: =IFERROR(VLOOKUP($M4,'County Trend Yields'!$B$3:$AF$289,4,0),0) -> 0 | Q4: =IFERROR(VLOOKUP($M4,'FSA22'!$E$5:$Q$286,3,0),0) -> 0 | R4: =IFERROR(VLOOKUP($M4,'FSA23'!$E$5:$Q$286,3,0),0) -> 0 | S4: =IFERROR(VLOOKUP($M4,'FSA23'!$E$5:$Q$286,4,0),0) -> 0 | T4: =IFERROR(VLOOKUP($M4,'FSA23'!$E$5:$Q$286,5,0),0) -> 0 | U4: =IFERROR(VLOOKUP($M4,'FSA23'!$E$5:$Q$286,6,0),0) -> 0 | V4: =IFERROR(VLOOKUP($M4,'FSA23'!$E$5:$Q$286,7,0),0) -> 0
C5: 2021 | D5: =IF('2023 Farm Bill Calculator'!E54>'2023 Farm Bill Calculator'!E$16,IF('2023 Farm Bill Calculator'!E54<D$3,D$3-'2023 Farm Bill Calculator'!E54,0)*'2023 Farm Bill Calculator'!C10,(D$3-'2023 Farm Bill Calculator'!E$16)*'2023 Farm Bill Calculator'!C10) -> 0 | E5: =D5*'2023 Farm Bill Calculator'!$C$9*0.85 -> 0 | F5: =IF('2023 Farm Bill Calculator'!G54>'2023 Farm Bill Calculator'!G$16,IF('2023 Farm Bill Calculator'!G54<F$3,F$3-'2023 Farm Bill Calculator'!G54,0)*'2023 Farm Bill Calculator'!D10,(F$3-'2023 Farm Bill Calculator'!G$16)*'2023 Farm Bill Calculator'!D10) -> 0 | G5: =F5*'2023 Farm Bill Calculator'!$D$9*0.85 -> 0 | H5: =IF('2023 Farm Bill Calculator'!I54>'2023 Farm Bill Calculator'!I$16,IF('2023 Farm Bill Calculator'!I54<H$3,H$3-'2023 Farm Bill Calculator'!I54,0)*'2023 Farm Bill Calculator'!E10,(H$3-'2023 Farm Bill Calculator'!I$16)*'2023 Farm Bill Calculator'!E10) -> 0 | I5: =H5*'2023 Farm Bill Calculator'!$E$9*0.85 -> 0 | K5: all | L5: Wheat | M5: ='2023 Farm Bill Calculator'!$C$4&L5&K5 -> EATONWheatall | N5: =IFERROR(VLOOKUP($M5,'County Trend Yields'!$B$3:$AF$289,2,0),0) -> 0 | O5: =IFERROR(VLOOKUP($M5,'County Trend Yields'!$B$3:$AF$289,3,0),0) -> 0 | P5: =IFERROR(VLOOKUP($M5,'County Trend Yields'!$B$3:$AF$289,4,0),0) -> 75.13 | Q5: =IFERROR(VLOOKUP($M5,'FSA22'!$E$5:$Q$286,3,0),0) -> 86.34 | R5: =IFERROR(VLOOKUP($M5,'FSA23'!$E$5:$Q$286,3,0),0) -> 77.5 | S5: =IFERROR(VLOOKUP($M5,'FSA23'!$E$5:$Q$286,4,0),0) -> 78.86 | T5: =IFERROR(VLOOKUP($M5,'FSA23'!$E$5:$Q$286,5,0),0) -> 62.73 | U5: =IFERROR(VLOOKUP($M5,'FSA23'!$E$5:$Q$286,6,0),0) -> 74.75 | V5: =IFERROR(VLOOKUP($M5,'FSA23'!$E$5:$Q$286,7,0),0) -> 73.64
C6: 2022 | D6: =IF('2023 Farm Bill Calculator'!E54>'2023 Farm Bill Calculator'!E$16,IF('2023 Farm Bill Calculator'!E54<D$3,D$3-'2023 Farm Bill Calculator'!E54,0)*'2023 Farm Bill Calculator'!C10,(D$3-'2023 Farm Bill Calculator'!E$16)*'2023 Farm Bill Calculator'!C10) -> 0 | E6: =D6*'2023 Farm Bill Calculator'!$C$9*0.85 -> 0 | F6: =IF('2023 Farm Bill Calculator'!G54>'2023 Farm Bill Calculator'!G$16,IF('2023 Farm Bill Calculator'!G54<F$3,F$3-'2023 Farm Bill Calculator'!G54,0)*'2023 Farm Bill Calculator'!D10,(F$3-'2023 Farm Bill Calculator'!G$16)*'2023 Farm Bill Calculator'!D10) -> 0 | G6: =F6*'2023 Farm Bill Calculator'!$D$9*0.85 -> 0 | H6: =IF('2023 Farm Bill Calculator'!I54>'2023 Farm Bill Calculator'!I$16,IF('2023 Farm Bill Calculator'!I54<H$3,H$3-'2023 Farm Bill Calculator'!I54,0)*'2023 Farm Bill Calculator'!E10,(H$3-'2023 Farm Bill Calculator'!I$16)*'2023 Farm Bill Calculator'!E10) -> 0 | I6: =H6*'2023 Farm Bill Calculator'!$E$9*0.85 -> 0 | K6: Irrigated | L6: Corn | M6: ='2023 Farm Bill Calculator'!$C$4&L6&K6 -> EATONCornIrrigated | N6: =IFERROR(VLOOKUP($M6,'County Trend Yields'!$B$3:$AF$289,2,0),0) -> 0 | O6: =IFERROR(VLOOKUP($M6,'County Trend Yields'!$B$3:$AF$289,3,0),0) -> 0 | P6: =IFERROR(VLOOKUP($M6,'County Trend Yields'!$B$3:$AF$289,4,0),0) -> 0 | Q6: =IFERROR(VLOOKUP($M6,'FSA22'!$E$5:$Q$286,3,0),0) -> 0 | R6: =IFERROR(VLOOKUP($M6,'FSA23'!$E$5:$Q$286,3,0),0) -> 0 | S6: =IFERROR(VLOOKUP($M6,'FSA23'!$E$5:$Q$286,4,0),0) -> 0 | T6: =IFERROR(VLOOKUP($M6,'FSA23'!$E$5:$Q$286,5,0),0) -> 0 | U6: =IFERROR(VLOOKUP($M6,'FSA23'!$E$5:$Q$286,6,0),0) -> 0 | V6: =IFERROR(VLOOKUP($M6,'FSA23'!$E$5:$Q$286,7,0),0) -> 0
C7: 2023 | E7: =D7*'2023 Farm Bill Calculator'!$C$9*0.85 -> 0 | G7: =F7*'2023 Farm Bill Calculator'!$D$9*0.85 -> 0 | I7: =H7*'2023 Farm Bill Calculator'!$E$9*0.85 -> 0 | K7: Irrigated | L7: soybeans | M7: ='2023 Farm Bill Calculator'!$C$4&L7&K7 -> EATONsoybeansIrrigated | N7: =IFERROR(VLOOKUP($M7,'County Trend Yields'!$B$3:$AF$289,2,0),0) -> 0 | O7: =IFERROR(VLOOKUP($M7,'County Trend Yields'!$B$3:$AF$289,3,0),0) -> 0 | P7: =IFERROR(VLOOKUP($M7,'County Trend Yields'!$B$3:$AF$289,4,0),0) -> 0 | Q7: =IFERROR(VLOOKUP($M7,'FSA22'!$E$5:$Q$286,3,0),0) -> 51.82 | R7: =IFERROR(VLOOKUP($M7,'FSA23'!$E$5:$Q$286,3,0),0) -> 54.37 | S7: =IFERROR(VLOOKUP($M7,'FSA23'!$E$5:$Q$286,4,0),0) -> 64.69 | T7: =IFERROR(VLOOKUP($M7,'FSA23'!$E$5:$Q$286,5,0),0) -> 48.18 | U7: =IFERROR(VLOOKUP($M7,'FSA23'!$E$5:$Q$286,6,0),0) -> 54.47 | V7: =IFERROR(VLOOKUP($M7,'FSA23'!$E$5:$Q$286,7,0),0) -> 55.3
C8: 2024 | E8: =D8*'2023 Farm Bill Calculator'!$C$9*0.85 -> 0 | G8: =F8*'2023 Farm Bill Calculator'!$D$9*0.85 -> 0 | I8: =H8*'2023 Farm Bill Calculator'!$E$9*0.85 -> 0 | K8: nonirrigated | L8: Corn | M8: ='2023 Farm Bill Calculator'!$C$4&L8&K8 -> EATONCornnonirrigated | N8: =IFERROR(VLOOKUP($M8,'County Trend Yields'!$B$3:$AF$289,2,0),0) -> 0 | O8: =IFERROR(VLOOKUP($M8,'County Trend Yields'!$B$3:$AF$289,3,0),0) -> 0 | P8: =IFERROR(VLOOKUP($M8,'County Trend Yields'!$B$3:$AF$289,4,0),0) -> 0 | Q8: =IFERROR(VLOOKUP($M8,'FSA22'!$E$5:$Q$286,3,0),0) -> 0 | R8: =IFERROR(VLOOKUP($M8,'FSA23'!$E$5:$Q$286,3,0),0) -> 0 | S8: =IFERROR(VLOOKUP($M8,'FSA23'!$E$5:$Q$286,4,0),0) -> 0 | T8: =IFERROR(VLOOKUP($M8,'FSA23'!$E$5:$Q$286,5,0),0) -> 0 | U8: =IFERROR(VLOOKUP($M8,'FSA23'!$E$5:$Q$286,6,0),0) -> 0 | V8: =IFERROR(VLOOKUP($M8,'FSA23'!$E$5:$Q$286,7,0),0) -> 0
C9: 2025 | E9: =D9*'2023 Farm Bill Calculator'!$C$9*0.85 -> 0 | G9: =F9*'2023 Farm Bill Calculator'!$D$9*0.85 -> 0 | I9: =H9*'2023 Farm Bill Calculator'!$E$9*0.85 -> 0 | K9: nonirrigated | L9: soybeans | M9: ='2023 Farm Bill Calculator'!$C$4&L9&K9 -> EATONsoybeansnonirrigated | N9: =IFERROR(VLOOKUP($M9,'County Trend Yields'!$B$3:$AF$289,2,0),0) -> 0 | O9: =IFERROR(VLOOKUP($M9,'County Trend Yields'!$B$3:$AF$289,3,0),0) -> 0 | P9: =IFERROR(VLOOKUP($M9,'County Trend Yields'!$B$3:$AF$289,4,0),0) -> 49.42 | Q9: =IFERROR(VLOOKUP($M9,'FSA22'!$E$5:$Q$286,3,0),0) -> 54.26 | R9: =IFERROR(VLOOKUP($M9,'FSA23'!$E$5:$Q$286,3,0),0) -> 45.59 | S9: =IFERROR(VLOOKUP($M9,'FSA23'!$E$5:$Q$286,4,0),0) -> 51.8 | T9: =IFERROR(VLOOKUP($M9,'FSA23'!$E$5:$Q$286,5,0),0) -> 37.46 | U9: =IFERROR(VLOOKUP($M9,'FSA23'!$E$5:$Q$286,6,0),0) -> 50.28 | V9: =IFERROR(VLOOKUP($M9,'FSA23'!$E$5:$Q$286,7,0),0) -> 53.33
C10: Totals | D10: =SUM(D5:D9) -> 0 | E10: =D10*'2023 Farm Bill Calculator'!$C$9*0.85 -> 0 | F10: =SUM(F5:F9) -> 0 | G10: =F10*'2023 Farm Bill Calculator'!$D$9*0.85 -> 0 | H10: =SUM(H5:H9) -> 0 | I10: =H10*'2023 Farm Bill Calculator'!$E$9*0.85 -> 0 | K10: Irrigated | L10: Wheat | M10: ='2023 Farm Bill Calculator'!$C$4&L10&K10 -> EATONWheatIrrigated | N10: =IFERROR(VLOOKUP($M10,'County Trend Yields'!$B$3:$AF$289,2,0),0) -> 0 | O10: =IFERROR(VLOOKUP($M10,'County Trend Yields'!$B$3:$AF$289,3,0),0) -> 0 | P10: =IFERROR(VLOOKUP($M10,'County Trend Yields'!$B$3:$AF$289,4,0),0) -> 0 | Q10: =IFERROR(VLOOKUP($M10,'FSA22'!$E$5:$Q$286,3,0),0) -> 0 | R10: =IFERROR(VLOOKUP($M10,'FSA23'!$E$5:$Q$286,3,0),0) -> 0 | S10: =IFERROR(VLOOKUP($M10,'FSA23'!$E$5:$Q$286,4,0),0) -> 0 | T10: =IFERROR(VLOOKUP($M10,'FSA23'!$E$5:$Q$286,5,0),0) -> 0 | U10: =IFERROR(VLOOKUP($M10,'FSA23'!$E$5:$Q$286,6,0),0) -> 0 | V10: =IFERROR(VLOOKUP($M10,'FSA23'!$E$5:$Q$286,7,0),0) -> 0
C11: ARC-CO Payment/Acre /before the 85% | K11: nonirrigated | L11: Wheat | M11: ='2023 Farm Bill Calculator'!$C$4&L11&K11 -> EATONWheatnonirrigated | N11: =IFERROR(VLOOKUP($M11,'County Trend Yields'!$B$3:$AF$289,2,0),0) -> 0 | O11: =IFERROR(VLOOKUP($M11,'County Trend Yields'!$B$3:$AF$289,3,0),0) -> 0 | P11: =IFERROR(VLOOKUP($M11,'County Trend Yields'!$B$3:$AF$289,4,0),0) -> 0 | Q11: =IFERROR(VLOOKUP($M11,'FSA22'!$E$5:$Q$286,3,0),0) -> 0 | R11: =IFERROR(VLOOKUP($M11,'FSA23'!$E$5:$Q$286,3,0),0) -> 0 | S11: =IFERROR(VLOOKUP($M11,'FSA23'!$E$5:$Q$286,4,0),0) -> 0 | T11: =IFERROR(VLOOKUP($M11,'FSA23'!$E$5:$Q$286,5,0),0) -> 0 | U11: =IFERROR(VLOOKUP($M11,'FSA23'!$E$5:$Q$286,6,0),0) -> 0 | V11: =IFERROR(VLOOKUP($M11,'FSA23'!$E$5:$Q$286,7,0),0) -> 0
C12: 2021 | D12: =MIN(IF('2023 Farm Bill Calculator'!$E$54*'2023 Farm Bill Calculator'!$E$37<$E$28,$E$28-('2023 Farm Bill Calculator'!$E$37*'2023 Farm Bill Calculator'!$E$54),0),E40) -> 0 | E12: =D12*'2023 Farm Bill Calculator'!$C$9*0.85 -> 0 | F12: =MIN(IF('2023 Farm Bill Calculator'!$G$54*'2023 Farm Bill Calculator'!$G$37<$G$28,$G$28-('2023 Farm Bill Calculator'!$G$37*'2023 Farm Bill Calculator'!$G$54),0),G40) -> 0 | G12: =F12*'2023 Farm Bill Calculator'!$D$9*0.85 -> 0 | H12: =MIN(IF('2023 Farm Bill Calculator'!$I$54*'2023 Farm Bill Calculator'!$I$37<$I$28,$I$28-('2023 Farm Bill Calculator'!$I$37*'2023 Farm Bill Calculator'!$I$54),0),I40) -> 0 | I12: =H12*'2023 Farm Bill Calculator'!$E$9*0.85 -> 0
C13: 2022 | D13: =MIN(IF('2023 Farm Bill Calculator'!$E$54*'2023 Farm Bill Calculator'!$E$37<$E$28,$E$28-('2023 Farm Bill Calculator'!$E$37*'2023 Farm Bill Calculator'!$E$54),0),E40) -> 0 | E13: =D13*'2023 Farm Bill Calculator'!$C$9*0.85 -> 0 | F13: =MIN(IF('2023 Farm Bill Calculator'!$G$54*'2023 Farm Bill Calculator'!$G$37<$G$28,$G$28-('2023 Farm Bill Calculator'!$G$37*'2023 Farm Bill Calculator'!$G$54),0),G40) -> 0 | G13: =F13*'2023 Farm Bill Calculator'!$D$9*0.85 -> 0 | H13: =MIN(IF('2023 Farm Bill Calculator'!$I$54*'2023 Farm Bill Calculator'!$I$37<$I$28,$I$28-('2023 Farm Bill Calculator'!$I$37*'2023 Farm Bill Calculator'!$I$54),0),I40) -> 0 | I13: =H13*'2023 Farm Bill Calculator'!$E$9*0.85 -> 0 | L13: County Olympic Average Yield ARC-CO | N13: 2013 | O13: 2014 | P13: 2015 | Q13: 2016 | R13: 2017 | S13: 2018 | T13: 2019 | U13: 2020 | V13: 2021 | W13: 2022 | X13: 2023
C14: 2023 | E14: =D14*'2023 Farm Bill Calculator'!$C$9*0.85 -> 0 | G14: =F14*'2023 Farm Bill Calculator'!$D$9*0.85 -> 0 | I14: =H14*'2023 Farm Bill Calculator'!$E$9*0.85 -> 0 | L14: Corn | M14: =M3 -> EATONCornall | T14: =(SUM(N3:R3)-MAX(N3:R3)-MIN(N3:R3))/3 -> 110.3133333 | U14: =(SUM(O3:S3)-MAX(O3:S3)-MIN(O3:S3))/3 -> 164.77 | V14: =(SUM(P3:T3)-MAX(P3:T3)-MIN(P3:T3))/3 -> 164.77 | W14: =(SUM(Q3:U3)-MAX(Q3:U3)-MIN(Q3:U3))/3 -> 160.4566667 | X14: =(SUM(R3:V3)-MAX(R3:V3)-MIN(R3:V3))/3 -> 167.1766667
C15: 2024 | E15: =D15*'2023 Farm Bill Calculator'!$C$9*0.85 -> 0 | G15: =F15*'2023 Farm Bill Calculator'!$D$9*0.85 -> 0 | I15: =H15*'2023 Farm Bill Calculator'!$E$9*0.85 -> 0 | L15: soybeans | M15: =M4 -> EATONsoybeansall | T15: =((SUM(N4:R4)-MAX(N4:R4)-MIN(N4:R4)))/3 -> 0 | U15: =(SUM(O4:S4)-MAX(O4:S4)-MIN(O4:S4))/3 -> 0 | V15: =(SUM(P4:T4)-MAX(P4:T4)-MIN(P4:T4))/3 -> 0 | W15: =(SUM(Q4:U4)-MAX(Q4:U4)-MIN(Q4:U4))/3 -> 0 | X15: =(SUM(R4:V4)-MAX(R4:V4)-MIN(R4:V4))/3 -> 0
C16: 2025 | E16: =D16*'2023 Farm Bill Calculator'!$C$9*0.85 -> 0 | G16: =F16*'2023 Farm Bill Calculator'!$D$9*0.85 -> 0 | I16: =H16*'2023 Farm Bill Calculator'!$E$9*0.85 -> 0 | L16: Wheat | M16: EATONWheatall | T16: =(SUM(N5:R5)-MAX(N5:R5)-MIN(N5:R5))/3 -> 50.87666667 | U16: 77.16333333 | V16: 77.16333333 | W16: 77.03666667 | X16: 75.29666667
C17: Totals | D17: =SUM(D12:D16) -> 0 | E17: 0 | F17: 0 | G17: 0 | H17: 0 | I17: 0 | L17: Corn | M17: EATONCornIrrigated | T17: =(SUM(N6:R6)-MAX(N6:R6)-MIN(N6:R6))/3 -> 0 | U17: 0 | V17: 0 | W17: 0 | X17: 0
L18: soybeans | M18: EATONsoybeansIrrigated | T18: =(SUM(N7:R7)-MAX(N7:R7)-MIN(N7:R7))/3 -> 17.27333333 | U18: 35.39666667 | V18: 51.45666667 | W18: 53.55333333 | X18: 54.71333333
L19: Corn | M19: EATONCornnonirrigated | T19: =(SUM(N8:R8)-MAX(N8:R8)-MIN(N8:R8))/3 -> 0 | U19: 0 | V19: 0 | W19: 0 | X19: 0
L20: soybeans | M20: EATONsoybeansnonirrigated | T20: =(SUM(N9:R9)-MAX(N9:R9)-MIN(N9:R9))/3 -> 31.67 | U20: 48.93666667 | V20: 48.93666667 | W20: 49.22333333 | X20: 49.22333333
C21: ARC-CO Benchmark Revenue/ac | D21: =D4 -> CORN | E21: Per Acre | F21: =F4 -> SOYBEANS | G21: Per Acre | H21: =H4 -> WHEAT | I21: Per Acre
C22: 2021 | E22: =V32*V56 -> 609.649 | G22: =V33*V57 -> 437.9831667 | I22: =V34*V58 -> 424.3983333 | L22: FSA County Trend Yields for Arc Co NOT USED | N22: 2013 | O22: 2014 | P22: 2015 | Q22: 2016 | R22: 2017 | S22: 2018 | T22: 2019 | U22: 2020 | V22: 2021 | W22: 2022 | X22: 2023
C23: 2022 | E23: =W32*W56 -> 593.6896667 | G23: =W33*W57 -> 448.9168 | I23: =W34*W58 -> 423.7016667 | K23: Problem Irrigated Yields for counties with out irrigated history back to 2013 | L23: Corn | M23: =M3 -> EATONCornall | N23: 0 | O23: 0 | P23: 174.34 | Q23: 156.6 | R23: 186.83 | S23: 163.37 | T23: 142.08 | U23: 161.4 | V23: 176.76 | W23: 0 | X23: 0
C24: 2023 | E24: =X32*X56 -> 665.3631333 | G24: =X33*X57 -> 471.0673 | I24: =X34*X58 -> 414.1316667 | L24: soybeans | M24: =M4 -> EATONsoybeansall | N24: 0 | O24: 0 | P24: 0 | Q24: 0 | R24: 0 | S24: 0 | T24: 0 | U24: 0 | V24: 0 | W24: 0 | X24: 0
C25: 2024 | L25: Wheat | M25: EATONWheatall | N25: 0 | O25: 0 | P25: 75.13 | Q25: 86.34 | R25: 77.5 | S25: 78.86 | T25: 62.73 | U25: 74.75 | V25: 73.64 | W25: 0 | X25: 0
C26: 2025 | L26: Corn | M26: EATONCornIrrigated | N26: 0 | O26: 0 | P26: 0 | Q26: 0 | R26: 0 | S26: 0 | T26: 0 | U26: 0 | V26: 0 | W26: 0 | X26: 0
C27: 86% ARC-CO Guarantee/Ac | L27: soybeans | M27: EATONsoybeansIrrigated | N27: 0 | O27: 0 | P27: 0 | Q27: 51.82 | R27: 54.37 | S27: 64.69 | T27: 48.18 | U27: 54.47 | V27: 55.3 | W27: 0 | X27: 0
C28: 2021 | E28: =E22*0.86 -> 524.29814 | G28: =G22*0.86 -> 376.6655233 | I28: =I22*0.86 -> 364.9825667 | L28: Corn | M28: EATONCornnonirrigated | N28: 0 | O28: 0 | P28: 0 | Q28: 0 | R28: 0 | S28: 0 | T28: 0 | U28: 0 | V28: 0 | W28: 0 | X28: 0
C29: 2022 | E29: =E23*0.86 -> 510.5731133 | G29: =G23*0.86 -> 386.068448 | I29: =I23*0.86 -> 364.3834333 | L29: soybeans | M29: EATONsoybeansnonirrigated | N29: 0 | O29: 0 | P29: 49.42 | Q29: 54.26 | R29: 45.59 | S29: 51.8 | T29: 37.46 | U29: 50.28 | V29: 53.33 | W29: 0 | X29: 0
C30: 2023 | E30: 572.2122947 | G30: 405.117878 | I30: 356.1532333
C31: 2024 | E31: 0 | G31: 0 | I31: 0 | L31: County Benchmark Weighted Olympic average Yield | N31: 2013 | O31: 2014 | P31: 2015 | Q31: 2016 | R31: 2017 | S31: 2018 | T31: 2019 | U31: 2020 | V31: 2021 | W31: 2022 | X31: 2023
C32: 2025 | E32: 0 | G32: 0 | I32: 0 | M32: Corn | T32: =('Background Calculations'!T$14)+('Background Calculations'!T$17*'2023 Farm Bill Calculator'!$C$11)+('Background Calculations'!T$19*(1-'2023 Farm Bill Calculator'!$C$11)) -> 110.3133333 | U32: =('Background Calculations'!U$14)+('Background Calculations'!U$17*'2023 Farm Bill Calculator'!$C$11)+('Background Calculations'!U$19*(1-'2023 Farm Bill Calculator'!$C$11)) -> 164.77 | V32: =('Background Calculations'!V$14)+('Background Calculations'!V$17*'2023 Farm Bill Calculator'!$C$11)+('Background Calculations'!V$19*(1-'2023 Farm Bill Calculator'!$C$11)) -> 164.77 | W32: =('Background Calculations'!W$14)+('Background Calculations'!W$17*'2023 Farm Bill Calculator'!$C$11)+('Background Calculations'!W$19*(1-'2023 Farm Bill Calculator'!$C$11)) -> 160.4566667 | X32: =('Background Calculations'!X$14)+('Background Calculations'!X$17*'2023 Farm Bill Calculator'!$C$11)+('Background Calculations'!X$19*(1-'2023 Farm Bill Calculator'!$C$11)) -> 167.1766667
C33: ARC-CO Actual Revenue/Ac (before 85%) | M33: Soybeans | T33: =('Background Calculations'!T$15)+('Background Calculations'!T$18*'2023 Farm Bill Calculator'!$D$11)+('Background Calculations'!T$20*(1-'2023 Farm Bill Calculator'!$D$11)) -> 31.67 | U33: =('Background Calculations'!U$15)+('Background Calculations'!U$18*'2023 Farm Bill Calculator'!$D$11)+('Background Calculations'!U$20*(1-'2023 Farm Bill Calculator'!$D$11)) -> 48.93666667 | V33: =('Background Calculations'!V$15)+('Background Calculations'!V$18*'2023 Farm Bill Calculator'!$D$11)+('Background Calculations'!V$20*(1-'2023 Farm Bill Calculator'!$D$11)) -> 48.93666667 | W33: =('Background Calculations'!W$15)+('Background Calculations'!W$18*'2023 Farm Bill Calculator'!$D$11)+('Background Calculations'!W$20*(1-'2023 Farm Bill Calculator'!$D$11)) -> 49.22333333 | X33: =('Background Calculations'!X$15)+('Background Calculations'!X$18*'2023 Farm Bill Calculator'!$D$11)+('Background Calculations'!X$20*(1-'2023 Farm Bill Calculator'!$D$11)) -> 49.22333333
C34: 2021 | E34: ='2023 Farm Bill Calculator'!O46*'Background Calculations'!V37 -> 1051.722 | G34: ='2023 Farm Bill Calculator'!P46*'Background Calculations'!V38 -> 709.289 | I34: ='2023 Farm Bill Calculator'!Q46*V39 -> 561.8732 | M34: Wheat | T34: =T16 -> 50.87666667 | U34: =U16 -> 77.16333333 | V34: =V16 -> 77.16333333 | W34: =W16 -> 77.03666667 | X34: =X16 -> 75.29666667
C35: 2022 | E35: ='2023 Farm Bill Calculator'!O47*'Background Calculations'!W37 -> 0 | G35: ='2023 Farm Bill Calculator'!P47*W38 -> 0 | I35: ='2023 Farm Bill Calculator'!Q47*W39 -> 683.4312
C36: 2023 | E36: ='2023 Farm Bill Calculator'!E54*'2023 Farm Bill Calculator'!E37 -> 949.5634667 | G36: ='2023 Farm Bill Calculator'!G54*'2023 Farm Bill Calculator'!G37 -> 665.9917 | I36: ='2023 Farm Bill Calculator'!I37*'2023 Farm Bill Calculator'!I54 -> 584.8041111 | L36: Cty Act. weighted payment yields not Trended not Olympic | N36: 2013 | O36: 2014 | P36: 2015 | Q36: 2016 | R36: 2017 | S36: 2018 | T36: 2019 | U36: 2020 | V36: 2021 | W36: 2022 | X36: 2023
C37: 2024 | M37: Corn | N37: =('Background Calculations'!R63)+('Background Calculations'!R66*'2023 Farm Bill Calculator'!$C$11)+('Background Calculations'!R68*(1-'2023 Farm Bill Calculator'!$C$11)) -> 0 | O37: =('Background Calculations'!S63)+('Background Calculations'!S66*'2023 Farm Bill Calculator'!$C$11)+('Background Calculations'!S68*(1-'2023 Farm Bill Calculator'!$C$11)) -> 0 | P37: =('Background Calculations'!T63)+('Background Calculations'!T66*'2023 Farm Bill Calculator'!$C$11)+('Background Calculations'!T68*(1-'2023 Farm Bill Calculator'!$C$11)) -> 0 | Q37: =('Background Calculations'!U63)+('Background Calculations'!U66*'2023 Farm Bill Calculator'!$C$11)+('Background Calculations'!U68*(1-'2023 Farm Bill Calculator'!$C$11)) -> 0 | R37: =('Background Calculations'!V63)+('Background Calculations'!V66*'2023 Farm Bill Calculator'!$C$11)+('Background Calculations'!V68*(1-'2023 Farm Bill Calculator'!$C$11)) -> 0 | S37: =('Background Calculations'!W63)+('Background Calculations'!W66*'2023 Farm Bill Calculator'!$C$11)+('Background Calculations'!W68*(1-'2023 Farm Bill Calculator'!$C$11)) -> 163.37 | T37: =('Background Calculations'!X63)+('Background Calculations'!X66*'2023 Farm Bill Calculator'!$C$11)+('Background Calculations'!X68*(1-'2023 Farm Bill Calculator'!$C$11)) -> 142.08 | U37: =('Background Calculations'!Y63)+('Background Calculations'!Y66*'2023 Farm Bill Calculator'!$C$11)+('Background Calculations'!Y68*(1-'2023 Farm Bill Calculator'!$C$11)) -> 161.4 | V37: =('Background Calculations'!Z63)+('Background Calculations'!Z66*'2023 Farm Bill Calculator'!$C$11)+('Background Calculations'!Z68*(1-'2023 Farm Bill Calculator'!$C$11)) -> 176.76 | W37: =('Background Calculations'!AA63)+('Background Calculations'!AA66*'2023 Farm Bill Calculator'!$C$11)+('Background Calculations'!AA68*(1-'2023 Farm Bill Calculator'!$C$11)) -> 168.168 | X37: =('Background Calculations'!AB63)+('Background Calculations'!AB66*'2023 Farm Bill Calculator'!$C$11)+('Background Calculations'!AB68*(1-'2023 Farm Bill Calculator'!$C$11)) -> 164.4356
C38: 2025 | M38: Soybeans | N38: =('Background Calculations'!R64)+('Background Calculations'!R67*'2023 Farm Bill Calculator'!$C$11)+('Background Calculations'!R69*(1-'2023 Farm Bill Calculator'!$C$11)) -> 0 | O38: =('Background Calculations'!S64)+('Background Calculations'!S67*'2023 Farm Bill Calculator'!$C$11)+('Background Calculations'!S69*(1-'2023 Farm Bill Calculator'!$C$11)) -> 0 | P38: =('Background Calculations'!T64)+('Background Calculations'!T67*'2023 Farm Bill Calculator'!$C$11)+('Background Calculations'!T69*(1-'2023 Farm Bill Calculator'!$C$11)) -> 0 | Q38: =('Background Calculations'!U64)+('Background Calculations'!U67*'2023 Farm Bill Calculator'!$C$11)+('Background Calculations'!U69*(1-'2023 Farm Bill Calculator'!$C$11)) -> 0 | R38: =('Background Calculations'!V64)+('Background Calculations'!V67*'2023 Farm Bill Calculator'!$C$11)+('Background Calculations'!V69*(1-'2023 Farm Bill Calculator'!$C$11)) -> 0 | S38: =('Background Calculations'!W64)+('Background Calculations'!W67*'2023 Farm Bill Calculator'!$C$11)+('Background Calculations'!W69*(1-'2023 Farm Bill Calculator'!$C$11)) -> 51.8 | T38: =('Background Calculations'!X64)+('Background Calculations'!X67*'2023 Farm Bill Calculator'!$C$11)+('Background Calculations'!X69*(1-'2023 Farm Bill Calculator'!$C$11)) -> 37.46 | U38: =('Background Calculations'!Y64)+('Background Calculations'!Y67*'2023 Farm Bill Calculator'!$C$11)+('Background Calculations'!Y69*(1-'2023 Farm Bill Calculator'!$C$11)) -> 50.28 | V38: =('Background Calculations'!Z64)+('Background Calculations'!Z67*'2023 Farm Bill Calculator'!$C$11)+('Background Calculations'!Z69*(1-'2023 Farm Bill Calculator'!$C$11)) -> 53.33 | W38: =('Background Calculations'!AA64)+('Background Calculations'!AA67*'2023 Farm Bill Calculator'!$C$11)+('Background Calculations'!AA69*(1-'2023 Farm Bill Calculator'!$C$11)) -> 48.162 | X38: =('Background Calculations'!AB64)+('Background Calculations'!AB67*'2023 Farm Bill Calculator'!$C$11)+('Background Calculations'!AB69*(1-'2023 Farm Bill Calculator'!$C$11)) -> 48.6764
C39: 10% Maximum Payment ARC-CO/Ac (before 85%) | M39: Wheat | N39: =R65 -> 0 | O39: 0 | P39: 0 | Q39: 0 | R39: 0 | S39: 78.86 | T39: 62.73 | U39: 74.75 | V39: 73.64 | W39: 74.286 | X39: 73.6432
C40: 2021 | E40: =E22*0.1 -> 60.9649 | G40: =G22*0.1 -> 43.79831667 | I40: =I22*0.1 -> 42.43983333
C41: 2022 | E41: =E23*0.1 -> 59.36896667 | G41: =G23*0.1 -> 44.89168 | I41: =I23*0.1 -> 42.37016667 | L41: Actual National Market Year Average Price (MYA)
C42: 2023 | E42: 66.53631333 | G42: 47.10673 | I42: 41.41316667 | N42: 2013 | O42: 2014 | P42: 2015 | Q42: 2016 | R42: 2017 | S42: 2018 | T42: 2019 | U42: 2020 | V42: 2021 | W42: 2022 | X42: 2023
C43: 2024 | M43: Corn MYA Producer Price 3.70 | N43: ='2023 Farm Bill Calculator'!O38 -> 4.46 | O43: ='2023 Farm Bill Calculator'!O39 -> 3.7 | P43: ='2023 Farm Bill Calculator'!O40 -> 3.61 | Q43: ='2023 Farm Bill Calculator'!O41 -> 3.36 | R43: ='2023 Farm Bill Calculator'!O42 -> 3.36 | S43: ='2023 Farm Bill Calculator'!O43 -> 3.61 | T43: ='2023 Farm Bill Calculator'!O44 -> 3.56 | U43: ='2023 Farm Bill Calculator'!O45 -> 4.53 | V43: ='2023 Farm Bill Calculator'!E54 -> 5.68 | W43: ='2023 Farm Bill Calculator'!O47 -> 0 | X43: ='2023 Farm Bill Calculator'!O48 -> 5.68
C44: 2025 | M44: Soy MYA Producer Price 8.40 | N44: ='2023 Farm Bill Calculator'!P38 -> 13 | O44: ='2023 Farm Bill Calculator'!P39 -> 10.1 | P44: ='2023 Farm Bill Calculator'!P40 -> 8.95 | Q44: ='2023 Farm Bill Calculator'!P41 -> 9.47 | R44: ='2023 Farm Bill Calculator'!P42 -> 9.33 | S44: ='2023 Farm Bill Calculator'!P43 -> 8.48 | T44: ='2023 Farm Bill Calculator'!P44 -> 8.57 | U44: ='2023 Farm Bill Calculator'!P45 -> 10.8 | V44: ='2023 Farm Bill Calculator'!G54 -> 13.53 | W44: ='2023 Farm Bill Calculator'!P47 -> 0 | X44: ='2023 Farm Bill Calculator'!P48 -> 13.53
C45: ARC-CO PAYMENT /ac (before 85%) | M45: Wheat MYA Producer Price 5.50 | N45: ='2023 Farm Bill Calculator'!Q38 -> 6.87 | O45: ='2023 Farm Bill Calculator'!Q39 -> 5.99 | P45: ='2023 Farm Bill Calculator'!Q40 -> 4.89 | Q45: ='2023 Farm Bill Calculator'!Q41 -> 3.89 | R45: ='2023 Farm Bill Calculator'!Q42 -> 4.72 | S45: ='2023 Farm Bill Calculator'!Q43 -> 5.16 | T45: ='2023 Farm Bill Calculator'!Q44 -> 4.58 | U45: ='2023 Farm Bill Calculator'!Q45 -> 5.05 | V45: ='2023 Farm Bill Calculator'!I54 -> 7.766666667 | W45: ='2023 Farm Bill Calculator'!Q47 -> 9.2 | X45: ='2023 Farm Bill Calculator'!Q48 -> 7.766666667
C46: 2021 | E46: =IF(E28-E34>0,MIN(E28-E34,E40),0) -> 0 | G46: =IF(G28-G34>0,MIN(G28-G34,G40),0) -> 0 | I46: =IF(I28-I34>0,MIN(I28-I34,I40),0) -> 0
C47: 2022 | E47: =IF(E29-E35>0,MIN(E29-E35,E41),0) -> 59.36896667 | G47: =IF(G29-G35>0,MIN(G29-G35,G41),0) -> 44.89168 | I47: =IF(I29-I35>0,MIN(I29-I35,I41),0) -> 0
C48: 2023 | E48: =IF(E30-E36>0,MIN(E30-E36,E42),0) -> 0 | G48: =IF(G30-G36>0,MIN(G30-G36,G42),0) -> 0 | I48: =IF(I30-I36>0,MIN(I30-I36,I42),0) -> 0
C49: 2024
C50: 2025 | L50: Minimum Prices for Revenue Guarantees | N50: 2013 | O50: 2014 | P50: 2015 | Q50: 2016 | R50: 2017 | S50: =S42 -> 2018 | T50: 2019 | U50: 2020 | V50: 2021 | W50: 2022 | X50: 2023
C51: ARC-IC | M51: Corn MYA Producer Price 3.70 | N51: =IF(N43<3.7,3.7,N43) -> 4.46 | O51: 3.7 | P51: 3.7 | Q51: 3.7 | R51: 3.7 | S51: 3.7 | T51: 3.7 | U51: 4.53 | V51: 5.68 | W51: 3.7 | X51: 5.68
C52: Individual Farm Actual Revenues | M52: Soy MYA Producer Price 8.40 | N52: =IF(N44<8.4,8.4,N44) -> 13 | O52: 10.1 | P52: 8.95 | Q52: 9.47 | R52: 9.33 | S52: 8.48 | T52: 8.57 | U52: 10.8 | V52: =IF(V44<8.4,8.4,V44) -> 13.53 | W52: 8.4 | X52: 13.53
D53: ='2023 Farm Bill Calculator'!E15 -> CORN | F53: ='2023 Farm Bill Calculator'!G15 -> SOYBEANS | H53: ='2023 Farm Bill Calculator'!I15 -> WHEAT | J53: Farm Actual Revenue/ac | M53: Wheat MYA Producer Price 5.50 | N53: =IF(N45<5.5,5.5,N45) -> 6.87 | O53: 5.99 | P53: 5.5 | Q53: 5.5 | R53: 5.5 | S53: 5.5 | T53: 5.5 | U53: 5.5 | V53: 7.766666667 | W53: 9.2 | X53: 7.766666667
D54: =IFERROR('2023 Farm Bill Calculator'!E24*'Background Calculations'!N$43,0) -> 0 | F54: =IFERROR('2023 Farm Bill Calculator'!G24*'Background Calculations'!N$44,0) -> 0 | H54: =IFERROR('2023 Farm Bill Calculator'!I24*'Background Calculations'!N$45,0) -> 0 | J54: =D54*D77+F54*F77+H54*H77 -> 0
C55: 2015 | D55: =IFERROR('2023 Farm Bill Calculator'!E24*'Background Calculations'!O$43,0) -> 0 | F55: =IFERROR('2023 Farm Bill Calculator'!G25*'Background Calculations'!O$44,0) -> 0 | H55: =IFERROR('2023 Farm Bill Calculator'!I25*'Background Calculations'!O$45,0) -> 0 | J55: =D55*D78+F55*F78+H55*H78 -> 0 | S55: Benchmark Olympic Price for: | T55: 2019 | U55: 2020 | V55: 2021 | W55: 2022 | X55: 2023
C56: 2016 | D56: =IFERROR('2023 Farm Bill Calculator'!E25*'Background Calculations'!P$43,0) -> 0 | F56: =IFERROR('2023 Farm Bill Calculator'!G25*'Background Calculations'!P$44,0) -> 0 | H56: =IFERROR('2023 Farm Bill Calculator'!I25*'Background Calculations'!P$45,0) -> 0 | S56: Corn | T56: =ROUND(((SUM(N51:R51)-MAX(N51:R51)-MIN(N51:R51))/3),2) -> 3.7 | U56: =ROUND(((SUM(O51:S51)-MAX(O51:S51)-MIN(O51:S51))/3),2) -> 3.7 | V56: =ROUND(((SUM(P51:T51)-MAX(P51:T51)-MIN(P51:T51))/3),2) -> 3.7 | W56: =ROUND(((SUM(Q51:U51)-MAX(Q51:U51)-MIN(Q51:U51))/3),2) -> 3.7 | X56: =ROUND(((SUM(R51:V51)-MAX(R51:V51)-MIN(R51:V51))/3),2) -> 3.98
C57: 2017 | D57: =IFERROR('2023 Farm Bill Calculator'!E26*'Background Calculations'!Q$43,0) -> 0 | F57: =IFERROR('2023 Farm Bill Calculator'!G26*'Background Calculations'!Q$44,0) -> 0 | H57: =IFERROR('2023 Farm Bill Calculator'!I26*'Background Calculations'!Q$45,0) -> 0 | S57: Soys | T57: 9.63 | U57: 9.25 | V57: =ROUND(((SUM(P52:T52)-MAX(P52:T52)-MIN(P52:T52))/3),2) -> 8.95 | W57: =ROUND(((SUM(Q52:U52)-MAX(Q52:U52)-MIN(Q52:U52))/3),2) -> 9.12 | X57: 9.57
C58: 2018 | D58: =IFERROR('2023 Farm Bill Calculator'!E27*'Background Calculations'!R$43,0) -> 548.9232 | F58: =IFERROR('2023 Farm Bill Calculator'!G27*'Background Calculations'!R$44,0) -> 483.294 | H58: =IFERROR('2023 Farm Bill Calculator'!I27*'Background Calculations'!R$45,0) -> 372.2192 | J58: 468.1454667 | S58: Wheat | T58: 5.66 | U58: =ROUND(((SUM(O53:S53)-MAX(O53:S53)-MIN(O53:S53))/3),2) -> 5.5 | V58: =ROUND(((SUM(P53:T53)-MAX(P53:T53)-MIN(P53:T53))/3),2) -> 5.5 | W58: 5.5 | X58: 5.5
C59: 2019 | D59: =IFERROR('2023 Farm Bill Calculator'!E28*'Background Calculations'!S$43,0) -> 512.9088 | F59: =IFERROR('2023 Farm Bill Calculator'!G28*'Background Calculations'!S$44,0) -> 317.6608 | H59: =IFERROR('2023 Farm Bill Calculator'!I28*'Background Calculations'!S$45,0) -> 323.6868 | J59: =D59*D82+F59*F82+H59*H82 -> 384.7521333
C60: 2020 | D60: =IFERROR('2023 Farm Bill Calculator'!E29*'Background Calculations'!T$43,0) -> 574.584 | F60: =IFERROR('2023 Farm Bill Calculator'!G29*'Background Calculations'!T$44,0) -> 430.8996 | H60: =IFERROR('2023 Farm Bill Calculator'!I29*'Background Calculations'!T$45,0) -> 342.355 | J60: =D60*D83+F60*F83+H60*H83 -> 449.2795333
C61: 2021 | D61: =IFERROR('2023 Farm Bill Calculator'!E30*'Background Calculations'!U$43,0) -> 800.7228 | F61: =IFERROR('2023 Farm Bill Calculator'!G30*'Background Calculations'!U$44,0) -> 575.964 | H61: =IFERROR('2023 Farm Bill Calculator'!I30*'Background Calculations'!U$45,0) -> 371.882 | J61: 582.8562667 | L61: =L1 -> EATON | M61: Actual Yields NOT TRENDED
C62: 2022 | D62: =IFERROR('2023 Farm Bill Calculator'!E31*'Background Calculations'!V$43,0) -> 949.5634667 | F62: =IFERROR('2023 Farm Bill Calculator'!G31*'Background Calculations'!U$44,0) -> 531.612 | H62: =IFERROR('2023 Farm Bill Calculator'!I31*'Background Calculations'!V$45,0) -> 584.8041111 | J62: =D62*D85+F62*F85+H62*H85 -> 0 | M62: County Trend Yield from FSA ARC-CO | N62: 2009 | O62: 2010 | P62: 2011 | Q62: 2012 | R62: 2013 | S62: 2014 | T62: 2015 | U62: 2016 | V62: 2017 | W62: 2018 | X62: 2019 | Y62: 2020 | Z62: 2021 | AA62: 2022 | AB62: 2023
C63: 2023 | D63: =IFERROR('2023 Farm Bill Calculator'!F32*'Background Calculations'!W$43,0) -> 0 | F63: =IFERROR('2023 Farm Bill Calculator'!G32*'Background Calculations'!U$44,0) -> 0 | H63: =IFERROR('2023 Farm Bill Calculator'!I32*'Background Calculations'!W$45,0) -> 0 | J63: =D63*D86+F63*F86+H63*H86 -> 0 | K63: all | L63: Corn | M63: ='2023 Farm Bill Calculator'!$C$4&L63&K63 -> EATONCornall | N63: =IFERROR(VLOOKUP($M63,#REF!,3,0),0) -> 0 | O63: =IFERROR(VLOOKUP($M63,#REF!,4,0),0) -> 0 | P63: =IFERROR(VLOOKUP($M63,#REF!,5,0),0) -> 0 | Q63: =IFERROR(VLOOKUP($M63,#REF!,6,0),0) -> 0 | R63: =IFERROR(VLOOKUP($M63,#REF!,7,0),0) -> 0 | S63: =IFERROR(VLOOKUP($M63,#REF!,8,0),0) -> 0 | T63: =IFERROR(VLOOKUP($M63,#REF!,9,0),0) -> 0 | U63: =IFERROR(VLOOKUP($M63,#REF!,10,0),0) -> 0 | V63: =IFERROR(VLOOKUP($M63,#REF!,11,0),0) -> 0 | W63: =IFERROR(VLOOKUP($M63,'County Trend Yields'!$B$3:$AF$289,26,0),0) -> 163.37 | X63: =IFERROR(VLOOKUP($M63,'County Trend Yields'!$B$3:$AF$289,27,0),0) -> 142.08 | Y63: =IFERROR(VLOOKUP($M63,'County Trend Yields'!$B$3:$AF$289,28,0),0) -> 161.4 | Z63: =IFERROR(VLOOKUP($M63,'County Trend Yields'!$B$3:$AF$289,29,0),0) -> 176.76 | AA63: =IFERROR(VLOOKUP($M63,'County Trend Yields'!$B$3:$AF$289,30,0),0) -> 168.168 | AB63: =IFERROR(VLOOKUP($M63,'County Trend Yields'!$B$3:$AF$289,31,0),0) -> 164.4356
K64: all | L64: soybeans | M64: ='2023 Farm Bill Calculator'!$C$4&L64&K64 -> EATONsoybeansall | N64: =IFERROR(VLOOKUP($M64,#REF!,3,0),0) -> 0 | O64: =IFERROR(VLOOKUP($M64,#REF!,4,0),0) -> 0 | P64: =IFERROR(VLOOKUP($M64,#REF!,5,0),0) -> 0 | Q64: =IFERROR(VLOOKUP($M64,#REF!,6,0),0) -> 0 | R64: =IFERROR(VLOOKUP($M64,#REF!,7,0),0) -> 0 | S64: =IFERROR(VLOOKUP($M64,#REF!,8,0),0) -> 0 | T64: =IFERROR(VLOOKUP($M64,#REF!,9,0),0) -> 0 | U64: =IFERROR(VLOOKUP($M64,#REF!,10,0),0) -> 0 | V64: =IFERROR(VLOOKUP($M64,#REF!,11,0),0) -> 0 | W64: =IFERROR(VLOOKUP($M64,'County Trend Yields'!$B$3:$AF$289,26,0),0) -> 0 | X64: =IFERROR(VLOOKUP($M64,'County Trend Yields'!$B$3:$AF$289,27,0),0) -> 0 | Y64: =IFERROR(VLOOKUP($M64,'County Trend Yields'!$B$3:$AF$289,28,0),0) -> 0 | Z64: =IFERROR(VLOOKUP($M64,'County Trend Yields'!$B$3:$AF$289,29,0),0) -> 0 | AA64: =IFERROR(VLOOKUP($M64,'County Trend Yields'!$B$3:$AF$289,30,0),0) -> 0 | AB64: =IFERROR(VLOOKUP($M64,'County Trend Yields'!$B$3:$AF$289,31,0),0) -> 0
C65: Individual Farm Benchmark Revenues | K65: all | L65: Wheat | M65: ='2023 Farm Bill Calculator'!$C$4&L65&K65 -> EATONWheatall | N65: =IFERROR(VLOOKUP($M65,#REF!,3,0),0) -> 0 | O65: =IFERROR(VLOOKUP($M65,#REF!,4,0),0) -> 0 | P65: =IFERROR(VLOOKUP($M65,#REF!,5,0),0) -> 0 | Q65: =IFERROR(VLOOKUP($M65,#REF!,6,0),0) -> 0 | R65: =IFERROR(VLOOKUP($M65,#REF!,7,0),0) -> 0 | S65: =IFERROR(VLOOKUP($M65,#REF!,8,0),0) -> 0 | T65: =IFERROR(VLOOKUP($M65,#REF!,9,0),0) -> 0 | U65: =IFERROR(VLOOKUP($M65,#REF!,10,0),0) -> 0 | V65: =IFERROR(VLOOKUP($M65,#REF!,11,0),0) -> 0 | W65: =IFERROR(VLOOKUP($M65,'County Trend Yields'!$B$3:$AF$289,26,0),0) -> 78.86 | X65: =IFERROR(VLOOKUP($M65,'County Trend Yields'!$B$3:$AF$289,27,0),0) -> 62.73 | Y65: =IFERROR(VLOOKUP($M65,'County Trend Yields'!$B$3:$AF$289,28,0),0) -> 74.75 | Z65: =IFERROR(VLOOKUP($M65,'County Trend Yields'!$B$3:$AF$289,29,0),0) -> 73.64 | AA65: =IFERROR(VLOOKUP($M65,'County Trend Yields'!$B$3:$AF$289,30,0),0) -> 74.286 | AB65: =IFERROR(VLOOKUP($M65,'County Trend Yields'!$B$3:$AF$289,31,0),0) -> 73.6432
D66: ='Background Calculations'!N$51*'Background Calculations'!N$115 -> 0 | F66: ='Background Calculations'!$N$52*'Background Calculations'!$N$116 -> 0 | H66: ='Background Calculations'!$N$53*'Background Calculations'!$N$117 -> 0 | K66: Irrigated | L66: Corn | M66: ='2023 Farm Bill Calculator'!$C$4&L66&K66 -> EATONCornIrrigated | N66: =IFERROR(VLOOKUP($M66,#REF!,3,0),0) -> 0 | O66: =IFERROR(VLOOKUP($M66,#REF!,4,0),0) -> 0 | P66: =IFERROR(VLOOKUP($M66,#REF!,5,0),0) -> 0 | Q66: =IFERROR(VLOOKUP($M66,#REF!,6,0),0) -> 0 | R66: =IFERROR(VLOOKUP($M66,#REF!,7,0),0) -> 0 | S66: =IFERROR(VLOOKUP($M66,#REF!,8,0),0) -> 0 | T66: =IFERROR(VLOOKUP($M66,#REF!,9,0),0) -> 0 | U66: =IFERROR(VLOOKUP($M66,#REF!,10,0),0) -> 0 | V66: =IFERROR(VLOOKUP($M66,#REF!,11,0),0) -> 0 | W66: =IFERROR(VLOOKUP($M66,'County Trend Yields'!$B$3:$AF$289,26,0),0) -> 0 | X66: =IFERROR(VLOOKUP($M66,'County Trend Yields'!$B$3:$AF$289,27,0),0) -> 0 | Y66: =IFERROR(VLOOKUP($M66,'County Trend Yields'!$B$3:$AF$289,28,0),0) -> 0 | Z66: =IFERROR(VLOOKUP($M66,'County Trend Yields'!$B$3:$AF$289,29,0),0) -> 0 | AA66: =IFERROR(VLOOKUP($M66,'County Trend Yields'!$B$3:$AF$289,30,0),0) -> 0 | AB66: =IFERROR(VLOOKUP($M66,'County Trend Yields'!$B$3:$AF$289,31,0),0) -> 0
C67: 2015 | D67: ='Background Calculations'!O$51*'Background Calculations'!O$115 -> 0 | F67: ='Background Calculations'!O$52*'Background Calculations'!O$116 -> 0 | H67: ='Background Calculations'!$O$53*'Background Calculations'!$O$117 -> 0 | K67: Irrigated | L67: soybeans | M67: ='2023 Farm Bill Calculator'!$C$4&L67&K67 -> EATONsoybeansIrrigated | N67: =IFERROR(VLOOKUP($M67,#REF!,3,0),0) -> 0 | O67: =IFERROR(VLOOKUP($M67,#REF!,4,0),0) -> 0 | P67: =IFERROR(VLOOKUP($M67,#REF!,5,0),0) -> 0 | Q67: =IFERROR(VLOOKUP($M67,#REF!,6,0),0) -> 0 | R67: =IFERROR(VLOOKUP($M67,#REF!,7,0),0) -> 0 | S67: =IFERROR(VLOOKUP($M67,#REF!,8,0),0) -> 0 | T67: =IFERROR(VLOOKUP($M67,#REF!,9,0),0) -> 0 | U67: =IFERROR(VLOOKUP($M67,#REF!,10,0),0) -> 0 | V67: =IFERROR(VLOOKUP($M67,#REF!,11,0),0) -> 0 | W67: =IFERROR(VLOOKUP($M67,'County Trend Yields'!$B$3:$AF$289,26,0),0) -> 64.69 | X67: =IFERROR(VLOOKUP($M67,'County Trend Yields'!$B$3:$AF$289,27,0),0) -> 48.18 | Y67: =IFERROR(VLOOKUP($M67,'County Trend Yields'!$B$3:$AF$289,28,0),0) -> 54.47 | Z67: =IFERROR(VLOOKUP($M67,'County Trend Yields'!$B$3:$AF$289,29,0),0) -> 55.3 | AA67: =IFERROR(VLOOKUP($M67,'County Trend Yields'!$B$3:$AF$289,30,0),0) -> 55.872 | AB67: =IFERROR(VLOOKUP($M67,'County Trend Yields'!$B$3:$AF$289,31,0),0) -> 56.1724
C68: 2016 | D68: ='Background Calculations'!P$51*'Background Calculations'!P$115 -> 0 | F68: ='Background Calculations'!P$52*'Background Calculations'!P$116 -> 0 | H68: ='Background Calculations'!$P$53*'Background Calculations'!$P$117 -> 0 | K68: nonirrigated | L68: Corn | M68: ='2023 Farm Bill Calculator'!$C$4&L68&K68 -> EATONCornnonirrigated | N68: =IFERROR(VLOOKUP($M68,#REF!,3,0),0) -> 0 | O68: =IFERROR(VLOOKUP($M68,#REF!,4,0),0) -> 0 | P68: =IFERROR(VLOOKUP($M68,#REF!,5,0),0) -> 0 | Q68: =IFERROR(VLOOKUP($M68,#REF!,6,0),0) -> 0 | R68: =IFERROR(VLOOKUP($M68,#REF!,7,0),0) -> 0 | S68: =IFERROR(VLOOKUP($M68,#REF!,8,0),0) -> 0 | T68: =IFERROR(VLOOKUP($M68,#REF!,9,0),0) -> 0 | U68: =IFERROR(VLOOKUP($M68,#REF!,10,0),0) -> 0 | V68: =IFERROR(VLOOKUP($M68,#REF!,11,0),0) -> 0 | W68: =IFERROR(VLOOKUP($M68,'County Trend Yields'!$B$3:$AF$289,26,0),0) -> 0 | X68: =IFERROR(VLOOKUP($M68,'County Trend Yields'!$B$3:$AF$289,27,0),0) -> 0 | Y68: =IFERROR(VLOOKUP($M68,'County Trend Yields'!$B$3:$AF$289,28,0),0) -> 0 | Z68: =IFERROR(VLOOKUP($M68,'County Trend Yields'!$B$3:$AF$289,29,0),0) -> 0 | AA68: =IFERROR(VLOOKUP($M68,'County Trend Yields'!$B$3:$AF$289,30,0),0) -> 0 | AB68: =IFERROR(VLOOKUP($M68,'County Trend Yields'!$B$3:$AF$289,31,0),0) -> 0
C69: 2017 | D69: ='Background Calculations'!Q$51*'Background Calculations'!Q$115 -> 0 | F69: ='Background Calculations'!Q$52*'Background Calculations'!Q$116 -> 0 | H69: ='Background Calculations'!$Q$53*'Background Calculations'!$Q$117 -> 433.73 | K69: nonirrigated | L69: soybeans | M69: ='2023 Farm Bill Calculator'!$C$4&L69&K69 -> EATONsoybeansnonirrigated | N69: =IFERROR(VLOOKUP($M69,#REF!,3,0),0) -> 0 | O69: =IFERROR(VLOOKUP($M69,#REF!,4,0),0) -> 0 | P69: =IFERROR(VLOOKUP($M69,#REF!,5,0),0) -> 0 | Q69: =IFERROR(VLOOKUP($M69,#REF!,6,0),0) -> 0 | R69: =IFERROR(VLOOKUP($M69,#REF!,7,0),0) -> 0 | S69: =IFERROR(VLOOKUP($M69,#REF!,8,0),0) -> 0 | T69: =IFERROR(VLOOKUP($M69,#REF!,9,0),0) -> 0 | U69: =IFERROR(VLOOKUP($M69,#REF!,10,0),0) -> 0 | V69: =IFERROR(VLOOKUP($M69,#REF!,11,0),0) -> 0 | W69: =IFERROR(VLOOKUP($M69,'County Trend Yields'!$B$3:$AF$289,26,0),0) -> 51.8 | X69: =IFERROR(VLOOKUP($M69,'County Trend Yields'!$B$3:$AF$289,27,0),0) -> 37.46 | Y69: =IFERROR(VLOOKUP($M69,'County Trend Yields'!$B$3:$AF$289,28,0),0) -> 50.28 | Z69: =IFERROR(VLOOKUP($M69,'County Trend Yields'!$B$3:$AF$289,29,0),0) -> 53.33 | AA69: =IFERROR(VLOOKUP($M69,'County Trend Yields'!$B$3:$AF$289,30,0),0) -> 48.162 | AB69: =IFERROR(VLOOKUP($M69,'County Trend Yields'!$B$3:$AF$289,31,0),0) -> 48.6764
C70: 2018 | D70: ='Background Calculations'!R$51*'Background Calculations'!R$115 -> 0 | F70: ='Background Calculations'!R$52*'Background Calculations'!R$116 -> 0 | H70: ='Background Calculations'!$R$53*'Background Calculations'!$R$117 -> 345.015 | K70: Irrigated | L70: Wheat | M70: ='2023 Farm Bill Calculator'!$C$4&L70&K70 -> EATONWheatIrrigated | N70: =IFERROR(VLOOKUP($M70,#REF!,3,0),0) -> 0 | O70: =IFERROR(VLOOKUP($M70,#REF!,4,0),0) -> 0 | P70: =IFERROR(VLOOKUP($M70,#REF!,5,0),0) -> 0 | Q70: =IFERROR(VLOOKUP($M70,#REF!,6,0),0) -> 0 | R70: =IFERROR(VLOOKUP($M70,#REF!,7,0),0) -> 0 | S70: =IFERROR(VLOOKUP($M70,#REF!,8,0),0) -> 0 | T70: =IFERROR(VLOOKUP($M70,#REF!,9,0),0) -> 0 | U70: =IFERROR(VLOOKUP($M70,#REF!,10,0),0) -> 0 | V70: =IFERROR(VLOOKUP($M70,#REF!,11,0),0) -> 0 | W70: =IFERROR(VLOOKUP($M70,'County Trend Yields'!$B$3:$AF$289,26,0),0) -> 0 | X70: =IFERROR(VLOOKUP($M70,'County Trend Yields'!$B$3:$AF$289,27,0),0) -> 0 | Y70: =IFERROR(VLOOKUP($M70,'County Trend Yields'!$B$3:$AF$289,28,0),0) -> 0 | Z70: =IFERROR(VLOOKUP($M70,'County Trend Yields'!$B$3:$AF$289,29,0),0) -> 0 | AA70: =IFERROR(VLOOKUP($M70,'County Trend Yields'!$B$3:$AF$289,30,0),0) -> 0 | AB70: =IFERROR(VLOOKUP($M70,'County Trend Yields'!$B$3:$AF$289,31,0),0) -> 0
C71: 2019 | D71: ='Background Calculations'!S$51*'Background Calculations'!S$115 -> 604.469 | F71: ='Background Calculations'!S$52*'Background Calculations'!S$116 -> 439.264 | H71: ='Background Calculations'!$S$53*'Background Calculations'!$S$117 -> 433.73 | K71: nonirrigated | L71: Wheat | M71: ='2023 Farm Bill Calculator'!$C$4&L71&K71 -> EATONWheatnonirrigated | N71: =IFERROR(VLOOKUP($M71,#REF!,3,0),0) -> 0 | O71: =IFERROR(VLOOKUP($M71,#REF!,4,0),0) -> 0 | P71: =IFERROR(VLOOKUP($M71,#REF!,5,0),0) -> 0 | Q71: =IFERROR(VLOOKUP($M71,#REF!,6,0),0) -> 0 | R71: =IFERROR(VLOOKUP($M71,#REF!,7,0),0) -> 0 | S71: =IFERROR(VLOOKUP($M71,#REF!,8,0),0) -> 0 | T71: =IFERROR(VLOOKUP($M71,#REF!,9,0),0) -> 0 | U71: =IFERROR(VLOOKUP($M71,#REF!,10,0),0) -> 0 | V71: =IFERROR(VLOOKUP($M71,#REF!,11,0),0) -> 0 | W71: =IFERROR(VLOOKUP($M71,'County Trend Yields'!$B$3:$AF$289,26,0),0) -> 0 | X71: =IFERROR(VLOOKUP($M71,'County Trend Yields'!$B$3:$AF$289,27,0),0) -> 0 | Y71: =IFERROR(VLOOKUP($M71,'County Trend Yields'!$B$3:$AF$289,28,0),0) -> 0 | Z71: =IFERROR(VLOOKUP($M71,'County Trend Yields'!$B$3:$AF$289,29,0),0) -> 0 | AA71: =IFERROR(VLOOKUP($M71,'County Trend Yields'!$B$3:$AF$289,30,0),0) -> 0 | AB71: =IFERROR(VLOOKUP($M71,'County Trend Yields'!$B$3:$AF$289,31,0),0) -> 0
C72: 2020 | D72: ='Background Calculations'!T$51*'Background Calculations'!T$115 -> 525.696 | F72: ='Background Calculations'!T$52*'Background Calculations'!T$116 -> 321.0322 | H72: ='Background Calculations'!$T$53*'Background Calculations'!$T$117 -> 405.02
C73: 2021 | D73: ='Background Calculations'!U$51*'Background Calculations'!U$115 -> 731.142 | F73: ='Background Calculations'!U$52*'Background Calculations'!U$116 -> 543.024 | H73: ='Background Calculations'!$U$53*'Background Calculations'!$U$117 -> 414.1316667 | L73: FOR ARC IC LOW YIELD TABLE weighted by Percent irrigated
C74: 2022 | D74: ='Background Calculations'!V$51*'Background Calculations'!V$115 -> 1003.9968 | F74: ='Background Calculations'!V$52*'Background Calculations'!V$116 -> 721.5549 | H74: ='Background Calculations'!$V$53*'Background Calculations'!$V$117 -> 571.9373333 | L74: Cty Act. weighted payment yields not Trended not Olympic | N74: 2009 | O74: 2010 | P74: 2011 | Q74: 2012 | R74: 2013 | S74: 2014 | T74: 2015 | U74: 2016 | V74: 2017 | W74: 2018 | X74: 2019 | Y74: 2020 | Z74: 2021 | AA74: 2022 | AB74: 2023
C75: 2023 | D75: ='Background Calculations'!W$51*'Background Calculations'!W$115 -> 618.5536667 | F75: ='Background Calculations'!W$52*'Background Calculations'!W$116 -> 413.476 | H75: ='Background Calculations'!$W$53*'Background Calculations'!$W$117 -> 683.4312 | M75: Corn | N75: =('Background Calculations'!N63)+('Background Calculations'!N66*'Multiple ARC-IC Farms'!$D$55)+('Background Calculations'!N68*(1-'Multiple ARC-IC Farms'!$D$55)) -> 0 | O75: =('Background Calculations'!O63)+('Background Calculations'!O66*'Multiple ARC-IC Farms'!$D$55)+('Background Calculations'!O68*(1-'Multiple ARC-IC Farms'!$D$55)) -> 0 | P75: =('Background Calculations'!P63)+('Background Calculations'!P66*'Multiple ARC-IC Farms'!$D$55)+('Background Calculations'!P68*(1-'Multiple ARC-IC Farms'!$D$55)) -> 0 | Q75: =('Background Calculations'!Q63)+('Background Calculations'!Q66*'Multiple ARC-IC Farms'!$D$55)+('Background Calculations'!Q68*(1-'Multiple ARC-IC Farms'!$D$55)) -> 0 | R75: =('Background Calculations'!R63)+('Background Calculations'!R66*'Multiple ARC-IC Farms'!$D$55)+('Background Calculations'!R68*(1-'Multiple ARC-IC Farms'!$D$55)) -> 0 | S75: =('Background Calculations'!S63)+('Background Calculations'!S66*'Multiple ARC-IC Farms'!$D$55)+('Background Calculations'!S68*(1-'Multiple ARC-IC Farms'!$D$55)) -> 0 | T75: =('Background Calculations'!T63)+('Background Calculations'!T66*'Multiple ARC-IC Farms'!$D$55)+('Background Calculations'!T68*(1-'Multiple ARC-IC Farms'!$D$55)) -> 0 | U75: =('Background Calculations'!U63)+('Background Calculations'!U66*'Multiple ARC-IC Farms'!$D$55)+('Background Calculations'!U68*(1-'Multiple ARC-IC Farms'!$D$55)) -> 0 | V75: =('Background Calculations'!V63)+('Background Calculations'!V66*'Multiple ARC-IC Farms'!$D$55)+('Background Calculations'!V68*(1-'Multiple ARC-IC Farms'!$D$55)) -> 0 | W75: =('Background Calculations'!W63)+('Background Calculations'!W66*'Multiple ARC-IC Farms'!$D$55)+('Background Calculations'!W68*(1-'Multiple ARC-IC Farms'!$D$55)) -> 163.37 | X75: =('Background Calculations'!X63)+('Background Calculations'!X66*'Multiple ARC-IC Farms'!$D$55)+('Background Calculations'!X68*(1-'Multiple ARC-IC Farms'!$D$55)) -> 142.08 | Y75: =('Background Calculations'!Y63)+('Background Calculations'!Y66*'Multiple ARC-IC Farms'!$D$55)+('Background Calculations'!Y68*(1-'Multiple ARC-IC Farms'!$D$55)) -> 161.4 | Z75: =('Background Calculations'!Z63)+('Background Calculations'!Z66*'Multiple ARC-IC Farms'!$D$55)+('Background Calculations'!Z68*(1-'Multiple ARC-IC Farms'!$D$55)) -> 176.76 | AA75: =('Background Calculations'!AA63)+('Background Calculations'!AA66*'Multiple ARC-IC Farms'!$D$55)+('Background Calculations'!AA68*(1-'Multiple ARC-IC Farms'!$D$55)) -> 168.168 | AB75: =('Background Calculations'!AB63)+('Background Calculations'!AB66*'Multiple ARC-IC Farms'!$D$55)+('Background Calculations'!AB68*(1-'Multiple ARC-IC Farms'!$D$55)) -> 164.4356
C76: Percent Planted by Year | M76: Soybeans | N76: =('Background Calculations'!N64)+('Background Calculations'!N67*'Multiple ARC-IC Farms'!$F$55)+('Background Calculations'!N69*(1-'Multiple ARC-IC Farms'!$F$55)) -> 0 | O76: =('Background Calculations'!O64)+('Background Calculations'!O67*'Multiple ARC-IC Farms'!$F$55)+('Background Calculations'!O69*(1-'Multiple ARC-IC Farms'!$F$55)) -> 0 | P76: =('Background Calculations'!P64)+('Background Calculations'!P67*'Multiple ARC-IC Farms'!$F$55)+('Background Calculations'!P69*(1-'Multiple ARC-IC Farms'!$F$55)) -> 0 | Q76: =('Background Calculations'!Q64)+('Background Calculations'!Q67*'Multiple ARC-IC Farms'!$F$55)+('Background Calculations'!Q69*(1-'Multiple ARC-IC Farms'!$F$55)) -> 0 | R76: =('Background Calculations'!R64)+('Background Calculations'!R67*'Multiple ARC-IC Farms'!$F$55)+('Background Calculations'!R69*(1-'Multiple ARC-IC Farms'!$F$55)) -> 0 | S76: =('Background Calculations'!S64)+('Background Calculations'!S67*'Multiple ARC-IC Farms'!$F$55)+('Background Calculations'!S69*(1-'Multiple ARC-IC Farms'!$F$55)) -> 0 | T76: =('Background Calculations'!T64)+('Background Calculations'!T67*'Multiple ARC-IC Farms'!$F$55)+('Background Calculations'!T69*(1-'Multiple ARC-IC Farms'!$F$55)) -> 0 | U76: =('Background Calculations'!U64)+('Background Calculations'!U67*'Multiple ARC-IC Farms'!$F$55)+('Background Calculations'!U69*(1-'Multiple ARC-IC Farms'!$F$55)) -> 0 | V76: =('Background Calculations'!V64)+('Background Calculations'!V67*'Multiple ARC-IC Farms'!$F$55)+('Background Calculations'!V69*(1-'Multiple ARC-IC Farms'!$F$55)) -> 0 | W76: =('Background Calculations'!W64)+('Background Calculations'!W67*'Multiple ARC-IC Farms'!$F$55)+('Background Calculations'!W69*(1-'Multiple ARC-IC Farms'!$F$55)) -> 51.8 | X76: =('Background Calculations'!X64)+('Background Calculations'!X67*'Multiple ARC-IC Farms'!$F$55)+('Background Calculations'!X69*(1-'Multiple ARC-IC Farms'!$F$55)) -> 37.46 | Y76: =('Background Calculations'!Y64)+('Background Calculations'!Y67*'Multiple ARC-IC Farms'!$F$55)+('Background Calculations'!Y69*(1-'Multiple ARC-IC Farms'!$F$55)) -> 50.28 | Z76: =('Background Calculations'!Z64)+('Background Calculations'!Z67*'Multiple ARC-IC Farms'!$F$55)+('Background Calculations'!Z69*(1-'Multiple ARC-IC Farms'!$F$55)) -> 53.33 | AA76: =('Background Calculations'!AA64)+('Background Calculations'!AA67*'Multiple ARC-IC Farms'!$F$55)+('Background Calculations'!AA69*(1-'Multiple ARC-IC Farms'!$F$55)) -> 48.162 | AB76: =('Background Calculations'!AB64)+('Background Calculations'!AB67*'Multiple ARC-IC Farms'!$F$55)+('Background Calculations'!AB69*(1-'Multiple ARC-IC Farms'!$F$55)) -> 48.6764
M77: Wheat | N77: =N65 -> 0 | O77: =O65 -> 0 | P77: =P65 -> 0 | Q77: =Q65 -> 0 | R77: =R65 -> 0 | S77: 0 | T77: 0 | U77: 0 | V77: 0 | W77: 78.86 | X77: 62.73 | Y77: 74.75 | Z77: 73.64 | AA77: 74.286 | AB77: 73.6432
C79: 2016 | D79: ='2023 Farm Bill Calculator'!F25/'2023 Farm Bill Calculator'!$K25 ->  | F79: ='2023 Farm Bill Calculator'!H25/'2023 Farm Bill Calculator'!$K25 ->  | H79: ='2023 Farm Bill Calculator'!J25/'2023 Farm Bill Calculator'!$K25 ->  | L79: Cty Act. weighted payment yields not Trended not Olympic 5 year average | R79: 2013 | S79: 2014 | T79: 2015 | U79: 2016 | V79: 2017 | W79: 2018 | X79: 2019 | Y79: 2020 | Z79: 2021 | AA79: 2022 | AB79: 2023
C80: 2017 | D80: ='2023 Farm Bill Calculator'!F26/'2023 Farm Bill Calculator'!$K26 ->  | F80: ='2023 Farm Bill Calculator'!H26/'2023 Farm Bill Calculator'!$K26 ->  | H80: ='2023 Farm Bill Calculator'!J26/'2023 Farm Bill Calculator'!$K26 ->  | M80: Corn | R80: =AVERAGE(N75:R75) -> 0 | S80: =AVERAGE(O75:S75) -> 0 | T80: 0 | U80: 0 | V80: 0 | W80: 32.674 | X80: 61.09 | Y80: 93.37 | Z80: 128.722 | AA80: 162.3556 | AB80: 162.56872
C81: 2018 | D81: ='2023 Farm Bill Calculator'!F27/'2023 Farm Bill Calculator'!$K27 -> 0.3333333333 | F81: ='2023 Farm Bill Calculator'!H27/'2023 Farm Bill Calculator'!$K27 -> 0.3333333333 | H81: ='2023 Farm Bill Calculator'!J27/'2023 Farm Bill Calculator'!$K27 -> 0.3333333333 | M81: Soybeans | R81: =AVERAGE(N76:R76) -> 0 | S81: 0 | T81: 0 | U81: 0 | V81: 0 | W81: 10.36 | X81: 17.852 | Y81: 27.908 | Z81: 38.574 | AA81: 48.2064 | AB81: 47.58168
C82: 2019 | D82: ='2023 Farm Bill Calculator'!F28/'2023 Farm Bill Calculator'!$K28 -> 0.3333333333 | F82: ='2023 Farm Bill Calculator'!H28/'2023 Farm Bill Calculator'!$K28 -> 0.3333333333 | H82: ='2023 Farm Bill Calculator'!J28/'2023 Farm Bill Calculator'!$K28 -> 0.3333333333 | M82: Wheat | R82: =AVERAGE(N77:R77) -> 0 | S82: 0 | T82: 0 | U82: 0 | V82: 0 | W82: 15.772 | X82: 28.318 | Y82: 43.268 | Z82: 57.996 | AA82: 72.8532 | AB82: 71.80984
C83: 2020 | D83: ='2023 Farm Bill Calculator'!F29/'2023 Farm Bill Calculator'!$K29 -> 0.3333333333 | F83: ='2023 Farm Bill Calculator'!H29/'2023 Farm Bill Calculator'!$K29 -> 0.3333333333 | H83: ='2023 Farm Bill Calculator'!J29/'2023 Farm Bill Calculator'!$K29 -> 0.3333333333
C84: 2021 | D84: ='2023 Farm Bill Calculator'!F30/'2023 Farm Bill Calculator'!$K30 -> 0.3333333333 | F84: ='2023 Farm Bill Calculator'!H30/'2023 Farm Bill Calculator'!$K30 -> 0.3333333333 | H84: ='2023 Farm Bill Calculator'!J30/'2023 Farm Bill Calculator'!$K30 -> 0.3333333333
C85: 2022
C86: 2023 | D86: ='2023 Farm Bill Calculator'!F31/'2023 Farm Bill Calculator'!$K31 -> 0.45 | F86: ='2023 Farm Bill Calculator'!H31/'2023 Farm Bill Calculator'!$K31 -> 0.45 | H86: ='2023 Farm Bill Calculator'!J31/'2023 Farm Bill Calculator'!$K31 -> 0.1 | M86: Estimated T-Yield = 5yr weighted by % irrigation average | N86: =N2 -> 2013 | O86: 2014 | P86: 2015 | Q86: 2016 | R86: 2017 | S86: 2018 | T86: 2019 | U86: 2020 | V86: 2021 | W86: 2022 | X86: 2023
M87: Corn | N87: =R80 -> 0 | O87: =S80 -> 0 | P87: 0 | Q87: 0 | R87: 0 | S87: 32.674 | T87: 61.09 | U87: 93.37 | V87: 128.722 | W87: 162.3556 | X87: 162.56872
C88: ARC-IC OLYMPIC AVERAGES lagged one year | H88: ARC-IC | J88: ARC-IC | M88: Soybeans | N88: =R81 -> 0 | O88: =S81 -> 0 | P88: 0 | Q88: 0 | R88: 0 | S88: 10.36 | T88: 17.852 | U88: 27.908 | V88: 38.574 | W88: 48.2064 | X88: 47.58168
D89: Corn | E89: Soys | F89: Wheat | H89: Benchmark Rev | J89: Coverage Guarantee | M89: Wheat | N89: =R82 -> 0 | O89: =S82 -> 0 | P89: 0 | Q89: 0 | R89: 0 | S89: 15.772 | T89: 28.318 | U89: 43.268 | V89: 57.996 | W89: 72.8532 | X89: 71.80984
C90: 2020 | D90: =(SUM(D66:D70)-MIN(D66:D70)-MAX(D66:D70))/3 -> 0 | E90: =(SUM(F66:F70)-MIN(F66:F70)-MAX(F66:F70))/3 -> 0 | F90: =(SUM(H66:H70)-MIN(H66:H70)-MAX(H66:H70))/3 -> 115.005 | H90: =D90*D83+E90*F83+F90*H83 -> 38.335 | J90: =0.86*H90 -> 32.9681 | M90: Weighted 5 YR Average Yield
C91: 2021 | D91: =(SUM(D67:D71)-MIN(D67:D71)-MAX(D67:D71))/3 -> 0 | E91: =(SUM(F67:F71)-MIN(F67:F71)-MAX(F67:F71))/3 -> 0 | F91: =(SUM(H67:H71)-MIN(H67:H71)-MAX(H67:H71))/3 -> 259.5816667 | H91: =D91*D84+E91*F84+F91*H84 -> 86.52722222 | J91: =0.86*H91 -> 74.41341111 | M91: Corn | N91: =N87 -> 0 | O91: =O87 -> 0 | P91: 0 | Q91: 0 | R91: 0 | S91: 32.674 | T91: 61.09 | U91: 93.37 | V91: 128.722 | W91: 162.3556 | X91: 162.56872
C92: 2022 | D92: =(SUM(D68:D72)-MIN(D68:D72)-MAX(D68:D72))/3 -> 175.232 | E92: =(SUM(F68:F72)-MIN(F68:F72)-MAX(F68:F72))/3 -> 107.0107333 | F92: =(SUM(H68:H72)-MIN(H68:H72)-MAX(H68:H72))/3 -> 394.5883333 | H92: =D92*D85+E92*F85+F92*H85 -> 0 | J92: =0.86*H92 -> 0 | M92: Soybeans | N92: =N88 -> 0 | O92: 0 | P92: 0 | Q92: 0 | R92: 0 | S92: 10.36 | T92: 17.852 | U92: 27.908 | V92: 38.574 | W92: 48.2064 | X92: 47.58168
C93: 2023 | D93: =(SUM(D69:D73)-MIN(D69:D73)-MAX(D69:D73))/3 -> 376.7216667 | E93: =(SUM(F69:F73)-MIN(F69:F73)-MAX(F69:F73))/3 -> 253.4320667 | F93: =(SUM(H69:H73)-MIN(H69:H73)-MAX(H69:H73))/3 -> 417.6272222 | H93: =D93*D85+E93*F85+F93*H85 -> 0 | J93: =0.86*H93 -> 0 | M93: Wheat | N93: =N89 -> 0 | O93: 0 | P93: 0 | Q93: 0 | R93: 0 | S93: 15.772 | T93: 28.318 | U93: 43.268 | V93: 57.996 | W93: 72.8532 | X93: 71.80984
C94: 2024 | D94: =(SUM(D70:D74)-MIN(D70:D74)-MAX(D70:D74))/3 -> 620.4356667 | E94: =(SUM(F70:F74)-MIN(F70:F74)-MAX(F70:F74))/3 -> 434.4400667 | F94: =(SUM(H70:H74)-MIN(H70:H74)-MAX(H70:H74))/3 -> 417.6272222 | H94: =D94*D86+E94*F86+F94*H86 -> 516.4568022 | J94: =0.86*H94 -> 444.1528499
C95: ARC-IC | D95: Payment Rate/Ac(before 65%) | F95: Max Rate/Ac(before65%) | H95: Payment/Ac(before 65%) | J95: Farm Payment @ 65% of Base Acres | L95: 75% T-Yield for Individual
C96: 2019 | D96: =J90-J60 -> -416.3114333 | F96: =H90*0.1 -> 3.8335 | H96: =IF(D96>0.01,MIN(D96,F96),0) -> 0 | J96: =IF(H96>0,H96*'2023 Farm Bill Calculator'!$F$9*0.65,0) -> 0 | M96: Corn | N96: =0.75*N87 -> 0 | O96: 0 | P96: 0 | Q96: 0 | R96: 0 | S96: 24.5055 | T96: 45.8175 | U96: 70.0275 | V96: 96.5415 | W96: 121.7667 | X96: 121.92654
C97: 2020 | D97: =J91-J61 -> -508.4428556 | F97: =H91*0.1 -> 8.652722222 | H97: =IF(D97>0.01,MIN(D97,F97),0) -> 0 | J97: =IF(H97>0,H97*'2023 Farm Bill Calculator'!$F$9*0.65,0) -> 0 | M97: Soybeans | N97: =0.75*N88 -> 0 | O97: 0 | P97: 0 | Q97: 0 | R97: 0 | S97: 7.77 | T97: 13.389 | U97: 20.931 | V97: 28.9305 | W97: 36.1548 | X97: 35.68626
C98: 2021 | D98: =J92-J61 -> -582.8562667 | F98: =H92*0.1 -> 0 | H98: =IF(D98>0.01,MIN(D98,F98),0) -> 0 | J98: =IF(H98>0,H98*'2023 Farm Bill Calculator'!$F$9*0.65,0) -> 0 | M98: Wheat | N98: =0.75*N89 -> 0 | O98: 0 | P98: 0 | Q98: 0 | R98: 0 | S98: 11.829 | T98: 21.2385 | U98: 32.451 | V98: 43.497 | W98: 54.6399 | X98: 53.85738
C99: 2022 | D99: =J93-J62 -> 0 | F99: =H93*0.1 -> 0 | H99: =IF(D99>0.01,MIN(D99,F99),0) -> 0 | J99: =IF(H99>0,H99*'2023 Farm Bill Calculator'!$F$9*0.65,0) -> 0
C100: 2023 | D100: =J94-J63 -> 444.1528499 | F100: =H94*0.1 -> 51.64568022 | H100: =IF(D100>0.01,MIN(D100,F100),0) -> 51.64568022 | J100: =IF(H100>0,H100*'2023 Farm Bill Calculator'!$F$9*0.65,0) -> 23498.7845
L102: 80% of 5yr County Average Yield
M103: =M91 -> Corn | N103: =0.8*N91 -> 0 | O103: 0 | P103: 0 | Q103: 0 | R103: 0 | S103: 26.1392 | T103: =0.8*T91 -> 48.872 | U103: 74.696 | V103: 102.9776 | W103: 129.88448 | X103: 130.054976
M104: =M92 -> Soybeans | N104: =0.8*N92 -> 0 | O104: 0 | P104: 0 | Q104: 0 | R104: 0 | S104: 8.288 | T104: 14.2816 | U104: 22.3264 | V104: 30.8592 | W104: 38.56512 | X104: 38.065344
M105: =M93 -> Wheat | N105: =0.8*N93 -> 0 | O105: 0 | P105: 0 | Q105: 0 | R105: 0 | S105: 12.6176 | T105: 22.6544 | U105: 34.6144 | V105: 46.3968 | W105: 58.28256 | X105: 57.447872
L107: Min "75% Yield" for Farm (PLC Yield) | N107: 2013 | O107: 2014 | P107: 2015 | Q107: 2016 | R107: 2017 | S107: 2018 | T107: 2019 | U107: 2020 | V107: 2021 | W107: 2022 | X107: 2023
M108: =M103 -> Corn | N108: =N87*0.75 -> 0 | O108: =O87*0.75 -> 0 | P108: 0 | Q108: 0 | R108: 0 | S108: 24.5055 | T108: 45.8175 | U108: 70.0275 | V108: 96.5415 | W108: 121.7667 | X108: 121.92654
M109: =M104 -> Soybeans | N109: =N88*0.75 -> 0 | O109: 0 | P109: 0 | Q109: 0 | R109: 0 | S109: 7.77 | T109: 13.389 | U109: 20.931 | V109: 28.9305 | W109: 36.1548 | X109: 35.68626
M110: =M105 -> Wheat | N110: =N89*0.75 -> 0 | O110: 0 | P110: 0 | Q110: 0 | R110: 0 | S110: 11.829 | T110: 21.2385 | U110: 32.451 | V110: 43.497 | W110: 54.6399 | X110: 53.85738
L114: FOR ARC-IC if not planted = MAX of (County Yield or "75% T Yield") -OR- if planted MAX of (farm actual or 75% T-Yield)
M115: =M108 -> Corn | N115: =IF('2023 Farm Bill Calculator'!$E24>0.01,MAX(N96,'2023 Farm Bill Calculator'!$E24),MAX(N96,N37)) -> 0 | O115: =IF('2023 Farm Bill Calculator'!$E25>0.01,MAX(O96,'2023 Farm Bill Calculator'!$E25),MAX(O96,O37)) -> 0 | P115: =IF('2023 Farm Bill Calculator'!$E26>0.01,MAX(P96,'2023 Farm Bill Calculator'!$E26),MAX(P96,P37)) -> 0 | Q115: =IF('2023 Farm Bill Calculator'!$E25>0.01,MAX(Q96,'2023 Farm Bill Calculator'!$E25),MAX(Q96,Q37)) -> 0 | R115: =IF('2023 Farm Bill Calculator'!$E26>0.01,MAX(R96,'2023 Farm Bill Calculator'!$E26),MAX(R96,R37)) -> 0 | S115: =IF('2023 Farm Bill Calculator'!$E27>0.01,MAX(S96,'2023 Farm Bill Calculator'!$E27),MAX(S96,S37)) -> 163.37 | T115: =IF('2023 Farm Bill Calculator'!$E28>0.01,MAX(T96,'2023 Farm Bill Calculator'!$E28),MAX(T96,T37)) -> 142.08 | U115: =IF('2023 Farm Bill Calculator'!$E29>0.01,MAX(U96,'2023 Farm Bill Calculator'!$E29),MAX(U96,U37)) -> 161.4 | V115: =IF('2023 Farm Bill Calculator'!$E30>0.01,MAX(V96,'2023 Farm Bill Calculator'!$E30),MAX(V96,V37)) -> 176.76 | W115: =IF('2023 Farm Bill Calculator'!$E31>0.01,MAX(W96,'2023 Farm Bill Calculator'!$E31),MAX(W96,W37)) -> 167.1766667 | X115: =IF('2023 Farm Bill Calculator'!$E32>0.01,MAX(X96,'2023 Farm Bill Calculator'!$E32),MAX(X96,X37)) -> 1000
M116: =M109 -> Soybeans | N116: =IF('2023 Farm Bill Calculator'!$G24>0.1,MAX(N97,'2023 Farm Bill Calculator'!$G24),MAX(N97,N38)) -> 0 | O116: =IF('2023 Farm Bill Calculator'!$G25>0.1,MAX(O97,'2023 Farm Bill Calculator'!$G25),MAX(O97,O38)) -> 0 | P116: =IF('2023 Farm Bill Calculator'!$G26>0.1,MAX(P97,'2023 Farm Bill Calculator'!$G26),MAX(P97,P38)) -> 0 | Q116: =IF('2023 Farm Bill Calculator'!$G25>0.1,MAX(Q97,'2023 Farm Bill Calculator'!$G25),MAX(Q97,Q38)) -> 0 | R116: =IF('2023 Farm Bill Calculator'!$G26>0.1,MAX(R97,'2023 Farm Bill Calculator'!$G26),MAX(R97,R38)) -> 0 | S116: =IF('2023 Farm Bill Calculator'!$G27>0.1,MAX(S97,'2023 Farm Bill Calculator'!$G27),MAX(S97,S38)) -> 51.8 | T116: =IF('2023 Farm Bill Calculator'!$G28>0.1,MAX(T97,'2023 Farm Bill Calculator'!$G28),MAX(T97,T38)) -> 37.46 | U116: =IF('2023 Farm Bill Calculator'!$G29>0.1,MAX(U97,'2023 Farm Bill Calculator'!$G29),MAX(U97,U38)) -> 50.28 | V116: =IF('2023 Farm Bill Calculator'!$G30>0.1,MAX(V97,'2023 Farm Bill Calculator'!$G30),MAX(V97,V38)) -> 53.33 | W116: =IF('2023 Farm Bill Calculator'!$G31>0.1,MAX(W97,'2023 Farm Bill Calculator'!$G31),MAX(W97,W38)) -> 49.22333333 | X116: =IF('2023 Farm Bill Calculator'!$G32>0.1,MAX(X97,'2023 Farm Bill Calculator'!$G32),MAX(X97,X38)) -> 48.6764
M117: =M110 -> Wheat | N117: =IF('2023 Farm Bill Calculator'!$I24>0.1,MAX(N98,'2023 Farm Bill Calculator'!$I24),MAX(N98,N39)) -> 0 | O117: =IF('2023 Farm Bill Calculator'!$I25>0.1,MAX(O98,'2023 Farm Bill Calculator'!$I25),MAX(O98,O39)) -> 0 | P117: =IF('2023 Farm Bill Calculator'!$I26>0.1,MAX(P98,'2023 Farm Bill Calculator'!$I26),MAX(P98,P39)) -> 0 | Q117: =IF('2023 Farm Bill Calculator'!$I27>0.1,MAX(Q98,'2023 Farm Bill Calculator'!$I27),MAX(Q98,Q39)) -> 78.86 | R117: =IF('2023 Farm Bill Calculator'!$I28>0.1,MAX(R98,'2023 Farm Bill Calculator'!$I28),MAX(R98,R39)) -> 62.73 | S117: =IF('2023 Farm Bill Calculator'!$I29>0.1,MAX(S98,'2023 Farm Bill Calculator'!$I27),MAX(S98,S39)) -> 78.86 | T117: =IF('2023 Farm Bill Calculator'!$I30>0.1,MAX(T98,'2023 Farm Bill Calculator'!$I30),MAX(T98,T39)) -> 73.64 | U117: =IF('2023 Farm Bill Calculator'!$I31>0.1,MAX(U98,'2023 Farm Bill Calculator'!$I31),MAX(U98,U39)) -> 75.29666667 | V117: =IF('2023 Farm Bill Calculator'!$I32>0.1,MAX(V98,'2023 Farm Bill Calculator'!$I32),MAX(V98,V39)) -> 73.64 | W117: =IF('2023 Farm Bill Calculator'!$I33>0.1,MAX(W98,'2023 Farm Bill Calculator'!$I33),MAX(W98,W39)) -> 74.286 | X117: =IF('2023 Farm Bill Calculator'!$I34>0.1,MAX(X98,'2023 Farm Bill Calculator'!$I34),MAX(X98,X39)) -> 73.6432

Sheet MYA Prices (hidden)
A1: 1 | B1: 2 | C1: 3 | D1: 4 | E1: 5 | F1: 6 | G1: 7 | H1: 8 | I1: 9 | J1: 10 | K1: 11 | L1: 12 | M1: 13 | N1: 14 | O1: 15 | P1: 16 | Q1: 17 | R1: 18 | S1: 19 | T1: 20
B2: 1 | C2: 2 | D2: 3 | E2: 4 | F2: 5 | G2: 6 | H2: 7 | I2: 8 | J2: 9 | K2: 10 | L2: 11 | M2: 12 | N2: 13 | O2: 14 | P2: 15 | Q2: 16 | R2: 17 | S2: 18 | T2: 19 | U2: 20 | V2: 21 | W2: 22 | X2: 23 | Y2: 24 | Z2: 25 | AA2: 26 | AB2: 27 | AC2: 28 | AD2: 29 | AE2: 30 | AF2: 31 | AG2: 32 | AH2: 33 | AI2: 34 | AJ2: 35 | AK2: 36 | AL2: 37
C3: Corn 13 | D3: Corn 14 | E3: Corn 15 | F3: Corn 16 | G3: Corn 17 | H3: Corn 18 | I3: Corn 19 | J3: Corn 20 | K3: Corn 21 | L3: Corn 22 | M3: Corn 23 | N3: Corn 24 | O3: Soy 13 | P3: SOY 14 | Q3: SOY 15 | R3: SOY 16 | S3: SOY 17 | T3: SOY 18 | U3: SOY 19 | V3: SOY 20 | W3: SOY 21 | X3: SOY 22 | Y3: SOY 23 | Z3: SOY 24 | AA3: Wheat 13 | AB3: Wheat 14 | AC3: Wheat 15 | AD3: Wheat 16 | AE3: Wheat 17 | AF3: Wheat 18 | AG3: Wheat 19 | AH3: Wheat 20 | AI3: Wheat 21 | AJ3: Wheat 22 | AK3: Wheat 23 | AL3: Wheat 24
B4: =D20 -> XXXXXXXXXXXxxXXXXXXXXXXXXUSDA Ag Outlook Dec 21 | C4: =E20 -> 4.46 | D4: 3.7 | E4: 3.61 | F4: 3.36 | G4: 3.36 | H4: 3.61 | I4: 3.56 | J4: 4.53 | K4: 6 | L4: 6.8 | M4: =O20 -> 0 | N4: 0 | O4: =E30 -> 13 | P4: =F30 -> 10.1 | Q4: 8.95 | R4: 9.47 | S4: 9.33 | T4: 8.48 | U4: 8.57 | V4: 10.8 | W4: 13.3 | X4: 0 | Y4: 0 | Z4: 0 | AA4: =E40 -> 6.87 | AB4: =F40 -> 5.99 | AC4: 4.89 | AD4: 3.89 | AE4: 4.72 | AF4: 5.16 | AG4: 4.58 | AH4: 5.05 | AI4: 763 | AJ4: 9.2 | AK4: 0 | AL4: 0
B5: USDA/WASDE 1/12/23 | C5: 4.46 | D5: 3.7 | E5: 3.61 | F5: 3.36 | G5: 3.36 | H5: 3.61 | I5: 3.56 | J5: 4.53 | K5: 5.95 | L5: 6.8 | M5: 5.7 | N5: 4.9 | O5: =E31 -> 13 | P5: 10.1 | Q5: 8.95 | R5: 9.47 | S5: 9.33 | T5: 8.48 | U5: 8.57 | V5: 10.8 | W5: 13.3 | X5: 14 | Y5: 13 | Z5: 11.4 | AA5: =E41 -> 6.87 | AB5: 5.99 | AC5: 4.89 | AD5: 3.89 | AE5: 4.72 | AF5: 5.16 | AG5: 4.58 | AH5: 5.05 | AI5: 7.63 | AJ5: 9.2 | AK5: 8 | AL5: 7
B6: XXXXXXXXXXXXXXXXXXXXXXXXXXXXXXXCBO Baseline Feb 21 | C6: 4.46 | D6: 3.7 | E6: 3.61 | F6: 3.36 | G6: 3.36 | H6: 3.61 | I6: 3.56 | J6: 4.53 | K6: 5.95 | L6: 0 | M6: 0 | N6: 0 | O6: 13 | P6: 10.1 | Q6: 8.95 | R6: 9.47 | S6: 9.33 | T6: 8.48 | U6: 8.57 | V6: 10.8 | W6: 13.3 | X6: 0 | Y6: 0 | Z6: 0 | AA6: 6.87 | AB6: 5.99 | AC6: 4.89 | AD6: 3.89 | AE6: 4.72 | AF6: 5.16 | AG6: 4.58 | AH6: 5.05 | AI6: 7.63 | AJ6: 0 | AK6: 0 | AL6: 0
B7: FAPRI Aug 22 | C7: =E23 -> 4.46 | D7: =F23 -> 3.7 | E7: 3.61 | F7: 3.36 | G7: 3.36 | H7: 3.61 | I7: 3.56 | J7: 4.53 | K7: 5.95 | L7: 6.34 | M7: 5.22 | N7: 4.65 | O7: 13 | P7: 10.1 | Q7: 8.95 | R7: 9.47 | S7: 9.33 | T7: 8.48 | U7: 8.57 | V7: 10.8 | W7: 13.3 | X7: =N33 -> 14.22 | Y7: 12.36 | Z7: 11.85 | AA7: 6.87 | AB7: 5.99 | AC7: 4.89 | AD7: 3.89 | AE7: 4.72 | AF7: 5.16 | AG7: 4.58 | AH7: 5.05 | AI7: 7.63 | AJ7: 9.05 | AK7: 7.11 | AL7: 6.44
B8: Futures 1/13/23 | C8: =E24 -> 4.46 | D8: 3.7 | E8: 3.61 | F8: 3.36 | G8: 3.36 | H8: 3.61 | I8: 3.56 | J8: 4.53 | K8: 5.95 | L8: 0 | M8: 5.68 | N8: 0 | O8: 13 | P8: 10.1 | Q8: 8.95 | R8: 9.47 | S8: 9.33 | T8: 8.48 | U8: 8.57 | V8: 10.8 | W8: 13.3 | X8: 0 | Y8: 13.53 | Z8: 0 | AA8: 6.87 | AB8: 5.99 | AC8: 4.89 | AD8: 3.89 | AE8: 4.72 | AF8: 5.16 | AG8: 4.58 | AH8: 5.05 | AI8: 7.63 | AJ8: 9.2 | AK8: 7.766666667 | AL8: 0
B9: Kstate 12/31/22 | C9: =E25 -> 4.46 | D9: 3.7 | E9: 3.61 | F9: 3.36 | G9: 3.36 | H9: 3.61 | I9: 3.56 | J9: 4.53 | K9: 6 | L9: 6.39 | M9: 5.84 | N9: 0 | O9: 13 | P9: 10.1 | Q9: 8.95 | R9: 9.47 | S9: 9.33 | T9: 8.48 | U9: 8.57 | V9: 10.8 | W9: 13.3 | X9: 14.07 | Y9: 13.56 | Z9: 0 | AA9: 6.87 | AB9: 5.99 | AC9: 4.89 | AD9: 3.89 | AE9: 4.72 | AF9: 5.16 | AG9: 4.58 | AH9: 5.05 | AI9: 7.63 | AJ9: 8.79 | AK9: 8.87 | AL9: 0
B10: Average | C10: =E26 -> 4.46 | D10: 3.7 | E10: 3.61 | F10: 3.36 | G10: 3.36 | H10: 3.61 | I10: 3.56 | J10: 4.53 | K10: 5.95 | L10: 6.51 | M10: 5.61 | N10: 4.775 | O10: 13 | P10: 10.1 | Q10: 8.95 | R10: 9.47 | S10: 9.33 | T10: 8.48 | U10: 8.57 | V10: 10.8 | W10: 13.3 | X10: 14.09666667 | Y10: 13.1125 | Z10: 11.625 | AA10: 6.87 | AB10: 5.99 | AC10: 4.89 | AD10: 3.89 | AE10: 4.72 | AF10: 5.16 | AG10: 4.58 | AH10: 5.05 | AI10: 7.63 | AJ10: 9.088 | AK10: 7.936666667 | AL10: 6.72
B11: Reference Price | C11: =K18 -> 3.7 | D11: =K18 -> 3.7 | E11: =Table1[[#This Row],[3 ]] -> 3.7 | F11: =Table1[[#This Row],[3 ]] -> 3.7 | G11: =Table1[[#This Row],[3 ]] -> 3.7 | H11: =Table1[[#This Row],[3 ]] -> 3.7 | I11: =Table1[[#This Row],[3 ]] -> 3.7 | J11: =Table1[[#This Row],[3 ]] -> 3.7 | K11: =Table1[[#This Row],[3 ]] -> 3.7 | L11: =Table1[[#This Row],[3 ]] -> 3.7 | M11: =Table1[[#This Row],[3 ]] -> 3.7 | N11: =Table1[[#This Row],[3 ]] -> 3.7 | O11: 8.4 | P11: 8.4 | Q11: 8.4 | R11: 8.4 | S11: 8.4 | T11: 8.4 | U11: 8.4 | V11: 8.4 | W11: 8.4 | X11: 8.4 | Y11: 8.4 | Z11: 8.4 | AA11: 5.5 | AB11: 5.5 | AC11: 5.5 | AD11: 5.5 | AE11: 5.5 | AF11: 5.5 | AG11: 5.5 | AH11: 5.5 | AI11: 5.5 | AJ11: 5.5 | AK11: 5.5 | AL11: 5.5
B12: Benchmark Price
D15: Updated 1/13/23
G17: Five Year Price Forecasts
A18: Five Year Price Forecasts for the 2018 Farm Bill | J18: Corn | K18: 3.7 | O18: Corn
E19: 2013/14 | F19: 2014/15 | G19: 2015/16 | H19: 2016/17 | I19: 2017/18 | J19: 2018/19 | K19: 2019/20 | L19: 2020/21 | M19: 2021/22 | N19: 2022/23 | O19: 2023/24 | P19: 2024/25
D20: XXXXXXXXXXXxxXXXXXXXXXXXXUSDA Ag Outlook Dec 21 | E20: 4.46 | F20: 3.7 | G20: 3.61 | H20: 3.36 | I20: 3.36 | J20: 3.61 | K20: 3.56 | L20: 4.53 | M20: 5.95
D21: USDA/WASDE 1/12/23 | E21: 4.46 | F21: 3.7 | G21: 3.61 | H21: 3.36 | I21: 3.36 | J21: 3.61 | K21: 3.56 | L21: 4.53 | M21: 5.95 | N21: 6.8 | O21: 5.7 | P21: 4.9 | Q21: 4.5 | R21: 4.3 | S21: 4.3
D22: XXXXXXXXXXXXXXXXXXXXXXXXXXXXXXXCBO Baseline Feb 21 | E22: 4.46 | F22: 3.7 | G22: 3.61 | H22: 3.36 | I22: 3.36 | J22: 3.61 | K22: 3.56 | L22: 4.53 | M22: 5.95
D23: FAPRI Aug 22 | E23: 4.46 | F23: 3.7 | G23: 3.61 | H23: 3.36 | I23: 3.36 | J23: 3.61 | K23: 3.56 | L23: 4.53 | M23: 5.95 | N23: 6.34 | O23: 5.22 | P23: 4.65 | Q23: 4.59 | R23: 4.43 | S23: 4.37
D24: Futures 1/13/23 | E24: 4.46 | F24: 3.7 | G24: 3.61 | H24: 3.36 | I24: 3.36 | J24: 3.61 | K24: 3.56 | L24: 4.53 | M24: 5.95 | O24: =5.98-0.3 -> 5.68
D25: Kstate 12/31/22 | E25: 4.46 | F25: 3.7 | G25: 3.61 | H25: 3.36 | I25: 3.36 | J25: 3.61 | K25: 3.56 | L25: 4.53 | M25: 6 | N25: 6.39 | O25: 5.84
D26: Average | E26: =AVERAGE(E20:E25) -> 4.46 | F26: =AVERAGE(F20:F25) -> 3.7 | G26: =AVERAGE(G20:G25) -> 3.61 | H26: 3.36 | I26: 3.36 | J26: 3.61 | K26: 3.56 | L26: 4.53 | M26: 5.95 | N26: 6.51 | O26: 5.61 | P26: 4.775
J28: Soybeans | K28: 8.4 | O28: Soybeans
E29: 2013/14 | F29: 2014/15 | G29: 2015/16 | H29: 2016/17 | I29: 2017/18 | J29: 2018/19 | K29: 2019/20 | L29: 2020/21 | M29: 2021/22 | N29: 2022/23 | O29: 2023/24 | P29: 2024/25
D30: =D20 -> XXXXXXXXXXXxxXXXXXXXXXXXXUSDA Ag Outlook Dec 21 | E30: 13 | F30: 10.1 | G30: 8.95 | H30: 9.47 | I30: 9.33 | J30: 8.48 | K30: 8.57 | L30: 10.8 | M30: 13.3
D31: USDA/WASDE 1/12/23 | E31: 13 | F31: 10.1 | G31: 8.95 | H31: 9.47 | I31: 9.33 | J31: 8.48 | K31: 8.57 | L31: 10.8 | M31: 13.3 | N31: 14 | O31: 13 | P31: 11.4 | Q31: 10.85 | R31: 10.45 | S31: 10.35 | T31: 10.3
D32: XXXXXXXXXXXXXXXXXXXXXXXXXXXXXXXCBO Baseline Feb 21 | E32: 13 | F32: 10.1 | G32: 8.95 | H32: 9.47 | I32: 9.33 | J32: 8.48 | K32: 8.57 | L32: 10.8 | M32: 13.3
D33: FAPRI Aug 22 | E33: 13 | F33: 10.1 | G33: 8.95 | H33: 9.47 | I33: 9.33 | J33: 8.48 | K33: 8.57 | L33: 10.8 | M33: 13.3 | N33: 14.22 | O33: 12.36 | P33: 11.85 | Q33: 11.44 | R33: 11.23 | S33: 11.22
D34: Futures 1/13/23 | E34: 13 | F34: 10.1 | G34: 8.95 | H34: 9.47 | I34: 9.33 | J34: 8.48 | K34: 8.57 | L34: 10.8 | M34: 13.3 | O34: =13.93-0.4 -> 13.53
D35: Kstate 12/31/22 | E35: 13 | F35: 10.1 | G35: 8.95 | H35: 9.47 | I35: 9.33 | J35: 8.48 | K35: 8.57 | L35: 10.8 | M35: 13.3 | N35: 14.07 | O35: 13.56
D36: Average | E36: =AVERAGE(E30:E35) -> 13 | F36: =AVERAGE(F30:F35) -> 10.1 | G36: =AVERAGE(G30:G35) -> 8.95 | H36: 9.47 | I36: 9.33 | J36: 8.48 | K36: 8.57 | L36: 10.8 | M36: 13.3 | N36: 14.09666667 | O36: 13.1125 | P36: 11.625
J38: Wheat | K38: 5.5 | O38: Wheat
E39: 2013/14 | F39: 2014/15 | G39: 2015/16 | H39: 2016/17 | I39: 2017/18 | J39: 2018/19 | K39: 2019/20 | L39: 2020/21 | M39: 2021/22 | N39: 2022/23 | O39: 2023/24 | P39: 2024/25
D40: =D30 -> XXXXXXXXXXXxxXXXXXXXXXXXXUSDA Ag Outlook Dec 21 | E40: 6.87 | F40: 5.99 | G40: 4.89 | H40: 3.89 | I40: 4.72 | J40: 5.16 | K40: 4.58 | L40: 5.05 | M40: 7.63 | N40: 9.2
D41: =D31 -> USDA/WASDE 1/12/23 | E41: 6.87 | F41: 5.99 | G41: 4.89 | H41: 3.89 | I41: 4.72 | J41: 5.16 | K41: 4.58 | L41: 5.05 | M41: 7.63 | N41: 9.2 | O41: 8 | P41: 7 | Q41: 6 | R41: 5.7 | S41: 5.7
D42: XXXXXXXXXXXXXXXXXXXXXXXXXXXXXXXCBO Baseline Feb 21 | E42: 6.87 | F42: 5.99 | G42: 4.89 | H42: 3.89 | I42: 4.72 | J42: 5.16 | K42: 4.58 | L42: 5.05 | M42: 7.63
D43: FAPRI Aug 22 | E43: 6.87 | F43: 5.99 | G43: 4.89 | H43: 3.89 | I43: 4.72 | J43: 5.16 | K43: 4.58 | L43: 5.05 | M43: 7.63 | N43: 9.05 | O43: 7.11 | P43: 6.44 | Q43: 6.02 | R43: 5.84 | S43: 5.77
D44: Futures 1/13/23 | E44: 6.87 | F44: 5.99 | G44: 4.89 | H44: 3.89 | I44: 4.72 | J44: 5.16 | K44: 4.58 | L44: 5.05 | M44: 7.63 | N44: 9.2 | O44: =O62 -> 7.766666667
D45: Kstate 12/31/22 | E45: 6.87 | F45: =AVERAGE(F40:F44) -> 5.99 | G45: =AVERAGE(G40:G44) -> 4.89 | H45: =AVERAGE(H40:H44) -> 3.89 | I45: 4.72 | J45: 5.16 | K45: 4.58 | L45: 5.05 | M45: 7.63 | N45: 8.79 | O45: 8.87
D46: Average | E46: =AVERAGE(E40:E45) -> 6.87 | F46: =AVERAGE(F40:F45) -> 5.99 | G46: =AVERAGE(G40:G45) -> 4.89 | H46: 3.89 | I46: 4.72 | J46: 5.16 | K46: 4.58 | L46: 5.05 | M46: 7.63 | N46: 9.088 | O46: 7.936666667 | P46: 6.72
O48: UPDATES
D49: FAPRI - Food and Agricultural Policy Research Institute (http://www.fapri.missouri.edu/) | I49: http://www.fapri.missouri.edu/
D50: USDA's Agricultural Projections to 2028
D51: CBO's May 2019 Baseline | G51: https://www.cbo.gov/sites/default/files/recurringdata/
D53: K State Ag Manager | G53: https://www.agmanager.info/crop-insurance/risk-management-strategies/projections-and-sources-mya-prices-arc-and-plc-commodity
D54: Composite - Average of the FAPRI, USDA/WASDE, CBO, Futures, & Hilker Forecasts
N55: sept | O55: 2023-09-23
I56: Crop Year | K56: 19 | L56: 20 | M56: 21 | N56: 22 | O56: 23
I57: Chicago | K57: 5.15 | L57: 5.55 | M57: 6.33 | N57: 7.87 | O57: 7.61
I58: Kansas City | K58: 4.28 | L58: 4.91 | M58: 6.29 | N58: 8.5 | O58: 8.37
I59: Minneapolis | K59: 5.26 | L59: 5.6 | M59: =M58 -> 6.29 | N59: 9.14 | O59: 8.82
N60: =AVERAGE(N57:N59) -> 8.503333333 | O60: =AVERAGE(O57:O59) -> 8.266666667
M61: Basis | N61: -0.5 | O61: -0.5
D62: https://www.agmanager.info/crop-insurance/risk-management-strategies/mya-price-estimates-updated-arc-and-plc-commodity-0 | N62: =N60+N61 -> 8.003333333 | O62: =O60+O61 -> 7.766666667
D63: https://www.usda.gov/oce/commodity/wasde/
D64: https://www.fapri.missouri.edu/
D65: https://www.ers.usda.gov/data-products/season-average-price-forecasts/

Sheet County Trend Yields (hidden)
A1: 1 | B1: Helper Column 1 | C1: 2 | D1: 3 | E1: 4 | F1: 5 | G1: 6 | H1: 7 | I1: 8 | J1: 9 | K1: 10 | L1: 11 | M1: 12 | N1: 13 | O1: 14 | P1: 15 | Q1: 16 | R1: 17 | S1: 18 | T1: 19 | U1: 20 | V1: 21 Actual Yields | W1: 22 | X1: 23 | Y1: 24 | Z1: 25 | AA1: 26 | AB1: Trend yield26 | AC1: 28 | AD1: 29 | AE1: 30 | AF1: 31
A2: county | C2: 2013 | D2: 2014 | E2: Trend Adjsut 2015 | F2: Trend Adjust 2016 | G2: Trend Adjst 2017 | H2: trend adjusted2018 | I2: Trend Adjusted 2019 | J2: trend adjusted2020 | K2: trend adjusted2021 | L2: trend adjusted2022 | M2: trend adjusted2023 | N2: trend adjusted2024 | R2: Corn | S2: Soys | T2: Wheat | U2: Note: We are not supporting selecting irrigated and non-irrigated fields, yet. We will default to non-irrigated if available, otherwise irrigated. | V2: 2013 | W2: 2014 | X2: 2015 | Y2: 2016 | Z2: 2017 | AA2: 2018 | AB2: 2019 | AC2: 2020 | AD2: 2021 | AE2: 2022 | AF2: 2023
A3: ALCONA | B3: AlconaCornAll | C3: =VLOOKUP($B3,#REF!,3,0) ->  | D3: =VLOOKUP($B3,#REF!,4,0) ->  | E3: =VLOOKUP($B3,'FSA21'!$E$5:$K$183,3,0) -> 158.44 | F3: =VLOOKUP($B3,'FSA21'!$E$5:$K$183,4,0) -> 121.72 | G3: =VLOOKUP($B3,'FSA23'!$E$5:$K$288,3,0) -> 134.49 | H3: =VLOOKUP($B3,'FSA23'!$E$5:$K$288,4,0) -> 126.52 | I3: =VLOOKUP($B3,'FSA23'!$E$5:$K$288,5,0) -> 94 | J3: =VLOOKUP($B3,'FSA23'!$E$5:$K$288,6,0) -> 145.11 | K3: =VLOOKUP($B3,'FSA23'!$E$5:$K$288,7,0) -> 190.78 | L3: =AVERAGE(G3:K3)+$R3 -> 139.2 | M3: =AVERAGE(H3:L3)+$R3 -> 140.142 | N3: =AVERAGE(I3:M3)+$R3 -> 142.8664 | R3: 1.02 | S3: 0.35 | T3: 0.86 | V3: =C3-($R3*6) ->  | W3: =D3-($R3*5) ->  | X3: =E3 -> 158.44 | Y3: =F3 -> 121.72 | Z3: =G3 -> 134.49 | AA3: =H3 -> 126.52 | AB3: =I3 -> 94 | AC3: =J3 -> 145.11 | AD3: =K3 -> 190.78 | AE3: =L3 -> 139.2 | AF3: =M3 -> 140.142
A4: ALGER | B4: AlconaSoybeansAll | C4: =VLOOKUP($B4,#REF!,3,0) ->  | D4: =VLOOKUP($B4,#REF!,4,0) ->  | E4: =VLOOKUP($B4,'FSA21'!$E$5:$K$183,3,0) -> 35.93 | F4: =VLOOKUP($B4,'FSA21'!$E$5:$K$183,4,0) -> 40 | G4: =VLOOKUP($B4,'FSA23'!$E$5:$K$288,3,0) -> 37 | H4: =VLOOKUP($B4,'FSA23'!$E$5:$K$288,4,0) -> 35.03 | I4: =VLOOKUP($B4,'FSA23'!$E$5:$K$288,5,0) -> 35.23 | J4: =VLOOKUP($B4,'FSA23'!$E$5:$K$288,6,0) -> 38.2 | K4: =VLOOKUP($B4,'FSA23'!$E$5:$K$288,7,0) -> 46.18 | L4: =AVERAGE(G4:K4)+$S4 -> 38.678 | M4: =AVERAGE(H4:L4)+$S4 -> 39.0136 | N4: =AVERAGE(I4:M4)+$S4 -> 39.81032 | R4: 1.02 | S4: 0.35 | T4: 0.86 | V4: =C4-($S4*6) ->  | W4: =D4-($S4*5) ->  | X4: 35.93 | Y4: 40 | Z4: 37 | AA4: 35.03 | AB4: 35.23 | AC4: 38.2 | AD4: 46.18 | AE4: 38.678 | AF4: 39.0136
A5: ALLEGAN | B5: AlconaWheatAll | C5: =VLOOKUP($B5,#REF!,3,0) ->  | D5: =VLOOKUP($B5,#REF!,4,0) ->  | E5: =VLOOKUP($B5,#REF!,5,0) ->  | F5: =VLOOKUP($B5,#REF!,6,0) ->  | G5: =VLOOKUP($B5,'FSA23'!$E$5:$K$288,3,0) -> 49.32 | H5: =VLOOKUP($B5,'FSA23'!$E$5:$K$288,4,0) -> 47.83 | I5: =VLOOKUP($B5,'FSA23'!$E$5:$K$288,5,0) -> 57.48 | J5: =VLOOKUP($B5,'FSA23'!$E$5:$K$288,6,0) -> 58.49 | K5: =VLOOKUP($B5,'FSA23'!$E$5:$K$288,7,0) -> 52.73 | L5: =AVERAGE(G5:K5)+$T5 -> 54.03 | M5: =AVERAGE(H5:L5)+$T5 -> 54.972 | N5: =AVERAGE(I5:M5)+$T5 -> 56.4004 | R5: 1.02 | S5: 0.35 | T5: 0.86 | V5: =C5-($T5*6) ->  | W5: =D5-($T5*5) ->  | Z5: 49.32 | AA5: 47.83 | AB5: 57.48 | AC5: 58.49 | AD5: 52.73 | AE5: 54.03 | AF5: 54.972
A6: ALPENA | B6: AlgerCornAll | C6: =VLOOKUP($B6,#REF!,3,0) ->  | D6: =VLOOKUP($B6,#REF!,4,0) ->  | E6: =VLOOKUP($B6,'FSA21'!$E$5:$K$183,3,0) -> 132 | F6: =VLOOKUP($B6,'FSA21'!$E$5:$K$183,4,0) -> 87 | G6: =VLOOKUP($B6,'FSA23'!$E$5:$K$288,3,0) -> 58.4 | H6: =VLOOKUP($B6,'FSA23'!$E$5:$K$288,4,0) -> 111 | I6: =VLOOKUP($B6,'FSA23'!$E$5:$K$288,5,0) -> 58.49 | J6: =VLOOKUP($B6,'FSA23'!$E$5:$K$288,6,0) -> 183.9 | K6: =VLOOKUP($B6,'FSA23'!$E$5:$K$288,7,0) -> 110.84 | L6: =AVERAGE(G6:K6)+$R6 -> 105.566 | M6: =AVERAGE(H6:L6)+$R6 -> 114.9992 | N6: =AVERAGE(I6:M6)+$R6 -> 115.79904 | R6: 1.04 | T6: 0.67 | V6: =C6-($R6*6) ->  | W6: =D6-($R6*5) ->  | X6: 132 | Y6: 87 | Z6: 58.4 | AA6: 111 | AB6: 58.49 | AC6: 183.9 | AD6: 110.84 | AE6: 105.566 | AF6: 114.9992
A7: ANTRIM | B7: AlgerWheatAll | C7: =VLOOKUP($B7,#REF!,3,0) ->  | D7: =VLOOKUP($B7,#REF!,4,0) ->  | E7: =VLOOKUP($B7,#REF!,5,0) ->  | F7: =VLOOKUP($B7,#REF!,6,0) ->  | G7: =VLOOKUP($B7,'FSA23'!$E$5:$K$288,3,0) -> 53.6 | H7: =VLOOKUP($B7,'FSA23'!$E$5:$K$288,4,0) -> 40 | I7: =VLOOKUP($B7,'FSA23'!$E$5:$K$288,5,0) -> 53.1 | J7: =VLOOKUP($B7,'FSA23'!$E$5:$K$288,6,0) -> 50.4 | K7: =VLOOKUP($B7,'FSA23'!$E$5:$K$288,7,0) -> 61.66 | L7: =AVERAGE(G7:K7)+$T7 -> 52.422 | M7: =AVERAGE(H7:L7)+$T7 -> 52.1864 | N7: =AVERAGE(I7:M7)+$T7 -> 54.62368 | R7: 1.04 | T7: 0.67 | V7: =C7-($T7*6) ->  | W7: =D7-($T7*5) ->  | Z7: 53.6 | AA7: 40 | AB7: 53.1 | AC7: 50.4 | AD7: 61.66 | AE7: 52.422 | AF7: 52.1864
A8: ARENAC | B8: AlleganCornIrrigated | C8: =VLOOKUP($B8,#REF!,3,0) ->  | D8: =VLOOKUP($B8,#REF!,4,0) ->  | E8: =VLOOKUP($B8,#REF!,5,0) ->  | F8: =VLOOKUP($B8,#REF!,6,0) ->  | G8: =VLOOKUP($B8,'FSA23'!$E$5:$K$288,3,0) -> 231.01 | H8: =VLOOKUP($B8,'FSA23'!$E$5:$K$288,4,0) -> 210.21 | I8: =VLOOKUP($B8,'FSA23'!$E$5:$K$288,5,0) -> 198.41 | J8: =VLOOKUP($B8,'FSA23'!$E$5:$K$288,6,0) -> 212.21 | K8: =VLOOKUP($B8,'FSA23'!$E$5:$K$288,7,0) -> 207.15 | L8: =AVERAGE(G8:K8)+$R8 -> 213.948 | M8: 210.5356 | N8: 210.60072 | R8: 2.15 | S8: 0.55 | T8: 0.82 | V8: =C8-($R8*6) ->  | W8: =D8-($R8*5) ->  | Z8: 231.01 | AA8: 210.21 | AB8: 198.41 | AC8: 212.21 | AD8: 207.15 | AE8: 213.948 | AF8: 210.5356
A9: BARAGA | B9: AlleganCornNonirrigated | C9: =VLOOKUP($B9,#REF!,3,0) ->  | D9: =VLOOKUP($B9,#REF!,4,0) ->  | E9: =VLOOKUP($B9,'FSA21'!$E$5:$K$183,3,0) -> 163.88 | F9: =VLOOKUP($B9,'FSA21'!$E$5:$K$183,4,0) -> 179.81 | G9: =VLOOKUP($B9,'FSA23'!$E$5:$K$288,3,0) -> 187.24 | H9: =VLOOKUP($B9,'FSA23'!$E$5:$K$288,4,0) -> 160.18 | I9: =VLOOKUP($B9,'FSA23'!$E$5:$K$288,5,0) -> 159.46 | J9: =VLOOKUP($B9,'FSA23'!$E$5:$K$288,6,0) -> 171.39 | K9: =VLOOKUP($B9,'FSA23'!$E$5:$K$288,7,0) -> 182.26 | L9: 174.256 | M9: 171.6592 | N9: 173.95504 | R9: 2.15 | S9: 0.55 | T9: 0.82 | V9: =C9-($R9*6) ->  | W9: =D9-($R9*5) ->  | X9: 163.88 | Y9: 179.81 | Z9: 187.24 | AA9: 160.18 | AB9: 159.46 | AC9: 171.39 | AD9: 182.26 | AE9: 174.256 | AF9: 171.6592
A10: BARRY | B10: AlleganSoybeansIrrigated | C10: =VLOOKUP($B10,#REF!,3,0) ->  | D10: =VLOOKUP($B10,#REF!,4,0) ->  | E10: =VLOOKUP($B10,#REF!,5,0) ->  | F10: =VLOOKUP($B10,#REF!,6,0) ->  | G10: =VLOOKUP($B10,'FSA23'!$E$5:$K$288,3,0) -> 59.69 | H10: =VLOOKUP($B10,'FSA23'!$E$5:$K$288,4,0) -> 64.93 | I10: =VLOOKUP($B10,'FSA23'!$E$5:$K$288,5,0) -> 63.32 | J10: =VLOOKUP($B10,'FSA23'!$E$5:$K$288,6,0) -> 65.53 | K10: =VLOOKUP($B10,'FSA23'!$E$5:$K$288,7,0) -> 58.43 | L10: =AVERAGE(G10:K10)+$S10 -> 62.93 | M10: 63.578 | N10: 63.3076 | R10: 2.15 | S10: 0.55 | T10: 0.82 | V10: =C10-($S10*6) ->  | W10: =D10-($S10*5) ->  | Z10: 59.69 | AA10: 64.93 | AB10: 63.32 | AC10: 65.53 | AD10: 58.43 | AE10: 62.93 | AF10: 63.578
A11: BAY | B11: AlleganSoybeansNonirrigated | C11: =VLOOKUP($B11,#REF!,3,0) ->  | D11: =VLOOKUP($B11,#REF!,4,0) ->  | E11: =VLOOKUP($B11,'FSA21'!$E$5:$K$183,3,0) -> 48.24 | F11: =VLOOKUP($B11,'FSA21'!$E$5:$K$183,4,0) -> 54.7 | G11: =VLOOKUP($B11,'FSA23'!$E$5:$K$288,3,0) -> 51.05 | H11: =VLOOKUP($B11,'FSA23'!$E$5:$K$288,4,0) -> 52.69 | I11: =VLOOKUP($B11,'FSA23'!$E$5:$K$288,5,0) -> 40.01 | J11: =VLOOKUP($B11,'FSA23'!$E$5:$K$288,6,0) -> 47.32 | K11: =VLOOKUP($B11,'FSA23'!$E$5:$K$288,7,0) -> 45.18 | L11: 47.8 | M11: 47.15 | N11: 46.042 | R11: 2.15 | S11: 0.55 | T11: 0.82 | V11: =C11-($S11*6) ->  | W11: =D11-($S11*5) ->  | X11: 48.24 | Y11: 54.7 | Z11: 51.05 | AA11: 52.69 | AB11: 40.01 | AC11: 47.32 | AD11: 45.18 | AE11: 47.8 | AF11: 47.15
A12: BENZIE | B12: AlleganWheatAll | C12: =VLOOKUP($B12,#REF!,3,0) ->  | D12: =VLOOKUP($B12,#REF!,4,0) ->  | E12: =VLOOKUP($B12,'FSA21'!$E$5:$K$183,3,0) -> 57.1 | F12: =VLOOKUP($B12,'FSA21'!$E$5:$K$183,4,0) -> 70.12 | G12: =VLOOKUP($B12,'FSA23'!$E$5:$K$288,3,0) -> 67.44 | H12: =VLOOKUP($B12,'FSA23'!$E$5:$K$288,4,0) -> 79.76 | I12: =VLOOKUP($B12,'FSA23'!$E$5:$K$288,5,0) -> 56.89 | J12: =VLOOKUP($B12,'FSA23'!$E$5:$K$288,6,0) -> 64.34 | K12: =VLOOKUP($B12,'FSA23'!$E$5:$K$288,7,0) -> 67.59 | L12: =AVERAGE(G12:K12)+$T12 -> 68.024 | M12: =AVERAGE(H12:L12)+$T12 -> 68.1408 | N12: =AVERAGE(I12:M12)+$T12 -> 65.81696 | R12: 2.15 | S12: 0.55 | T12: 0.82 | V12: =C12-($T12*6) ->  | W12: =D12-($T12*5) ->  | X12: 57.1 | Y12: 70.12 | Z12: 67.44 | AA12: 79.76 | AB12: 56.89 | AC12: 64.34 | AD12: 67.59 | AE12: 68.024 | AF12: 68.1408
A13: BERRIEN | B13: AlpenaCornAll | C13: =VLOOKUP($B13,#REF!,3,0) ->  | D13: =VLOOKUP($B13,#REF!,4,0) ->  | E13: =VLOOKUP($B13,'FSA21'!$E$5:$K$183,3,0) -> 143.15 | F13: =VLOOKUP($B13,'FSA21'!$E$5:$K$183,4,0) -> 103.08 | G13: =VLOOKUP($B13,'FSA23'!$E$5:$K$288,3,0) -> 150.15 | H13: =VLOOKUP($B13,'FSA23'!$E$5:$K$288,4,0) -> 116.73 | I13: =VLOOKUP($B13,'FSA23'!$E$5:$K$288,5,0) -> 121.46 | J13: =VLOOKUP($B13,'FSA23'!$E$5:$K$288,6,0) -> 166.05 | K13: =VLOOKUP($B13,'FSA23'!$E$5:$K$288,7,0) -> 188.58 | L13: =AVERAGE(G13:K13)+$R13 -> 149.794 | M13: =AVERAGE(H13:L13)+$R13 -> 149.7228 | N13: =AVERAGE(I13:M13)+$R13 -> 156.32136 | R13: 1.2 | S13: 0.27 | T13: 0.64 | V13: =C13-($R13*6) ->  | W13: =D13-($R13*5) ->  | X13: 143.15 | Y13: 103.08 | Z13: 150.15 | AA13: 116.73 | AB13: 121.46 | AC13: 166.05 | AD13: 188.58 | AE13: 149.794 | AF13: 149.7228
A14: BRANCH | B14: AlpenaSoybeansAll | C14: =VLOOKUP($B14,#REF!,3,0) ->  | D14: =VLOOKUP($B14,#REF!,4,0) ->  | E14: =VLOOKUP($B14,'FSA21'!$E$5:$K$183,3,0) -> 39.1 | F14: =VLOOKUP($B14,'FSA21'!$E$5:$K$183,4,0) -> 28.77 | G14: =VLOOKUP($B14,'FSA23'!$E$5:$K$288,3,0) -> 35.73 | H14: =VLOOKUP($B14,'FSA23'!$E$5:$K$288,4,0) -> 38.35 | I14: =VLOOKUP($B14,'FSA23'!$E$5:$K$288,5,0) -> 27 | J14: =VLOOKUP($B14,'FSA23'!$E$5:$K$288,6,0) -> 46.91 | K14: =VLOOKUP($B14,'FSA23'!$E$5:$K$288,7,0) -> 46.76 | L14: =AVERAGE(G14:K14)+$S14 -> 39.22 | M14: =AVERAGE(H14:L14)+$S14 -> 39.918 | N14: =AVERAGE(I14:M14)+$S14 -> 40.2316 | R14: 1.2 | S14: 0.27 | T14: 0.64 | V14: =C14-($S14*6) ->  | W14: =D14-($S14*5) ->  | X14: 39.1 | Y14: 28.77 | Z14: 35.73 | AA14: 38.35 | AB14: 27 | AC14: 46.91 | AD14: 46.76 | AE14: 39.22 | AF14: 39.918
A15: CALHOUN | B15: AlpenaWheatAll | C15: =VLOOKUP($B15,#REF!,3,0) ->  | D15: =VLOOKUP($B15,#REF!,4,0) ->  | E15: =VLOOKUP($B15,#REF!,5,0) ->  | F15: =VLOOKUP($B15,#REF!,6,0) ->  | G15: =VLOOKUP($B15,'FSA23'!$E$5:$K$288,3,0) -> 63.99 | H15: =VLOOKUP($B15,'FSA23'!$E$5:$K$288,4,0) -> 47.6 | I15: =VLOOKUP($B15,'FSA23'!$E$5:$K$288,5,0) -> 57.24 | J15: =VLOOKUP($B15,'FSA23'!$E$5:$K$288,6,0) -> 52.08 | K15: =VLOOKUP($B15,'FSA23'!$E$5:$K$288,7,0) -> 55.76 | L15: =AVERAGE(G15:K15)+$T15 -> 55.974 | M15: =AVERAGE(H15:L15)+$T15 -> 54.3708 | N15: =AVERAGE(I15:M15)+$T15 -> 55.72496 | R15: 1.2 | S15: 0.27 | T15: 0.64 | V15: =C15-($T15*6) ->  | W15: =D15-($T15*5) ->  | Z15: 63.99 | AA15: 47.6 | AB15: 57.24 | AC15: 52.08 | AD15: 55.76 | AE15: 55.974 | AF15: 54.3708
A16: CASS | B16: AntrimCornAll | C16: =VLOOKUP($B16,#REF!,3,0) ->  | D16: =VLOOKUP($B16,#REF!,4,0) ->  | E16: =VLOOKUP($B16,'FSA21'!$E$5:$K$183,3,0) -> 106.61 | F16: =VLOOKUP($B16,'FSA21'!$E$5:$K$183,4,0) -> 103.42 | G16: =VLOOKUP($B16,'FSA23'!$E$5:$K$288,3,0) -> 140.73 | H16: =VLOOKUP($B16,'FSA23'!$E$5:$K$288,4,0) -> 115.55 | I16: =VLOOKUP($B16,'FSA23'!$E$5:$K$288,5,0) -> 95.44 | J16: =VLOOKUP($B16,'FSA23'!$E$5:$K$288,6,0) -> 147.51 | K16: =VLOOKUP($B16,'FSA23'!$E$5:$K$288,7,0) -> 142.32 | L16: =AVERAGE(G16:K16)+$R16 -> 129.38 | M16: =AVERAGE(H16:L16)+$R16 -> 127.11 | N16: =AVERAGE(I16:M16)+$R16 -> 129.422 | R16: 1.07 | S16: 0.33 | T16: 0.25 | V16: =C16-($R16*6) ->  | W16: =D16-($R16*5) ->  | X16: 106.61 | Y16: 103.42 | Z16: 140.73 | AA16: 115.55 | AB16: 95.44 | AC16: 147.51 | AD16: 142.32 | AE16: 129.38 | AF16: 127.11
A17: CHARLEVOIX | B17: AntrimSoybeansAll | C17: =VLOOKUP($B17,#REF!,3,0) ->  | D17: =VLOOKUP($B17,#REF!,4,0) ->  | E17: =VLOOKUP($B17,#REF!,5,0) ->  | F17: =VLOOKUP($B17,#REF!,6,0) ->  | G17: =VLOOKUP($B17,'FSA23'!$E$5:$K$288,3,0) -> 37 | H17: =VLOOKUP($B17,'FSA23'!$E$5:$K$288,4,0) -> 37 | I17: =VLOOKUP($B17,'FSA23'!$E$5:$K$288,5,0) -> 34.4 | J17: =VLOOKUP($B17,'FSA23'!$E$5:$K$288,6,0) -> 35.6 | K17: =VLOOKUP($B17,'FSA23'!$E$5:$K$288,7,0) -> 43.36 | L17: =AVERAGE(G17:K17)+$S17 -> 37.802 | M17: =AVERAGE(H17:L17)+$S17 -> 37.9624 | N17: =AVERAGE(I17:M17)+$S17 -> 38.15488 | R17: 1.07 | S17: 0.33 | T17: 0.25 | V17: =C17-($S17*6) ->  | W17: =D17-($S17*5) ->  | Z17: 37 | AA17: 37 | AB17: 34.4 | AC17: 35.6 | AD17: 43.36 | AE17: 37.802 | AF17: 37.9624
A18: CHEBOYGAN | B18: AntrimWheatAll | C18: =VLOOKUP($B18,#REF!,3,0) ->  | D18: =VLOOKUP($B18,#REF!,4,0) ->  | E18: =VLOOKUP($B18,#REF!,5,0) ->  | F18: =VLOOKUP($B18,#REF!,6,0) ->  | G18: =VLOOKUP($B18,'FSA23'!$E$5:$K$288,3,0) -> 52 | H18: =VLOOKUP($B18,'FSA23'!$E$5:$K$288,4,0) -> 52.21 | I18: =VLOOKUP($B18,'FSA23'!$E$5:$K$288,5,0) -> 53.1 | J18: =VLOOKUP($B18,'FSA23'!$E$5:$K$288,6,0) -> 48 | K18: =VLOOKUP($B18,'FSA23'!$E$5:$K$288,7,0) -> 54.95 | L18: =AVERAGE(G18:K18)+$T18 -> 52.302 | M18: =AVERAGE(H18:L18)+$T18 -> 52.3624 | N18: =AVERAGE(I18:M18)+$T18 -> 52.39288 | R18: 1.07 | S18: 0.33 | T18: 0.25 | V18: =C18-($T18*6) ->  | W18: =D18-($T18*5) ->  | Z18: 52 | AA18: 52.21 | AB18: 53.1 | AC18: 48 | AD18: 54.95 | AE18: 52.302 | AF18: 52.3624
A19: CHIPPEWA | B19: ArenacCornAll | C19: =VLOOKUP($B19,#REF!,3,0) ->  | D19: =VLOOKUP($B19,#REF!,4,0) ->  | E19: =VLOOKUP($B19,'FSA21'!$E$5:$K$183,3,0) -> 168.86 | F19: =VLOOKUP($B19,'FSA21'!$E$5:$K$183,4,0) -> 152.06 | G19: =VLOOKUP($B19,'FSA23'!$E$5:$K$288,3,0) -> 175.68 | H19: =VLOOKUP($B19,'FSA23'!$E$5:$K$288,4,0) -> 174.92 | I19: =VLOOKUP($B19,'FSA23'!$E$5:$K$288,5,0) -> 142.3 | J19: =VLOOKUP($B19,'FSA23'!$E$5:$K$288,6,0) -> 152.66 | K19: =VLOOKUP($B19,'FSA23'!$E$5:$K$288,7,0) -> 192.54 | L19: =AVERAGE(G19:K19)+$R19 -> 169.43 | M19: =AVERAGE(H19:L19)+$R19 -> 168.18 | N19: =AVERAGE(I19:M19)+$R19 -> 166.832 | R19: 1.81 | S19: 0.53 | T19: 0.88 | V19: =C19-($R19*6) ->  | W19: =D19-($R19*5) ->  | X19: 168.86 | Y19: 152.06 | Z19: 175.68 | AA19: 174.92 | AB19: 142.3 | AC19: 152.66 | AD19: 192.54 | AE19: 169.43 | AF19: 168.18
A20: CLARE | B20: ArenacSoybeansAll | C20: =VLOOKUP($B20,#REF!,3,0) ->  | D20: =VLOOKUP($B20,#REF!,4,0) ->  | E20: =VLOOKUP($B20,'FSA21'!$E$5:$K$183,3,0) -> 50.68 | F20: =VLOOKUP($B20,'FSA21'!$E$5:$K$183,4,0) -> 48.31 | G20: =VLOOKUP($B20,'FSA23'!$E$5:$K$288,3,0) -> 44.29 | H20: =VLOOKUP($B20,'FSA23'!$E$5:$K$288,4,0) -> 48.74 | I20: =VLOOKUP($B20,'FSA23'!$E$5:$K$288,5,0) -> 34.18 | J20: =VLOOKUP($B20,'FSA23'!$E$5:$K$288,6,0) -> 43.12 | K20: =VLOOKUP($B20,'FSA23'!$E$5:$K$288,7,0) -> 51.09 | L20: =AVERAGE(G20:K20)+$S20 -> 44.814 | M20: =AVERAGE(H20:L20)+$S20 -> 44.9188 | N20: =AVERAGE(I20:M20)+$S20 -> 44.15456 | R20: 1.81 | S20: 0.53 | T20: 0.88 | V20: =C20-($S20*6) ->  | W20: =D20-($S20*5) ->  | X20: 50.68 | Y20: 48.31 | Z20: 44.29 | AA20: 48.74 | AB20: 34.18 | AC20: 43.12 | AD20: 51.09 | AE20: 44.814 | AF20: 44.9188
A21: CLINTON | B21: ArenacWheatAll | C21: =VLOOKUP($B21,#REF!,3,0) ->  | D21: =VLOOKUP($B21,#REF!,4,0) ->  | E21: =VLOOKUP($B21,'FSA21'!$E$5:$K$183,3,0) -> 89.95 | F21: =VLOOKUP($B21,'FSA21'!$E$5:$K$183,4,0) -> 85.08 | G21: =VLOOKUP($B21,'FSA23'!$E$5:$K$288,3,0) -> 70.41 | H21: =VLOOKUP($B21,'FSA23'!$E$5:$K$288,4,0) -> 79.51 | I21: =VLOOKUP($B21,'FSA23'!$E$5:$K$288,5,0) -> 59.8 | J21: =VLOOKUP($B21,'FSA23'!$E$5:$K$288,6,0) -> 64.25 | K21: =VLOOKUP($B21,'FSA23'!$E$5:$K$288,7,0) -> 81.08 | L21: =AVERAGE(G21:K21)+$T21 -> 71.89 | M21: =AVERAGE(H21:L21)+$T21 -> 72.186 | N21: =AVERAGE(I21:M21)+$T21 -> 70.7212 | R21: 1.81 | S21: 0.53 | T21: 0.88 | V21: =C21-($T21*6) ->  | W21: =D21-($T21*5) ->  | X21: 89.95 | Y21: 85.08 | Z21: 70.41 | AA21: 79.51 | AB21: 59.8 | AC21: 64.25 | AD21: 81.08 | AE21: 71.89 | AF21: 72.186
A22: DELTA | B22: BaragaCornAll | C22: =VLOOKUP($B22,#REF!,3,0) ->  | D22: =VLOOKUP($B22,#REF!,4,0) ->  | E22: =VLOOKUP($B22,#REF!,5,0) ->  | F22: =VLOOKUP($B22,#REF!,6,0) ->  | G22: =VLOOKUP($B22,'FSA23'!$E$5:$K$288,3,0) -> 84 | H22: =VLOOKUP($B22,'FSA23'!$E$5:$K$288,4,0) -> 111 | I22: =VLOOKUP($B22,'FSA23'!$E$5:$K$288,5,0) -> 84 | J22: =VLOOKUP($B22,'FSA23'!$E$5:$K$288,6,0) -> 140.2 | K22: =VLOOKUP($B22,'FSA23'!$E$5:$K$288,7,0) -> 110.84 | L22: =AVERAGE(G22:K22)+$R22 -> 106.978 | M22: 111.5736 | N22: 111.68832 | R22: 0.97 | V22: =C22-($R22*6) ->  | W22: =D22-($R22*5) ->  | Z22: 84 | AA22: 111 | AB22: 84 | AC22: 140.2 | AD22: 110.84 | AE22: 106.978 | AF22: 111.5736
A23: DICKINSON | B23: BarryCornIrrigated | C23: =VLOOKUP($B23,#REF!,3,0) ->  | D23: =VLOOKUP($B23,#REF!,4,0) ->  | E23: =VLOOKUP($B23,#REF!,5,0) ->  | F23: =VLOOKUP($B23,#REF!,6,0) ->  | G23: =VLOOKUP($B23,'FSA23'!$E$5:$K$288,3,0) -> 205.67 | H23: =VLOOKUP($B23,'FSA23'!$E$5:$K$288,4,0) -> 192.87 | I23: =VLOOKUP($B23,'FSA23'!$E$5:$K$288,5,0) -> 180.11 | J23: =VLOOKUP($B23,'FSA23'!$E$5:$K$288,6,0) -> 213.11 | K23: =VLOOKUP($B23,'FSA23'!$E$5:$K$288,7,0) -> 221.97 | L23: 204.696 | M23: 204.5012 | N23: 206.82744 | R23: 1.95 | S23: 0.52 | T23: 0.86 | V23: =C23-($R23*6) ->  | W23: =D23-($R23*5) ->  | Z23: 205.67 | AA23: 192.87 | AB23: 180.11 | AC23: 213.11 | AD23: 221.97 | AE23: 204.696 | AF23: 204.5012
A24: EATON | B24: BarryCornNonirrigated | C24: =VLOOKUP($B24,#REF!,3,0) ->  | D24: =VLOOKUP($B24,#REF!,4,0) ->  | E24: =VLOOKUP($B24,'FSA21'!$E$5:$K$183,3,0) -> 165.53 | F24: =VLOOKUP($B24,'FSA21'!$E$5:$K$183,4,0) -> 149.48 | G24: =VLOOKUP($B24,'FSA23'!$E$5:$K$288,3,0) -> 174.37 | H24: =VLOOKUP($B24,'FSA23'!$E$5:$K$288,4,0) -> 150.64 | I24: =VLOOKUP($B24,'FSA23'!$E$5:$K$288,5,0) -> 141.24 | J24: =VLOOKUP($B24,'FSA23'!$E$5:$K$288,6,0) -> 164.37 | K24: =VLOOKUP($B24,'FSA23'!$E$5:$K$288,7,0) -> 179.36 | L24: 163.946 | M24: 161.8612 | N24: 164.10544 | R24: 1.95 | S24: 0.52 | T24: 0.86 | V24: =C24-($R24*6) ->  | W24: =D24-($R24*5) ->  | X24: 165.53 | Y24: 149.48 | Z24: 174.37 | AA24: 150.64 | AB24: 141.24 | AC24: 164.37 | AD24: 179.36 | AE24: 163.946 | AF24: 161.8612
A25: EMMET | B25: BarrySoybeansIrrigated | C25: =VLOOKUP($B25,#REF!,3,0) ->  | D25: =VLOOKUP($B25,#REF!,4,0) ->  | E25: =VLOOKUP($B25,#REF!,5,0) ->  | F25: =VLOOKUP($B25,#REF!,6,0) ->  | G25: =VLOOKUP($B25,'FSA23'!$E$5:$K$288,3,0) -> 59.42 | H25: =VLOOKUP($B25,'FSA23'!$E$5:$K$288,4,0) -> 62.29 | I25: =VLOOKUP($B25,'FSA23'!$E$5:$K$288,5,0) -> 48.14 | J25: =VLOOKUP($B25,'FSA23'!$E$5:$K$288,6,0) -> 58.91 | K25: =VLOOKUP($B25,'FSA23'!$E$5:$K$288,7,0) -> 58.92 | L25: =AVERAGE(G25:K25)+$S25 -> 58.056 | M25: 57.7832 | N25: 56.88184 | R25: 1.95 | S25: 0.52 | T25: 0.86 | V25: =C25-($S25*6) ->  | W25: =D25-($S25*5) ->  | Z25: 59.42 | AA25: 62.29 | AB25: 48.14 | AC25: 58.91 | AD25: 58.92 | AE25: 58.056 | AF25: 57.7832
A26: GENESEE | B26: BarrySoybeansNonirrigated | C26: =VLOOKUP($B26,#REF!,3,0) ->  | D26: =VLOOKUP($B26,#REF!,4,0) ->  | E26: =VLOOKUP($B26,'FSA21'!$E$5:$K$183,3,0) -> 49.19 | F26: =VLOOKUP($B26,'FSA21'!$E$5:$K$183,4,0) -> 51.78 | G26: =VLOOKUP($B26,'FSA23'!$E$5:$K$288,3,0) -> 46.52 | H26: =VLOOKUP($B26,'FSA23'!$E$5:$K$288,4,0) -> 49.12 | I26: =VLOOKUP($B26,'FSA23'!$E$5:$K$288,5,0) -> 49.2 | J26: =VLOOKUP($B26,'FSA23'!$E$5:$K$288,6,0) -> 45.14 | K26: =VLOOKUP($B26,'FSA23'!$E$5:$K$288,7,0) -> 50.55 | L26: 48.626 | M26: 49.0472 | N26: 49.03264 | R26: 1.95 | S26: 0.52 | T26: 0.86 | V26: =C26-($S26*6) ->  | W26: =D26-($S26*5) ->  | X26: 49.19 | Y26: 51.78 | Z26: 46.52 | AA26: 49.12 | AB26: 49.2 | AC26: 45.14 | AD26: 50.55 | AE26: 48.626 | AF26: 49.0472
A27: GLADWIN | B27: BarryWheatAll | C27: =VLOOKUP($B27,#REF!,3,0) ->  | D27: =VLOOKUP($B27,#REF!,4,0) ->  | E27: =VLOOKUP($B27,'FSA21'!$E$5:$K$183,3,0) -> 71.43 | F27: =VLOOKUP($B27,'FSA21'!$E$5:$K$183,4,0) -> 91.94 | G27: =VLOOKUP($B27,'FSA23'!$E$5:$K$288,3,0) -> 68 | H27: =VLOOKUP($B27,'FSA23'!$E$5:$K$288,4,0) -> 78.5 | I27: =VLOOKUP($B27,'FSA23'!$E$5:$K$288,5,0) -> 60.65 | J27: =VLOOKUP($B27,'FSA23'!$E$5:$K$288,6,0) -> 73.91 | K27: =VLOOKUP($B27,'FSA23'!$E$5:$K$288,7,0) -> 70.43 | L27: =AVERAGE(G27:K27)+$T27 -> 71.158 | M27: =AVERAGE(H27:L27)+$T27 -> 71.7896 | N27: =AVERAGE(I27:M27)+$T27 -> 70.44752 | R27: 1.95 | S27: 0.52 | T27: 0.86 | V27: =C27-($T27*6) ->  | W27: =D27-($T27*5) ->  | X27: 71.43 | Y27: 91.94 | Z27: 68 | AA27: 78.5 | AB27: 60.65 | AC27: 73.91 | AD27: 70.43 | AE27: 71.158 | AF27: 71.7896
A28: GOGEBIC | B28: BayCornIrrigated | C28: =VLOOKUP($B28,#REF!,3,0) ->  | D28: =VLOOKUP($B28,#REF!,4,0) ->  | E28: =VLOOKUP($B28,#REF!,5,0) ->  | F28: =VLOOKUP($B28,#REF!,6,0) ->  | G28: =VLOOKUP($B28,'FSA23'!$E$5:$K$288,3,0) -> 190 | H28: =VLOOKUP($B28,'FSA23'!$E$5:$K$288,4,0) -> 205.41 | I28: =VLOOKUP($B28,'FSA23'!$E$5:$K$288,5,0) -> 181.66 | J28: =VLOOKUP($B28,'FSA23'!$E$5:$K$288,6,0) -> 195.41 | K28: =VLOOKUP($B28,'FSA23'!$E$5:$K$288,7,0) -> 209.45 | L28: =AVERAGE(G28:K28)+$R28 -> 198.316 | M28: 199.9792 | N28: 198.89304 | R28: 1.93 | S28: 0.56 | T28: 0.98 | V28: =C28-($R28*6) ->  | W28: =D28-($R28*5) ->  | Z28: 190 | AA28: 205.41 | AB28: 181.66 | AC28: 195.41 | AD28: 209.45 | AE28: 198.316 | AF28: 199.9792
A29: GRAND TRAVERSE | B29: BayCornNonirrigated | C29: =VLOOKUP($B29,#REF!,3,0) ->  | D29: =VLOOKUP($B29,#REF!,4,0) ->  | E29: =VLOOKUP($B29,'FSA21'!$E$5:$K$183,3,0) -> 190.4 | F29: =VLOOKUP($B29,'FSA21'!$E$5:$K$183,4,0) -> 176.64 | G29: =VLOOKUP($B29,'FSA23'!$E$5:$K$288,3,0) -> 179.37 | H29: =VLOOKUP($B29,'FSA23'!$E$5:$K$288,4,0) -> 193.44 | I29: =VLOOKUP($B29,'FSA23'!$E$5:$K$288,5,0) -> 165.65 | J29: =VLOOKUP($B29,'FSA23'!$E$5:$K$288,6,0) -> 168.13 | K29: =VLOOKUP($B29,'FSA23'!$E$5:$K$288,7,0) -> 203.93 | L29: 184.034 | M29: 184.9668 | N29: 183.27216 | R29: 1.93 | S29: 0.56 | T29: 0.98 | V29: =C29-($R29*6) ->  | W29: =D29-($R29*5) ->  | X29: 190.4 | Y29: 176.64 | Z29: 179.37 | AA29: 193.44 | AB29: 165.65 | AC29: 168.13 | AD29: 203.93 | AE29: 184.034 | AF29: 184.9668
A30: GRATIOT | B30: BaySoybeansIrrigated | C30: =VLOOKUP($B30,#REF!,3,0) ->  | D30: =VLOOKUP($B30,#REF!,4,0) ->  | E30: =VLOOKUP($B30,#REF!,5,0) ->  | F30: =VLOOKUP($B30,#REF!,6,0) ->  | G30: =VLOOKUP($B30,'FSA23'!$E$5:$K$288,3,0) -> 42.9 | H30: =VLOOKUP($B30,'FSA23'!$E$5:$K$288,4,0) -> 54.67 | I30: =VLOOKUP($B30,'FSA23'!$E$5:$K$288,5,0) -> 51.89 | J30: =VLOOKUP($B30,'FSA23'!$E$5:$K$288,6,0) -> 62.83 | K30: =VLOOKUP($B30,'FSA23'!$E$5:$K$288,7,0) -> 58.69 | L30: =AVERAGE(G30:K30)+$S30 -> 54.756 | M30: 57.1272 | N30: 57.61864 | R30: 1.93 | S30: 0.56 | T30: 0.98 | V30: =C30-($S30*6) ->  | W30: =D30-($S30*5) ->  | Z30: 42.9 | AA30: 54.67 | AB30: 51.89 | AC30: 62.83 | AD30: 58.69 | AE30: 54.756 | AF30: 57.1272
A31: HILLSDALE | B31: BaySoybeansNonirrigated | C31: =VLOOKUP($B31,#REF!,3,0) ->  | D31: =VLOOKUP($B31,#REF!,4,0) ->  | E31: =VLOOKUP($B31,'FSA21'!$E$5:$K$183,3,0) -> 58.3 | F31: =VLOOKUP($B31,'FSA21'!$E$5:$K$183,4,0) -> 58.74 | G31: =VLOOKUP($B31,'FSA23'!$E$5:$K$288,3,0) -> 50.9 | H31: =VLOOKUP($B31,'FSA23'!$E$5:$K$288,4,0) -> 60.2 | I31: =VLOOKUP($B31,'FSA23'!$E$5:$K$288,5,0) -> 39.63 | J31: =VLOOKUP($B31,'FSA23'!$E$5:$K$288,6,0) -> 52.66 | K31: =VLOOKUP($B31,'FSA23'!$E$5:$K$288,7,0) -> 56.91 | L31: 52.62 | M31: 52.964 | N31: 51.5168 | R31: 1.93 | S31: 0.56 | T31: 0.98 | V31: =C31-($S31*6) ->  | W31: =D31-($S31*5) ->  | X31: 58.3 | Y31: 58.74 | Z31: 50.9 | AA31: 60.2 | AB31: 39.63 | AC31: 52.66 | AD31: 56.91 | AE31: 52.62 | AF31: 52.964
A32: HOUGHTON | B32: BayWheatAll | C32: =VLOOKUP($B32,#REF!,3,0) ->  | D32: =VLOOKUP($B32,#REF!,4,0) ->  | E32: =VLOOKUP($B32,'FSA21'!$E$5:$K$183,3,0) -> 99.5 | F32: =VLOOKUP($B32,'FSA21'!$E$5:$K$183,4,0) -> 98.15 | G32: =VLOOKUP($B32,'FSA23'!$E$5:$K$288,3,0) -> 85.83 | H32: =VLOOKUP($B32,'FSA23'!$E$5:$K$288,4,0) -> 85.87 | I32: =VLOOKUP($B32,'FSA23'!$E$5:$K$288,5,0) -> 77.18 | J32: =VLOOKUP($B32,'FSA23'!$E$5:$K$288,6,0) -> 81.18 | K32: =VLOOKUP($B32,'FSA23'!$E$5:$K$288,7,0) -> 83.93 | L32: =AVERAGE(G32:K32)+$T32 -> 83.778 | M32: =AVERAGE(H32:L32)+$T32 -> 83.3676 | N32: =AVERAGE(I32:M32)+$T32 -> 82.86712 | R32: 1.93 | S32: 0.56 | T32: 0.98 | V32: =C32-($T32*6) ->  | W32: =D32-($T32*5) ->  | X32: 99.5 | Y32: 98.15 | Z32: 85.83 | AA32: 85.87 | AB32: 77.18 | AC32: 81.18 | AD32: 83.93 | AE32: 83.778 | AF32: 83.3676
A33: HURON | B33: BenzieCornAll | C33: =VLOOKUP($B33,#REF!,3,0) ->  | D33: =VLOOKUP($B33,#REF!,4,0) ->  | E33: =VLOOKUP($B33,'FSA21'!$E$5:$K$183,3,0) -> 88.3 | F33: =VLOOKUP($B33,'FSA21'!$E$5:$K$183,4,0) -> 104.63 | G33: =VLOOKUP($B33,'FSA23'!$E$5:$K$288,3,0) -> 135.26 | H33: =VLOOKUP($B33,'FSA23'!$E$5:$K$288,4,0) -> 117.95 | I33: =VLOOKUP($B33,'FSA23'!$E$5:$K$288,5,0) -> 97.23 | J33: =VLOOKUP($B33,'FSA23'!$E$5:$K$288,6,0) -> 110.37 | K33: =VLOOKUP($B33,'FSA23'!$E$5:$K$288,7,0) -> 157.9 | L33: =AVERAGE(G33:K33)+$R33 -> 124.792 | M33: 122.6984 | N33: 123.64808 | R33: 1.05 | V33: =C33-($R33*6) ->  | W33: =D33-($R33*5) ->  | X33: 88.3 | Y33: 104.63 | Z33: 135.26 | AA33: 117.95 | AB33: 97.23 | AC33: 110.37 | AD33: 157.9 | AE33: 124.792 | AF33: 122.6984
A34: INGHAM | B34: BerrienCornIrrigated | C34: =VLOOKUP($B34,#REF!,3,0) ->  | D34: =VLOOKUP($B34,#REF!,4,0) ->  | E34: =VLOOKUP($B34,#REF!,5,0) ->  | F34: =VLOOKUP($B34,#REF!,6,0) ->  | G34: =VLOOKUP($B34,'FSA23'!$E$5:$K$288,3,0) -> 242.81 | H34: =VLOOKUP($B34,'FSA23'!$E$5:$K$288,4,0) -> 215.38 | I34: =VLOOKUP($B34,'FSA23'!$E$5:$K$288,5,0) -> 195.33 | J34: =VLOOKUP($B34,'FSA23'!$E$5:$K$288,6,0) -> 210.48 | K34: =VLOOKUP($B34,'FSA23'!$E$5:$K$288,7,0) -> 219.84 | L34: 218.988 | M34: 214.2236 | N34: 213.99232 | R34: 2.22 | S34: 0.53 | T34: 0.77 | V34: =C34-($R34*6) ->  | W34: =D34-($R34*5) ->  | Z34: 242.81 | AA34: 215.38 | AB34: 195.33 | AC34: 210.48 | AD34: 219.84 | AE34: 218.988 | AF34: 214.2236
A35: IONIA | B35: BerrienCornNonirrigated | C35: =VLOOKUP($B35,#REF!,3,0) ->  | D35: =VLOOKUP($B35,#REF!,4,0) ->  | E35: =VLOOKUP($B35,'FSA21'!$E$5:$K$183,3,0) -> 182.84 | F35: =VLOOKUP($B35,'FSA21'!$E$5:$K$183,4,0) -> 170.77 | G35: =VLOOKUP($B35,'FSA23'!$E$5:$K$288,3,0) -> 183.77 | H35: =VLOOKUP($B35,'FSA23'!$E$5:$K$288,4,0) -> 172.69 | I35: =VLOOKUP($B35,'FSA23'!$E$5:$K$288,5,0) -> 152.96 | J35: =VLOOKUP($B35,'FSA23'!$E$5:$K$288,6,0) -> 161.75 | K35: =VLOOKUP($B35,'FSA23'!$E$5:$K$288,7,0) -> 183.7 | L35: 173.194 | M35: 171.0788 | N35: 170.75656 | R35: 2.22 | S35: 0.53 | T35: 0.77 | V35: =C35-($R35*6) ->  | W35: =D35-($R35*5) ->  | X35: 182.84 | Y35: 170.77 | Z35: 183.77 | AA35: 172.69 | AB35: 152.96 | AC35: 161.75 | AD35: 183.7 | AE35: 173.194 | AF35: 171.0788
A36: IOSCO | B36: BerrienSoybeansIrrigated | C36: =VLOOKUP($B36,#REF!,3,0) ->  | D36: =VLOOKUP($B36,#REF!,4,0) ->  | E36: =VLOOKUP($B36,#REF!,5,0) ->  | F36: =VLOOKUP($B36,#REF!,6,0) ->  | G36: =VLOOKUP($B36,'FSA23'!$E$5:$K$288,3,0) -> 57.86 | H36: =VLOOKUP($B36,'FSA23'!$E$5:$K$288,4,0) -> 68.77 | I36: =VLOOKUP($B36,'FSA23'!$E$5:$K$288,5,0) -> 55.7 | J36: =VLOOKUP($B36,'FSA23'!$E$5:$K$288,6,0) -> 66.26 | K36: =VLOOKUP($B36,'FSA23'!$E$5:$K$288,7,0) -> 62.97 | L36: =AVERAGE(G36:K36)+$S36 -> 62.842 | M36: 63.8384 | N36: 62.85208 | R36: 2.22 | S36: 0.53 | T36: 0.77 | V36: =C36-($S36*6) ->  | W36: =D36-($S36*5) ->  | Z36: 57.86 | AA36: 68.77 | AB36: 55.7 | AC36: 66.26 | AD36: 62.97 | AE36: 62.842 | AF36: 63.8384
A37: IRON | B37: BerrienSoybeansNonirrigated | C37: =VLOOKUP($B37,#REF!,3,0) ->  | D37: =VLOOKUP($B37,#REF!,4,0) ->  | E37: =VLOOKUP($B37,'FSA21'!$E$5:$K$183,3,0) -> 52.34 | F37: =VLOOKUP($B37,'FSA21'!$E$5:$K$183,4,0) -> 53.69 | G37: =VLOOKUP($B37,'FSA23'!$E$5:$K$288,3,0) -> 43.95 | H37: =VLOOKUP($B37,'FSA23'!$E$5:$K$288,4,0) -> 53.63 | I37: =VLOOKUP($B37,'FSA23'!$E$5:$K$288,5,0) -> 40.92 | J37: =VLOOKUP($B37,'FSA23'!$E$5:$K$288,6,0) -> 44.37 | K37: =VLOOKUP($B37,'FSA23'!$E$5:$K$288,7,0) -> 51.78 | L37: 47.46 | M37: 48.162 | N37: 47.0684 | R37: 2.22 | S37: 0.53 | T37: 0.77 | V37: =C37-($S37*6) ->  | W37: =D37-($S37*5) ->  | X37: 52.34 | Y37: 53.69 | Z37: 43.95 | AA37: 53.63 | AB37: 40.92 | AC37: 44.37 | AD37: 51.78 | AE37: 47.46 | AF37: 48.162
A38: ISABELLA | B38: BerrienWheatAll | C38: =VLOOKUP($B38,#REF!,3,0) ->  | D38: =VLOOKUP($B38,#REF!,4,0) ->  | E38: =VLOOKUP($B38,'FSA21'!$E$5:$K$183,3,0) -> 76.4 | F38: =VLOOKUP($B38,'FSA21'!$E$5:$K$183,4,0) -> 86.67 | G38: =VLOOKUP($B38,'FSA23'!$E$5:$K$288,3,0) -> 70.44 | H38: =VLOOKUP($B38,'FSA23'!$E$5:$K$288,4,0) -> 77.12 | I38: =VLOOKUP($B38,'FSA23'!$E$5:$K$288,5,0) -> 72.1 | J38: =VLOOKUP($B38,'FSA23'!$E$5:$K$288,6,0) -> 65.43 | K38: =VLOOKUP($B38,'FSA23'!$E$5:$K$288,7,0) -> 69.9 | L38: =AVERAGE(G38:K38)+$T38 -> 71.768 | M38: =AVERAGE(H38:L38)+$T38 -> 72.0336 | N38: =AVERAGE(I38:M38)+$T38 -> 71.01632 | R38: 2.22 | S38: 0.53 | T38: 0.77 | V38: =C38-($T38*6) ->  | W38: =D38-($T38*5) ->  | X38: 76.4 | Y38: 86.67 | Z38: 70.44 | AA38: 77.12 | AB38: 72.1 | AC38: 65.43 | AD38: 69.9 | AE38: 71.768 | AF38: 72.0336
A39: JACKSON | B39: BranchCornIrrigated | C39: =VLOOKUP($B39,#REF!,3,0) ->  | D39: =VLOOKUP($B39,#REF!,4,0) ->  | E39: =VLOOKUP($B39,#REF!,5,0) ->  | F39: =VLOOKUP($B39,#REF!,6,0) ->  | G39: =VLOOKUP($B39,'FSA23'!$E$5:$K$288,3,0) -> 204.46 | H39: =VLOOKUP($B39,'FSA23'!$E$5:$K$288,4,0) -> 192.68 | I39: =VLOOKUP($B39,'FSA23'!$E$5:$K$288,5,0) -> 198.91 | J39: =VLOOKUP($B39,'FSA23'!$E$5:$K$288,6,0) -> 203.94 | K39: =VLOOKUP($B39,'FSA23'!$E$5:$K$288,7,0) -> 181.26 | L39: =AVERAGE(G39:K39)+$R39 -> 198.06 | M39: 196.78 | N39: 197.6 | R39: 1.81 | S39: 0.48 | T39: 0.65 | V39: =C39-($R39*6) ->  | W39: =D39-($R39*5) ->  | Z39: 204.46 | AA39: 192.68 | AB39: 198.91 | AC39: 203.94 | AD39: 181.26 | AE39: 198.06 | AF39: 196.78
A40: KALAMAZOO | B40: BranchCornNonirrigated | C40: =VLOOKUP($B40,#REF!,3,0) ->  | D40: =VLOOKUP($B40,#REF!,4,0) ->  | E40: =VLOOKUP($B40,'FSA21'!$E$5:$K$183,3,0) -> 164.8 | F40: =VLOOKUP($B40,'FSA21'!$E$5:$K$183,4,0) -> 167.23 | G40: =VLOOKUP($B40,'FSA23'!$E$5:$K$288,3,0) -> 166.38 | H40: =VLOOKUP($B40,'FSA23'!$E$5:$K$288,4,0) -> 159.22 | I40: =VLOOKUP($B40,'FSA23'!$E$5:$K$288,5,0) -> 157.83 | J40: =VLOOKUP($B40,'FSA23'!$E$5:$K$288,6,0) -> 157.01 | K40: =VLOOKUP($B40,'FSA23'!$E$5:$K$288,7,0) -> 165.95 | L40: 163.088 | M40: 162.4296 | N40: 163.07152 | R40: 1.81 | S40: 0.48 | T40: 0.65 | V40: =C40-($R40*6) ->  | W40: =D40-($R40*5) ->  | X40: 164.8 | Y40: 167.23 | Z40: 166.38 | AA40: 159.22 | AB40: 157.83 | AC40: 157.01 | AD40: 165.95 | AE40: 163.088 | AF40: 162.4296
A41: KALKASKA | B41: BranchSoybeansIrrigated | C41: =VLOOKUP($B41,#REF!,3,0) ->  | D41: =VLOOKUP($B41,#REF!,4,0) ->  | E41: =VLOOKUP($B41,#REF!,5,0) ->  | F41: =VLOOKUP($B41,#REF!,6,0) ->  | G41: =VLOOKUP($B41,'FSA23'!$E$5:$K$288,3,0) -> 54.04 | H41: =VLOOKUP($B41,'FSA23'!$E$5:$K$288,4,0) -> 60.46 | I41: =VLOOKUP($B41,'FSA23'!$E$5:$K$288,5,0) -> 56.28 | J41: =VLOOKUP($B41,'FSA23'!$E$5:$K$288,6,0) -> 59.45 | K41: =VLOOKUP($B41,'FSA23'!$E$5:$K$288,7,0) -> 61.33 | L41: =AVERAGE(G41:K41)+$S41 -> 58.792 | M41: 59.7424 | N41: 59.59888 | R41: 1.81 | S41: 0.48 | T41: 0.65 | V41: =C41-($S41*6) ->  | W41: =D41-($S41*5) ->  | Z41: 54.04 | AA41: 60.46 | AB41: 56.28 | AC41: 59.45 | AD41: 61.33 | AE41: 58.792 | AF41: 59.7424
A42: KENT | B42: BranchSoybeansNonirrigated | C42: =VLOOKUP($B42,#REF!,3,0) ->  | D42: =VLOOKUP($B42,#REF!,4,0) ->  | E42: =VLOOKUP($B42,'FSA21'!$E$5:$K$183,3,0) -> 47.98 | F42: =VLOOKUP($B42,'FSA21'!$E$5:$K$183,4,0) -> 53.57 | G42: =VLOOKUP($B42,'FSA23'!$E$5:$K$288,3,0) -> 41.84 | H42: =VLOOKUP($B42,'FSA23'!$E$5:$K$288,4,0) -> 48.41 | I42: =VLOOKUP($B42,'FSA23'!$E$5:$K$288,5,0) -> 45.02 | J42: =VLOOKUP($B42,'FSA23'!$E$5:$K$288,6,0) -> 46.33 | K42: =VLOOKUP($B42,'FSA23'!$E$5:$K$288,7,0) -> 51.03 | L42: 47.006 | M42: 48.0392 | N42: 47.96504 | R42: 1.81 | S42: 0.48 | T42: 0.65 | V42: =C42-($S42*6) ->  | W42: =D42-($S42*5) ->  | X42: 47.98 | Y42: 53.57 | Z42: 41.84 | AA42: 48.41 | AB42: 45.02 | AC42: 46.33 | AD42: 51.03 | AE42: 47.006 | AF42: 48.0392
A43: KEWEENAW | B43: BranchWheatAll | C43: =VLOOKUP($B43,#REF!,3,0) ->  | D43: =VLOOKUP($B43,#REF!,4,0) ->  | E43: =VLOOKUP($B43,'FSA21'!$E$5:$K$183,3,0) -> 65 | F43: =VLOOKUP($B43,'FSA21'!$E$5:$K$183,4,0) -> 80.78 | G43: =VLOOKUP($B43,'FSA23'!$E$5:$K$288,3,0) -> 80.95 | H43: =VLOOKUP($B43,'FSA23'!$E$5:$K$288,4,0) -> 65.88 | I43: =VLOOKUP($B43,'FSA23'!$E$5:$K$288,5,0) -> 72.15 | J43: =VLOOKUP($B43,'FSA23'!$E$5:$K$288,6,0) -> 67.43 | K43: =VLOOKUP($B43,'FSA23'!$E$5:$K$288,7,0) -> 75.28 | L43: =AVERAGE(G43:K43)+$T43 -> 72.988 | M43: =AVERAGE(H43:L43)+$T43 -> 71.3956 | N43: =AVERAGE(I43:M43)+$T43 -> 72.49872 | R43: 1.81 | S43: 0.48 | T43: 0.65 | V43: =C43-($T43*6) ->  | W43: =D43-($T43*5) ->  | X43: 65 | Y43: 80.78 | Z43: 80.95 | AA43: 65.88 | AB43: 72.15 | AC43: 67.43 | AD43: 75.28 | AE43: 72.988 | AF43: 71.3956
A44: LAKE | B44: CalhounCornIrrigated | C44: =VLOOKUP($B44,#REF!,3,0) ->  | D44: =VLOOKUP($B44,#REF!,4,0) ->  | E44: =VLOOKUP($B44,#REF!,5,0) ->  | F44: =VLOOKUP($B44,#REF!,6,0) ->  | G44: =VLOOKUP($B44,'FSA23'!$E$5:$K$288,3,0) -> 200.6 | H44: =VLOOKUP($B44,'FSA23'!$E$5:$K$288,4,0) -> 191 | I44: =VLOOKUP($B44,'FSA23'!$E$5:$K$288,5,0) -> 161.75 | J44: =VLOOKUP($B44,'FSA23'!$E$5:$K$288,6,0) -> 186.29 | K44: =VLOOKUP($B44,'FSA23'!$E$5:$K$288,7,0) -> 194.64 | L44: =AVERAGE(G44:K44)+$R44 -> 188.366 | M44: 185.9192 | N44: 184.90304 | R44: 1.51 | S44: 0.44 | T44: 0.66 | V44: =C44-($R44*6) ->  | W44: =D44-($R44*5) ->  | Z44: 200.6 | AA44: 191 | AB44: 161.75 | AC44: 186.29 | AD44: 194.64 | AE44: 188.366 | AF44: 185.9192
A45: LAPEER | B45: CalhounCornNonirrigated | C45: =VLOOKUP($B45,#REF!,3,0) ->  | D45: =VLOOKUP($B45,#REF!,4,0) ->  | E45: =VLOOKUP($B45,'FSA21'!$E$5:$K$183,3,0) -> 163.65 | F45: =VLOOKUP($B45,'FSA21'!$E$5:$K$183,4,0) -> 143.12 | G45: =VLOOKUP($B45,'FSA23'!$E$5:$K$288,3,0) -> 145.6 | H45: =VLOOKUP($B45,'FSA23'!$E$5:$K$288,4,0) -> 149.11 | I45: =VLOOKUP($B45,'FSA23'!$E$5:$K$288,5,0) -> 136.16 | J45: =VLOOKUP($B45,'FSA23'!$E$5:$K$288,6,0) -> 135.42 | K45: =VLOOKUP($B45,'FSA23'!$E$5:$K$288,7,0) -> 166.86 | L45: 148.14 | M45: 148.648 | N45: 148.5556 | R45: 1.51 | S45: 0.44 | T45: 0.66 | V45: =C45-($R45*6) ->  | W45: =D45-($R45*5) ->  | X45: 163.65 | Y45: 143.12 | Z45: 145.6 | AA45: 149.11 | AB45: 136.16 | AC45: 135.42 | AD45: 166.86 | AE45: 148.14 | AF45: 148.648
A46: LEELANAU | B46: CalhounSoybeansIrrigated | C46: =VLOOKUP($B46,#REF!,3,0) ->  | D46: =VLOOKUP($B46,#REF!,4,0) ->  | E46: =VLOOKUP($B46,#REF!,5,0) ->  | F46: =VLOOKUP($B46,#REF!,6,0) ->  | G46: =VLOOKUP($B46,'FSA23'!$E$5:$K$288,3,0) -> 55.36 | H46: =VLOOKUP($B46,'FSA23'!$E$5:$K$288,4,0) -> 65.31 | I46: =VLOOKUP($B46,'FSA23'!$E$5:$K$288,5,0) -> 51.57 | J46: =VLOOKUP($B46,'FSA23'!$E$5:$K$288,6,0) -> 59.33 | K46: =VLOOKUP($B46,'FSA23'!$E$5:$K$288,7,0) -> 60.67 | L46: =AVERAGE(G46:K46)+$S46 -> 58.888 | M46: 59.5936 | N46: 58.45032 | R46: 1.51 | S46: 0.44 | T46: 0.66 | V46: =C46-($S46*6) ->  | W46: =D46-($S46*5) ->  | Z46: 55.36 | AA46: 65.31 | AB46: 51.57 | AC46: 59.33 | AD46: 60.67 | AE46: 58.888 | AF46: 59.5936
A47: LENAWEE | B47: CalhounSoybeansNonirrigated | C47: =VLOOKUP($B47,#REF!,3,0) ->  | D47: =VLOOKUP($B47,#REF!,4,0) ->  | E47: =VLOOKUP($B47,'FSA21'!$E$5:$K$183,3,0) -> 47.68 | F47: =VLOOKUP($B47,'FSA21'!$E$5:$K$183,4,0) -> 49.35 | G47: =VLOOKUP($B47,'FSA23'!$E$5:$K$288,3,0) -> 36 | H47: =VLOOKUP($B47,'FSA23'!$E$5:$K$288,4,0) -> 45.24 | I47: =VLOOKUP($B47,'FSA23'!$E$5:$K$288,5,0) -> 37.83 | J47: =VLOOKUP($B47,'FSA23'!$E$5:$K$288,6,0) -> 41.23 | K47: =VLOOKUP($B47,'FSA23'!$E$5:$K$288,7,0) -> 47.4 | L47: 41.98 | M47: 43.176 | N47: 42.7632 | R47: 1.51 | S47: 0.44 | T47: 0.66 | V47: =C47-($S47*6) ->  | W47: =D47-($S47*5) ->  | X47: 47.68 | Y47: 49.35 | Z47: 36 | AA47: 45.24 | AB47: 37.83 | AC47: 41.23 | AD47: 47.4 | AE47: 41.98 | AF47: 43.176
A48: LIVINGSTON | B48: CalhounWheatAll | C48: =VLOOKUP($B48,#REF!,3,0) ->  | D48: =VLOOKUP($B48,#REF!,4,0) ->  | E48: =VLOOKUP($B48,'FSA21'!$E$5:$K$183,3,0) -> 58.47 | F48: =VLOOKUP($B48,'FSA21'!$E$5:$K$183,4,0) -> 77.11 | G48: =VLOOKUP($B48,'FSA23'!$E$5:$K$288,3,0) -> 70.96 | H48: =VLOOKUP($B48,'FSA23'!$E$5:$K$288,4,0) -> 66.13 | I48: =VLOOKUP($B48,'FSA23'!$E$5:$K$288,5,0) -> 64.72 | J48: =VLOOKUP($B48,'FSA23'!$E$5:$K$288,6,0) -> 55.37 | K48: =VLOOKUP($B48,'FSA23'!$E$5:$K$288,7,0) -> 55.46 | L48: =AVERAGE(G48:K48)+$T48 -> 63.188 | M48: =AVERAGE(H48:L48)+$T48 -> 61.6336 | N48: =AVERAGE(I48:M48)+$T48 -> 60.73432 | R48: 1.51 | S48: 0.44 | T48: 0.66 | V48: =C48-($T48*6) ->  | W48: =D48-($T48*5) ->  | X48: 58.47 | Y48: 77.11 | Z48: 70.96 | AA48: 66.13 | AB48: 64.72 | AC48: 55.37 | AD48: 55.46 | AE48: 63.188 | AF48: 61.6336
A49: LUCE | B49: CassCornIrrigated | C49: =VLOOKUP($B49,#REF!,3,0) ->  | D49: =VLOOKUP($B49,#REF!,4,0) ->  | E49: =VLOOKUP($B49,'FSA21'!$E$5:$K$183,3,0) -> 210 | F49: =VLOOKUP($B49,'FSA21'!$E$5:$K$183,4,0) -> 198.11 | G49: =VLOOKUP($B49,'FSA23'!$E$5:$K$288,3,0) -> 224.01 | H49: =VLOOKUP($B49,'FSA23'!$E$5:$K$288,4,0) -> 162.45 | I49: =VLOOKUP($B49,'FSA23'!$E$5:$K$288,5,0) -> 192.01 | J49: =VLOOKUP($B49,'FSA23'!$E$5:$K$288,6,0) -> 210.82 | K49: =VLOOKUP($B49,'FSA23'!$E$5:$K$288,7,0) -> 208.36 | L49: =AVERAGE(G49:K49)+$R49 -> 201.59 | M49: 197.106 | N49: 204.0372 | R49: 2.06 | S49: 0.52 | T49: 0.64 | V49: =C49-($R49*6) ->  | W49: =D49-($R49*5) ->  | X49: 210 | Y49: 198.11 | Z49: 224.01 | AA49: 162.45 | AB49: 192.01 | AC49: 210.82 | AD49: 208.36 | AE49: 201.59 | AF49: 197.106
A50: MACKINAC | B50: CassCornNonirrigated | C50: =VLOOKUP($B50,#REF!,3,0) ->  | D50: =VLOOKUP($B50,#REF!,4,0) ->  | E50: =VLOOKUP($B50,'FSA21'!$E$5:$K$183,3,0) -> 158.7 | F50: =VLOOKUP($B50,'FSA21'!$E$5:$K$183,4,0) -> 127.63 | G50: =VLOOKUP($B50,'FSA23'!$E$5:$K$288,3,0) -> 163.49 | H50: =VLOOKUP($B50,'FSA23'!$E$5:$K$288,4,0) -> 153.7 | I50: =VLOOKUP($B50,'FSA23'!$E$5:$K$288,5,0) -> 136.25 | J50: =VLOOKUP($B50,'FSA23'!$E$5:$K$288,6,0) -> 139.7 | K50: =VLOOKUP($B50,'FSA23'!$E$5:$K$288,7,0) -> 160.4 | L50: 152.768 | M50: 150.6236 | N50: 150.00832 | R50: 2.06 | S50: 0.52 | T50: 0.64 | V50: =C50-($R50*6) ->  | W50: =D50-($R50*5) ->  | X50: 158.7 | Y50: 127.63 | Z50: 163.49 | AA50: 153.7 | AB50: 136.25 | AC50: 139.7 | AD50: 160.4 | AE50: 152.768 | AF50: 150.6236
A51: MACOMB | B51: CassSoybeansIrrigated | C51: =VLOOKUP($B51,#REF!,3,0) ->  | D51: =VLOOKUP($B51,#REF!,4,0) ->  | E51: =VLOOKUP($B51,'FSA21'!$E$5:$K$183,3,0) -> 62.55 | F51: =VLOOKUP($B51,'FSA21'!$E$5:$K$183,4,0) -> 67.02 | G51: =VLOOKUP($B51,'FSA23'!$E$5:$K$288,3,0) -> 59.72 | H51: =VLOOKUP($B51,'FSA23'!$E$5:$K$288,4,0) -> 52.35 | I51: =VLOOKUP($B51,'FSA23'!$E$5:$K$288,5,0) -> 62.44 | J51: =VLOOKUP($B51,'FSA23'!$E$5:$K$288,6,0) -> 64.93 | K51: =VLOOKUP($B51,'FSA23'!$E$5:$K$288,7,0) -> 65.64 | L51: =AVERAGE(G51:K51)+$S51 -> 61.536 | M51: 61.8992 | N51: 63.80904 | R51: 2.06 | S51: 0.52 | T51: 0.64 | V51: =C51-($S51*6) ->  | W51: =D51-($S51*5) ->  | X51: 62.55 | Y51: 67.02 | Z51: 59.72 | AA51: 52.35 | AB51: 62.44 | AC51: 64.93 | AD51: 65.64 | AE51: 61.536 | AF51: 61.8992
A52: MANISTEE | B52: CassSoybeansNonirrigated | C52: =VLOOKUP($B52,#REF!,3,0) ->  | D52: =VLOOKUP($B52,#REF!,4,0) ->  | E52: =VLOOKUP($B52,'FSA21'!$E$5:$K$183,3,0) -> 47.23 | F52: =VLOOKUP($B52,'FSA21'!$E$5:$K$183,4,0) -> 44.61 | G52: =VLOOKUP($B52,'FSA23'!$E$5:$K$288,3,0) -> 44.03 | H52: =VLOOKUP($B52,'FSA23'!$E$5:$K$288,4,0) -> 51.2 | I52: =VLOOKUP($B52,'FSA23'!$E$5:$K$288,5,0) -> 43.44 | J52: =VLOOKUP($B52,'FSA23'!$E$5:$K$288,6,0) -> 40.74 | K52: =VLOOKUP($B52,'FSA23'!$E$5:$K$288,7,0) -> 48.88 | L52: 46.178 | M52: 46.6076 | N52: 45.68912 | R52: 2.06 | S52: 0.52 | T52: 0.64 | V52: =C52-($S52*6) ->  | W52: =D52-($S52*5) ->  | X52: 47.23 | Y52: 44.61 | Z52: 44.03 | AA52: 51.2 | AB52: 43.44 | AC52: 40.74 | AD52: 48.88 | AE52: 46.178 | AF52: 46.6076
A53: MARQUETTE | B53: CassWheatAll | C53: =VLOOKUP($B53,#REF!,3,0) ->  | D53: =VLOOKUP($B53,#REF!,4,0) ->  | E53: =VLOOKUP($B53,#REF!,5,0) ->  | F53: =VLOOKUP($B53,#REF!,6,0) ->  | G53: =VLOOKUP($B53,'FSA23'!$E$5:$K$288,3,0) -> 68.27 | H53: =VLOOKUP($B53,'FSA23'!$E$5:$K$288,4,0) -> 64.95 | I53: =VLOOKUP($B53,'FSA23'!$E$5:$K$288,5,0) -> 63.21 | J53: =VLOOKUP($B53,'FSA23'!$E$5:$K$288,6,0) -> 67.81 | K53: =VLOOKUP($B53,'FSA23'!$E$5:$K$288,7,0) -> 55.12 | L53: =AVERAGE(G53:K53)+$T53 -> 64.512 | M53: =AVERAGE(H53:L53)+$T53 -> 63.7604 | N53: =AVERAGE(I53:M53)+$T53 -> 63.52248 | R53: 2.06 | S53: 0.52 | T53: 0.64 | V53: =C53-($T53*6) ->  | W53: =D53-($T53*5) ->  | Z53: 68.27 | AA53: 64.95 | AB53: 63.21 | AC53: 67.81 | AD53: 55.12 | AE53: 64.512 | AF53: 63.7604
A54: MASON | B54: CharlevoixCornAll | C54: =VLOOKUP($B54,#REF!,3,0) ->  | D54: =VLOOKUP($B54,#REF!,4,0) ->  | E54: =VLOOKUP($B54,#REF!,5,0) ->  | F54: =VLOOKUP($B54,#REF!,6,0) ->  | G54: =VLOOKUP($B54,'FSA23'!$E$5:$K$288,3,0) -> 122.88 | H54: =VLOOKUP($B54,'FSA23'!$E$5:$K$288,4,0) -> 118.4 | I54: =VLOOKUP($B54,'FSA23'!$E$5:$K$288,5,0) -> 122.02 | J54: =VLOOKUP($B54,'FSA23'!$E$5:$K$288,6,0) -> 145.44 | K54: =VLOOKUP($B54,'FSA23'!$E$5:$K$288,7,0) -> 152 | L54: =AVERAGE(G54:K54)+$R54 -> 133.098 | M54: =AVERAGE(H54:L54)+$R54 -> 135.1416 | N54: =AVERAGE(I54:M54)+$R54 -> 138.48992 | R54: 0.95 | S54: 0.3 | T54: 0.35 | V54: =C54-($R54*6) ->  | W54: =D54-($R54*5) ->  | Z54: 122.88 | AA54: 118.4 | AB54: 122.02 | AC54: 145.44 | AD54: 152 | AE54: 133.098 | AF54: 135.1416
A55: MECOSTA | B55: CharlevoixSoybeansAll | C55: =VLOOKUP($B55,#REF!,3,0) ->  | D55: =VLOOKUP($B55,#REF!,4,0) ->  | E55: =VLOOKUP($B55,#REF!,5,0) ->  | F55: =VLOOKUP($B55,#REF!,6,0) ->  | G55: =VLOOKUP($B55,'FSA23'!$E$5:$K$288,3,0) -> 40.8 | H55: =VLOOKUP($B55,'FSA23'!$E$5:$K$288,4,0) -> 40.8 | I55: =VLOOKUP($B55,'FSA23'!$E$5:$K$288,5,0) -> 40.8 | J55: =VLOOKUP($B55,'FSA23'!$E$5:$K$288,6,0) -> 40.8 | K55: =VLOOKUP($B55,'FSA23'!$E$5:$K$288,7,0) -> 45.8 | L55: =AVERAGE(G55:K55)+$S55 -> 42.1 | M55: =AVERAGE(H55:L55)+$S55 -> 42.36 | N55: =AVERAGE(I55:M55)+$S55 -> 42.672 | R55: 0.95 | S55: 0.3 | T55: 0.35 | V55: =C55-($S55*6) ->  | W55: =D55-($S55*5) ->  | Z55: 40.8 | AA55: 40.8 | AB55: 40.8 | AC55: 40.8 | AD55: 45.8 | AE55: 42.1 | AF55: 42.36
A56: MENOMINEE | B56: CharlevoixWheatAll | C56: =VLOOKUP($B56,#REF!,3,0) ->  | D56: =VLOOKUP($B56,#REF!,4,0) ->  | E56: =VLOOKUP($B56,#REF!,5,0) ->  | F56: =VLOOKUP($B56,#REF!,6,0) ->  | G56: =VLOOKUP($B56,'FSA23'!$E$5:$K$288,3,0) -> 55.2 | H56: =VLOOKUP($B56,'FSA23'!$E$5:$K$288,4,0) -> 40 | I56: =VLOOKUP($B56,'FSA23'!$E$5:$K$288,5,0) -> 55.2 | J56: =VLOOKUP($B56,'FSA23'!$E$5:$K$288,6,0) -> 55.2 | K56: =VLOOKUP($B56,'FSA23'!$E$5:$K$288,7,0) -> 55.2 | L56: =AVERAGE(G56:K56)+$T56 -> 52.51 | M56: =AVERAGE(H56:L56)+$T56 -> 51.972 | N56: =AVERAGE(I56:M56)+$T56 -> 54.3664 | R56: 0.95 | S56: 0.3 | T56: 0.35 | V56: =C56-($T56*6) ->  | W56: =D56-($T56*5) ->  | Z56: 55.2 | AA56: 40 | AB56: 55.2 | AC56: 55.2 | AD56: 55.2 | AE56: 52.51 | AF56: 51.972
A57: MIDLAND | B57: CheboyganCornAll | C57: =VLOOKUP($B57,#REF!,3,0) ->  | D57: =VLOOKUP($B57,#REF!,4,0) ->  | E57: =VLOOKUP($B57,'FSA21'!$E$5:$K$183,3,0) -> 100.88 | F57: =VLOOKUP($B57,'FSA21'!$E$5:$K$183,4,0) -> 97 | G57: =VLOOKUP($B57,'FSA23'!$E$5:$K$288,3,0) -> 131 | H57: =VLOOKUP($B57,'FSA23'!$E$5:$K$288,4,0) -> 117 | I57: =VLOOKUP($B57,'FSA23'!$E$5:$K$288,5,0) -> 110.3 | J57: =VLOOKUP($B57,'FSA23'!$E$5:$K$288,6,0) -> 129.9 | K57: =VLOOKUP($B57,'FSA23'!$E$5:$K$288,7,0) -> 144.49 | L57: =AVERAGE(G57:K57)+$R57 -> 127.898 | M57: =AVERAGE(H57:L57)+$R57 -> 127.2776 | N57: =AVERAGE(I57:M57)+$R57 -> 129.33312 | R57: 1.36 | S57: 0.34 | T57: 0.73 | V57: =C57-($R57*6) ->  | W57: =D57-($R57*5) ->  | X57: 100.88 | Y57: 97 | Z57: 131 | AA57: 117 | AB57: 110.3 | AC57: 129.9 | AD57: 144.49 | AE57: 127.898 | AF57: 127.2776
A58: MISSAUKEE | B58: CheboyganSoybeansAll | C58: =VLOOKUP($B58,#REF!,3,0) ->  | D58: =VLOOKUP($B58,#REF!,4,0) ->  | E58: =VLOOKUP($B58,#REF!,5,0) ->  | F58: =VLOOKUP($B58,#REF!,6,0) ->  | G58: =VLOOKUP($B58,'FSA23'!$E$5:$K$288,3,0) -> 40.8 | H58: =VLOOKUP($B58,'FSA23'!$E$5:$K$288,4,0) -> 40.8 | I58: =VLOOKUP($B58,'FSA23'!$E$5:$K$288,5,0) -> 40.8 | J58: =VLOOKUP($B58,'FSA23'!$E$5:$K$288,6,0) -> 40.8 | K58: =VLOOKUP($B58,'FSA23'!$E$5:$K$288,7,0) -> 42 | L58: =AVERAGE(G58:K58)+$S58 -> 41.38 | M58: =AVERAGE(H58:L58)+$S58 -> 41.496 | N58: =AVERAGE(I58:M58)+$S58 -> 41.6352 | R58: 1.36 | S58: 0.34 | T58: 0.73 | V58: =C58-($S58*6) ->  | W58: =D58-($S58*5) ->  | Z58: 40.8 | AA58: 40.8 | AB58: 40.8 | AC58: 40.8 | AD58: 42 | AE58: 41.38 | AF58: 41.496
A59: MONROE | B59: CheboyganWheatAll | C59: =VLOOKUP($B59,#REF!,3,0) ->  | D59: =VLOOKUP($B59,#REF!,4,0) ->  | E59: =VLOOKUP($B59,#REF!,5,0) ->  | F59: =VLOOKUP($B59,#REF!,6,0) ->  | G59: =VLOOKUP($B59,'FSA23'!$E$5:$K$288,3,0) -> 52 | H59: =VLOOKUP($B59,'FSA23'!$E$5:$K$288,4,0) -> 47 | I59: =VLOOKUP($B59,'FSA23'!$E$5:$K$288,5,0) -> 52 | J59: =VLOOKUP($B59,'FSA23'!$E$5:$K$288,6,0) -> 52 | K59: =VLOOKUP($B59,'FSA23'!$E$5:$K$288,7,0) -> 52 | L59: =AVERAGE(G59:K59)+$T59 -> 51.73 | M59: =AVERAGE(H59:L59)+$T59 -> 51.676 | N59: =AVERAGE(I59:M59)+$T59 -> 52.6112 | R59: 1.36 | S59: 0.34 | T59: 0.73 | V59: =C59-($T59*6) ->  | W59: =D59-($T59*5) ->  | Z59: 52 | AA59: 47 | AB59: 52 | AC59: 52 | AD59: 52 | AE59: 51.73 | AF59: 51.676
A60: MONTCALM | B60: ChippewaCornAll | C60: =VLOOKUP($B60,#REF!,3,0) ->  | D60: =VLOOKUP($B60,#REF!,4,0) ->  | E60: =VLOOKUP($B60,#REF!,5,0) ->  | F60: =VLOOKUP($B60,#REF!,6,0) ->  | G60: =VLOOKUP($B60,'FSA23'!$E$5:$K$288,3,0) -> 84 | H60: =VLOOKUP($B60,'FSA23'!$E$5:$K$288,4,0) -> 111 | I60: =VLOOKUP($B60,'FSA23'!$E$5:$K$288,5,0) -> 93.6 | J60: =VLOOKUP($B60,'FSA23'!$E$5:$K$288,6,0) -> 182.7 | K60: =VLOOKUP($B60,'FSA23'!$E$5:$K$288,7,0) -> 110.84 | L60: =AVERAGE(G60:K60)+$R60 -> 117.408 | M60: =AVERAGE(H60:L60)+$R60 -> 124.0896 | N60: =AVERAGE(I60:M60)+$R60 -> 126.70752 | R60: 0.98 | S60: 0.27 | T60: 0.65 | V60: =C60-($R60*6) ->  | W60: =D60-($R60*5) ->  | Z60: 84 | AA60: 111 | AB60: 93.6 | AC60: 182.7 | AD60: 110.84 | AE60: 117.408 | AF60: 124.0896
A61: MONTMORENCY | B61: ChippewaSoybeansAll | C61: =VLOOKUP($B61,#REF!,3,0) ->  | D61: =VLOOKUP($B61,#REF!,4,0) ->  | E61: =VLOOKUP($B61,#REF!,5,0) ->  | F61: =VLOOKUP($B61,#REF!,6,0) ->  | G61: =VLOOKUP($B61,'FSA23'!$E$5:$K$288,3,0) -> 37 | H61: =VLOOKUP($B61,'FSA23'!$E$5:$K$288,4,0) -> 37 | I61: =VLOOKUP($B61,'FSA23'!$E$5:$K$288,5,0) -> 1131.11 | J61: =VLOOKUP($B61,'FSA23'!$E$5:$K$288,6,0) -> 40.1 | K61: =VLOOKUP($B61,'FSA23'!$E$5:$K$288,7,0) -> 33.2 | L61: =AVERAGE(G61:K61)+$S61 -> 255.952 | M61: =AVERAGE(H61:L61)+$S61 -> 299.7424 | N61: =AVERAGE(I61:M61)+$S61 -> 352.29088 | R61: 0.98 | S61: 0.27 | T61: 0.65 | V61: =C61-($S61*6) ->  | W61: =D61-($S61*5) ->  | Z61: 37 | AA61: 37 | AB61: 1131.11 | AC61: 40.1 | AD61: 33.2 | AE61: 255.952 | AF61: 299.7424
A62: MUSKEGON | B62: ChippewaWheatAll | C62: =VLOOKUP($B62,#REF!,3,0) ->  | D62: =VLOOKUP($B62,#REF!,4,0) ->  | E62: =VLOOKUP($B62,#REF!,5,0) ->  | F62: =VLOOKUP($B62,#REF!,6,0) ->  | G62: =VLOOKUP($B62,'FSA23'!$E$5:$K$288,3,0) -> 52 | H62: =VLOOKUP($B62,'FSA23'!$E$5:$K$288,4,0) -> 40 | I62: =VLOOKUP($B62,'FSA23'!$E$5:$K$288,5,0) -> 53.1 | J62: =VLOOKUP($B62,'FSA23'!$E$5:$K$288,6,0) -> 50.4 | K62: =VLOOKUP($B62,'FSA23'!$E$5:$K$288,7,0) -> 61.66 | L62: =AVERAGE(G62:K62)+$T62 -> 52.082 | M62: =AVERAGE(H62:L62)+$T62 -> 52.0984 | N62: =AVERAGE(I62:M62)+$T62 -> 54.51808 | R62: 0.98 | S62: 0.27 | T62: 0.65 | V62: =C62-($T62*6) ->  | W62: =D62-($T62*5) ->  | Z62: 52 | AA62: 40 | AB62: 53.1 | AC62: 50.4 | AD62: 61.66 | AE62: 52.082 | AF62: 52.0984
A63: NEWAYGO | B63: ClareCornAll | C63: =VLOOKUP($B63,#REF!,3,0) ->  | D63: =VLOOKUP($B63,#REF!,4,0) ->  | E63: =VLOOKUP($B63,'FSA21'!$E$5:$K$183,3,0) -> 136.53 | F63: =VLOOKUP($B63,'FSA21'!$E$5:$K$183,4,0) -> 124.91 | G63: =VLOOKUP($B63,'FSA23'!$E$5:$K$288,3,0) -> 138.21 | H63: =VLOOKUP($B63,'FSA23'!$E$5:$K$288,4,0) -> 144.89 | I63: =VLOOKUP($B63,'FSA23'!$E$5:$K$288,5,0) -> 113.08 | J63: =VLOOKUP($B63,'FSA23'!$E$5:$K$288,6,0) -> 164.64 | K63: =VLOOKUP($B63,'FSA23'!$E$5:$K$288,7,0) -> 169.35 | L63: =AVERAGE(G63:K63)+$R63 -> 147.644 | M63: =AVERAGE(H63:L63)+$R63 -> 149.5308 | N63: =AVERAGE(I63:M63)+$R63 -> 150.45896 | R63: 1.61 | S63: 0.39 | T63: 0.62 | V63: =C63-($R63*6) ->  | W63: =D63-($R63*5) ->  | X63: 136.53 | Y63: 124.91 | Z63: 138.21 | AA63: 144.89 | AB63: 113.08 | AC63: 164.64 | AD63: 169.35 | AE63: 147.644 | AF63: 149.5308
A64: OAKLAND | B64: ClareSoybeansAll | C64: =VLOOKUP($B64,#REF!,3,0) ->  | D64: =VLOOKUP($B64,#REF!,4,0) ->  | E64: =VLOOKUP($B64,'FSA21'!$E$5:$K$183,3,0) -> 33.28 | F64: =VLOOKUP($B64,'FSA21'!$E$5:$K$183,4,0) -> 39.47 | G64: =VLOOKUP($B64,'FSA23'!$E$5:$K$288,3,0) -> 34.13 | H64: =VLOOKUP($B64,'FSA23'!$E$5:$K$288,4,0) -> 33.95 | I64: =VLOOKUP($B64,'FSA23'!$E$5:$K$288,5,0) -> 26.43 | J64: =VLOOKUP($B64,'FSA23'!$E$5:$K$288,6,0) -> 30.79 | K64: =VLOOKUP($B64,'FSA23'!$E$5:$K$288,7,0) -> 30.01 | L64: =AVERAGE(G64:K64)+$S64 -> 31.452 | M64: =AVERAGE(H64:L64)+$S64 -> 30.9164 | N64: =AVERAGE(I64:M64)+$S64 -> 30.30968 | R64: 1.61 | S64: 0.39 | T64: 0.62 | V64: =C64-($S64*6) ->  | W64: =D64-($S64*5) ->  | X64: 33.28 | Y64: 39.47 | Z64: 34.13 | AA64: 33.95 | AB64: 26.43 | AC64: 30.79 | AD64: 30.01 | AE64: 31.452 | AF64: 30.9164
A65: OCEANA | B65: ClareWheatAll | C65: =VLOOKUP($B65,#REF!,3,0) ->  | D65: =VLOOKUP($B65,#REF!,4,0) ->  | E65: =VLOOKUP($B65,'FSA21'!$E$5:$K$183,3,0) -> 67.89 | F65: =VLOOKUP($B65,'FSA21'!$E$5:$K$183,4,0) -> 71.8 | G65: =VLOOKUP($B65,'FSA23'!$E$5:$K$288,3,0) -> 47.8 | H65: =VLOOKUP($B65,'FSA23'!$E$5:$K$288,4,0) -> 65.21 | I65: =VLOOKUP($B65,'FSA23'!$E$5:$K$288,5,0) -> 50.72 | J65: =VLOOKUP($B65,'FSA23'!$E$5:$K$288,6,0) -> 55 | K65: =VLOOKUP($B65,'FSA23'!$E$5:$K$288,7,0) -> 69.05 | L65: =AVERAGE(G65:K65)+$T65 -> 58.176 | M65: =AVERAGE(H65:L65)+$T65 -> 60.2512 | N65: =AVERAGE(I65:M65)+$T65 -> 59.25944 | R65: 1.61 | S65: 0.39 | T65: 0.62 | V65: =C65-($T65*6) ->  | W65: =D65-($T65*5) ->  | X65: 67.89 | Y65: 71.8 | Z65: 47.8 | AA65: 65.21 | AB65: 50.72 | AC65: 55 | AD65: 69.05 | AE65: 58.176 | AF65: 60.2512
A66: OGEMAW | B66: ClintonCornIrrigated | C66: =VLOOKUP($B66,#REF!,3,0) ->  | D66: =VLOOKUP($B66,#REF!,4,0) ->  | E66: =VLOOKUP($B66,#REF!,5,0) ->  | F66: =VLOOKUP($B66,#REF!,6,0) ->  | G66: =VLOOKUP($B66,'FSA23'!$E$5:$K$288,3,0) -> 196.23 | H66: =VLOOKUP($B66,'FSA23'!$E$5:$K$288,4,0) -> 205.65 | I66: =VLOOKUP($B66,'FSA23'!$E$5:$K$288,5,0) -> 199.96 | J66: =VLOOKUP($B66,'FSA23'!$E$5:$K$288,6,0) -> 202.54 | K66: =VLOOKUP($B66,'FSA23'!$E$5:$K$288,7,0) -> 227.16 | L66: =AVERAGE(G66:K66)+$R66 -> 208.228 | M66: 210.6276 | N66: 211.62312 | R66: 1.92 | S66: 0.47 | T66: 1.04 | V66: =C66-($R66*6) ->  | W66: =D66-($R66*5) ->  | Z66: 196.23 | AA66: 205.65 | AB66: 199.96 | AC66: 202.54 | AD66: 227.16 | AE66: 208.228 | AF66: 210.6276
A67: ONTONAGON | B67: ClintonCornNonirrigated | C67: =VLOOKUP($B67,#REF!,3,0) ->  | D67: =VLOOKUP($B67,#REF!,4,0) ->  | E67: =VLOOKUP($B67,'FSA21'!$E$5:$K$183,3,0) -> 183.07 | F67: =VLOOKUP($B67,'FSA21'!$E$5:$K$183,4,0) -> 162.77 | G67: =VLOOKUP($B67,'FSA23'!$E$5:$K$288,3,0) -> 158.06 | H67: =VLOOKUP($B67,'FSA23'!$E$5:$K$288,4,0) -> 149.46 | I67: =VLOOKUP($B67,'FSA23'!$E$5:$K$288,5,0) -> 153.87 | J67: =VLOOKUP($B67,'FSA23'!$E$5:$K$288,6,0) -> 158.28 | K67: =VLOOKUP($B67,'FSA23'!$E$5:$K$288,7,0) -> 188.61 | L67: 163.576 | M67: 164.6792 | N67: 167.72304 | R67: 1.92 | S67: 0.47 | T67: 1.04 | V67: =C67-($R67*6) ->  | W67: =D67-($R67*5) ->  | X67: =E67 -> 183.07 | Y67: =F67 -> 162.77 | Z67: =G67 -> 158.06 | AA67: =H67 -> 149.46 | AB67: =I67 -> 153.87 | AC67: =J67 -> 158.28 | AD67: =K67 -> 188.61 | AE67: =L67 -> 163.576 | AF67: =M67 -> 164.6792
A68: OSCEOLA | B68: ClintonSoybeansIrrigated | C68: =VLOOKUP($B68,#REF!,3,0) ->  | D68: =VLOOKUP($B68,#REF!,4,0) ->  | E68: =VLOOKUP($B68,#REF!,5,0) ->  | F68: =VLOOKUP($B68,#REF!,6,0) ->  | G68: =VLOOKUP($B68,'FSA23'!$E$5:$K$288,3,0) -> 53.13 | H68: =VLOOKUP($B68,'FSA23'!$E$5:$K$288,4,0) -> 49.3 | I68: =VLOOKUP($B68,'FSA23'!$E$5:$K$288,5,0) -> 48.1 | J68: =VLOOKUP($B68,'FSA23'!$E$5:$K$288,6,0) -> 49.1 | K68: =VLOOKUP($B68,'FSA23'!$E$5:$K$288,7,0) -> 59.5 | L68: =AVERAGE(G68:K68)+$S68 -> 52.296 | M68: 52.1292 | N68: 52.69504 | R68: 1.92 | S68: 0.47 | T68: 1.04 | V68: =C68-($S68*6) ->  | W68: =D68-($S68*5) ->  | Z68: 53.13 | AA68: 49.3 | AB68: 48.1 | AC68: 49.1 | AD68: 59.5 | AE68: 52.296 | AF68: 52.1292
A69: OSCODA | B69: ClintonSoybeansNonirrigated | C69: =VLOOKUP($B69,#REF!,3,0) ->  | D69: =VLOOKUP($B69,#REF!,4,0) ->  | E69: =VLOOKUP($B69,#REF!,5,0) ->  | F69: =VLOOKUP($B69,#REF!,6,0) ->  | G69: =VLOOKUP($B69,'FSA23'!$E$5:$K$288,3,0) -> 43.35 | H69: =VLOOKUP($B69,'FSA23'!$E$5:$K$288,4,0) -> 43.9 | I69: =VLOOKUP($B69,'FSA23'!$E$5:$K$288,5,0) -> 41.1 | J69: =VLOOKUP($B69,'FSA23'!$E$5:$K$288,6,0) -> 49.1 | K69: =VLOOKUP($B69,'FSA23'!$E$5:$K$288,7,0) -> 53.31 | L69: 46.622 | M69: 47.2764 | N69: 47.95168 | R69: 1.92 | S69: 0.47 | T69: 1.04 | V69: =C69-($S69*6) ->  | W69: =D69-($S69*5) ->  | Z69: 43.35 | AA69: 43.9 | AB69: 41.1 | AC69: 49.1 | AD69: 53.31 | AE69: 46.622 | AF69: 47.2764
A70: OTSEGO | B70: ClintonWheatAll | C70: =VLOOKUP($B70,#REF!,3,0) ->  | D70: =VLOOKUP($B70,#REF!,4,0) ->  | E70: =VLOOKUP($B70,'FSA21'!$E$5:$K$183,3,0) -> 93.98 | F70: =VLOOKUP($B70,'FSA21'!$E$5:$K$183,4,0) -> 96.4 | G70: =VLOOKUP($B70,'FSA23'!$E$5:$K$288,3,0) -> 78.55 | H70: =VLOOKUP($B70,'FSA23'!$E$5:$K$288,4,0) -> 93.56 | I70: =VLOOKUP($B70,'FSA23'!$E$5:$K$288,5,0) -> 75.15 | J70: =VLOOKUP($B70,'FSA23'!$E$5:$K$288,6,0) -> 78.66 | K70: =VLOOKUP($B70,'FSA23'!$E$5:$K$288,7,0) -> 82.36 | L70: =AVERAGE(G70:K70)+$T70 -> 82.696 | M70: =AVERAGE(H70:L70)+$T70 -> 83.5252 | N70: =AVERAGE(I70:M70)+$T70 -> 81.51824 | R70: 1.92 | S70: 0.47 | T70: 1.04 | V70: =C70-($T70*6) ->  | W70: =D70-($T70*5) ->  | X70: 93.98 | Y70: 96.4 | Z70: 78.55 | AA70: 93.56 | AB70: 75.15 | AC70: 78.66 | AD70: 82.36 | AE70: 82.696 | AF70: 83.5252
A71: OTTAWA | B71: DeltaCornAll | C71: =VLOOKUP($B71,#REF!,3,0) ->  | D71: =VLOOKUP($B71,#REF!,4,0) ->  | E71: =VLOOKUP($B71,'FSA21'!$E$5:$K$183,3,0) -> 141.1 | F71: =VLOOKUP($B71,'FSA21'!$E$5:$K$183,4,0) -> 120.83 | G71: =VLOOKUP($B71,'FSA23'!$E$5:$K$288,3,0) -> 61.98 | H71: =VLOOKUP($B71,'FSA23'!$E$5:$K$288,4,0) -> 159.56 | I71: =VLOOKUP($B71,'FSA23'!$E$5:$K$288,5,0) -> 61.56 | J71: =VLOOKUP($B71,'FSA23'!$E$5:$K$288,6,0) -> 189.43 | K71: =VLOOKUP($B71,'FSA23'!$E$5:$K$288,7,0) -> 97.49 | L71: =AVERAGE(G71:K71)+$R71 -> 114.914 | M71: =AVERAGE(H71:L71)+$R71 -> 125.5008 | N71: =AVERAGE(I71:M71)+$R71 -> 118.68896 | R71: 0.91 | S71: 0.28 | T71: 0.67 | V71: =C71-($R71*6) ->  | W71: =D71-($R71*5) ->  | X71: 141.1 | Y71: 120.83 | Z71: 61.98 | AA71: 159.56 | AB71: 61.56 | AC71: 189.43 | AD71: 97.49 | AE71: 114.914 | AF71: 125.5008
A72: PRESQUE ISLE | B72: DeltaSoybeansAll | C72: =VLOOKUP($B72,#REF!,3,0) ->  | D72: =VLOOKUP($B72,#REF!,4,0) ->  | E72: =VLOOKUP($B72,'FSA21'!$E$5:$K$183,3,0) -> 36 | F72: =VLOOKUP($B72,'FSA21'!$E$5:$K$183,4,0) -> 35 | G72: =VLOOKUP($B72,'FSA23'!$E$5:$K$288,3,0) -> 37 | H72: =VLOOKUP($B72,'FSA23'!$E$5:$K$288,4,0) -> 37 | I72: =VLOOKUP($B72,'FSA23'!$E$5:$K$288,5,0) -> 34.4 | J72: =VLOOKUP($B72,'FSA23'!$E$5:$K$288,6,0) -> 40.1 | K72: =VLOOKUP($B72,'FSA23'!$E$5:$K$288,7,0) -> 33.2 | L72: =AVERAGE(G72:K72)+$S72 -> 36.62 | M72: =AVERAGE(H72:L72)+$S72 -> 36.544 | N72: =AVERAGE(I72:M72)+$S72 -> 36.4528 | R72: 0.91 | S72: 0.28 | T72: 0.67 | V72: =C72-($S72*6) ->  | W72: =D72-($S72*5) ->  | X72: 36 | Y72: 35 | Z72: 37 | AA72: 37 | AB72: 34.4 | AC72: 40.1 | AD72: 33.2 | AE72: 36.62 | AF72: 36.544
A73: ROSCOMMON | B73: DeltaWheatAll | C73: =VLOOKUP($B73,#REF!,3,0) ->  | D73: =VLOOKUP($B73,#REF!,4,0) ->  | E73: =VLOOKUP($B73,'FSA21'!$E$5:$K$183,3,0) -> 51 | F73: =VLOOKUP($B73,'FSA21'!$E$5:$K$183,4,0) -> 55 | G73: =VLOOKUP($B73,'FSA23'!$E$5:$K$288,3,0) -> 52 | H73: =VLOOKUP($B73,'FSA23'!$E$5:$K$288,4,0) -> 40 | I73: =VLOOKUP($B73,'FSA23'!$E$5:$K$288,5,0) -> 53.1 | J73: =VLOOKUP($B73,'FSA23'!$E$5:$K$288,6,0) -> 50.4 | K73: =VLOOKUP($B73,'FSA23'!$E$5:$K$288,7,0) -> 61.66 | L73: =AVERAGE(G73:K73)+$T73 -> 52.102 | M73: =AVERAGE(H73:L73)+$T73 -> 52.1224 | N73: =AVERAGE(I73:M73)+$T73 -> 54.54688 | R73: 0.91 | S73: 0.28 | T73: 0.67 | V73: =C73-($T73*6) ->  | W73: =D73-($T73*5) ->  | X73: 51 | Y73: 55 | Z73: 52 | AA73: 40 | AB73: 53.1 | AC73: 50.4 | AD73: 61.66 | AE73: 52.102 | AF73: 52.1224
A74: SAGINAW | B74: DickinsonCornAll | C74: =VLOOKUP($B74,#REF!,3,0) ->  | D74: =VLOOKUP($B74,#REF!,4,0) ->  | E74: =VLOOKUP($B74,'FSA21'!$E$5:$K$183,3,0) -> 170.29 | F74: =VLOOKUP($B74,'FSA21'!$E$5:$K$183,4,0) -> 66.09 | G74: =VLOOKUP($B74,'FSA23'!$E$5:$K$288,3,0) -> 80.84 | H74: =VLOOKUP($B74,'FSA23'!$E$5:$K$288,4,0) -> 157.62 | I74: =VLOOKUP($B74,'FSA23'!$E$5:$K$288,5,0) -> 61.6 | J74: =VLOOKUP($B74,'FSA23'!$E$5:$K$288,6,0) -> 180.08 | K74: =VLOOKUP($B74,'FSA23'!$E$5:$K$288,7,0) -> 104.96 | L74: =AVERAGE(G74:K74)+$R74 -> 118.1 | M74: =AVERAGE(H74:L74)+$R74 -> 125.552 | N74: =AVERAGE(I74:M74)+$R74 -> 119.1384 | R74: 1.08 | T74: 0.56 | V74: =C74-($R74*6) ->  | W74: =D74-($R74*5) ->  | X74: 170.29 | Y74: 66.09 | Z74: 80.84 | AA74: 157.62 | AB74: 61.6 | AC74: 180.08 | AD74: 104.96 | AE74: 118.1 | AF74: 125.552
A75: SANILAC | B75: DickinsonWheatAll | C75: =VLOOKUP($B75,#REF!,3,0) ->  | D75: =VLOOKUP($B75,#REF!,4,0) ->  | E75: =VLOOKUP($B75,#REF!,5,0) ->  | F75: =VLOOKUP($B75,#REF!,6,0) ->  | G75: =VLOOKUP($B75,'FSA23'!$E$5:$K$288,3,0) ->  | H75: =VLOOKUP($B75,'FSA23'!$E$5:$K$288,4,0) ->  | I75: =VLOOKUP($B75,'FSA23'!$E$5:$K$288,5,0) ->  | J75: =VLOOKUP($B75,'FSA23'!$E$5:$K$288,6,0) ->  | K75: =VLOOKUP($B75,'FSA23'!$E$5:$K$288,7,0) ->  | L75: =AVERAGE(G75:K75)+$T75 ->  | M75: =AVERAGE(H75:L75)+$T75 ->  | N75: =AVERAGE(I75:M75)+$T75 ->  | R75: 1.08 | T75: 0.56 | V75: =C75-($T75*6) ->  | W75: =D75-($T75*5) -> 
A76: SCHOOLCRAFT | B76: EatonCornAll | C76: =VLOOKUP($B76,#REF!,3,0) ->  | D76: =VLOOKUP($B76,#REF!,4,0) ->  | E76: =VLOOKUP($B76,'FSA21'!$E$5:$K$183,3,0) -> 174.34 | F76: =VLOOKUP($B76,'FSA21'!$E$5:$K$183,4,0) -> 153.32 | G76: =VLOOKUP($B76,'FSA23'!$E$5:$K$288,3,0) -> 186.83 | H76: =VLOOKUP($B76,'FSA23'!$E$5:$K$288,4,0) -> 163.37 | I76: =VLOOKUP($B76,'FSA23'!$E$5:$K$288,5,0) -> 142.08 | J76: =VLOOKUP($B76,'FSA23'!$E$5:$K$288,6,0) -> 161.4 | K76: =VLOOKUP($B76,'FSA23'!$E$5:$K$288,7,0) -> 176.76 | L76: =AVERAGE(G76:K76)+$R76 -> 168.168 | M76: =AVERAGE(H76:L76)+$R76 -> 164.4356 | N76: =AVERAGE(I76:M76)+$R76 -> 164.64872 | R76: 2.08 | S76: 0.47 | T76: 0.79 | V76: =C76-($R76*6) ->  | W76: =D76-($R76*5) ->  | X76: 174.34 | Y76: 153.32 | Z76: 186.83 | AA76: 163.37 | AB76: 142.08 | AC76: 161.4 | AD76: 176.76 | AE76: 168.168 | AF76: 164.4356
A77: SHIAWASSEE | B77: EatonSoybeansIrrigated | C77: =VLOOKUP($B77,#REF!,3,0) ->  | D77: =VLOOKUP($B77,#REF!,4,0) ->  | E77: =VLOOKUP($B77,#REF!,5,0) ->  | F77: =VLOOKUP($B77,#REF!,6,0) ->  | G77: =VLOOKUP($B77,'FSA23'!$E$5:$K$288,3,0) -> 54.37 | H77: =VLOOKUP($B77,'FSA23'!$E$5:$K$288,4,0) -> 64.69 | I77: =VLOOKUP($B77,'FSA23'!$E$5:$K$288,5,0) -> 48.18 | J77: =VLOOKUP($B77,'FSA23'!$E$5:$K$288,6,0) -> 54.47 | K77: =VLOOKUP($B77,'FSA23'!$E$5:$K$288,7,0) -> 55.3 | L77: =AVERAGE(G77:K77)+$S77 -> 55.872 | M77: 56.1724 | N77: 54.46888 | R77: 2.08 | S77: 0.47 | T77: 0.79 | V77: =C77-($S77*6) ->  | W77: =D77-($S77*5) ->  | Z77: 54.37 | AA77: 64.69 | AB77: 48.18 | AC77: 54.47 | AD77: 55.3 | AE77: 55.872 | AF77: 56.1724
A78: St. Clair | B78: EatonSoybeansNonirrigated | C78: =VLOOKUP($B78,#REF!,3,0) ->  | D78: =VLOOKUP($B78,#REF!,4,0) ->  | E78: =VLOOKUP($B78,'FSA21'!$E$5:$K$183,3,0) -> 49.42 | F78: =VLOOKUP($B78,'FSA21'!$E$5:$K$183,4,0) -> 53.45 | G78: =VLOOKUP($B78,'FSA23'!$E$5:$K$288,3,0) -> 45.59 | H78: =VLOOKUP($B78,'FSA23'!$E$5:$K$288,4,0) -> 51.8 | I78: =VLOOKUP($B78,'FSA23'!$E$5:$K$288,5,0) -> 37.46 | J78: =VLOOKUP($B78,'FSA23'!$E$5:$K$288,6,0) -> 50.28 | K78: =VLOOKUP($B78,'FSA23'!$E$5:$K$288,7,0) -> 53.33 | L78: 48.162 | M78: 48.6764 | N78: 48.05168 | R78: 2.08 | S78: 0.47 | T78: 0.79 | V78: =C78-($S78*6) ->  | W78: =D78-($S78*5) ->  | X78: 49.42 | Y78: 53.45 | Z78: 45.59 | AA78: 51.8 | AB78: 37.46 | AC78: 50.28 | AD78: 53.33 | AE78: 48.162 | AF78: 48.6764
A79: ST. JOSEPH | B79: EatonWheatAll | C79: =VLOOKUP($B79,#REF!,3,0) ->  | D79: =VLOOKUP($B79,#REF!,4,0) ->  | E79: =VLOOKUP($B79,'FSA21'!$E$5:$K$183,3,0) -> 75.13 | F79: =VLOOKUP($B79,'FSA21'!$E$5:$K$183,4,0) -> 85.58 | G79: =VLOOKUP($B79,'FSA23'!$E$5:$K$288,3,0) -> 77.5 | H79: =VLOOKUP($B79,'FSA23'!$E$5:$K$288,4,0) -> 78.86 | I79: =VLOOKUP($B79,'FSA23'!$E$5:$K$288,5,0) -> 62.73 | J79: =VLOOKUP($B79,'FSA23'!$E$5:$K$288,6,0) -> 74.75 | K79: =VLOOKUP($B79,'FSA23'!$E$5:$K$288,7,0) -> 73.64 | L79: =AVERAGE(G79:K79)+$T79 -> 74.286 | M79: =AVERAGE(H79:L79)+$T79 -> 73.6432 | N79: =AVERAGE(I79:M79)+$T79 -> 72.59984 | R79: 2.08 | S79: 0.47 | T79: 0.79 | V79: =C79-($T79*6) ->  | W79: =D79-($T79*5) ->  | X79: 75.13 | Y79: 85.58 | Z79: 77.5 | AA79: 78.86 | AB79: 62.73 | AC79: 74.75 | AD79: 73.64 | AE79: 74.286 | AF79: 73.6432
A80: TUSCOLA | B80: EmmetCornAll | C80: =VLOOKUP($B80,#REF!,3,0) ->  | D80: =VLOOKUP($B80,#REF!,4,0) ->  | E80: =VLOOKUP($B80,'FSA21'!$E$5:$K$183,3,0) -> 119.32 | F80: =VLOOKUP($B80,'FSA21'!$E$5:$K$183,4,0) -> 112.77 | G80: =VLOOKUP($B80,'FSA23'!$E$5:$K$288,3,0) -> 125.34 | H80: =VLOOKUP($B80,'FSA23'!$E$5:$K$288,4,0) -> 115.45 | I80: =VLOOKUP($B80,'FSA23'!$E$5:$K$288,5,0) -> 84.36 | J80: =VLOOKUP($B80,'FSA23'!$E$5:$K$288,6,0) -> 131.57 | K80: =VLOOKUP($B80,'FSA23'!$E$5:$K$288,7,0) -> 137.61 | L80: =AVERAGE(G80:K80)+$R80 -> 119.866 | M80: =AVERAGE(H80:L80)+$R80 -> 118.7712 | N80: =AVERAGE(I80:M80)+$R80 -> 119.43544 | R80: 1 | S80: 0.28 | T80: 0.79 | V80: =C80-($R80*6) ->  | W80: =D80-($R80*5) ->  | X80: 119.32 | Y80: 112.77 | Z80: 125.34 | AA80: 115.45 | AB80: 84.36 | AC80: 131.57 | AD80: 137.61 | AE80: 119.866 | AF80: 118.7712
A81: VAN BUREN | B81: EmmetSoybeansAll | C81: =VLOOKUP($B81,#REF!,3,0) ->  | D81: =VLOOKUP($B81,#REF!,4,0) ->  | E81: =VLOOKUP($B81,#REF!,5,0) ->  | F81: =VLOOKUP($B81,#REF!,6,0) ->  | G81: =VLOOKUP($B81,'FSA23'!$E$5:$K$288,3,0) -> 40.8 | H81: =VLOOKUP($B81,'FSA23'!$E$5:$K$288,4,0) -> 40.8 | I81: =VLOOKUP($B81,'FSA23'!$E$5:$K$288,5,0) -> 40.8 | J81: =VLOOKUP($B81,'FSA23'!$E$5:$K$288,6,0) -> 40.8 | K81: =VLOOKUP($B81,'FSA23'!$E$5:$K$288,7,0) -> 40.8 | L81: =AVERAGE(G81:K81)+$S81 -> 41.08 | M81: =AVERAGE(H81:L81)+$S81 -> 41.136 | N81: =AVERAGE(I81:M81)+$S81 -> 41.2032 | R81: 1 | S81: 0.28 | T81: 0.79 | V81: =C81-($S81*6) ->  | W81: =D81-($S81*5) ->  | Z81: 40.8 | AA81: 40.8 | AB81: 40.8 | AC81: 40.8 | AD81: 40.8 | AE81: 41.08 | AF81: 41.136
A82: WASHTENAW | B82: EmmetWheatAll | C82: =VLOOKUP($B82,#REF!,3,0) ->  | D82: =VLOOKUP($B82,#REF!,4,0) ->  | E82: =VLOOKUP($B82,#REF!,5,0) ->  | F82: =VLOOKUP($B82,#REF!,6,0) ->  | G82: =VLOOKUP($B82,'FSA23'!$E$5:$K$288,3,0) -> 55.2 | H82: =VLOOKUP($B82,'FSA23'!$E$5:$K$288,4,0) -> 40 | I82: =VLOOKUP($B82,'FSA23'!$E$5:$K$288,5,0) -> 55.2 | J82: =VLOOKUP($B82,'FSA23'!$E$5:$K$288,6,0) -> 55.2 | K82: =VLOOKUP($B82,'FSA23'!$E$5:$K$288,7,0) -> 55.2 | L82: =AVERAGE(G82:K82)+$T82 -> 52.95 | M82: =AVERAGE(H82:L82)+$T82 -> 52.5 | N82: =AVERAGE(I82:M82)+$T82 -> 55 | R82: 1 | S82: 0.28 | T82: 0.79 | V82: =C82-($T82*6) ->  | W82: =D82-($T82*5) ->  | Z82: 55.2 | AA82: 40 | AB82: 55.2 | AC82: 55.2 | AD82: 55.2 | AE82: 52.95 | AF82: 52.5
A83: WAYNE | B83: GeneseeCornAll | C83: =VLOOKUP($B83,#REF!,3,0) ->  | D83: =VLOOKUP($B83,#REF!,4,0) ->  | E83: =VLOOKUP($B83,'FSA21'!$E$5:$K$183,3,0) -> 184.69 | F83: =VLOOKUP($B83,'FSA21'!$E$5:$K$183,4,0) -> 160.08 | G83: =VLOOKUP($B83,'FSA23'!$E$5:$K$288,3,0) -> 178.39 | H83: =VLOOKUP($B83,'FSA23'!$E$5:$K$288,4,0) -> 170.26 | I83: =VLOOKUP($B83,'FSA23'!$E$5:$K$288,5,0) -> 145.29 | J83: =VLOOKUP($B83,'FSA23'!$E$5:$K$288,6,0) -> 155.17 | K83: =VLOOKUP($B83,'FSA23'!$E$5:$K$288,7,0) -> 175.2 | L83: =AVERAGE(G83:K83)+$R83 -> 166.372 | M83: =AVERAGE(H83:L83)+$R83 -> 163.9684 | N83: =AVERAGE(I83:M83)+$R83 -> 162.71008 | R83: 1.51 | S83: 0.39 | T83: 0.7 | V83: =C83-($R83*6) ->  | W83: =D83-($R83*5) ->  | X83: 184.69 | Y83: 160.08 | Z83: 178.39 | AA83: 170.26 | AB83: 145.29 | AC83: 155.17 | AD83: 175.2 | AE83: 166.372 | AF83: 163.9684
A84: WEXFORD | B84: GeneseeSoybeansAll | C84: =VLOOKUP($B84,#REF!,3,0) ->  | D84: =VLOOKUP($B84,#REF!,4,0) ->  | E84: =VLOOKUP($B84,'FSA21'!$E$5:$K$183,3,0) -> 50.75 | F84: =VLOOKUP($B84,'FSA21'!$E$5:$K$183,4,0) -> 45.64 | G84: =VLOOKUP($B84,'FSA23'!$E$5:$K$288,3,0) -> 42.77 | H84: =VLOOKUP($B84,'FSA23'!$E$5:$K$288,4,0) -> 49.5 | I84: =VLOOKUP($B84,'FSA23'!$E$5:$K$288,5,0) -> 38.77 | J84: =VLOOKUP($B84,'FSA23'!$E$5:$K$288,6,0) -> 46.15 | K84: =VLOOKUP($B84,'FSA23'!$E$5:$K$288,7,0) -> 48.69 | L84: =AVERAGE(G84:K84)+$S84 -> 45.566 | M84: =AVERAGE(H84:L84)+$S84 -> 46.1252 | N84: =AVERAGE(I84:M84)+$S84 -> 45.45024 | R84: 1.51 | S84: 0.39 | T84: 0.7 | V84: =C84-($S84*6) ->  | W84: =D84-($S84*5) ->  | X84: 50.75 | Y84: 45.64 | Z84: 42.77 | AA84: 49.5 | AB84: 38.77 | AC84: 46.15 | AD84: 48.69 | AE84: 45.566 | AF84: 46.1252
B85: GeneseeWheatAll | C85: =VLOOKUP($B85,#REF!,3,0) ->  | D85: =VLOOKUP($B85,#REF!,4,0) ->  | E85: =VLOOKUP($B85,'FSA21'!$E$5:$K$183,3,0) -> 81.92 | F85: =VLOOKUP($B85,'FSA21'!$E$5:$K$183,4,0) -> 83.9 | G85: =VLOOKUP($B85,'FSA23'!$E$5:$K$288,3,0) -> 72.98 | H85: =VLOOKUP($B85,'FSA23'!$E$5:$K$288,4,0) -> 79.58 | I85: =VLOOKUP($B85,'FSA23'!$E$5:$K$288,5,0) -> 65.9 | J85: =VLOOKUP($B85,'FSA23'!$E$5:$K$288,6,0) -> 62.42 | K85: =VLOOKUP($B85,'FSA23'!$E$5:$K$288,7,0) -> 79.09 | L85: =AVERAGE(G85:K85)+$T85 -> 72.694 | M85: =AVERAGE(H85:L85)+$T85 -> 72.6368 | N85: =AVERAGE(I85:M85)+$T85 -> 71.24816 | R85: 1.51 | S85: 0.39 | T85: 0.7 | V85: =C85-($T85*6) ->  | W85: =D85-($T85*5) ->  | X85: 81.92 | Y85: 83.9 | Z85: 72.98 | AA85: 79.58 | AB85: 65.9 | AC85: 62.42 | AD85: 79.09 | AE85: 72.694 | AF85: 72.6368
B86: GladwinCornAll | C86: =VLOOKUP($B86,#REF!,3,0) ->  | D86: =VLOOKUP($B86,#REF!,4,0) ->  | E86: =VLOOKUP($B86,'FSA21'!$E$5:$K$183,3,0) -> 156.41 | F86: =VLOOKUP($B86,'FSA21'!$E$5:$K$183,4,0) -> 153.67 | G86: =VLOOKUP($B86,'FSA23'!$E$5:$K$288,3,0) -> 154.34 | H86: =VLOOKUP($B86,'FSA23'!$E$5:$K$288,4,0) -> 175.27 | I86: =VLOOKUP($B86,'FSA23'!$E$5:$K$288,5,0) -> 139.17 | J86: =VLOOKUP($B86,'FSA23'!$E$5:$K$288,6,0) -> 156.94 | K86: =VLOOKUP($B86,'FSA23'!$E$5:$K$288,7,0) -> 186.22 | L86: =AVERAGE(G86:K86)+$R86 -> 164.448 | M86: =AVERAGE(H86:L86)+$R86 -> 166.4696 | N86: =AVERAGE(I86:M86)+$R86 -> 164.70952 | R86: 2.06 | S86: 0.51 | T86: 0.85 | V86: =C86-($R86*6) ->  | W86: =D86-($R86*5) ->  | X86: 156.41 | Y86: 153.67 | Z86: 154.34 | AA86: 175.27 | AB86: 139.17 | AC86: 156.94 | AD86: 186.22 | AE86: 164.448 | AF86: 166.4696
B87: GladwinSoybeansAll | C87: =VLOOKUP($B87,#REF!,3,0) ->  | D87: =VLOOKUP($B87,#REF!,4,0) ->  | E87: =VLOOKUP($B87,'FSA21'!$E$5:$K$183,3,0) -> 44.91 | F87: =VLOOKUP($B87,'FSA21'!$E$5:$K$183,4,0) -> 44.82 | G87: =VLOOKUP($B87,'FSA23'!$E$5:$K$288,3,0) -> 41.26 | H87: =VLOOKUP($B87,'FSA23'!$E$5:$K$288,4,0) -> 43.16 | I87: =VLOOKUP($B87,'FSA23'!$E$5:$K$288,5,0) -> 33.64 | J87: =VLOOKUP($B87,'FSA23'!$E$5:$K$288,6,0) -> 41.95 | K87: =VLOOKUP($B87,'FSA23'!$E$5:$K$288,7,0) -> 47.69 | L87: =AVERAGE(G87:K87)+$S87 -> 42.05 | M87: =AVERAGE(H87:L87)+$S87 -> 42.208 | N87: =AVERAGE(I87:M87)+$S87 -> 42.0176 | R87: 2.06 | S87: 0.51 | T87: 0.85 | V87: =C87-($S87*6) ->  | W87: =D87-($S87*5) ->  | X87: 44.91 | Y87: 44.82 | Z87: 41.26 | AA87: 43.16 | AB87: 33.64 | AC87: 41.95 | AD87: 47.69 | AE87: 42.05 | AF87: 42.208
B88: GladwinWheatAll | C88: =VLOOKUP($B88,#REF!,3,0) ->  | D88: =VLOOKUP($B88,#REF!,4,0) ->  | E88: =VLOOKUP($B88,'FSA21'!$E$5:$K$183,3,0) -> 92.53 | F88: =VLOOKUP($B88,'FSA21'!$E$5:$K$183,4,0) -> 84.08 | G88: =VLOOKUP($B88,'FSA23'!$E$5:$K$288,3,0) -> 62.94 | H88: =VLOOKUP($B88,'FSA23'!$E$5:$K$288,4,0) -> 77.21 | I88: =VLOOKUP($B88,'FSA23'!$E$5:$K$288,5,0) -> 59.36 | J88: =VLOOKUP($B88,'FSA23'!$E$5:$K$288,6,0) -> 58.72 | K88: =VLOOKUP($B88,'FSA23'!$E$5:$K$288,7,0) -> 77.18 | L88: =AVERAGE(G88:K88)+$T88 -> 67.932 | M88: =AVERAGE(H88:L88)+$T88 -> 68.9304 | N88: =AVERAGE(I88:M88)+$T88 -> 67.27448 | R88: 2.06 | S88: 0.51 | T88: 0.85 | V88: =C88-($T88*6) ->  | W88: =D88-($T88*5) ->  | X88: 92.53 | Y88: 84.08 | Z88: 62.94 | AA88: 77.21 | AB88: 59.36 | AC88: 58.72 | AD88: 77.18 | AE88: 67.932 | AF88: 68.9304
B89: Grand TraverseCornAll | C89: =VLOOKUP($B89,#REF!,3,0) ->  | D89: =VLOOKUP($B89,#REF!,4,0) ->  | E89: =VLOOKUP($B89,'FSA21'!$E$5:$K$183,3,0) -> 108.46 | F89: =VLOOKUP($B89,'FSA21'!$E$5:$K$183,4,0) -> 82.96 | G89: =VLOOKUP($B89,'FSA23'!$E$5:$K$288,3,0) -> 133.76 | H89: =VLOOKUP($B89,'FSA23'!$E$5:$K$288,4,0) -> 89.15 | I89: =VLOOKUP($B89,'FSA23'!$E$5:$K$288,5,0) -> 105.98 | J89: =VLOOKUP($B89,'FSA23'!$E$5:$K$288,6,0) -> 106.96 | K89: =VLOOKUP($B89,'FSA23'!$E$5:$K$288,7,0) -> 153.17 | L89: =AVERAGE(G89:K89)+$R89 -> 118.494 | M89: =AVERAGE(H89:L89)+$R89 -> 115.4408 | N89: =AVERAGE(I89:M89)+$R89 -> 120.69896 | R89: 0.69 | S89: 0.27 | T89: 0.51 | V89: =C89-($R89*6) ->  | W89: =D89-($R89*5) ->  | X89: 108.46 | Y89: 82.96 | Z89: 133.76 | AA89: 89.15 | AB89: 105.98 | AC89: 106.96 | AD89: 153.17 | AE89: 118.494 | AF89: 115.4408
B90: Grand TraverseSoybeansAll | C90: =VLOOKUP($B90,#REF!,3,0) ->  | D90: =VLOOKUP($B90,#REF!,4,0) ->  | E90: =VLOOKUP($B90,'FSA21'!$E$5:$K$183,3,0) -> 27.09 | F90: =VLOOKUP($B90,'FSA21'!$E$5:$K$183,4,0) -> 30.48 | G90: =VLOOKUP($B90,'FSA23'!$E$5:$K$288,3,0) -> 34.87 | H90: =VLOOKUP($B90,'FSA23'!$E$5:$K$288,4,0) -> 27.75 | I90: =VLOOKUP($B90,'FSA23'!$E$5:$K$288,5,0) -> 34.4 | J90: =VLOOKUP($B90,'FSA23'!$E$5:$K$288,6,0) -> 35.9 | K90: =VLOOKUP($B90,'FSA23'!$E$5:$K$288,7,0) -> 40.92 | L90: =AVERAGE(G90:K90)+$S90 -> 35.038 | M90: =AVERAGE(H90:L90)+$S90 -> 35.0716 | N90: =AVERAGE(I90:M90)+$S90 -> 36.53592 | R90: 0.69 | S90: 0.27 | T90: 0.51 | V90: =C90-($S90*6) ->  | W90: =D90-($S90*5) ->  | X90: 27.09 | Y90: 30.48 | Z90: 34.87 | AA90: 27.75 | AB90: 34.4 | AC90: 35.9 | AD90: 40.92 | AE90: 35.038 | AF90: 35.0716
B91: Grand TraverseWheatAll | C91: =VLOOKUP($B91,#REF!,3,0) ->  | D91: =VLOOKUP($B91,#REF!,4,0) ->  | E91: =VLOOKUP($B91,'FSA21'!$E$5:$K$183,3,0) -> 45.69 | F91: =VLOOKUP($B91,'FSA21'!$E$5:$K$183,4,0) -> 47.42 | G91: =VLOOKUP($B91,'FSA23'!$E$5:$K$288,3,0) -> 56.2 | H91: =VLOOKUP($B91,'FSA23'!$E$5:$K$288,4,0) -> 39.11 | I91: =VLOOKUP($B91,'FSA23'!$E$5:$K$288,5,0) -> 47.12 | J91: =VLOOKUP($B91,'FSA23'!$E$5:$K$288,6,0) -> 45.19 | K91: =VLOOKUP($B91,'FSA23'!$E$5:$K$288,7,0) -> 48.72 | L91: =AVERAGE(G91:K91)+$T91 -> 47.778 | M91: =AVERAGE(H91:L91)+$T91 -> 46.0936 | N91: =AVERAGE(I91:M91)+$T91 -> 47.49032 | R91: 0.69 | S91: 0.27 | T91: 0.51 | V91: =C91-($T91*6) ->  | W91: =D91-($T91*5) ->  | X91: 45.69 | Y91: 47.42 | Z91: 56.2 | AA91: 39.11 | AB91: 47.12 | AC91: 45.19 | AD91: 48.72 | AE91: 47.778 | AF91: 46.0936
B92: GratiotCornIrrigated | C92: =VLOOKUP($B92,#REF!,3,0) ->  | D92: =VLOOKUP($B92,#REF!,4,0) ->  | E92: =VLOOKUP($B92,#REF!,5,0) ->  | F92: =VLOOKUP($B92,#REF!,6,0) ->  | G92: =VLOOKUP($B92,'FSA23'!$E$5:$K$288,3,0) -> 186.68 | H92: =VLOOKUP($B92,'FSA23'!$E$5:$K$288,4,0) -> 196.85 | I92: =VLOOKUP($B92,'FSA23'!$E$5:$K$288,5,0) -> 185.2 | J92: =VLOOKUP($B92,'FSA23'!$E$5:$K$288,6,0) -> 201.59 | K92: =VLOOKUP($B92,'FSA23'!$E$5:$K$288,7,0) -> 199.22 | L92: =AVERAGE(G92:K92)+$R92 -> 195.688 | M92: 197.4896 | N92: 197.61752 | R92: 1.78 | S92: 0.43 | T92: 1 | V92: =C92-($R92*6) ->  | W92: =D92-($R92*5) ->  | Z92: 186.68 | AA92: 196.85 | AB92: 185.2 | AC92: 201.59 | AD92: 199.22 | AE92: 195.688 | AF92: 197.4896
B93: GratiotCornNonirrigated | C93: =VLOOKUP($B93,#REF!,3,0) ->  | D93: =VLOOKUP($B93,#REF!,4,0) ->  | E93: =VLOOKUP($B93,'FSA21'!$E$5:$K$183,3,0) -> 182.33 | F93: =VLOOKUP($B93,'FSA21'!$E$5:$K$183,4,0) -> 177.81 | G93: =VLOOKUP($B93,'FSA23'!$E$5:$K$288,3,0) -> 164.63 | H93: =VLOOKUP($B93,'FSA23'!$E$5:$K$288,4,0) -> 174.91 | I93: =VLOOKUP($B93,'FSA23'!$E$5:$K$288,5,0) -> 152.5 | J93: =VLOOKUP($B93,'FSA23'!$E$5:$K$288,6,0) -> 170.51 | K93: =VLOOKUP($B93,'FSA23'!$E$5:$K$288,7,0) -> 180.49 | L93: 170.388 | M93: 171.5396 | N93: 170.86552 | R93: 1.78 | S93: 0.43 | T93: 1 | V93: =C93-($R93*6) ->  | W93: =D93-($R93*5) ->  | X93: 182.33 | Y93: 177.81 | Z93: 164.63 | AA93: 174.91 | AB93: 152.5 | AC93: 170.51 | AD93: 180.49 | AE93: 170.388 | AF93: 171.5396
B94: GratiotSoybeansIrrigated | C94: =VLOOKUP($B94,#REF!,3,0) ->  | D94: =VLOOKUP($B94,#REF!,4,0) ->  | E94: =VLOOKUP($B94,#REF!,5,0) ->  | F94: =VLOOKUP($B94,#REF!,6,0) ->  | G94: =VLOOKUP($B94,'FSA23'!$E$5:$K$288,3,0) -> 51.49 | H94: =VLOOKUP($B94,'FSA23'!$E$5:$K$288,4,0) -> 57.44 | I94: =VLOOKUP($B94,'FSA23'!$E$5:$K$288,5,0) -> 47.8 | J94: =VLOOKUP($B94,'FSA23'!$E$5:$K$288,6,0) -> 51.12 | K94: =VLOOKUP($B94,'FSA23'!$E$5:$K$288,7,0) -> 55 | L94: =AVERAGE(G94:K94)+$S94 -> 53 | M94: 53.302 | N94: 52.4744 | R94: 1.78 | S94: 0.43 | T94: 1 | V94: =C94-($S94*6) ->  | W94: =D94-($S94*5) ->  | Z94: 51.49 | AA94: 57.44 | AB94: 47.8 | AC94: 51.12 | AD94: 55 | AE94: 53 | AF94: 53.302
B95: GratiotSoybeansNonirrigated | C95: =VLOOKUP($B95,#REF!,3,0) ->  | D95: =VLOOKUP($B95,#REF!,4,0) ->  | E95: =VLOOKUP($B95,'FSA21'!$E$5:$K$183,3,0) -> 56.12 | F95: =VLOOKUP($B95,'FSA21'!$E$5:$K$183,4,0) -> 57.1 | G95: =VLOOKUP($B95,'FSA23'!$E$5:$K$288,3,0) -> 45.65 | H95: =VLOOKUP($B95,'FSA23'!$E$5:$K$288,4,0) -> 55.13 | I95: =VLOOKUP($B95,'FSA23'!$E$5:$K$288,5,0) -> 41.44 | J95: =VLOOKUP($B95,'FSA23'!$E$5:$K$288,6,0) -> 52.24 | K95: =VLOOKUP($B95,'FSA23'!$E$5:$K$288,7,0) -> 51.74 | L95: 49.67 | M95: 50.474 | N95: 49.5428 | R95: 1.78 | S95: 0.43 | T95: 1 | V95: =C95-($S95*6) ->  | W95: =D95-($S95*5) ->  | X95: 56.12 | Y95: 57.1 | Z95: 45.65 | AA95: 55.13 | AB95: 41.44 | AC95: 52.24 | AD95: 51.74 | AE95: 49.67 | AF95: 50.474
B96: GratiotWheatAll | C96: =VLOOKUP($B96,#REF!,3,0) ->  | D96: =VLOOKUP($B96,#REF!,4,0) ->  | E96: =VLOOKUP($B96,'FSA21'!$E$5:$K$183,3,0) -> 92.42 | F96: =VLOOKUP($B96,'FSA21'!$E$5:$K$183,4,0) -> 90.49 | G96: =VLOOKUP($B96,'FSA23'!$E$5:$K$288,3,0) -> 80.44 | H96: =VLOOKUP($B96,'FSA23'!$E$5:$K$288,4,0) -> 93.37 | I96: =VLOOKUP($B96,'FSA23'!$E$5:$K$288,5,0) -> 70.72 | J96: =VLOOKUP($B96,'FSA23'!$E$5:$K$288,6,0) -> 69.5 | K96: =VLOOKUP($B96,'FSA23'!$E$5:$K$288,7,0) -> 85.67 | L96: =AVERAGE(G96:K96)+$T96 -> 80.94 | M96: =AVERAGE(H96:L96)+$T96 -> 81.04 | N96: =AVERAGE(I96:M96)+$T96 -> 78.574 | R96: 1.78 | S96: 0.43 | T96: 1 | V96: =C96-($T96*6) ->  | W96: =D96-($T96*5) ->  | X96: 92.42 | Y96: 90.49 | Z96: 80.44 | AA96: 93.37 | AB96: 70.72 | AC96: 69.5 | AD96: 85.67 | AE96: 80.94 | AF96: 81.04
B97: HillsdaleCornIrrigated | C97: =VLOOKUP($B97,#REF!,3,0) ->  | D97: =VLOOKUP($B97,#REF!,4,0) ->  | E97: =VLOOKUP($B97,#REF!,5,0) ->  | F97: =VLOOKUP($B97,#REF!,6,0) ->  | G97: =VLOOKUP($B97,'FSA23'!$E$5:$K$288,3,0) -> 203.81 | H97: =VLOOKUP($B97,'FSA23'!$E$5:$K$288,4,0) -> 187.67 | I97: =VLOOKUP($B97,'FSA23'!$E$5:$K$288,5,0) -> 198.37 | J97: =VLOOKUP($B97,'FSA23'!$E$5:$K$288,6,0) -> 213.55 | K97: =VLOOKUP($B97,'FSA23'!$E$5:$K$288,7,0) -> 191.8 | L97: =AVERAGE(G97:K97)+$R97 -> 200.76 | M97: 200.15 | N97: 202.646 | R97: 1.72 | S97: 0.47 | T97: 0.94 | V97: =C97-($R97*6) ->  | W97: =D97-($R97*5) ->  | Z97: 203.81 | AA97: 187.67 | AB97: 198.37 | AC97: 213.55 | AD97: 191.8 | AE97: 200.76 | AF97: 200.15
B98: HillsdaleCornNonirrigated | C98: =VLOOKUP($B98,#REF!,3,0) ->  | D98: =VLOOKUP($B98,#REF!,4,0) ->  | E98: =VLOOKUP($B98,'FSA21'!$E$5:$K$183,3,0) -> 163.83 | F98: =VLOOKUP($B98,'FSA21'!$E$5:$K$183,4,0) -> 171.19 | G98: =VLOOKUP($B98,'FSA23'!$E$5:$K$288,3,0) -> 172.04 | H98: =VLOOKUP($B98,'FSA23'!$E$5:$K$288,4,0) -> 164.3 | I98: =VLOOKUP($B98,'FSA23'!$E$5:$K$288,5,0) -> 163.39 | J98: =VLOOKUP($B98,'FSA23'!$E$5:$K$288,6,0) -> 154.85 | K98: =VLOOKUP($B98,'FSA23'!$E$5:$K$288,7,0) -> 181.33 | L98: 168.902 | M98: 168.2744 | N98: 169.06928 | R98: 1.72 | S98: 0.47 | T98: 0.94 | V98: =C98-($R98*6) ->  | W98: =D98-($R98*5) ->  | X98: 163.83 | Y98: 171.19 | Z98: 172.04 | AA98: 164.3 | AB98: 163.39 | AC98: 154.85 | AD98: 181.33 | AE98: 168.902 | AF98: 168.2744
B99: HillsdaleSoybeansIrrigated | C99: =VLOOKUP($B99,#REF!,3,0) ->  | D99: =VLOOKUP($B99,#REF!,4,0) ->  | E99: =VLOOKUP($B99,#REF!,5,0) ->  | F99: =VLOOKUP($B99,#REF!,6,0) ->  | G99: =VLOOKUP($B99,'FSA23'!$E$5:$K$288,3,0) -> 52.32 | H99: =VLOOKUP($B99,'FSA23'!$E$5:$K$288,4,0) -> 57.19 | I99: =VLOOKUP($B99,'FSA23'!$E$5:$K$288,5,0) -> 55.35 | J99: =VLOOKUP($B99,'FSA23'!$E$5:$K$288,6,0) -> 58.71 | K99: =VLOOKUP($B99,'FSA23'!$E$5:$K$288,7,0) -> 56.63 | L99: =AVERAGE(G99:K99)+$S99 -> 56.51 | M99: 57.348 | N99: 57.3796 | R99: 1.72 | S99: 0.47 | T99: 0.94 | V99: =C99-($S99*6) ->  | W99: =D99-($S99*5) ->  | Z99: 52.32 | AA99: 57.19 | AB99: 55.35 | AC99: 58.71 | AD99: 56.63 | AE99: 56.51 | AF99: 57.348
B100: HillsdaleSoybeansNonirrigated | C100: =VLOOKUP($B100,#REF!,3,0) ->  | D100: =VLOOKUP($B100,#REF!,4,0) ->  | E100: =VLOOKUP($B100,'FSA21'!$E$5:$K$183,3,0) -> 48.32 | F100: =VLOOKUP($B100,'FSA21'!$E$5:$K$183,4,0) -> 57.19 | G100: =VLOOKUP($B100,'FSA23'!$E$5:$K$288,3,0) -> 45.84 | H100: =VLOOKUP($B100,'FSA23'!$E$5:$K$288,4,0) -> 48.78 | I100: =VLOOKUP($B100,'FSA23'!$E$5:$K$288,5,0) -> 44.43 | J100: =VLOOKUP($B100,'FSA23'!$E$5:$K$288,6,0) -> 48.98 | K100: =VLOOKUP($B100,'FSA23'!$E$5:$K$288,7,0) -> 49.87 | L100: 48.05 | M100: 48.492 | N100: 48.4344 | R100: 1.72 | S100: 0.47 | T100: 0.94 | V100: =C100-($S100*6) ->  | W100: =D100-($S100*5) ->  | X100: 48.32 | Y100: 57.19 | Z100: 45.84 | AA100: 48.78 | AB100: 44.43 | AC100: 48.98 | AD100: 49.87 | AE100: 48.05 | AF100: 48.492
B101: HillsdaleWheatAll | C101: =VLOOKUP($B101,#REF!,3,0) ->  | D101: =VLOOKUP($B101,#REF!,4,0) ->  | E101: =VLOOKUP($B101,'FSA21'!$E$5:$K$183,3,0) -> 73 | F101: =VLOOKUP($B101,'FSA21'!$E$5:$K$183,4,0) -> 87.39 | G101: =VLOOKUP($B101,'FSA23'!$E$5:$K$288,3,0) -> 86.4 | H101: =VLOOKUP($B101,'FSA23'!$E$5:$K$288,4,0) -> 75.76 | I101: =VLOOKUP($B101,'FSA23'!$E$5:$K$288,5,0) -> 60.96 | J101: =VLOOKUP($B101,'FSA23'!$E$5:$K$288,6,0) -> 65.26 | K101: =VLOOKUP($B101,'FSA23'!$E$5:$K$288,7,0) -> 76.42 | L101: =AVERAGE(G101:K101)+$T101 -> 73.9 | M101: =AVERAGE(H101:L101)+$T101 -> 71.4 | N101: =AVERAGE(I101:M101)+$T101 -> 70.528 | R101: 1.72 | S101: 0.47 | T101: 0.94 | V101: =C101-($T101*6) ->  | W101: =D101-($T101*5) ->  | X101: 73 | Y101: 87.39 | Z101: 86.4 | AA101: 75.76 | AB101: 60.96 | AC101: 65.26 | AD101: 76.42 | AE101: 73.9 | AF101: 71.4
B102: HoughtonCornAll | C102: =VLOOKUP($B102,#REF!,3,0) ->  | D102: =VLOOKUP($B102,#REF!,4,0) ->  | E102: =VLOOKUP($B102,'FSA21'!$E$5:$K$183,3,0) -> 132 | F102: =VLOOKUP($B102,'FSA21'!$E$5:$K$183,4,0) -> 87 | G102: =VLOOKUP($B102,'FSA23'!$E$5:$K$288,3,0) -> 58.4 | H102: =VLOOKUP($B102,'FSA23'!$E$5:$K$288,4,0) -> 111 | I102: =VLOOKUP($B102,'FSA23'!$E$5:$K$288,5,0) -> 58.49 | J102: =VLOOKUP($B102,'FSA23'!$E$5:$K$288,6,0) -> 138.6 | K102: =VLOOKUP($B102,'FSA23'!$E$5:$K$288,7,0) -> 110.84 | L102: =AVERAGE(G102:K102)+$R102 -> 96.536 | M102: =AVERAGE(H102:L102)+$R102 -> 104.1632 | N102: =AVERAGE(I102:M102)+$R102 -> 102.79584 | R102: 1.07 | T102: 0.61 | V102: =C102-($R102*6) ->  | W102: =D102-($R102*5) ->  | X102: 132 | Y102: 87 | Z102: 58.4 | AA102: 111 | AB102: 58.49 | AC102: 138.6 | AD102: 110.84 | AE102: 96.536 | AF102: 104.1632
B103: HoughtonWheatAll | C103: =VLOOKUP($B103,#REF!,3,0) ->  | D103: =VLOOKUP($B103,#REF!,4,0) ->  | E103: =VLOOKUP($B103,#REF!,5,0) ->  | F103: =VLOOKUP($B103,#REF!,6,0) ->  | G103: =VLOOKUP($B103,'FSA23'!$E$5:$K$288,3,0) ->  | H103: =VLOOKUP($B103,'FSA23'!$E$5:$K$288,4,0) ->  | I103: =VLOOKUP($B103,'FSA23'!$E$5:$K$288,5,0) ->  | J103: =VLOOKUP($B103,'FSA23'!$E$5:$K$288,6,0) ->  | K103: =VLOOKUP($B103,'FSA23'!$E$5:$K$288,7,0) ->  | L103: =AVERAGE(G103:K103)+$T103 ->  | M103: =AVERAGE(H103:L103)+$T103 ->  | N103: =AVERAGE(I103:M103)+$T103 ->  | R103: 1.07 | T103: 0.61 | V103: =C103-($T103*6) ->  | W103: =D103-($T103*5) -> 
B104: HuronCornIrrigated | C104: =VLOOKUP($B104,#REF!,3,0) ->  | D104: =VLOOKUP($B104,#REF!,4,0) ->  | E104: =VLOOKUP($B104,#REF!,5,0) ->  | F104: =VLOOKUP($B104,#REF!,6,0) ->  | G104: =VLOOKUP($B104,'FSA23'!$E$5:$K$288,3,0) -> 208.45 | H104: =VLOOKUP($B104,'FSA23'!$E$5:$K$288,4,0) -> 207.21 | I104: =VLOOKUP($B104,'FSA23'!$E$5:$K$288,5,0) -> 206.79 | J104: =VLOOKUP($B104,'FSA23'!$E$5:$K$288,6,0) -> 217.66 | K104: =VLOOKUP($B104,'FSA23'!$E$5:$K$288,7,0) -> 216.67 | L104: =AVERAGE(G104:K104)+$R104 -> 213.616 | M104: 214.6492 | N104: 216.13704 | R104: 2.26 | S104: 0.65 | T104: 1.3 | V104: =C104-($R104*6) ->  | W104: =D104-($R104*5) ->  | Z104: 208.45 | AA104: 207.21 | AB104: 206.79 | AC104: 217.66 | AD104: 216.67 | AE104: 213.616 | AF104: 214.6492
B105: HuronCornNonirrigated | C105: =VLOOKUP($B105,#REF!,3,0) ->  | D105: =VLOOKUP($B105,#REF!,4,0) ->  | E105: =VLOOKUP($B105,'FSA21'!$E$5:$K$183,3,0) -> 209.8 | F105: =VLOOKUP($B105,'FSA21'!$E$5:$K$183,4,0) -> 174.16 | G105: =VLOOKUP($B105,'FSA23'!$E$5:$K$288,3,0) -> 205.28 | H105: =VLOOKUP($B105,'FSA23'!$E$5:$K$288,4,0) -> 178.93 | I105: =VLOOKUP($B105,'FSA23'!$E$5:$K$288,5,0) -> 179.42 | J105: =VLOOKUP($B105,'FSA23'!$E$5:$K$288,6,0) -> 199.06 | K105: =VLOOKUP($B105,'FSA23'!$E$5:$K$288,7,0) -> 221.56 | L105: 199.11 | M105: 197.876 | N105: 201.6652 | R105: 2.26 | S105: 0.65 | T105: 1.3 | V105: =C105-($R105*6) ->  | W105: =D105-($R105*5) ->  | X105: 209.8 | Y105: 174.16 | Z105: 205.28 | AA105: 178.93 | AB105: 179.42 | AC105: 199.06 | AD105: 221.56 | AE105: 199.11 | AF105: 197.876
B106: HuronSoybeansIrrigated | C106: =VLOOKUP($B106,#REF!,3,0) ->  | D106: =VLOOKUP($B106,#REF!,4,0) ->  | E106: =VLOOKUP($B106,#REF!,5,0) ->  | F106: =VLOOKUP($B106,#REF!,6,0) ->  | G106: =VLOOKUP($B106,'FSA23'!$E$5:$K$288,3,0) -> 50.92 | H106: =VLOOKUP($B106,'FSA23'!$E$5:$K$288,4,0) -> 59.55 | I106: =VLOOKUP($B106,'FSA23'!$E$5:$K$288,5,0) -> 46.76 | J106: =VLOOKUP($B106,'FSA23'!$E$5:$K$288,6,0) -> 61.17 | K106: =VLOOKUP($B106,'FSA23'!$E$5:$K$288,7,0) -> 55.67 | L106: =AVERAGE(G106:K106)+$S106 -> 55.464 | M106: 56.3728 | N106: 55.73736 | R106: 2.26 | S106: 0.65 | T106: 1.3 | V106: =C106-($S106*6) ->  | W106: =D106-($S106*5) ->  | Z106: 50.92 | AA106: 59.55 | AB106: 46.76 | AC106: 61.17 | AD106: 55.67 | AE106: 55.464 | AF106: 56.3728
B107: HuronSoybeansNonirrigated | C107: =VLOOKUP($B107,#REF!,3,0) ->  | D107: =VLOOKUP($B107,#REF!,4,0) ->  | E107: =VLOOKUP($B107,#REF!,5,0) ->  | F107: =VLOOKUP($B107,#REF!,6,0) ->  | G107: =VLOOKUP($B107,'FSA23'!$E$5:$K$288,3,0) -> 57.26 | H107: =VLOOKUP($B107,'FSA23'!$E$5:$K$288,4,0) -> 49.75 | I107: =VLOOKUP($B107,'FSA23'!$E$5:$K$288,5,0) -> 47.65 | J107: =VLOOKUP($B107,'FSA23'!$E$5:$K$288,6,0) -> 52 | K107: =VLOOKUP($B107,'FSA23'!$E$5:$K$288,7,0) -> 57.55 | L107: 53.492 | M107: 52.7384 | N107: 53.33608 | R107: 2.26 | S107: 0.65 | T107: 1.3 | V107: =C107-($S107*6) ->  | W107: =D107-($S107*5) ->  | Z107: 57.26 | AA107: 49.75 | AB107: 47.65 | AC107: 52 | AD107: 57.55 | AE107: 53.492 | AF107: 52.7384
B108: HuronWheatAll | C108: =VLOOKUP($B108,#REF!,3,0) ->  | D108: =VLOOKUP($B108,#REF!,4,0) ->  | E108: =VLOOKUP($B108,'FSA21'!$E$5:$K$183,3,0) -> 114.12 | F108: =VLOOKUP($B108,'FSA21'!$E$5:$K$183,4,0) -> 110.57 | G108: =VLOOKUP($B108,'FSA23'!$E$5:$K$288,3,0) -> 100.48 | H108: =VLOOKUP($B108,'FSA23'!$E$5:$K$288,4,0) -> 87.36 | I108: =VLOOKUP($B108,'FSA23'!$E$5:$K$288,5,0) -> 93.31 | J108: =VLOOKUP($B108,'FSA23'!$E$5:$K$288,6,0) -> 95.94 | K108: =VLOOKUP($B108,'FSA23'!$E$5:$K$288,7,0) -> 89.38 | L108: =AVERAGE(G108:K108)+$T108 -> 94.594 | M108: =AVERAGE(H108:L108)+$T108 -> 93.4168 | N108: =AVERAGE(I108:M108)+$T108 -> 94.62816 | R108: 2.26 | S108: 0.65 | T108: 1.3 | V108: =C108-($T108*6) ->  | W108: =D108-($T108*5) ->  | X108: 114.12 | Y108: 110.57 | Z108: 100.48 | AA108: 87.36 | AB108: 93.31 | AC108: 95.94 | AD108: 89.38 | AE108: 94.594 | AF108: 93.4168
B109: InghamCornAll | C109: =VLOOKUP($B109,#REF!,3,0) ->  | D109: =VLOOKUP($B109,#REF!,4,0) ->  | E109: =VLOOKUP($B109,'FSA21'!$E$5:$K$183,3,0) -> 181.76 | F109: =VLOOKUP($B109,'FSA21'!$E$5:$K$183,4,0) -> 164.21 | G109: =VLOOKUP($B109,'FSA23'!$E$5:$K$288,3,0) -> 172.86 | H109: =VLOOKUP($B109,'FSA23'!$E$5:$K$288,4,0) -> 159.79 | I109: =VLOOKUP($B109,'FSA23'!$E$5:$K$288,5,0) -> 160.87 | J109: =VLOOKUP($B109,'FSA23'!$E$5:$K$288,6,0) -> 162.88 | K109: =VLOOKUP($B109,'FSA23'!$E$5:$K$288,7,0) -> 196.33 | L109: =AVERAGE(G109:K109)+$R109 -> 172.566 | M109: =AVERAGE(H109:L109)+$R109 -> 172.5072 | N109: =AVERAGE(I109:M109)+$R109 -> 175.05064 | R109: 2.02 | S109: 0.5 | T109: 1.05 | V109: =C109-($R109*6) ->  | W109: =D109-($R109*5) ->  | X109: 181.76 | Y109: 164.21 | Z109: 172.86 | AA109: 159.79 | AB109: 160.87 | AC109: 162.88 | AD109: 196.33 | AE109: 172.566 | AF109: 172.5072
B110: InghamSoybeansIrrigated | C110: =VLOOKUP($B110,#REF!,3,0) ->  | D110: =VLOOKUP($B110,#REF!,4,0) ->  | E110: =VLOOKUP($B110,#REF!,5,0) ->  | F110: =VLOOKUP($B110,#REF!,6,0) ->  | G110: =VLOOKUP($B110,'FSA23'!$E$5:$K$288,3,0) -> 42.39 | H110: =VLOOKUP($B110,'FSA23'!$E$5:$K$288,4,0) -> 50.16 | I110: =VLOOKUP($B110,'FSA23'!$E$5:$K$288,5,0) -> 48.3 | J110: =VLOOKUP($B110,'FSA23'!$E$5:$K$288,6,0) -> 49.95 | K110: =VLOOKUP($B110,'FSA23'!$E$5:$K$288,7,0) -> 59.97 | L110: =AVERAGE(G110:K110)+$S110 -> 50.654 | M110: 52.3068 | N110: 52.73616 | R110: 2.02 | S110: 0.5 | T110: 1.05 | V110: =C110-($S110*6) ->  | W110: =D110-($S110*5) ->  | Z110: 42.39 | AA110: 50.16 | AB110: 48.3 | AC110: 49.95 | AD110: 59.97 | AE110: 50.654 | AF110: 52.3068
B111: InghamSoybeansNonirrigated | C111: =VLOOKUP($B111,#REF!,3,0) ->  | D111: =VLOOKUP($B111,#REF!,4,0) ->  | E111: =VLOOKUP($B111,'FSA21'!$E$5:$K$183,3,0) -> 53.52 | F111: =VLOOKUP($B111,'FSA21'!$E$5:$K$183,4,0) -> 55.36 | G111: =VLOOKUP($B111,'FSA23'!$E$5:$K$288,3,0) -> 50.84 | H111: =VLOOKUP($B111,'FSA23'!$E$5:$K$288,4,0) -> 54.48 | I111: =VLOOKUP($B111,'FSA23'!$E$5:$K$288,5,0) -> 42 | J111: =VLOOKUP($B111,'FSA23'!$E$5:$K$288,6,0) -> 50.09 | K111: =VLOOKUP($B111,'FSA23'!$E$5:$K$288,7,0) -> 50.81 | L111: 50.144 | M111: 50.0048 | N111: 49.10976 | R111: 2.02 | S111: 0.5 | T111: 1.05 | V111: =C111-($S111*6) ->  | W111: =D111-($S111*5) ->  | X111: 53.52 | Y111: 55.36 | Z111: 50.84 | AA111: 54.48 | AB111: 42 | AC111: 50.09 | AD111: 50.81 | AE111: 50.144 | AF111: 50.0048
B112: InghamWheatAll | C112: =VLOOKUP($B112,#REF!,3,0) ->  | D112: =VLOOKUP($B112,#REF!,4,0) ->  | E112: =VLOOKUP($B112,'FSA21'!$E$5:$K$183,3,0) -> 78 | F112: =VLOOKUP($B112,'FSA21'!$E$5:$K$183,4,0) -> 98.72 | G112: =VLOOKUP($B112,'FSA23'!$E$5:$K$288,3,0) -> 76.03 | H112: =VLOOKUP($B112,'FSA23'!$E$5:$K$288,4,0) -> 85.36 | I112: =VLOOKUP($B112,'FSA23'!$E$5:$K$288,5,0) -> 73.81 | J112: =VLOOKUP($B112,'FSA23'!$E$5:$K$288,6,0) -> 75.83 | K112: =VLOOKUP($B112,'FSA23'!$E$5:$K$288,7,0) -> 78.5 | L112: =AVERAGE(G112:K112)+$T112 -> 78.956 | M112: =AVERAGE(H112:L112)+$T112 -> 79.5412 | N112: =AVERAGE(I112:M112)+$T112 -> 78.37744 | R112: 2.02 | S112: 0.5 | T112: 1.05 | V112: =C112-($T112*6) ->  | W112: =D112-($T112*5) ->  | X112: 78 | Y112: 98.72 | Z112: 76.03 | AA112: 85.36 | AB112: 73.81 | AC112: 75.83 | AD112: 78.5 | AE112: 78.956 | AF112: 79.5412
B113: IoniaCornIrrigated | C113: =VLOOKUP($B113,#REF!,3,0) ->  | D113: =VLOOKUP($B113,#REF!,4,0) ->  | E113: =VLOOKUP($B113,#REF!,5,0) ->  | F113: =VLOOKUP($B113,#REF!,6,0) ->  | G113: =VLOOKUP($B113,'FSA23'!$E$5:$K$288,3,0) -> 209.64 | H113: =VLOOKUP($B113,'FSA23'!$E$5:$K$288,4,0) -> 218.7 | I113: =VLOOKUP($B113,'FSA23'!$E$5:$K$288,5,0) -> 195.29 | J113: =VLOOKUP($B113,'FSA23'!$E$5:$K$288,6,0) -> 219.61 | K113: =VLOOKUP($B113,'FSA23'!$E$5:$K$288,7,0) -> 237.82 | L113: =AVERAGE(G113:K113)+$R113 -> 218.442 | M113: 220.2024 | N113: 220.50288 | R113: 2.23 | S113: 0.54 | T113: 0.96 | V113: =C113-($R113*6) ->  | W113: =D113-($R113*5) ->  | Z113: 209.64 | AA113: 218.7 | AB113: 195.29 | AC113: 219.61 | AD113: 237.82 | AE113: 218.442 | AF113: 220.2024
B114: IoniaCornNonirrigated | C114: =VLOOKUP($B114,#REF!,3,0) ->  | D114: =VLOOKUP($B114,#REF!,4,0) ->  | E114: =VLOOKUP($B114,'FSA21'!$E$5:$K$183,3,0) -> 193.97 | F114: =VLOOKUP($B114,'FSA21'!$E$5:$K$183,4,0) -> 180.78 | G114: =VLOOKUP($B114,'FSA23'!$E$5:$K$288,3,0) -> 175.61 | H114: =VLOOKUP($B114,'FSA23'!$E$5:$K$288,4,0) -> 172.12 | I114: =VLOOKUP($B114,'FSA23'!$E$5:$K$288,5,0) -> 162.9 | J114: =VLOOKUP($B114,'FSA23'!$E$5:$K$288,6,0) -> 162.35 | K114: =VLOOKUP($B114,'FSA23'!$E$5:$K$288,7,0) -> 195.29 | L114: 175.884 | M114: 175.9388 | N114: 176.70256 | R114: 2.23 | S114: 0.54 | T114: 0.96 | V114: =C114-($R114*6) ->  | W114: =D114-($R114*5) ->  | X114: 193.97 | Y114: 180.78 | Z114: 175.61 | AA114: 172.12 | AB114: 162.9 | AC114: 162.35 | AD114: 195.29 | AE114: 175.884 | AF114: 175.9388
B115: IoniaSoybeansIrrigated | C115: =VLOOKUP($B115,#REF!,3,0) ->  | D115: =VLOOKUP($B115,#REF!,4,0) ->  | E115: =VLOOKUP($B115,#REF!,5,0) ->  | F115: =VLOOKUP($B115,#REF!,6,0) ->  | G115: =VLOOKUP($B115,'FSA23'!$E$5:$K$288,3,0) -> 60.06 | H115: =VLOOKUP($B115,'FSA23'!$E$5:$K$288,4,0) -> 62.16 | I115: =VLOOKUP($B115,'FSA23'!$E$5:$K$288,5,0) -> 61.01 | J115: =VLOOKUP($B115,'FSA23'!$E$5:$K$288,6,0) -> 65.09 | K115: =VLOOKUP($B115,'FSA23'!$E$5:$K$288,7,0) -> 67.38 | L115: =AVERAGE(G115:K115)+$S115 -> 63.68 | M115: 64.404 | N115: 64.8528 | R115: 2.23 | S115: 0.54 | T115: 0.96 | V115: =C115-($S115*6) ->  | W115: =D115-($S115*5) ->  | Z115: 60.06 | AA115: 62.16 | AB115: 61.01 | AC115: 65.09 | AD115: 67.38 | AE115: 63.68 | AF115: 64.404
B116: IoniaSoybeansNonirrigated | C116: =VLOOKUP($B116,#REF!,3,0) ->  | D116: =VLOOKUP($B116,#REF!,4,0) ->  | E116: =VLOOKUP($B116,'FSA21'!$E$5:$K$183,3,0) -> 57.06 | F116: =VLOOKUP($B116,'FSA21'!$E$5:$K$183,4,0) -> 58.74 | G116: =VLOOKUP($B116,'FSA23'!$E$5:$K$288,3,0) -> 47.16 | H116: =VLOOKUP($B116,'FSA23'!$E$5:$K$288,4,0) -> 56.7 | I116: =VLOOKUP($B116,'FSA23'!$E$5:$K$288,5,0) -> 48.44 | J116: =VLOOKUP($B116,'FSA23'!$E$5:$K$288,6,0) -> 48.2 | K116: =VLOOKUP($B116,'FSA23'!$E$5:$K$288,7,0) -> 60.74 | L116: 52.788 | M116: 53.9136 | N116: 53.35632 | R116: 2.23 | S116: 0.54 | T116: 0.96 | V116: =C116-($S116*6) ->  | W116: =D116-($S116*5) ->  | X116: 57.06 | Y116: 58.74 | Z116: 47.16 | AA116: 56.7 | AB116: 48.44 | AC116: 48.2 | AD116: 60.74 | AE116: 52.788 | AF116: 53.9136
B117: IoniaWheatAll | C117: =VLOOKUP($B117,#REF!,3,0) ->  | D117: =VLOOKUP($B117,#REF!,4,0) ->  | E117: =VLOOKUP($B117,'FSA21'!$E$5:$K$183,3,0) -> 87.44 | F117: =VLOOKUP($B117,'FSA21'!$E$5:$K$183,4,0) -> 97.57 | G117: =VLOOKUP($B117,'FSA23'!$E$5:$K$288,3,0) -> 81.47 | H117: =VLOOKUP($B117,'FSA23'!$E$5:$K$288,4,0) -> 88.76 | I117: =VLOOKUP($B117,'FSA23'!$E$5:$K$288,5,0) -> 72.6 | J117: =VLOOKUP($B117,'FSA23'!$E$5:$K$288,6,0) -> 72.21 | K117: =VLOOKUP($B117,'FSA23'!$E$5:$K$288,7,0) -> 85.03 | L117: =AVERAGE(G117:K117)+$T117 -> 80.974 | M117: =AVERAGE(H117:L117)+$T117 -> 80.8748 | N117: =AVERAGE(I117:M117)+$T117 -> 79.29776 | R117: 2.23 | S117: 0.54 | T117: 0.96 | V117: =C117-($T117*6) ->  | W117: =D117-($T117*5) ->  | X117: 87.44 | Y117: 97.57 | Z117: 81.47 | AA117: 88.76 | AB117: 72.6 | AC117: 72.21 | AD117: 85.03 | AE117: 80.974 | AF117: 80.8748
B118: IoscoCornAll | C118: =VLOOKUP($B118,#REF!,3,0) ->  | D118: =VLOOKUP($B118,#REF!,4,0) ->  | E118: =VLOOKUP($B118,'FSA21'!$E$5:$K$183,3,0) -> 151.62 | F118: =VLOOKUP($B118,'FSA21'!$E$5:$K$183,4,0) -> 142.41 | G118: =VLOOKUP($B118,'FSA23'!$E$5:$K$288,3,0) -> 173.96 | H118: =VLOOKUP($B118,'FSA23'!$E$5:$K$288,4,0) -> 163.73 | I118: =VLOOKUP($B118,'FSA23'!$E$5:$K$288,5,0) -> 142.27 | J118: =VLOOKUP($B118,'FSA23'!$E$5:$K$288,6,0) -> 153.25 | K118: =VLOOKUP($B118,'FSA23'!$E$5:$K$288,7,0) -> 166.78 | L118: =AVERAGE(G118:K118)+$R118 -> 161.718 | M118: =AVERAGE(H118:L118)+$R118 -> 159.2696 | N118: =AVERAGE(I118:M118)+$R118 -> 158.37752 | R118: 1.72 | S118: 0.43 | T118: 0.95 | V118: =C118-($R118*6) ->  | W118: =D118-($R118*5) ->  | X118: 151.62 | Y118: 142.41 | Z118: 173.96 | AA118: 163.73 | AB118: 142.27 | AC118: 153.25 | AD118: 166.78 | AE118: 161.718 | AF118: 159.2696
B119: IoscoSoybeansAll | C119: =VLOOKUP($B119,#REF!,3,0) ->  | D119: =VLOOKUP($B119,#REF!,4,0) ->  | E119: =VLOOKUP($B119,'FSA21'!$E$5:$K$183,3,0) -> 40.85 | F119: =VLOOKUP($B119,'FSA21'!$E$5:$K$183,4,0) -> 43.17 | G119: =VLOOKUP($B119,'FSA23'!$E$5:$K$288,3,0) -> 38.94 | H119: =VLOOKUP($B119,'FSA23'!$E$5:$K$288,4,0) -> 47.72 | I119: =VLOOKUP($B119,'FSA23'!$E$5:$K$288,5,0) -> 32.72 | J119: =VLOOKUP($B119,'FSA23'!$E$5:$K$288,6,0) -> 33.01 | K119: =VLOOKUP($B119,'FSA23'!$E$5:$K$288,7,0) -> 41.25 | L119: =AVERAGE(G119:K119)+$S119 -> 39.158 | M119: =AVERAGE(H119:L119)+$S119 -> 39.2016 | N119: =AVERAGE(I119:M119)+$S119 -> 37.49792 | R119: 1.72 | S119: 0.43 | T119: 0.95 | V119: =C119-($S119*6) ->  | W119: =D119-($S119*5) ->  | X119: 40.85 | Y119: 43.17 | Z119: 38.94 | AA119: 47.72 | AB119: 32.72 | AC119: 33.01 | AD119: 41.25 | AE119: 39.158 | AF119: 39.2016
B120: IoscoWheatAll | C120: =VLOOKUP($B120,#REF!,3,0) ->  | D120: =VLOOKUP($B120,#REF!,4,0) ->  | E120: =VLOOKUP($B120,#REF!,5,0) ->  | F120: =VLOOKUP($B120,#REF!,6,0) ->  | G120: =VLOOKUP($B120,'FSA23'!$E$5:$K$288,3,0) -> 77.29 | H120: =VLOOKUP($B120,'FSA23'!$E$5:$K$288,4,0) -> 63.32 | I120: =VLOOKUP($B120,'FSA23'!$E$5:$K$288,5,0) -> 57.72 | J120: =VLOOKUP($B120,'FSA23'!$E$5:$K$288,6,0) -> 56.77 | K120: =VLOOKUP($B120,'FSA23'!$E$5:$K$288,7,0) -> 83.35 | L120: =AVERAGE(G120:K120)+$T120 -> 68.64 | M120: =AVERAGE(H120:L120)+$T120 -> 66.91 | N120: =AVERAGE(I120:M120)+$T120 -> 67.628 | R120: 1.72 | S120: 0.43 | T120: 0.95 | V120: =C120-($T120*6) ->  | W120: =D120-($T120*5) ->  | Z120: 77.29 | AA120: 63.32 | AB120: 57.72 | AC120: 56.77 | AD120: 83.35 | AE120: 68.64 | AF120: 66.91
B121: IronCornAll | C121: =VLOOKUP($B121,#REF!,3,0) ->  | D121: =VLOOKUP($B121,#REF!,4,0) ->  | E121: =VLOOKUP($B121,#REF!,5,0) ->  | F121: =VLOOKUP($B121,#REF!,6,0) ->  | G121: =VLOOKUP($B121,'FSA23'!$E$5:$K$288,3,0) -> 84 | H121: =VLOOKUP($B121,'FSA23'!$E$5:$K$288,4,0) -> 111 | I121: =VLOOKUP($B121,'FSA23'!$E$5:$K$288,5,0) -> 84 | J121: =VLOOKUP($B121,'FSA23'!$E$5:$K$288,6,0) -> 154.83 | K121: =VLOOKUP($B121,'FSA23'!$E$5:$K$288,7,0) -> 110.84 | L121: =AVERAGE(G121:K121)+$R121 -> 109.934 | M121: =AVERAGE(H121:L121)+$R121 -> 115.1208 | N121: =AVERAGE(I121:M121)+$R121 -> 115.94496 | R121: 1 | T121: 0.64 | V121: =C121-($R121*6) ->  | W121: =D121-($R121*5) ->  | Z121: 84 | AA121: 111 | AB121: 84 | AC121: 154.83 | AD121: 110.84 | AE121: 109.934 | AF121: 115.1208
B122: IronWheatAll | C122: =VLOOKUP($B122,#REF!,3,0) ->  | D122: =VLOOKUP($B122,#REF!,4,0) ->  | E122: =VLOOKUP($B122,#REF!,5,0) ->  | F122: =VLOOKUP($B122,#REF!,6,0) ->  | G122: =VLOOKUP($B122,'FSA23'!$E$5:$K$288,3,0) -> 53.6 | H122: =VLOOKUP($B122,'FSA23'!$E$5:$K$288,4,0) -> 40 | I122: =VLOOKUP($B122,'FSA23'!$E$5:$K$288,5,0) -> 53.1 | J122: =VLOOKUP($B122,'FSA23'!$E$5:$K$288,6,0) -> 50.4 | K122: =VLOOKUP($B122,'FSA23'!$E$5:$K$288,7,0) -> 61.66 | L122: =AVERAGE(G122:K122)+$T122 -> 52.392 | M122: =AVERAGE(H122:L122)+$T122 -> 52.1504 | N122: =AVERAGE(I122:M122)+$T122 -> 54.58048 | R122: 1 | T122: 0.64 | V122: =C122-($T122*6) ->  | W122: =D122-($T122*5) ->  | Z122: 53.6 | AA122: 40 | AB122: 53.1 | AC122: 50.4 | AD122: 61.66 | AE122: 52.392 | AF122: 52.1504
B123: IsabellaCornIrrigated | C123: =VLOOKUP($B123,#REF!,3,0) ->  | D123: =VLOOKUP($B123,#REF!,4,0) ->  | E123: =VLOOKUP($B123,#REF!,5,0) ->  | F123: =VLOOKUP($B123,#REF!,6,0) ->  | G123: =VLOOKUP($B123,'FSA23'!$E$5:$K$288,3,0) -> 183.39 | H123: =VLOOKUP($B123,'FSA23'!$E$5:$K$288,4,0) -> 188.31 | I123: =VLOOKUP($B123,'FSA23'!$E$5:$K$288,5,0) -> 173.49 | J123: =VLOOKUP($B123,'FSA23'!$E$5:$K$288,6,0) -> 176.62 | K123: =VLOOKUP($B123,'FSA23'!$E$5:$K$288,7,0) -> 189.68 | L123: =AVERAGE(G123:K123)+$R123 -> 184.408 | M123: 184.6116 | N123: 183.87192 | R123: 2.11 | S123: 0.53 | T123: 0.64 | V123: =C123-($R123*6) ->  | W123: =D123-($R123*5) ->  | Z123: 183.39 | AA123: 188.31 | AB123: 173.49 | AC123: 176.62 | AD123: 189.68 | AE123: 184.408 | AF123: 184.6116
B124: IsabellaCornNonirrigated | C124: =VLOOKUP($B124,#REF!,3,0) ->  | D124: =VLOOKUP($B124,#REF!,4,0) ->  | E124: =VLOOKUP($B124,'FSA21'!$E$5:$K$183,3,0) -> 165.01 | F124: =VLOOKUP($B124,'FSA21'!$E$5:$K$183,4,0) -> 164.57 | G124: =VLOOKUP($B124,'FSA23'!$E$5:$K$288,3,0) -> 165.05 | H124: =VLOOKUP($B124,'FSA23'!$E$5:$K$288,4,0) -> 154.58 | I124: =VLOOKUP($B124,'FSA23'!$E$5:$K$288,5,0) -> 145.91 | J124: =VLOOKUP($B124,'FSA23'!$E$5:$K$288,6,0) -> 134.26 | K124: =VLOOKUP($B124,'FSA23'!$E$5:$K$288,7,0) -> 186.05 | L124: 159.28 | M124: 158.126 | N124: 158.8352 | R124: 2.11 | S124: 0.53 | T124: 0.64 | V124: =C124-($R124*6) ->  | W124: =D124-($R124*5) ->  | X124: 165.01 | Y124: 164.57 | Z124: 165.05 | AA124: 154.58 | AB124: 145.91 | AC124: 134.26 | AD124: 186.05 | AE124: 159.28 | AF124: 158.126
B125: IsabellaSoybeansIrrigated | C125: =VLOOKUP($B125,#REF!,3,0) ->  | D125: =VLOOKUP($B125,#REF!,4,0) ->  | E125: =VLOOKUP($B125,#REF!,5,0) ->  | F125: =VLOOKUP($B125,#REF!,6,0) ->  | G125: =VLOOKUP($B125,'FSA23'!$E$5:$K$288,3,0) -> 48.11 | H125: =VLOOKUP($B125,'FSA23'!$E$5:$K$288,4,0) -> 50.27 | I125: =VLOOKUP($B125,'FSA23'!$E$5:$K$288,5,0) -> 44.28 | J125: =VLOOKUP($B125,'FSA23'!$E$5:$K$288,6,0) -> 52.33 | K125: =VLOOKUP($B125,'FSA23'!$E$5:$K$288,7,0) -> 54.96 | L125: =AVERAGE(G125:K125)+$S125 -> 50.52 | M125: 51.002 | N125: 51.1484 | R125: 2.11 | S125: 0.53 | T125: 0.64 | V125: =C125-($S125*6) ->  | W125: =D125-($S125*5) ->  | Z125: 48.11 | AA125: 50.27 | AB125: 44.28 | AC125: 52.33 | AD125: 54.96 | AE125: 50.52 | AF125: 51.002
B126: IsabellaSoybeansNonirrigated | C126: =VLOOKUP($B126,#REF!,3,0) ->  | D126: =VLOOKUP($B126,#REF!,4,0) ->  | E126: =VLOOKUP($B126,'FSA21'!$E$5:$K$183,3,0) -> 48.24 | F126: =VLOOKUP($B126,'FSA21'!$E$5:$K$183,4,0) -> 50.99 | G126: =VLOOKUP($B126,'FSA23'!$E$5:$K$288,3,0) -> 41.99 | H126: =VLOOKUP($B126,'FSA23'!$E$5:$K$288,4,0) -> 43.24 | I126: =VLOOKUP($B126,'FSA23'!$E$5:$K$288,5,0) -> 36.76 | J126: =VLOOKUP($B126,'FSA23'!$E$5:$K$288,6,0) -> 39.52 | K126: =VLOOKUP($B126,'FSA23'!$E$5:$K$288,7,0) -> 48.26 | L126: 42.484 | M126: 42.5828 | N126: 42.45136 | R126: 2.11 | S126: 0.53 | T126: 0.64 | V126: =C126-($S126*6) ->  | W126: =D126-($S126*5) ->  | X126: 48.24 | Y126: 50.99 | Z126: 41.99 | AA126: 43.24 | AB126: 36.76 | AC126: 39.52 | AD126: 48.26 | AE126: 42.484 | AF126: 42.5828
B127: IsabellaWheatAll | C127: =VLOOKUP($B127,#REF!,3,0) ->  | D127: =VLOOKUP($B127,#REF!,4,0) ->  | E127: =VLOOKUP($B127,'FSA21'!$E$5:$K$183,3,0) -> 87.46 | F127: =VLOOKUP($B127,'FSA21'!$E$5:$K$183,4,0) -> 81.45 | G127: =VLOOKUP($B127,'FSA23'!$E$5:$K$288,3,0) -> 77.85 | H127: =VLOOKUP($B127,'FSA23'!$E$5:$K$288,4,0) -> 82.51 | I127: =VLOOKUP($B127,'FSA23'!$E$5:$K$288,5,0) -> 61.21 | J127: =VLOOKUP($B127,'FSA23'!$E$5:$K$288,6,0) -> 59.96 | K127: =VLOOKUP($B127,'FSA23'!$E$5:$K$288,7,0) -> 88.02 | L127: =AVERAGE(G127:K127)+$T127 -> 74.55 | M127: =AVERAGE(H127:L127)+$T127 -> 73.89 | N127: =AVERAGE(I127:M127)+$T127 -> 72.166 | R127: 2.11 | S127: 0.53 | T127: 0.64 | V127: =C127-($T127*6) ->  | W127: =D127-($T127*5) ->  | X127: 87.46 | Y127: 81.45 | Z127: 77.85 | AA127: 82.51 | AB127: 61.21 | AC127: 59.96 | AD127: 88.02 | AE127: 74.55 | AF127: 73.89
B128: JacksonCornIrrigated | C128: =VLOOKUP($B128,#REF!,3,0) ->  | D128: =VLOOKUP($B128,#REF!,4,0) ->  | E128: =VLOOKUP($B128,#REF!,5,0) ->  | F128: =VLOOKUP($B128,#REF!,6,0) ->  | G128: =VLOOKUP($B128,'FSA23'!$E$5:$K$288,3,0) -> 231.79 | H128: =VLOOKUP($B128,'FSA23'!$E$5:$K$288,4,0) -> 210.8 | I128: =VLOOKUP($B128,'FSA23'!$E$5:$K$288,5,0) -> 206 | J128: =VLOOKUP($B128,'FSA23'!$E$5:$K$288,6,0) -> 217.79 | K128: =VLOOKUP($B128,'FSA23'!$E$5:$K$288,7,0) -> 193.05 | L128: =AVERAGE(G128:K128)+$R128 -> 213.316 | M128: 209.6212 | N128: 209.38544 | R128: 1.43 | S128: 0.42 | T128: 0.73 | V128: =C128-($R128*6) ->  | W128: =D128-($R128*5) ->  | Z128: 231.79 | AA128: 210.8 | AB128: 206 | AC128: 217.79 | AD128: 193.05 | AE128: 213.316 | AF128: 209.6212
B129: JacksonCornNonirrigated | C129: =VLOOKUP($B129,#REF!,3,0) ->  | D129: =VLOOKUP($B129,#REF!,4,0) ->  | E129: =VLOOKUP($B129,'FSA21'!$E$5:$K$183,3,0) -> 154.06 | F129: =VLOOKUP($B129,'FSA21'!$E$5:$K$183,4,0) -> 123 | G129: =VLOOKUP($B129,'FSA23'!$E$5:$K$288,3,0) -> 134.13 | H129: =VLOOKUP($B129,'FSA23'!$E$5:$K$288,4,0) -> 137.18 | I129: =VLOOKUP($B129,'FSA23'!$E$5:$K$288,5,0) -> 157.44 | J129: =VLOOKUP($B129,'FSA23'!$E$5:$K$288,6,0) -> 137.75 | K129: =VLOOKUP($B129,'FSA23'!$E$5:$K$288,7,0) -> 166.76 | L129: 148.082 | M129: 150.8724 | N129: 153.61088 | R129: 1.43 | S129: 0.42 | T129: 0.73 | V129: =C129-($R129*6) ->  | W129: =D129-($R129*5) ->  | X129: 154.06 | Y129: 123 | Z129: 134.13 | AA129: 137.18 | AB129: 157.44 | AC129: 137.75 | AD129: 166.76 | AE129: 148.082 | AF129: 150.8724
B130: JacksonSoybeansIrrigated | C130: =VLOOKUP($B130,#REF!,3,0) ->  | D130: =VLOOKUP($B130,#REF!,4,0) ->  | E130: =VLOOKUP($B130,#REF!,5,0) ->  | F130: =VLOOKUP($B130,#REF!,6,0) ->  | G130: =VLOOKUP($B130,'FSA23'!$E$5:$K$288,3,0) -> 59.69 | H130: =VLOOKUP($B130,'FSA23'!$E$5:$K$288,4,0) -> 58.05 | I130: =VLOOKUP($B130,'FSA23'!$E$5:$K$288,5,0) -> 59.29 | J130: =VLOOKUP($B130,'FSA23'!$E$5:$K$288,6,0) -> 55.37 | K130: =VLOOKUP($B130,'FSA23'!$E$5:$K$288,7,0) -> 58.28 | L130: =AVERAGE(G130:K130)+$S130 -> 58.556 | M130: 58.3292 | N130: 58.38504 | R130: 1.43 | S130: 0.42 | T130: 0.73 | V130: =C130-($S130*6) ->  | W130: =D130-($S130*5) ->  | Z130: 59.69 | AA130: 58.05 | AB130: 59.29 | AC130: 55.37 | AD130: 58.28 | AE130: 58.556 | AF130: 58.3292
B131: JacksonSoybeansNonirrigated | C131: =VLOOKUP($B131,#REF!,3,0) ->  | D131: =VLOOKUP($B131,#REF!,4,0) ->  | E131: =VLOOKUP($B131,'FSA21'!$E$5:$K$183,3,0) -> 43.68 | F131: =VLOOKUP($B131,'FSA21'!$E$5:$K$183,4,0) -> 48.19 | G131: =VLOOKUP($B131,'FSA23'!$E$5:$K$288,3,0) -> 35.21 | H131: =VLOOKUP($B131,'FSA23'!$E$5:$K$288,4,0) -> 43.35 | I131: =VLOOKUP($B131,'FSA23'!$E$5:$K$288,5,0) -> 44.01 | J131: =VLOOKUP($B131,'FSA23'!$E$5:$K$288,6,0) -> 40.13 | K131: =VLOOKUP($B131,'FSA23'!$E$5:$K$288,7,0) -> 48.63 | L131: 42.686 | M131: 44.1812 | N131: 44.34744 | R131: 1.43 | S131: 0.42 | T131: 0.73 | V131: =C131-($S131*6) ->  | W131: =D131-($S131*5) ->  | X131: =E131 -> 43.68 | Y131: =F131 -> 48.19 | Z131: =G131 -> 35.21 | AA131: =H131 -> 43.35 | AB131: =I131 -> 44.01 | AC131: =J131 -> 40.13 | AD131: =K131 -> 48.63 | AE131: =L131 -> 42.686 | AF131: =M131 -> 44.1812
B132: JacksonWheatAll | C132: =VLOOKUP($B132,#REF!,3,0) ->  | D132: =VLOOKUP($B132,#REF!,4,0) ->  | E132: =VLOOKUP($B132,'FSA21'!$E$5:$K$183,3,0) -> 75.16 | F132: =VLOOKUP($B132,'FSA21'!$E$5:$K$183,4,0) -> 81.9 | G132: =VLOOKUP($B132,'FSA23'!$E$5:$K$288,3,0) -> 77.73 | H132: =VLOOKUP($B132,'FSA23'!$E$5:$K$288,4,0) -> 65.08 | I132: =VLOOKUP($B132,'FSA23'!$E$5:$K$288,5,0) -> 70.31 | J132: =VLOOKUP($B132,'FSA23'!$E$5:$K$288,6,0) -> 70.22 | K132: =VLOOKUP($B132,'FSA23'!$E$5:$K$288,7,0) -> 59.14 | L132: =AVERAGE(G132:K132)+$T132 -> 69.226 | M132: =AVERAGE(H132:L132)+$T132 -> 67.5252 | N132: =AVERAGE(I132:M132)+$T132 -> 68.01424 | R132: 1.43 | S132: 0.42 | T132: 0.73 | V132: =C132-($T132*6) ->  | W132: =D132-($T132*5) ->  | X132: 75.16 | Y132: 81.9 | Z132: 77.73 | AA132: 65.08 | AB132: 70.31 | AC132: 70.22 | AD132: 59.14 | AE132: 69.226 | AF132: 67.5252
B133: KalamazooCornIrrigated | C133: =VLOOKUP($B133,#REF!,3,0) ->  | D133: =VLOOKUP($B133,#REF!,4,0) ->  | E133: =VLOOKUP($B133,'FSA21'!$E$5:$K$183,3,0) -> 211.35 | F133: =VLOOKUP($B133,'FSA21'!$E$5:$K$183,4,0) -> 214.5 | G133: =VLOOKUP($B133,'FSA23'!$E$5:$K$288,3,0) -> 220.53 | H133: =VLOOKUP($B133,'FSA23'!$E$5:$K$288,4,0) -> 161.55 | I133: =VLOOKUP($B133,'FSA23'!$E$5:$K$288,5,0) -> 193.97 | J133: =VLOOKUP($B133,'FSA23'!$E$5:$K$288,6,0) -> 217.06 | K133: =VLOOKUP($B133,'FSA23'!$E$5:$K$288,7,0) -> 221.97 | L133: =AVERAGE(G133:K133)+$R133 -> 205.076 | M133: 201.9852 | N133: 210.07224 | R133: 2.06 | S133: 0.52 | T133: 0.65 | V133: =C133-($R133*6) ->  | W133: =D133-($R133*5) ->  | X133: 211.35 | Y133: 214.5 | Z133: 220.53 | AA133: 161.55 | AB133: 193.97 | AC133: 217.06 | AD133: 221.97 | AE133: 205.076 | AF133: 201.9852
B134: KalamazooCornNonirrigated | C134: =VLOOKUP($B134,#REF!,3,0) ->  | D134: =VLOOKUP($B134,#REF!,4,0) ->  | E134: =VLOOKUP($B134,'FSA21'!$E$5:$K$183,3,0) -> 169.75 | F134: =VLOOKUP($B134,'FSA21'!$E$5:$K$183,4,0) -> 161.79 | G134: =VLOOKUP($B134,'FSA23'!$E$5:$K$288,3,0) -> 151.81 | H134: =VLOOKUP($B134,'FSA23'!$E$5:$K$288,4,0) -> 153.4 | I134: =VLOOKUP($B134,'FSA23'!$E$5:$K$288,5,0) -> 143.9 | J134: =VLOOKUP($B134,'FSA23'!$E$5:$K$288,6,0) -> 140.77 | K134: =VLOOKUP($B134,'FSA23'!$E$5:$K$288,7,0) -> 171.77 | L134: 154.39 | M134: 154.906 | N134: 155.2072 | R134: 2.06 | S134: 0.52 | T134: 0.65 | V134: =C134-($R134*6) ->  | W134: =D134-($R134*5) ->  | X134: 169.75 | Y134: 161.79 | Z134: 151.81 | AA134: 153.4 | AB134: 143.9 | AC134: 140.77 | AD134: 171.77 | AE134: 154.39 | AF134: 154.906
B135: KalamazooSoybeansIrrigated | C135: =VLOOKUP($B135,#REF!,3,0) ->  | D135: =VLOOKUP($B135,#REF!,4,0) ->  | E135: =VLOOKUP($B135,#REF!,5,0) ->  | F135: =VLOOKUP($B135,#REF!,6,0) ->  | G135: =VLOOKUP($B135,'FSA23'!$E$5:$K$288,3,0) -> 57.7 | H135: =VLOOKUP($B135,'FSA23'!$E$5:$K$288,4,0) -> 69.23 | I135: =VLOOKUP($B135,'FSA23'!$E$5:$K$288,5,0) -> 59.37 | J135: =VLOOKUP($B135,'FSA23'!$E$5:$K$288,6,0) -> 67.17 | K135: =VLOOKUP($B135,'FSA23'!$E$5:$K$288,7,0) -> 65.54 | L135: =AVERAGE(G135:K135)+$S135 -> 64.322 | M135: 65.6464 | N135: 64.92968 | R135: 2.06 | S135: 0.52 | T135: 0.65 | V135: =C135-($S135*6) ->  | W135: =D135-($S135*5) ->  | Z135: 57.7 | AA135: 69.23 | AB135: 59.37 | AC135: 67.17 | AD135: 65.54 | AE135: 64.322 | AF135: 65.6464
B136: KalamazooSoybeansNonirrigated | C136: =VLOOKUP($B136,#REF!,3,0) ->  | D136: =VLOOKUP($B136,#REF!,4,0) ->  | E136: =VLOOKUP($B136,'FSA21'!$E$5:$K$183,3,0) -> 48.58 | F136: =VLOOKUP($B136,'FSA21'!$E$5:$K$183,4,0) -> 50.89 | G136: =VLOOKUP($B136,'FSA23'!$E$5:$K$288,3,0) -> 39.31 | H136: =VLOOKUP($B136,'FSA23'!$E$5:$K$288,4,0) -> 48.22 | I136: =VLOOKUP($B136,'FSA23'!$E$5:$K$288,5,0) -> 42.81 | J136: =VLOOKUP($B136,'FSA23'!$E$5:$K$288,6,0) -> 38.48 | K136: =VLOOKUP($B136,'FSA23'!$E$5:$K$288,7,0) -> 50.49 | L136: 44.382 | M136: 45.3964 | N136: 44.83168 | R136: 2.06 | S136: 0.52 | T136: 0.65 | V136: =C136-($S136*6) ->  | W136: =D136-($S136*5) ->  | X136: 48.58 | Y136: 50.89 | Z136: 39.31 | AA136: 48.22 | AB136: 42.81 | AC136: 38.48 | AD136: 50.49 | AE136: 44.382 | AF136: 45.3964
B137: KalamazooWheatAll | C137: =VLOOKUP($B137,#REF!,3,0) ->  | D137: =VLOOKUP($B137,#REF!,4,0) ->  | E137: =VLOOKUP($B137,'FSA21'!$E$5:$K$183,3,0) -> 73.89 | F137: =VLOOKUP($B137,'FSA21'!$E$5:$K$183,4,0) -> 74.63 | G137: =VLOOKUP($B137,'FSA23'!$E$5:$K$288,3,0) -> 73.84 | H137: =VLOOKUP($B137,'FSA23'!$E$5:$K$288,4,0) -> 68.97 | I137: =VLOOKUP($B137,'FSA23'!$E$5:$K$288,5,0) -> 63.89 | J137: =VLOOKUP($B137,'FSA23'!$E$5:$K$288,6,0) -> 68.54 | K137: =VLOOKUP($B137,'FSA23'!$E$5:$K$288,7,0) -> 55.04 | L137: =AVERAGE(G137:K137)+$T137 -> 66.706 | M137: =AVERAGE(H137:L137)+$T137 -> 65.2792 | N137: =AVERAGE(I137:M137)+$T137 -> 64.54104 | R137: 2.06 | S137: 0.52 | T137: 0.65 | V137: =C137-($T137*6) ->  | W137: =D137-($T137*5) ->  | X137: 73.89 | Y137: 74.63 | Z137: 73.84 | AA137: 68.97 | AB137: 63.89 | AC137: 68.54 | AD137: 55.04 | AE137: 66.706 | AF137: 65.2792
B138: KalkaskaCornAll | C138: =VLOOKUP($B138,#REF!,3,0) ->  | D138: =VLOOKUP($B138,#REF!,4,0) ->  | E138: =VLOOKUP($B138,#REF!,5,0) ->  | F138: =VLOOKUP($B138,#REF!,6,0) ->  | G138: =VLOOKUP($B138,'FSA23'!$E$5:$K$288,3,0) -> 129 | H138: =VLOOKUP($B138,'FSA23'!$E$5:$K$288,4,0) -> 111 | I138: =VLOOKUP($B138,'FSA23'!$E$5:$K$288,5,0) -> 62.4 | J138: =VLOOKUP($B138,'FSA23'!$E$5:$K$288,6,0) -> 104.2 | K138: =VLOOKUP($B138,'FSA23'!$E$5:$K$288,7,0) -> 120.23 | L138: =AVERAGE(G138:K138)+$R138 -> 106.276 | M138: =AVERAGE(H138:L138)+$R138 -> 101.7312 | N138: =AVERAGE(I138:M138)+$R138 -> 99.87744 | R138: 0.91 | S138: 0.28 | T138: 0.25 | V138: =C138-($R138*6) ->  | W138: =D138-($R138*5) ->  | Z138: 129 | AA138: 111 | AB138: 62.4 | AC138: 104.2 | AD138: 120.23 | AE138: 106.276 | AF138: 101.7312
B139: KalkaskaSoybeansAll | C139: =VLOOKUP($B139,#REF!,3,0) ->  | D139: =VLOOKUP($B139,#REF!,4,0) ->  | E139: =VLOOKUP($B139,'FSA21'!$E$5:$K$183,3,0) -> 36 | F139: =VLOOKUP($B139,'FSA21'!$E$5:$K$183,4,0) -> 36 | G139: =VLOOKUP($B139,'FSA23'!$E$5:$K$288,3,0) -> 37 | H139: =VLOOKUP($B139,'FSA23'!$E$5:$K$288,4,0) -> 37 | I139: =VLOOKUP($B139,'FSA23'!$E$5:$K$288,5,0) -> 34.4 | J139: =VLOOKUP($B139,'FSA23'!$E$5:$K$288,6,0) -> 35.2 | K139: =VLOOKUP($B139,'FSA23'!$E$5:$K$288,7,0) -> 43.36 | L139: =AVERAGE(G139:K139)+$S139 -> 37.672 | M139: =AVERAGE(H139:L139)+$S139 -> 37.8064 | N139: =AVERAGE(I139:M139)+$S139 -> 37.96768 | R139: 0.91 | S139: 0.28 | T139: 0.25 | V139: =C139-($S139*6) ->  | W139: =D139-($S139*5) ->  | X139: 36 | Y139: 36 | Z139: 37 | AA139: 37 | AB139: 34.4 | AC139: 35.2 | AD139: 43.36 | AE139: 37.672 | AF139: 37.8064
B140: KalkaskaWheatAll | C140: =VLOOKUP($B140,#REF!,3,0) ->  | D140: =VLOOKUP($B140,#REF!,4,0) ->  | E140: =VLOOKUP($B140,'FSA21'!$E$5:$K$183,3,0) -> 72.1 | F140: =VLOOKUP($B140,'FSA21'!$E$5:$K$183,4,0) -> 67.54 | G140: =VLOOKUP($B140,'FSA23'!$E$5:$K$288,3,0) -> 52 | H140: =VLOOKUP($B140,'FSA23'!$E$5:$K$288,4,0) -> 71.56 | I140: =VLOOKUP($B140,'FSA23'!$E$5:$K$288,5,0) -> 53.1 | J140: =VLOOKUP($B140,'FSA23'!$E$5:$K$288,6,0) -> 48.63 | K140: =VLOOKUP($B140,'FSA23'!$E$5:$K$288,7,0) -> 61.92 | L140: =AVERAGE(G140:K140)+$T140 -> 57.692 | M140: =AVERAGE(H140:L140)+$T140 -> 58.8304 | N140: =AVERAGE(I140:M140)+$T140 -> 56.28448 | R140: 0.91 | S140: 0.28 | T140: 0.25 | V140: =C140-($T140*6) ->  | W140: =D140-($T140*5) ->  | X140: 72.1 | Y140: 67.54 | Z140: 52 | AA140: 71.56 | AB140: 53.1 | AC140: 48.63 | AD140: 61.92 | AE140: 57.692 | AF140: 58.8304
B141: KentCornIrrigated | C141: =VLOOKUP($B141,#REF!,3,0) ->  | D141: =VLOOKUP($B141,#REF!,4,0) ->  | E141: =VLOOKUP($B141,#REF!,5,0) ->  | F141: =VLOOKUP($B141,#REF!,6,0) ->  | G141: =VLOOKUP($B141,'FSA23'!$E$5:$K$288,3,0) -> 205.72 | H141: =VLOOKUP($B141,'FSA23'!$E$5:$K$288,4,0) -> 170.59 | I141: =VLOOKUP($B141,'FSA23'!$E$5:$K$288,5,0) -> 181.61 | J141: =VLOOKUP($B141,'FSA23'!$E$5:$K$288,6,0) -> 199.97 | K141: =VLOOKUP($B141,'FSA23'!$E$5:$K$288,7,0) -> 201.72 | L141: =AVERAGE(G141:K141)+$R141 -> 193.892 | M141: 191.5264 | N141: 195.71368 | R141: 1.97 | S141: 0.57 | T141: 0.83 | V141: =C141-($R141*6) ->  | W141: =D141-($R141*5) ->  | Z141: 205.72 | AA141: 170.59 | AB141: 181.61 | AC141: 199.97 | AD141: 201.72 | AE141: 193.892 | AF141: 191.5264
B142: KentCornNonirrigated | C142: =VLOOKUP($B142,#REF!,3,0) ->  | D142: =VLOOKUP($B142,#REF!,4,0) ->  | E142: =VLOOKUP($B142,'FSA21'!$E$5:$K$183,3,0) -> 173.25 | F142: =VLOOKUP($B142,'FSA21'!$E$5:$K$183,4,0) -> 170.52 | G142: =VLOOKUP($B142,'FSA23'!$E$5:$K$288,3,0) -> 158.54 | H142: =VLOOKUP($B142,'FSA23'!$E$5:$K$288,4,0) -> 151.22 | I142: =VLOOKUP($B142,'FSA23'!$E$5:$K$288,5,0) -> 151.37 | J142: =VLOOKUP($B142,'FSA23'!$E$5:$K$288,6,0) -> 169.27 | K142: =VLOOKUP($B142,'FSA23'!$E$5:$K$288,7,0) -> 186.03 | L142: 165.256 | M142: 166.5992 | N142: 169.67504 | R142: 1.97 | S142: 0.57 | T142: 0.83 | V142: =C142-($R142*6) ->  | W142: =D142-($R142*5) ->  | X142: 173.25 | Y142: 170.52 | Z142: 158.54 | AA142: 151.22 | AB142: 151.37 | AC142: 169.27 | AD142: 186.03 | AE142: 165.256 | AF142: 166.5992
B143: KentSoybeansIrrigated | C143: =VLOOKUP($B143,#REF!,3,0) ->  | D143: =VLOOKUP($B143,#REF!,4,0) ->  | E143: =VLOOKUP($B143,#REF!,5,0) ->  | F143: =VLOOKUP($B143,#REF!,6,0) ->  | G143: =VLOOKUP($B143,'FSA23'!$E$5:$K$288,3,0) -> 48.54 | H143: =VLOOKUP($B143,'FSA23'!$E$5:$K$288,4,0) -> 66.62 | I143: =VLOOKUP($B143,'FSA23'!$E$5:$K$288,5,0) -> 47.56 | J143: =VLOOKUP($B143,'FSA23'!$E$5:$K$288,6,0) -> 60.15 | K143: =VLOOKUP($B143,'FSA23'!$E$5:$K$288,7,0) -> 60.38 | L143: =AVERAGE(G143:K143)+$S143 -> 57.22 | M143: 58.956 | N143: 57.4232 | R143: 1.97 | S143: 0.57 | T143: 0.83 | V143: =C143-($S143*6) ->  | W143: =D143-($S143*5) ->  | Z143: 48.54 | AA143: 66.62 | AB143: 47.56 | AC143: 60.15 | AD143: 60.38 | AE143: 57.22 | AF143: 58.956
B144: KentSoybeansNonirrigated | C144: =VLOOKUP($B144,#REF!,3,0) ->  | D144: =VLOOKUP($B144,#REF!,4,0) ->  | E144: =VLOOKUP($B144,'FSA21'!$E$5:$K$183,3,0) -> 50.8 | F144: =VLOOKUP($B144,'FSA21'!$E$5:$K$183,4,0) -> 53.97 | G144: =VLOOKUP($B144,'FSA23'!$E$5:$K$288,3,0) -> 43.61 | H144: =VLOOKUP($B144,'FSA23'!$E$5:$K$288,4,0) -> 46.72 | I144: =VLOOKUP($B144,'FSA23'!$E$5:$K$288,5,0) -> 45.26 | J144: =VLOOKUP($B144,'FSA23'!$E$5:$K$288,6,0) -> 47.67 | K144: =VLOOKUP($B144,'FSA23'!$E$5:$K$288,7,0) -> 53.19 | L144: 47.86 | M144: 48.71 | N144: 49.108 | R144: 1.97 | S144: 0.57 | T144: 0.83 | V144: =C144-($S144*6) ->  | W144: =D144-($S144*5) ->  | X144: 50.8 | Y144: 53.97 | Z144: 43.61 | AA144: 46.72 | AB144: 45.26 | AC144: 47.67 | AD144: 53.19 | AE144: 47.86 | AF144: 48.71
B145: KentWheatAll | C145: =VLOOKUP($B145,#REF!,3,0) ->  | D145: =VLOOKUP($B145,#REF!,4,0) ->  | E145: =VLOOKUP($B145,'FSA21'!$E$5:$K$183,3,0) -> 68.32 | F145: =VLOOKUP($B145,'FSA21'!$E$5:$K$183,4,0) -> 83.91 | G145: =VLOOKUP($B145,'FSA23'!$E$5:$K$288,3,0) -> 61.82 | H145: =VLOOKUP($B145,'FSA23'!$E$5:$K$288,4,0) -> 78.32 | I145: =VLOOKUP($B145,'FSA23'!$E$5:$K$288,5,0) -> 69.22 | J145: =VLOOKUP($B145,'FSA23'!$E$5:$K$288,6,0) -> 55.93 | K145: =VLOOKUP($B145,'FSA23'!$E$5:$K$288,7,0) -> 70.59 | L145: =AVERAGE(G145:K145)+$T145 -> 68.006 | M145: =AVERAGE(H145:L145)+$T145 -> 69.2432 | N145: =AVERAGE(I145:M145)+$T145 -> 67.42784 | R145: 1.97 | S145: 0.57 | T145: 0.83 | V145: =C145-($T145*6) ->  | W145: =D145-($T145*5) ->  | X145: 68.32 | Y145: 83.91 | Z145: 61.82 | AA145: 78.32 | AB145: 69.22 | AC145: 55.93 | AD145: 70.59 | AE145: 68.006 | AF145: 69.2432
B146: LakeCornAll | C146: =VLOOKUP($B146,#REF!,3,0) ->  | D146: =VLOOKUP($B146,#REF!,4,0) ->  | E146: =VLOOKUP($B146,#REF!,5,0) ->  | F146: =VLOOKUP($B146,#REF!,6,0) ->  | G146: =VLOOKUP($B146,'FSA23'!$E$5:$K$288,3,0) -> 140 | H146: =VLOOKUP($B146,'FSA23'!$E$5:$K$288,4,0) -> 78.17 | I146: =VLOOKUP($B146,'FSA23'!$E$5:$K$288,5,0) -> 138.51 | J146: =VLOOKUP($B146,'FSA23'!$E$5:$K$288,6,0) -> 154.4 | K146: =VLOOKUP($B146,'FSA23'!$E$5:$K$288,7,0) -> 157.86 | L146: =AVERAGE(G146:K146)+$R146 -> 135.448 | M146: =AVERAGE(H146:L146)+$R146 -> 134.5376 | N146: =AVERAGE(I146:M146)+$R146 -> 145.81112 | R146: 1.66 | T146: 0.72 | V146: =C146-($R146*6) ->  | W146: =D146-($R146*5) ->  | Z146: 140 | AA146: 78.17 | AB146: 138.51 | AC146: 154.4 | AD146: 157.86 | AE146: 135.448 | AF146: 134.5376
B147: LakeWheatAll | C147: =VLOOKUP($B147,#REF!,3,0) ->  | D147: =VLOOKUP($B147,#REF!,4,0) ->  | E147: =VLOOKUP($B147,#REF!,5,0) ->  | F147: =VLOOKUP($B147,#REF!,6,0) ->  | G147: =VLOOKUP($B147,'FSA23'!$E$5:$K$288,3,0) -> 65 | H147: =VLOOKUP($B147,'FSA23'!$E$5:$K$288,4,0) -> 66 | I147: =VLOOKUP($B147,'FSA23'!$E$5:$K$288,5,0) -> 51.6 | J147: =VLOOKUP($B147,'FSA23'!$E$5:$K$288,6,0) -> 52.97 | K147: =VLOOKUP($B147,'FSA23'!$E$5:$K$288,7,0) -> 66.97 | L147: =AVERAGE(G147:K147)+$T147 -> 61.228 | M147: =AVERAGE(H147:L147)+$T147 -> 60.4736 | N147: =AVERAGE(I147:M147)+$T147 -> 59.36832 | R147: 1.66 | T147: 0.72 | V147: =C147-($T147*6) ->  | W147: =D147-($T147*5) ->  | Z147: 65 | AA147: 66 | AB147: 51.6 | AC147: 52.97 | AD147: 66.97 | AE147: 61.228 | AF147: 60.4736
B148: LapeerCornAll | C148: =VLOOKUP($B148,#REF!,3,0) ->  | D148: =VLOOKUP($B148,#REF!,4,0) ->  | E148: =VLOOKUP($B148,'FSA21'!$E$5:$K$183,3,0) -> 189.99 | F148: =VLOOKUP($B148,'FSA21'!$E$5:$K$183,4,0) -> 180.01 | G148: =VLOOKUP($B148,'FSA23'!$E$5:$K$288,3,0) -> 194.26 | H148: =VLOOKUP($B148,'FSA23'!$E$5:$K$288,4,0) -> 184.31 | I148: =VLOOKUP($B148,'FSA23'!$E$5:$K$288,5,0) -> 151.59 | J148: =VLOOKUP($B148,'FSA23'!$E$5:$K$288,6,0) -> 177.55 | K148: =VLOOKUP($B148,'FSA23'!$E$5:$K$288,7,0) -> 189.34 | L148: =AVERAGE(G148:K148)+$R148 -> 181.32 | M148: =AVERAGE(H148:L148)+$R148 -> 178.732 | N148: =AVERAGE(I148:M148)+$R148 -> 177.6164 | R148: 1.91 | S148: 0.52 | T148: 0.9 | V148: =C148-($R148*6) ->  | W148: =D148-($R148*5) ->  | X148: 189.99 | Y148: 180.01 | Z148: 194.26 | AA148: 184.31 | AB148: 151.59 | AC148: 177.55 | AD148: 189.34 | AE148: 181.32 | AF148: 178.732
B149: LapeerSoybeansAll | C149: =VLOOKUP($B149,#REF!,3,0) ->  | D149: =VLOOKUP($B149,#REF!,4,0) ->  | E149: =VLOOKUP($B149,'FSA21'!$E$5:$K$183,3,0) -> 51.8 | F149: =VLOOKUP($B149,'FSA21'!$E$5:$K$183,4,0) -> 53.49 | G149: =VLOOKUP($B149,'FSA23'!$E$5:$K$288,3,0) -> 42.7 | H149: =VLOOKUP($B149,'FSA23'!$E$5:$K$288,4,0) -> 47.67 | I149: =VLOOKUP($B149,'FSA23'!$E$5:$K$288,5,0) -> 36.1 | J149: =VLOOKUP($B149,'FSA23'!$E$5:$K$288,6,0) -> 49.78 | K149: =VLOOKUP($B149,'FSA23'!$E$5:$K$288,7,0) -> 47.82 | L149: =AVERAGE(G149:K149)+$S149 -> 45.334 | M149: =AVERAGE(H149:L149)+$S149 -> 45.8608 | N149: =AVERAGE(I149:M149)+$S149 -> 45.49896 | R149: 1.91 | S149: 0.52 | T149: 0.9 | V149: =C149-($S149*6) ->  | W149: =D149-($S149*5) ->  | X149: 51.8 | Y149: 53.49 | Z149: 42.7 | AA149: 47.67 | AB149: 36.1 | AC149: 49.78 | AD149: 47.82 | AE149: 45.334 | AF149: 45.8608
B150: LapeerWheatAll | C150: =VLOOKUP($B150,#REF!,3,0) ->  | D150: =VLOOKUP($B150,#REF!,4,0) ->  | E150: =VLOOKUP($B150,'FSA21'!$E$5:$K$183,3,0) -> 79.9 | F150: =VLOOKUP($B150,'FSA21'!$E$5:$K$183,4,0) -> 91.66 | G150: =VLOOKUP($B150,'FSA23'!$E$5:$K$288,3,0) -> 77.84 | H150: =VLOOKUP($B150,'FSA23'!$E$5:$K$288,4,0) -> 81.67 | I150: =VLOOKUP($B150,'FSA23'!$E$5:$K$288,5,0) -> 59.65 | J150: =VLOOKUP($B150,'FSA23'!$E$5:$K$288,6,0) -> 68.08 | K150: =VLOOKUP($B150,'FSA23'!$E$5:$K$288,7,0) -> 80.15 | L150: =AVERAGE(G150:K150)+$T150 -> 74.378 | M150: =AVERAGE(H150:L150)+$T150 -> 73.6856 | N150: =AVERAGE(I150:M150)+$T150 -> 72.08872 | R150: 1.91 | S150: 0.52 | T150: 0.9 | V150: =C150-($T150*6) ->  | W150: =D150-($T150*5) ->  | X150: 79.9 | Y150: 91.66 | Z150: 77.84 | AA150: 81.67 | AB150: 59.65 | AC150: 68.08 | AD150: 80.15 | AE150: 74.378 | AF150: 73.6856
B151: LeelanauCornAll | C151: =VLOOKUP($B151,#REF!,3,0) ->  | D151: =VLOOKUP($B151,#REF!,4,0) ->  | E151: =VLOOKUP($B151,'FSA21'!$E$5:$K$183,3,0) -> 80.9 | F151: =VLOOKUP($B151,'FSA21'!$E$5:$K$183,4,0) -> 66.65 | G151: =VLOOKUP($B151,'FSA23'!$E$5:$K$288,3,0) -> 118.07 | H151: =VLOOKUP($B151,'FSA23'!$E$5:$K$288,4,0) -> 100.34 | I151: =VLOOKUP($B151,'FSA23'!$E$5:$K$288,5,0) -> 107.78 | J151: =VLOOKUP($B151,'FSA23'!$E$5:$K$288,6,0) -> 133.52 | K151: =VLOOKUP($B151,'FSA23'!$E$5:$K$288,7,0) -> 150.25 | L151: =AVERAGE(G151:K151)+$R151 -> 122.342 | M151: =AVERAGE(H151:L151)+$R151 -> 123.1964 | N151: =AVERAGE(I151:M151)+$R151 -> 127.76768 | R151: 0.35 | T151: 0.34 | V151: =C151-($R151*6) ->  | W151: =D151-($R151*5) ->  | X151: 80.9 | Y151: 66.65 | Z151: 118.07 | AA151: 100.34 | AB151: 107.78 | AC151: 133.52 | AD151: 150.25 | AE151: 122.342 | AF151: 123.1964
B152: LeelanauSoybeansAll | C152: =VLOOKUP($B152,#REF!,3,0) ->  | D152: =VLOOKUP($B152,#REF!,4,0) ->  | E152: =VLOOKUP($B152,#REF!,5,0) ->  | F152: =VLOOKUP($B152,#REF!,6,0) ->  | G152: =VLOOKUP($B152,'FSA23'!$E$5:$K$288,3,0) -> 45.13 | H152: =VLOOKUP($B152,'FSA23'!$E$5:$K$288,4,0) -> 40.8 | I152: =VLOOKUP($B152,'FSA23'!$E$5:$K$288,5,0) -> 40.8 | J152: =VLOOKUP($B152,'FSA23'!$E$5:$K$288,6,0) -> 40.8 | K152: =VLOOKUP($B152,'FSA23'!$E$5:$K$288,7,0) -> 40.92 | L152: =AVERAGE(G152:K152)+$S152 -> 41.69 | M152: =AVERAGE(H152:L152)+$S152 -> 41.002 | N152: =AVERAGE(I152:M152)+$S152 -> 41.0424 | R152: 0.35 | S152: 0 | T152: 0.34 | V152: =C152-($S152*6) ->  | W152: =D152-($S152*5) ->  | Z152: 45.13 | AA152: 40.8 | AB152: 40.8 | AC152: 40.8 | AD152: 40.92 | AE152: 41.69 | AF152: 41.002
B153: LeelanauWheatAll | C153: =VLOOKUP($B153,#REF!,3,0) ->  | D153: =VLOOKUP($B153,#REF!,4,0) ->  | E153: =VLOOKUP($B153,'FSA21'!$E$5:$K$183,3,0) -> 51 | F153: =VLOOKUP($B153,'FSA21'!$E$5:$K$183,4,0) -> 55 | G153: =VLOOKUP($B153,'FSA23'!$E$5:$K$288,3,0) -> 52 | H153: =VLOOKUP($B153,'FSA23'!$E$5:$K$288,4,0) -> 40 | I153: =VLOOKUP($B153,'FSA23'!$E$5:$K$288,5,0) -> 53.1 | J153: =VLOOKUP($B153,'FSA23'!$E$5:$K$288,6,0) -> 44.08 | K153: =VLOOKUP($B153,'FSA23'!$E$5:$K$288,7,0) -> 47.98 | L153: =AVERAGE(G153:K153)+$T153 -> 47.772 | M153: =AVERAGE(H153:L153)+$T153 -> 46.9264 | N153: =AVERAGE(I153:M153)+$T153 -> 48.31168 | R153: 0.35 | T153: 0.34 | V153: =C153-($T153*6) ->  | W153: =D153-($T153*5) ->  | X153: 51 | Y153: 55 | Z153: 52 | AA153: 40 | AB153: 53.1 | AC153: 44.08 | AD153: 47.98 | AE153: 47.772 | AF153: 46.9264
B154: LenaweeCornIrrigated | C154: =VLOOKUP($B154,#REF!,3,0) ->  | D154: =VLOOKUP($B154,#REF!,4,0) ->  | E154: =VLOOKUP($B154,#REF!,5,0) ->  | F154: =VLOOKUP($B154,#REF!,6,0) ->  | G154: =VLOOKUP($B154,'FSA23'!$E$5:$K$288,3,0) -> 232.36 | H154: =VLOOKUP($B154,'FSA23'!$E$5:$K$288,4,0) -> 211.03 | I154: =VLOOKUP($B154,'FSA23'!$E$5:$K$288,5,0) -> 216.26 | J154: =VLOOKUP($B154,'FSA23'!$E$5:$K$288,6,0) -> 215.93 | K154: =VLOOKUP($B154,'FSA23'!$E$5:$K$288,7,0) -> 210.42 | L154: =AVERAGE(G154:K154)+$R154 -> 219.01 | M154: 216.34 | N154: 217.402 | R154: 1.81 | S154: 0.4 | T154: 1.03 | V154: =C154-($R154*6) ->  | W154: =D154-($R154*5) ->  | Z154: 232.36 | AA154: 211.03 | AB154: 216.26 | AC154: 215.93 | AD154: 210.42 | AE154: 219.01 | AF154: 216.34
B155: LenaweeCornNonirrigated | C155: =VLOOKUP($B155,#REF!,3,0) ->  | D155: =VLOOKUP($B155,#REF!,4,0) ->  | E155: =VLOOKUP($B155,'FSA21'!$E$5:$K$183,3,0) -> 179.44 | F155: =VLOOKUP($B155,'FSA21'!$E$5:$K$183,4,0) -> 183.47 | G155: =VLOOKUP($B155,'FSA23'!$E$5:$K$288,3,0) -> 189.24 | H155: =VLOOKUP($B155,'FSA23'!$E$5:$K$288,4,0) -> 167.71 | I155: =VLOOKUP($B155,'FSA23'!$E$5:$K$288,5,0) -> 176.11 | J155: =VLOOKUP($B155,'FSA23'!$E$5:$K$288,6,0) -> 169.38 | K155: =VLOOKUP($B155,'FSA23'!$E$5:$K$288,7,0) -> 193.3 | L155: 180.958 | M155: 179.3016 | N155: 181.61992 | R155: 1.81 | S155: 0.4 | T155: 1.03 | V155: =C155-($R155*6) ->  | W155: =D155-($R155*5) ->  | X155: 179.44 | Y155: 183.47 | Z155: 189.24 | AA155: 167.71 | AB155: 176.11 | AC155: 169.38 | AD155: 193.3 | AE155: 180.958 | AF155: 179.3016
B156: LenaweeSoybeansIrrigated | C156: =VLOOKUP($B156,#REF!,3,0) ->  | D156: =VLOOKUP($B156,#REF!,4,0) ->  | E156: =VLOOKUP($B156,#REF!,5,0) ->  | F156: =VLOOKUP($B156,#REF!,6,0) ->  | G156: =VLOOKUP($B156,'FSA23'!$E$5:$K$288,3,0) -> 58.12 | H156: =VLOOKUP($B156,'FSA23'!$E$5:$K$288,4,0) -> 62 | I156: =VLOOKUP($B156,'FSA23'!$E$5:$K$288,5,0) -> 68.55 | J156: =VLOOKUP($B156,'FSA23'!$E$5:$K$288,6,0) -> 73.02 | K156: =VLOOKUP($B156,'FSA23'!$E$5:$K$288,7,0) -> 66.17 | L156: =AVERAGE(G156:K156)+$S156 -> 65.972 | M156: 67.5424 | N156: 68.65088 | R156: 1.81 | S156: 0.4 | T156: 1.03 | V156: =C156-($S156*6) ->  | W156: =D156-($S156*5) ->  | Z156: 58.12 | AA156: 62 | AB156: 68.55 | AC156: 73.02 | AD156: 66.17 | AE156: 65.972 | AF156: 67.5424
B157: LenaweeSoybeansNonirrigated | C157: =VLOOKUP($B157,#REF!,3,0) ->  | D157: =VLOOKUP($B157,#REF!,4,0) ->  | E157: =VLOOKUP($B157,'FSA21'!$E$5:$K$183,3,0) -> 52.69 | F157: =VLOOKUP($B157,'FSA21'!$E$5:$K$183,4,0) -> 59.82 | G157: =VLOOKUP($B157,'FSA23'!$E$5:$K$288,3,0) -> 51.91 | H157: =VLOOKUP($B157,'FSA23'!$E$5:$K$288,4,0) -> 54.22 | I157: =VLOOKUP($B157,'FSA23'!$E$5:$K$288,5,0) -> 51.92 | J157: =VLOOKUP($B157,'FSA23'!$E$5:$K$288,6,0) -> 50.31 | K157: =VLOOKUP($B157,'FSA23'!$E$5:$K$288,7,0) -> 54.68 | L157: 53.008 | M157: 53.2276 | N157: 53.02912 | R157: 1.81 | S157: 0.4 | T157: 1.03 | V157: =C157-($S157*6) ->  | W157: =D157-($S157*5) ->  | X157: 52.69 | Y157: 59.82 | Z157: 51.91 | AA157: 54.22 | AB157: 51.92 | AC157: 50.31 | AD157: 54.68 | AE157: 53.008 | AF157: 53.2276
B158: LenaweeWheatAll | C158: =VLOOKUP($B158,#REF!,3,0) ->  | D158: =VLOOKUP($B158,#REF!,4,0) ->  | E158: =VLOOKUP($B158,'FSA21'!$E$5:$K$183,3,0) -> 65.8 | F158: =VLOOKUP($B158,'FSA21'!$E$5:$K$183,4,0) -> 100.4 | G158: =VLOOKUP($B158,'FSA23'!$E$5:$K$288,3,0) -> 89.79 | H158: =VLOOKUP($B158,'FSA23'!$E$5:$K$288,4,0) -> 82.79 | I158: =VLOOKUP($B158,'FSA23'!$E$5:$K$288,5,0) -> 63.8 | J158: =VLOOKUP($B158,'FSA23'!$E$5:$K$288,6,0) -> 72.61 | K158: =VLOOKUP($B158,'FSA23'!$E$5:$K$288,7,0) -> 92.97 | L158: =AVERAGE(G158:K158)+$T158 -> 81.422 | M158: =AVERAGE(H158:L158)+$T158 -> 79.7484 | N158: =AVERAGE(I158:M158)+$T158 -> 79.14008 | R158: 1.81 | S158: 0.4 | T158: 1.03 | V158: =C158-($T158*6) ->  | W158: =D158-($T158*5) ->  | X158: 65.8 | Y158: 100.4 | Z158: 89.79 | AA158: 82.79 | AB158: 63.8 | AC158: 72.61 | AD158: 92.97 | AE158: 81.422 | AF158: 79.7484
B159: LivingstonCornAll | C159: =VLOOKUP($B159,#REF!,3,0) ->  | D159: =VLOOKUP($B159,#REF!,4,0) ->  | E159: =VLOOKUP($B159,'FSA21'!$E$5:$K$183,3,0) -> 183.11 | F159: =VLOOKUP($B159,'FSA21'!$E$5:$K$183,4,0) -> 154.99 | G159: =VLOOKUP($B159,'FSA23'!$E$5:$K$288,3,0) -> 167.78 | H159: =VLOOKUP($B159,'FSA23'!$E$5:$K$288,4,0) -> 139.72 | I159: =VLOOKUP($B159,'FSA23'!$E$5:$K$288,5,0) -> 168.57 | J159: =VLOOKUP($B159,'FSA23'!$E$5:$K$288,6,0) -> 170.28 | K159: =VLOOKUP($B159,'FSA23'!$E$5:$K$288,7,0) -> 180.43 | L159: =AVERAGE(G159:K159)+$R159 -> 167.126 | M159: =AVERAGE(H159:L159)+$R159 -> 166.9952 | N159: =AVERAGE(I159:M159)+$R159 -> 172.45024 | R159: 1.77 | S159: 0.55 | T159: 0.8 | V159: =C159-($R159*6) ->  | W159: =D159-($R159*5) ->  | X159: 183.11 | Y159: 154.99 | Z159: 167.78 | AA159: 139.72 | AB159: 168.57 | AC159: 170.28 | AD159: 180.43 | AE159: 167.126 | AF159: 166.9952
B160: LivingstonSoybeansAll | C160: =VLOOKUP($B160,#REF!,3,0) ->  | D160: =VLOOKUP($B160,#REF!,4,0) ->  | E160: =VLOOKUP($B160,'FSA21'!$E$5:$K$183,3,0) -> 49.16 | F160: =VLOOKUP($B160,'FSA21'!$E$5:$K$183,4,0) -> 52.34 | G160: =VLOOKUP($B160,'FSA23'!$E$5:$K$288,3,0) -> 41.61 | H160: =VLOOKUP($B160,'FSA23'!$E$5:$K$288,4,0) -> 48.33 | I160: =VLOOKUP($B160,'FSA23'!$E$5:$K$288,5,0) -> 47.13 | J160: =VLOOKUP($B160,'FSA23'!$E$5:$K$288,6,0) -> 47.05 | K160: =VLOOKUP($B160,'FSA23'!$E$5:$K$288,7,0) -> 51.01 | L160: =AVERAGE(G160:K160)+$S160 -> 47.576 | M160: =AVERAGE(H160:L160)+$S160 -> 48.7692 | N160: =AVERAGE(I160:M160)+$S160 -> 48.85704 | R160: 1.77 | S160: 0.55 | T160: 0.8 | V160: =C160-($S160*6) ->  | W160: =D160-($S160*5) ->  | X160: 49.16 | Y160: 52.34 | Z160: 41.61 | AA160: 48.33 | AB160: 47.13 | AC160: 47.05 | AD160: 51.01 | AE160: 47.576 | AF160: 48.7692
B161: LivingstonWheatAll | C161: =VLOOKUP($B161,#REF!,3,0) ->  | D161: =VLOOKUP($B161,#REF!,4,0) ->  | E161: =VLOOKUP($B161,'FSA21'!$E$5:$K$183,3,0) -> 78.41 | F161: =VLOOKUP($B161,'FSA21'!$E$5:$K$183,4,0) -> 84.02 | G161: =VLOOKUP($B161,'FSA23'!$E$5:$K$288,3,0) -> 81.42 | H161: =VLOOKUP($B161,'FSA23'!$E$5:$K$288,4,0) -> 73.96 | I161: =VLOOKUP($B161,'FSA23'!$E$5:$K$288,5,0) -> 58.03 | J161: =VLOOKUP($B161,'FSA23'!$E$5:$K$288,6,0) -> 72.83 | K161: =VLOOKUP($B161,'FSA23'!$E$5:$K$288,7,0) -> 67.19 | L161: =AVERAGE(G161:K161)+$T161 -> 71.486 | M161: =AVERAGE(H161:L161)+$T161 -> 69.4992 | N161: =AVERAGE(I161:M161)+$T161 -> 68.60704 | R161: 1.77 | S161: 0.55 | T161: 0.8 | V161: =C161-($T161*6) ->  | W161: =D161-($T161*5) ->  | X161: 78.41 | Y161: 84.02 | Z161: 81.42 | AA161: 73.96 | AB161: 58.03 | AC161: 72.83 | AD161: 67.19 | AE161: 71.486 | AF161: 69.4992
B162: LuceCornAll | C162: =VLOOKUP($B162,#REF!,3,0) ->  | D162: =VLOOKUP($B162,#REF!,4,0) ->  | E162: =VLOOKUP($B162,#REF!,5,0) ->  | F162: =VLOOKUP($B162,#REF!,6,0) ->  | G162: =VLOOKUP($B162,'FSA23'!$E$5:$K$288,3,0) -> 61.6 | H162: =VLOOKUP($B162,'FSA23'!$E$5:$K$288,4,0) -> 111 | I162: =VLOOKUP($B162,'FSA23'!$E$5:$K$288,5,0) -> 61.6 | J162: =VLOOKUP($B162,'FSA23'!$E$5:$K$288,6,0) -> 182.4 | K162: =VLOOKUP($B162,'FSA23'!$E$5:$K$288,7,0) -> 110.84 | L162: =AVERAGE(G162:K162)+$R162 -> 106.468 | M162: =AVERAGE(H162:L162)+$R162 -> 115.4416 | N162: =AVERAGE(I162:M162)+$R162 -> 116.32992 | R162: 0.98 | S162: 0.28 | T162: 0.64 | V162: =C162-($R162*6) ->  | W162: =D162-($R162*5) ->  | Z162: 61.6 | AA162: 111 | AB162: 61.6 | AC162: 182.4 | AD162: 110.84 | AE162: 106.468 | AF162: 115.4416
B163: LuceSoybeansAll | C163: =VLOOKUP($B163,#REF!,3,0) ->  | D163: =VLOOKUP($B163,#REF!,4,0) ->  | E163: =VLOOKUP($B163,#REF!,5,0) ->  | F163: =VLOOKUP($B163,#REF!,6,0) ->  | G163: =VLOOKUP($B163,'FSA23'!$E$5:$K$288,3,0) -> 37 | H163: =VLOOKUP($B163,'FSA23'!$E$5:$K$288,4,0) -> 37 | I163: =VLOOKUP($B163,'FSA23'!$E$5:$K$288,5,0) -> 34.4 | J163: =VLOOKUP($B163,'FSA23'!$E$5:$K$288,6,0) -> 40.1 | K163: =VLOOKUP($B163,'FSA23'!$E$5:$K$288,7,0) -> 33.2 | L163: =AVERAGE(G163:K163)+$S163 -> 36.62 | M163: =AVERAGE(H163:L163)+$S163 -> 36.544 | N163: =AVERAGE(I163:M163)+$S163 -> 36.4528 | R163: 0.98 | S163: 0.28 | T163: 0.64 | V163: =C163-($S163*6) ->  | W163: =D163-($S163*5) ->  | Z163: 37 | AA163: 37 | AB163: 34.4 | AC163: 40.1 | AD163: 33.2 | AE163: 36.62 | AF163: 36.544
B164: LuceWheatAll | C164: =VLOOKUP($B164,#REF!,3,0) ->  | D164: =VLOOKUP($B164,#REF!,4,0) ->  | E164: =VLOOKUP($B164,#REF!,5,0) ->  | F164: =VLOOKUP($B164,#REF!,6,0) ->  | G164: =VLOOKUP($B164,'FSA23'!$E$5:$K$288,3,0) -> 53.6 | H164: =VLOOKUP($B164,'FSA23'!$E$5:$K$288,4,0) -> 40 | I164: =VLOOKUP($B164,'FSA23'!$E$5:$K$288,5,0) -> 53.1 | J164: =VLOOKUP($B164,'FSA23'!$E$5:$K$288,6,0) -> 50.4 | K164: =VLOOKUP($B164,'FSA23'!$E$5:$K$288,7,0) -> 61.66 | L164: =AVERAGE(G164:K164)+$T164 -> 52.392 | M164: =AVERAGE(H164:L164)+$T164 -> 52.1504 | N164: =AVERAGE(I164:M164)+$T164 -> 54.58048 | R164: 0.98 | S164: 0.28 | T164: 0.64 | V164: =C164-($T164*6) ->  | W164: =D164-($T164*5) ->  | Z164: 53.6 | AA164: 40 | AB164: 53.1 | AC164: 50.4 | AD164: 61.66 | AE164: 52.392 | AF164: 52.1504
B165: MackinacCornAll | C165: =VLOOKUP($B165,#REF!,3,0) ->  | D165: =VLOOKUP($B165,#REF!,4,0) ->  | E165: =VLOOKUP($B165,#REF!,5,0) ->  | F165: =VLOOKUP($B165,#REF!,6,0) ->  | G165: =VLOOKUP($B165,'FSA23'!$E$5:$K$288,3,0) -> 61.6 | H165: =VLOOKUP($B165,'FSA23'!$E$5:$K$288,4,0) -> 111 | I165: =VLOOKUP($B165,'FSA23'!$E$5:$K$288,5,0) -> 61.6 | J165: =VLOOKUP($B165,'FSA23'!$E$5:$K$288,6,0) -> 182.9 | K165: =VLOOKUP($B165,'FSA23'!$E$5:$K$288,7,0) -> 110.84 | L165: =AVERAGE(G165:K165)+$R165 -> 106.598 | M165: =AVERAGE(H165:L165)+$R165 -> 115.5976 | N165: =AVERAGE(I165:M165)+$R165 -> 116.51712 | R165: 1.01 | T165: 0.7 | V165: =C165-($R165*6) ->  | W165: =D165-($R165*5) ->  | Z165: 61.6 | AA165: 111 | AB165: 61.6 | AC165: 182.9 | AD165: 110.84 | AE165: 106.598 | AF165: 115.5976
B166: MackinacWheatAll | C166: =VLOOKUP($B166,#REF!,3,0) ->  | D166: =VLOOKUP($B166,#REF!,4,0) ->  | E166: =VLOOKUP($B166,#REF!,5,0) ->  | F166: =VLOOKUP($B166,#REF!,6,0) ->  | G166: =VLOOKUP($B166,'FSA23'!$E$5:$K$288,3,0) -> 52 | H166: =VLOOKUP($B166,'FSA23'!$E$5:$K$288,4,0) -> 40 | I166: =VLOOKUP($B166,'FSA23'!$E$5:$K$288,5,0) -> 53.1 | J166: =VLOOKUP($B166,'FSA23'!$E$5:$K$288,6,0) -> 50.4 | K166: =VLOOKUP($B166,'FSA23'!$E$5:$K$288,7,0) -> 61.66 | L166: =AVERAGE(G166:K166)+$T166 -> 52.132 | M166: =AVERAGE(H166:L166)+$T166 -> 52.1584 | N166: =AVERAGE(I166:M166)+$T166 -> 54.59008 | R166: 1.01 | T166: 0.7 | V166: =C166-($T166*6) ->  | W166: =D166-($T166*5) ->  | Z166: 52 | AA166: 40 | AB166: 53.1 | AC166: 50.4 | AD166: 61.66 | AE166: 52.132 | AF166: 52.1584
B167: MacombCornAll | C167: =VLOOKUP($B167,#REF!,3,0) ->  | D167: =VLOOKUP($B167,#REF!,4,0) ->  | E167: =VLOOKUP($B167,'FSA21'!$E$5:$K$183,3,0) -> 169.58 | F167: =VLOOKUP($B167,'FSA21'!$E$5:$K$183,4,0) -> 187.86 | G167: =VLOOKUP($B167,'FSA23'!$E$5:$K$288,3,0) -> 190.48 | H167: =VLOOKUP($B167,'FSA23'!$E$5:$K$288,4,0) -> 190.42 | I167: =VLOOKUP($B167,'FSA23'!$E$5:$K$288,5,0) -> 160.03 | J167: =VLOOKUP($B167,'FSA23'!$E$5:$K$288,6,0) -> 169.91 | K167: =VLOOKUP($B167,'FSA23'!$E$5:$K$288,7,0) -> 178.74 | L167: =AVERAGE(G167:K167)+$R167 -> 179.856 | M167: =AVERAGE(H167:L167)+$R167 -> 177.7312 | N167: =AVERAGE(I167:M167)+$R167 -> 175.19344 | R167: 1.94 | S167: 0.38 | T167: 0.75 | V167: =C167-($R167*6) ->  | W167: =D167-($R167*5) ->  | X167: 169.58 | Y167: 187.86 | Z167: 190.48 | AA167: 190.42 | AB167: 160.03 | AC167: 169.91 | AD167: 178.74 | AE167: 179.856 | AF167: 177.7312
B168: MacombSoybeansAll | C168: =VLOOKUP($B168,#REF!,3,0) ->  | D168: =VLOOKUP($B168,#REF!,4,0) ->  | E168: =VLOOKUP($B168,'FSA21'!$E$5:$K$183,3,0) -> 44.11 | F168: =VLOOKUP($B168,'FSA21'!$E$5:$K$183,4,0) -> 52.73 | G168: =VLOOKUP($B168,'FSA23'!$E$5:$K$288,3,0) -> 43.96 | H168: =VLOOKUP($B168,'FSA23'!$E$5:$K$288,4,0) -> 47.56 | I168: =VLOOKUP($B168,'FSA23'!$E$5:$K$288,5,0) -> 37.51 | J168: =VLOOKUP($B168,'FSA23'!$E$5:$K$288,6,0) -> 42.2 | K168: =VLOOKUP($B168,'FSA23'!$E$5:$K$288,7,0) -> 41.52 | L168: =AVERAGE(G168:K168)+$S168 -> 42.93 | M168: =AVERAGE(H168:L168)+$S168 -> 42.724 | N168: =AVERAGE(I168:M168)+$S168 -> 41.7568 | R168: 1.94 | S168: 0.38 | T168: 0.75 | V168: =C168-($S168*6) ->  | W168: =D168-($S168*5) ->  | X168: 44.11 | Y168: 52.73 | Z168: 43.96 | AA168: 47.56 | AB168: 37.51 | AC168: 42.2 | AD168: 41.52 | AE168: 42.93 | AF168: 42.724
B169: MacombWheatAll | C169: =VLOOKUP($B169,#REF!,3,0) ->  | D169: =VLOOKUP($B169,#REF!,4,0) ->  | E169: =VLOOKUP($B169,'FSA21'!$E$5:$K$183,3,0) -> 71.22 | F169: =VLOOKUP($B169,'FSA21'!$E$5:$K$183,4,0) -> 85.67 | G169: =VLOOKUP($B169,'FSA23'!$E$5:$K$288,3,0) -> 71.16 | H169: =VLOOKUP($B169,'FSA23'!$E$5:$K$288,4,0) -> 74.18 | I169: =VLOOKUP($B169,'FSA23'!$E$5:$K$288,5,0) -> 67.26 | J169: =VLOOKUP($B169,'FSA23'!$E$5:$K$288,6,0) -> 68.66 | K169: =VLOOKUP($B169,'FSA23'!$E$5:$K$288,7,0) -> 68.3 | L169: =AVERAGE(G169:K169)+$T169 -> 70.662 | M169: =AVERAGE(H169:L169)+$T169 -> 70.5624 | N169: =AVERAGE(I169:M169)+$T169 -> 69.83888 | R169: 1.94 | S169: 0.38 | T169: 0.75 | V169: =C169-($T169*6) ->  | W169: =D169-($T169*5) ->  | X169: 71.22 | Y169: 85.67 | Z169: 71.16 | AA169: 74.18 | AB169: 67.26 | AC169: 68.66 | AD169: 68.3 | AE169: 70.662 | AF169: 70.5624
B170: ManisteeCornAll | C170: =VLOOKUP($B170,#REF!,3,0) ->  | D170: =VLOOKUP($B170,#REF!,4,0) ->  | E170: =VLOOKUP($B170,'FSA21'!$E$5:$K$183,3,0) -> 139.55 | F170: =VLOOKUP($B170,'FSA21'!$E$5:$K$183,4,0) -> 152.82 | G170: =VLOOKUP($B170,'FSA23'!$E$5:$K$288,3,0) -> 127.48 | H170: =VLOOKUP($B170,'FSA23'!$E$5:$K$288,4,0) -> 148.52 | I170: =VLOOKUP($B170,'FSA23'!$E$5:$K$288,5,0) -> 108.6 | J170: =VLOOKUP($B170,'FSA23'!$E$5:$K$288,6,0) -> 120.05 | K170: =VLOOKUP($B170,'FSA23'!$E$5:$K$288,7,0) -> 155.07 | L170: =AVERAGE(G170:K170)+$R170 -> 133.004 | M170: =AVERAGE(H170:L170)+$R170 -> 134.1088 | N170: =AVERAGE(I170:M170)+$R170 -> 131.22656 | R170: 1.06 | T170: 0.3 | V170: =C170-($R170*6) ->  | W170: =D170-($R170*5) ->  | X170: 139.55 | Y170: 152.82 | Z170: 127.48 | AA170: 148.52 | AB170: 108.6 | AC170: 120.05 | AD170: 155.07 | AE170: 133.004 | AF170: 134.1088
B171: ManisteeWheatAll | C171: =VLOOKUP($B171,#REF!,3,0) ->  | D171: =VLOOKUP($B171,#REF!,4,0) ->  | E171: =VLOOKUP($B171,'FSA21'!$E$5:$K$183,3,0) -> 51 | F171: =VLOOKUP($B171,'FSA21'!$E$5:$K$183,4,0) -> 55 | G171: =VLOOKUP($B171,'FSA23'!$E$5:$K$288,3,0) -> 52 | H171: =VLOOKUP($B171,'FSA23'!$E$5:$K$288,4,0) -> 40 | I171: =VLOOKUP($B171,'FSA23'!$E$5:$K$288,5,0) -> 53.1 | J171: =VLOOKUP($B171,'FSA23'!$E$5:$K$288,6,0) -> 46 | K171: =VLOOKUP($B171,'FSA23'!$E$5:$K$288,7,0) -> 63.48 | L171: =AVERAGE(G171:K171)+$T171 -> 51.216 | M171: =AVERAGE(H171:L171)+$T171 -> 51.0592 | N171: =AVERAGE(I171:M171)+$T171 -> 53.27104 | R171: 1.06 | T171: 0.3 | V171: =C171-($T171*6) ->  | W171: =D171-($T171*5) ->  | X171: 51 | Y171: 55 | Z171: 52 | AA171: 40 | AB171: 53.1 | AC171: 46 | AD171: 63.48 | AE171: 51.216 | AF171: 51.0592
B172: MarquetteCornAll | C172: =VLOOKUP($B172,#REF!,3,0) ->  | D172: =VLOOKUP($B172,#REF!,4,0) ->  | E172: =VLOOKUP($B172,'FSA21'!$E$5:$K$183,3,0) -> 132 | F172: =VLOOKUP($B172,'FSA21'!$E$5:$K$183,4,0) -> 87 | G172: =VLOOKUP($B172,'FSA23'!$E$5:$K$288,3,0) -> 58.4 | H172: =VLOOKUP($B172,'FSA23'!$E$5:$K$288,4,0) -> 111 | I172: =VLOOKUP($B172,'FSA23'!$E$5:$K$288,5,0) -> 58.49 | J172: =VLOOKUP($B172,'FSA23'!$E$5:$K$288,6,0) -> 184 | K172: =VLOOKUP($B172,'FSA23'!$E$5:$K$288,7,0) -> 110.84 | L172: =AVERAGE(G172:K172)+$R172 -> 105.466 | M172: 114.8792 | N172: 115.65504 | R172: 0.92 | V172: =C172-($R172*6) ->  | W172: =D172-($R172*5) ->  | X172: 132 | Y172: 87 | Z172: 58.4 | AA172: 111 | AB172: 58.49 | AC172: 184 | AD172: 110.84 | AE172: 105.466 | AF172: 114.8792
B173: MasonCornIrrigated | C173: =VLOOKUP($B173,#REF!,3,0) ->  | D173: =VLOOKUP($B173,#REF!,4,0) ->  | E173: =VLOOKUP($B173,#REF!,5,0) ->  | F173: =VLOOKUP($B173,#REF!,6,0) ->  | G173: =VLOOKUP($B173,'FSA23'!$E$5:$K$288,3,0) -> 207.66 | H173: =VLOOKUP($B173,'FSA23'!$E$5:$K$288,4,0) -> 186.02 | I173: =VLOOKUP($B173,'FSA23'!$E$5:$K$288,5,0) -> 178.25 | J173: =VLOOKUP($B173,'FSA23'!$E$5:$K$288,6,0) -> 198.83 | K173: =VLOOKUP($B173,'FSA23'!$E$5:$K$288,7,0) -> 207.63 | L173: 197.388 | M173: 195.3336 | N173: 197.19632 | R173: 1.71 | S173: 0.51 | T173: 0.63 | V173: =C173-($R173*6) ->  | W173: =D173-($R173*5) ->  | Z173: 207.66 | AA173: 186.02 | AB173: 178.25 | AC173: 198.83 | AD173: 207.63 | AE173: 197.388 | AF173: 195.3336
B174: MasonCornNonirrigated | C174: =VLOOKUP($B174,#REF!,3,0) ->  | D174: =VLOOKUP($B174,#REF!,4,0) ->  | E174: =VLOOKUP($B174,'FSA21'!$E$5:$K$183,3,0) -> 145.77 | F174: =VLOOKUP($B174,'FSA21'!$E$5:$K$183,4,0) -> 153.33 | G174: =VLOOKUP($B174,'FSA23'!$E$5:$K$288,3,0) -> 178.77 | H174: =VLOOKUP($B174,'FSA23'!$E$5:$K$288,4,0) -> 139.85 | I174: =VLOOKUP($B174,'FSA23'!$E$5:$K$288,5,0) -> 141.48 | J174: =VLOOKUP($B174,'FSA23'!$E$5:$K$288,6,0) -> 161.97 | K174: =VLOOKUP($B174,'FSA23'!$E$5:$K$288,7,0) -> 171.74 | L174: 160.472 | M174: 156.8124 | N174: 160.20488 | R174: 1.71 | S174: 0.51 | T174: 0.63 | V174: =C174-($R174*6) ->  | W174: =D174-($R174*5) ->  | X174: 145.77 | Y174: 153.33 | Z174: 178.77 | AA174: 139.85 | AB174: 141.48 | AC174: 161.97 | AD174: 171.74 | AE174: 160.472 | AF174: 156.8124
B175: MasonSoybeansAll | C175: =VLOOKUP($B175,#REF!,3,0) ->  | D175: =VLOOKUP($B175,#REF!,4,0) ->  | E175: =VLOOKUP($B175,'FSA21'!$E$5:$K$183,3,0) -> 46.86 | F175: =VLOOKUP($B175,'FSA21'!$E$5:$K$183,4,0) -> 48.38 | G175: =VLOOKUP($B175,'FSA23'!$E$5:$K$288,3,0) -> 49.45 | H175: =VLOOKUP($B175,'FSA23'!$E$5:$K$288,4,0) -> 47.56 | I175: =VLOOKUP($B175,'FSA23'!$E$5:$K$288,5,0) -> 43.21 | J175: =VLOOKUP($B175,'FSA23'!$E$5:$K$288,6,0) -> 48.7 | K175: =VLOOKUP($B175,'FSA23'!$E$5:$K$288,7,0) -> 56.99 | L175: =AVERAGE(G175:K175)+$S175 -> 49.692 | M175: =AVERAGE(H175:L175)+$S175 -> 49.7404 | N175: =AVERAGE(I175:M175)+$S175 -> 50.17648 | R175: 1.71 | S175: 0.51 | T175: 0.63 | V175: =C175-($S175*6) ->  | W175: =D175-($S175*5) ->  | X175: 46.86 | Y175: 48.38 | Z175: 49.45 | AA175: 47.56 | AB175: 43.21 | AC175: 48.7 | AD175: 56.99 | AE175: 49.692 | AF175: 49.7404
B176: MasonWheatAll | C176: =VLOOKUP($B176,#REF!,3,0) ->  | D176: =VLOOKUP($B176,#REF!,4,0) ->  | E176: =VLOOKUP($B176,'FSA21'!$E$5:$K$183,3,0) -> 59.92 | F176: =VLOOKUP($B176,'FSA21'!$E$5:$K$183,4,0) -> 73.52 | G176: =VLOOKUP($B176,'FSA23'!$E$5:$K$288,3,0) -> 59.86 | H176: =VLOOKUP($B176,'FSA23'!$E$5:$K$288,4,0) -> 58.48 | I176: =VLOOKUP($B176,'FSA23'!$E$5:$K$288,5,0) -> 60.83 | J176: =VLOOKUP($B176,'FSA23'!$E$5:$K$288,6,0) -> 54.37 | K176: =VLOOKUP($B176,'FSA23'!$E$5:$K$288,7,0) -> 79.91 | L176: =AVERAGE(G176:K176)+$T176 -> 63.32 | M176: =AVERAGE(H176:L176)+$T176 -> 64.012 | N176: =AVERAGE(I176:M176)+$T176 -> 65.1184 | R176: 1.71 | S176: 0.51 | T176: 0.63 | V176: =C176-($T176*6) ->  | W176: =D176-($T176*5) ->  | X176: 59.92 | Y176: 73.52 | Z176: 59.86 | AA176: 58.48 | AB176: 60.83 | AC176: 54.37 | AD176: 79.91 | AE176: 63.32 | AF176: 64.012
B177: MecostaCornIrrigated | C177: =VLOOKUP($B177,#REF!,3,0) ->  | D177: =VLOOKUP($B177,#REF!,4,0) ->  | E177: =VLOOKUP($B177,'FSA21'!$E$5:$K$183,3,0) -> 177.31 | F177: =VLOOKUP($B177,'FSA21'!$E$5:$K$183,4,0) -> 179.58 | G177: =VLOOKUP($B177,'FSA23'!$E$5:$K$288,3,0) -> 196.77 | H177: =VLOOKUP($B177,'FSA23'!$E$5:$K$288,4,0) -> 161.75 | I177: =VLOOKUP($B177,'FSA23'!$E$5:$K$288,5,0) -> 171.67 | J177: =VLOOKUP($B177,'FSA23'!$E$5:$K$288,6,0) -> 187.59 | K177: =VLOOKUP($B177,'FSA23'!$E$5:$K$288,7,0) -> 203.04 | L177: =AVERAGE(G177:K177)+$R177 -> 186.044 | M177: 183.8988 | N177: 188.32856 | R177: 1.88 | S177: 0.27 | T177: 0.56 | V177: =C177-($R177*6) ->  | W177: =D177-($R177*5) ->  | X177: 177.31 | Y177: 179.58 | Z177: 196.77 | AA177: 161.75 | AB177: 171.67 | AC177: 187.59 | AD177: 203.04 | AE177: 186.044 | AF177: 183.8988
B178: MecostaCornNonirrigated | C178: =VLOOKUP($B178,#REF!,3,0) ->  | D178: =VLOOKUP($B178,#REF!,4,0) ->  | E178: =VLOOKUP($B178,'FSA21'!$E$5:$K$183,3,0) -> 123.89 | F178: =VLOOKUP($B178,'FSA21'!$E$5:$K$183,4,0) -> 138.88 | G178: =VLOOKUP($B178,'FSA23'!$E$5:$K$288,3,0) -> 134.12 | H178: =VLOOKUP($B178,'FSA23'!$E$5:$K$288,4,0) -> 123 | I178: =VLOOKUP($B178,'FSA23'!$E$5:$K$288,5,0) -> 119.68 | J178: =VLOOKUP($B178,'FSA23'!$E$5:$K$288,6,0) -> 96.8 | K178: =VLOOKUP($B178,'FSA23'!$E$5:$K$288,7,0) -> 131.26 | L178: 122.852 | M178: 120.5984 | N178: 120.11808 | R178: 1.88 | S178: 0.27 | T178: 0.56 | V178: =C178-($R178*6) ->  | W178: =D178-($R178*5) ->  | X178: 123.89 | Y178: 138.88 | Z178: 134.12 | AA178: 123 | AB178: 119.68 | AC178: 96.8 | AD178: 131.26 | AE178: 122.852 | AF178: 120.5984
B179: MecostaSoybeansIrrigated | C179: =VLOOKUP($B179,#REF!,3,0) ->  | D179: =VLOOKUP($B179,#REF!,4,0) ->  | E179: =VLOOKUP($B179,#REF!,5,0) ->  | F179: =VLOOKUP($B179,#REF!,6,0) ->  | G179: =VLOOKUP($B179,'FSA23'!$E$5:$K$288,3,0) -> 55.54 | H179: =VLOOKUP($B179,'FSA23'!$E$5:$K$288,4,0) -> 54.02 | I179: =VLOOKUP($B179,'FSA23'!$E$5:$K$288,5,0) -> 34.4 | J179: =VLOOKUP($B179,'FSA23'!$E$5:$K$288,6,0) -> 56.39 | K179: =VLOOKUP($B179,'FSA23'!$E$5:$K$288,7,0) -> 59.08 | L179: =AVERAGE(G179:K179)+$S179 -> 52.156 | M179: 51.4792 | N179: 50.97104 | R179: 1.88 | S179: 0.27 | T179: 0.56 | V179: =C179-($S179*6) ->  | W179: =D179-($S179*5) ->  | Z179: 55.54 | AA179: 54.02 | AB179: 34.4 | AC179: 56.39 | AD179: 59.08 | AE179: 52.156 | AF179: 51.4792
B180: MecostaSoybeansNonirrigated | C180: =VLOOKUP($B180,#REF!,3,0) ->  | D180: =VLOOKUP($B180,#REF!,4,0) ->  | E180: =VLOOKUP($B180,#REF!,5,0) ->  | F180: =VLOOKUP($B180,#REF!,6,0) ->  | G180: =VLOOKUP($B180,'FSA23'!$E$5:$K$288,3,0) -> 33.32 | H180: =VLOOKUP($B180,'FSA23'!$E$5:$K$288,4,0) -> 26.47 | I180: =VLOOKUP($B180,'FSA23'!$E$5:$K$288,5,0) -> 23.2 | J180: =VLOOKUP($B180,'FSA23'!$E$5:$K$288,6,0) -> 30.08 | K180: =VLOOKUP($B180,'FSA23'!$E$5:$K$288,7,0) -> 36.42 | L180: 30.168 | M180: 29.5376 | N180: 30.15112 | R180: 1.88 | S180: 0.27 | T180: 0.56 | V180: =C180-($S180*6) ->  | W180: =D180-($S180*5) ->  | Z180: 33.32 | AA180: 26.47 | AB180: 23.2 | AC180: 30.08 | AD180: 36.42 | AE180: 30.168 | AF180: 29.5376
B181: MecostaWheatAll | C181: =VLOOKUP($B181,#REF!,3,0) ->  | D181: =VLOOKUP($B181,#REF!,4,0) ->  | E181: =VLOOKUP($B181,'FSA21'!$E$5:$K$183,3,0) -> 76.25 | F181: =VLOOKUP($B181,'FSA21'!$E$5:$K$183,4,0) -> 78.24 | G181: =VLOOKUP($B181,'FSA23'!$E$5:$K$288,3,0) -> 62.47 | H181: =VLOOKUP($B181,'FSA23'!$E$5:$K$288,4,0) -> 60.2 | I181: =VLOOKUP($B181,'FSA23'!$E$5:$K$288,5,0) -> 51.45 | J181: =VLOOKUP($B181,'FSA23'!$E$5:$K$288,6,0) -> 50.13 | K181: =VLOOKUP($B181,'FSA23'!$E$5:$K$288,7,0) -> 68.79 | L181: =AVERAGE(G181:K181)+$T181 -> 59.168 | M181: =AVERAGE(H181:L181)+$T181 -> 58.5076 | N181: =AVERAGE(I181:M181)+$T181 -> 58.16912 | R181: 1.88 | S181: 0.27 | T181: 0.56 | V181: =C181-($T181*6) ->  | W181: =D181-($T181*5) ->  | X181: 76.25 | Y181: 78.24 | Z181: 62.47 | AA181: 60.2 | AB181: 51.45 | AC181: 50.13 | AD181: 68.79 | AE181: 59.168 | AF181: 58.5076
B182: MenomineeCornAll | C182: =VLOOKUP($B182,#REF!,3,0) ->  | D182: =VLOOKUP($B182,#REF!,4,0) ->  | E182: =VLOOKUP($B182,'FSA21'!$E$5:$K$183,3,0) -> 149.66 | F182: =VLOOKUP($B182,'FSA21'!$E$5:$K$183,4,0) -> 134.42 | G182: =VLOOKUP($B182,'FSA23'!$E$5:$K$288,3,0) -> 68.2 | H182: =VLOOKUP($B182,'FSA23'!$E$5:$K$288,4,0) -> 153.99 | I182: =VLOOKUP($B182,'FSA23'!$E$5:$K$288,5,0) -> 66 | J182: =VLOOKUP($B182,'FSA23'!$E$5:$K$288,6,0) -> 192.59 | K182: =VLOOKUP($B182,'FSA23'!$E$5:$K$288,7,0) -> 134.54 | L182: =AVERAGE(G182:K182)+$R182 -> 124.144 | M182: =AVERAGE(H182:L182)+$R182 -> 135.3328 | N182: =AVERAGE(I182:M182)+$R182 -> 131.60136 | R182: 1.08 | S182: 0.28 | T182: 0.72 | V182: =C182-($R182*6) ->  | W182: =D182-($R182*5) ->  | X182: 149.66 | Y182: 134.42 | Z182: 68.2 | AA182: 153.99 | AB182: 66 | AC182: 192.59 | AD182: 134.54 | AE182: 124.144 | AF182: 135.3328
B183: MenomineeSoybeansAll | C183: =VLOOKUP($B183,#REF!,3,0) ->  | D183: =VLOOKUP($B183,#REF!,4,0) ->  | E183: =VLOOKUP($B183,'FSA21'!$E$5:$K$183,3,0) -> 27.57 | F183: =VLOOKUP($B183,'FSA21'!$E$5:$K$183,4,0) -> 22.13 | G183: =VLOOKUP($B183,'FSA23'!$E$5:$K$288,3,0) -> 24.18 | H183: =VLOOKUP($B183,'FSA23'!$E$5:$K$288,4,0) -> 37.72 | I183: =VLOOKUP($B183,'FSA23'!$E$5:$K$288,5,0) -> 17.6 | J183: =VLOOKUP($B183,'FSA23'!$E$5:$K$288,6,0) -> 38.25 | K183: =VLOOKUP($B183,'FSA23'!$E$5:$K$288,7,0) -> 33.2 | L183: =AVERAGE(G183:K183)+$S183 -> 30.47 | M183: =AVERAGE(H183:L183)+$S183 -> 31.728 | N183: =AVERAGE(I183:M183)+$S183 -> 30.5296 | R183: 1.08 | S183: 0.28 | T183: 0.72 | V183: =C183-($S183*6) ->  | W183: =D183-($S183*5) ->  | X183: 27.57 | Y183: 22.13 | Z183: 24.18 | AA183: 37.72 | AB183: 17.6 | AC183: 38.25 | AD183: 33.2 | AE183: 30.47 | AF183: 31.728
B184: MenomineeWheatAll | C184: =VLOOKUP($B184,#REF!,3,0) ->  | D184: =VLOOKUP($B184,#REF!,4,0) ->  | E184: =VLOOKUP($B184,#REF!,5,0) ->  | F184: =VLOOKUP($B184,#REF!,6,0) ->  | G184: =VLOOKUP($B184,'FSA23'!$E$5:$K$288,3,0) -> 53.6 | H184: =VLOOKUP($B184,'FSA23'!$E$5:$K$288,4,0) -> 40 | I184: =VLOOKUP($B184,'FSA23'!$E$5:$K$288,5,0) -> 53.6 | J184: =VLOOKUP($B184,'FSA23'!$E$5:$K$288,6,0) -> 53.6 | K184: =VLOOKUP($B184,'FSA23'!$E$5:$K$288,7,0) -> 61.66 | L184: =AVERAGE(G184:K184)+$T184 -> 53.212 | M184: =AVERAGE(H184:L184)+$T184 -> 53.1344 | N184: =AVERAGE(I184:M184)+$T184 -> 55.76128 | R184: 1.08 | S184: 0.28 | T184: 0.72 | V184: =C184-($T184*6) ->  | W184: =D184-($T184*5) ->  | Z184: 53.6 | AA184: 40 | AB184: 53.6 | AC184: 53.6 | AD184: 61.66 | AE184: 53.212 | AF184: 53.1344
B185: MidlandCornIrrigated | C185: =VLOOKUP($B185,#REF!,3,0) ->  | D185: =VLOOKUP($B185,#REF!,4,0) ->  | E185: =VLOOKUP($B185,#REF!,5,0) ->  | F185: =VLOOKUP($B185,#REF!,6,0) ->  | G185: =VLOOKUP($B185,'FSA23'!$E$5:$K$288,3,0) -> 183.42 | H185: =VLOOKUP($B185,'FSA23'!$E$5:$K$288,4,0) -> 195.52 | I185: =VLOOKUP($B185,'FSA23'!$E$5:$K$288,5,0) -> 187.52 | J185: =VLOOKUP($B185,'FSA23'!$E$5:$K$288,6,0) -> 180.7 | K185: =VLOOKUP($B185,'FSA23'!$E$5:$K$288,7,0) -> 181.83 | L185: =AVERAGE(G185:K185)+$R185 -> 187.898 | M185: 188.7936 | N185: 187.44832 | R185: 2.1 | S185: 0.44 | T185: 1.04 | V185: =C185-($R185*6) ->  | W185: =D185-($R185*5) ->  | Z185: 183.42 | AA185: 195.52 | AB185: 187.52 | AC185: 180.7 | AD185: 181.83 | AE185: 187.898 | AF185: 188.7936
B186: MidlandCornNonirrigated | C186: =VLOOKUP($B186,#REF!,3,0) ->  | D186: =VLOOKUP($B186,#REF!,4,0) ->  | E186: =VLOOKUP($B186,'FSA21'!$E$5:$K$183,3,0) -> 174.45 | F186: =VLOOKUP($B186,'FSA21'!$E$5:$K$183,4,0) -> 172.68 | G186: =VLOOKUP($B186,'FSA23'!$E$5:$K$288,3,0) -> 168.03 | H186: =VLOOKUP($B186,'FSA23'!$E$5:$K$288,4,0) -> 172.6 | I186: =VLOOKUP($B186,'FSA23'!$E$5:$K$288,5,0) -> 153.19 | J186: =VLOOKUP($B186,'FSA23'!$E$5:$K$288,6,0) -> 165.2 | K186: =VLOOKUP($B186,'FSA23'!$E$5:$K$288,7,0) -> 178.55 | L186: 169.614 | M186: 169.9308 | N186: 169.39696 | R186: 2.1 | S186: 0.44 | T186: 1.04 | V186: =C186-($R186*6) ->  | W186: =D186-($R186*5) ->  | X186: 174.45 | Y186: 172.68 | Z186: 168.03 | AA186: 172.6 | AB186: 153.19 | AC186: 165.2 | AD186: 178.55 | AE186: 169.614 | AF186: 169.9308
B187: MidlandSoybeansAll | C187: =VLOOKUP($B187,#REF!,3,0) ->  | D187: =VLOOKUP($B187,#REF!,4,0) ->  | E187: =VLOOKUP($B187,'FSA21'!$E$5:$K$183,3,0) -> 51.68 | F187: =VLOOKUP($B187,'FSA21'!$E$5:$K$183,4,0) -> 50.97 | G187: =VLOOKUP($B187,'FSA23'!$E$5:$K$288,3,0) -> 43.05 | H187: =VLOOKUP($B187,'FSA23'!$E$5:$K$288,4,0) -> 47.48 | I187: =VLOOKUP($B187,'FSA23'!$E$5:$K$288,5,0) -> 39.68 | J187: =VLOOKUP($B187,'FSA23'!$E$5:$K$288,6,0) -> 45.1 | K187: =VLOOKUP($B187,'FSA23'!$E$5:$K$288,7,0) -> 49.45 | L187: =AVERAGE(G187:K187)+$S187 -> 45.392 | M187: =AVERAGE(H187:L187)+$S187 -> 45.8604 | N187: =AVERAGE(I187:M187)+$S187 -> 45.53648 | R187: 2.1 | S187: 0.44 | T187: 1.04 | V187: =C187-($S187*6) ->  | W187: =D187-($S187*5) ->  | X187: 51.68 | Y187: 50.97 | Z187: 43.05 | AA187: 47.48 | AB187: 39.68 | AC187: 45.1 | AD187: 49.45 | AE187: 45.392 | AF187: 45.8604
B188: MidlandWheatAll | C188: =VLOOKUP($B188,#REF!,3,0) ->  | D188: =VLOOKUP($B188,#REF!,4,0) ->  | E188: =VLOOKUP($B188,'FSA21'!$E$5:$K$183,3,0) -> 97.38 | F188: =VLOOKUP($B188,'FSA21'!$E$5:$K$183,4,0) -> 87.85 | G188: =VLOOKUP($B188,'FSA23'!$E$5:$K$288,3,0) -> 72.69 | H188: =VLOOKUP($B188,'FSA23'!$E$5:$K$288,4,0) -> 91.73 | I188: =VLOOKUP($B188,'FSA23'!$E$5:$K$288,5,0) -> 66.2 | J188: =VLOOKUP($B188,'FSA23'!$E$5:$K$288,6,0) -> 65.45 | K188: =VLOOKUP($B188,'FSA23'!$E$5:$K$288,7,0) -> 71.18 | L188: =AVERAGE(G188:K188)+$T188 -> 74.49 | M188: =AVERAGE(H188:L188)+$T188 -> 74.85 | N188: =AVERAGE(I188:M188)+$T188 -> 71.474 | R188: 2.1 | S188: 0.44 | T188: 1.04 | V188: =C188-($T188*6) ->  | W188: =D188-($T188*5) ->  | X188: 97.38 | Y188: 87.85 | Z188: 72.69 | AA188: 91.73 | AB188: 66.2 | AC188: 65.45 | AD188: 71.18 | AE188: 74.49 | AF188: 74.85
B189: MissaukeeCornIrrigated | C189: =VLOOKUP($B189,#REF!,3,0) ->  | D189: =VLOOKUP($B189,#REF!,4,0) ->  | E189: =VLOOKUP($B189,#REF!,5,0) ->  | F189: =VLOOKUP($B189,#REF!,6,0) ->  | G189: =VLOOKUP($B189,'FSA23'!$E$5:$K$288,3,0) -> 200.94 | H189: =VLOOKUP($B189,'FSA23'!$E$5:$K$288,4,0) -> 197.53 | I189: =VLOOKUP($B189,'FSA23'!$E$5:$K$288,5,0) -> 185.44 | J189: =VLOOKUP($B189,'FSA23'!$E$5:$K$288,6,0) -> 214.83 | K189: =VLOOKUP($B189,'FSA23'!$E$5:$K$288,7,0) -> 231.57 | L189: =AVERAGE(G189:K189)+$R189 -> 207.762 | M189: 209.1264 | N189: 211.44568 | R189: 1.7 | S189: 0.3 | T189: 0.25 | V189: =C189-($R189*6) ->  | W189: =D189-($R189*5) ->  | Z189: 200.94 | AA189: 197.53 | AB189: 185.44 | AC189: 214.83 | AD189: 231.57 | AE189: 207.762 | AF189: 209.1264
B190: MissaukeeCornNonirrigated | C190: =VLOOKUP($B190,#REF!,3,0) ->  | D190: =VLOOKUP($B190,#REF!,4,0) ->  | E190: =VLOOKUP($B190,'FSA21'!$E$5:$K$183,3,0) -> 158.52 | F190: =VLOOKUP($B190,'FSA21'!$E$5:$K$183,4,0) -> 139.4 | G190: =VLOOKUP($B190,'FSA23'!$E$5:$K$288,3,0) -> 157.37 | H190: =VLOOKUP($B190,'FSA23'!$E$5:$K$288,4,0) -> 126.34 | I190: =VLOOKUP($B190,'FSA23'!$E$5:$K$288,5,0) -> 148.44 | J190: =VLOOKUP($B190,'FSA23'!$E$5:$K$288,6,0) -> 151.47 | K190: =VLOOKUP($B190,'FSA23'!$E$5:$K$288,7,0) -> 204.7 | L190: 159.364 | M190: 159.7628 | N190: 166.44736 | R190: 1.7 | S190: 0.3 | T190: 0.25 | V190: =C190-($R190*6) ->  | W190: =D190-($R190*5) ->  | X190: 158.52 | Y190: 139.4 | Z190: 157.37 | AA190: 126.34 | AB190: 148.44 | AC190: 151.47 | AD190: 204.7 | AE190: 159.364 | AF190: 159.7628
B191: MissaukeeSoybeansAll | C191: =VLOOKUP($B191,#REF!,3,0) ->  | D191: =VLOOKUP($B191,#REF!,4,0) ->  | E191: =VLOOKUP($B191,'FSA21'!$E$5:$K$183,3,0) -> 36 | F191: =VLOOKUP($B191,'FSA21'!$E$5:$K$183,4,0) -> 36 | G191: =VLOOKUP($B191,'FSA23'!$E$5:$K$288,3,0) -> 37 | H191: =VLOOKUP($B191,'FSA23'!$E$5:$K$288,4,0) -> 37 | I191: =VLOOKUP($B191,'FSA23'!$E$5:$K$288,5,0) -> 34.4 | J191: =VLOOKUP($B191,'FSA23'!$E$5:$K$288,6,0) -> 35.4 | K191: =VLOOKUP($B191,'FSA23'!$E$5:$K$288,7,0) -> 35.47 | L191: =AVERAGE(G191:K191)+$S191 -> 36.154 | M191: =AVERAGE(H191:L191)+$S191 -> 35.9848 | N191: =AVERAGE(I191:M191)+$S191 -> 35.78176 | R191: 1.7 | S191: 0.3 | T191: 0.25 | V191: =C191-($S191*6) ->  | W191: =D191-($S191*5) ->  | X191: 36 | Y191: 36 | Z191: 37 | AA191: 37 | AB191: 34.4 | AC191: 35.4 | AD191: 35.47 | AE191: 36.154 | AF191: 35.9848
B192: MissaukeeWheatAll | C192: =VLOOKUP($B192,#REF!,3,0) ->  | D192: =VLOOKUP($B192,#REF!,4,0) ->  | E192: =VLOOKUP($B192,#REF!,5,0) ->  | F192: =VLOOKUP($B192,#REF!,6,0) ->  | G192: =VLOOKUP($B192,'FSA23'!$E$5:$K$288,3,0) -> 54.94 | H192: =VLOOKUP($B192,'FSA23'!$E$5:$K$288,4,0) -> 56.84 | I192: =VLOOKUP($B192,'FSA23'!$E$5:$K$288,5,0) -> 55.06 | J192: =VLOOKUP($B192,'FSA23'!$E$5:$K$288,6,0) -> 51.37 | K192: =VLOOKUP($B192,'FSA23'!$E$5:$K$288,7,0) -> 65.58 | L192: =AVERAGE(G192:K192)+$T192 -> 57.008 | M192: =AVERAGE(H192:L192)+$T192 -> 57.4216 | N192: =AVERAGE(I192:M192)+$T192 -> 57.53792 | R192: 1.7 | S192: 0.3 | T192: 0.25 | V192: =C192-($T192*6) ->  | W192: =D192-($T192*5) ->  | Z192: 54.94 | AA192: 56.84 | AB192: 55.06 | AC192: 51.37 | AD192: 65.58 | AE192: 57.008 | AF192: 57.4216
B193: MonroeCornIrrigated | C193: =VLOOKUP($B193,#REF!,3,0) ->  | D193: =VLOOKUP($B193,#REF!,4,0) ->  | E193: =VLOOKUP($B193,#REF!,5,0) ->  | F193: =VLOOKUP($B193,#REF!,6,0) ->  | G193: =VLOOKUP($B193,'FSA23'!$E$5:$K$288,3,0) -> 229.4 | H193: =VLOOKUP($B193,'FSA23'!$E$5:$K$288,4,0) -> 179.23 | I193: =VLOOKUP($B193,'FSA23'!$E$5:$K$288,5,0) -> 225.03 | J193: =VLOOKUP($B193,'FSA23'!$E$5:$K$288,6,0) -> 225.56 | K193: =VLOOKUP($B193,'FSA23'!$E$5:$K$288,7,0) -> 218.93 | L193: =AVERAGE(G193:K193)+$R193 -> 217.39 | M193: 214.988 | N193: 222.1396 | R193: 1.76 | S193: 0.46 | T193: 0.99 | V193: =C193-($R193*6) ->  | W193: =D193-($R193*5) ->  | Z193: 229.4 | AA193: 179.23 | AB193: 225.03 | AC193: 225.56 | AD193: 218.93 | AE193: 217.39 | AF193: 214.988
B194: MonroeCornNonirrigated | C194: =VLOOKUP($B194,#REF!,3,0) ->  | D194: =VLOOKUP($B194,#REF!,4,0) ->  | E194: =VLOOKUP($B194,'FSA21'!$E$5:$K$183,3,0) -> 155.4 | F194: =VLOOKUP($B194,'FSA21'!$E$5:$K$183,4,0) -> 183.18 | G194: =VLOOKUP($B194,'FSA23'!$E$5:$K$288,3,0) -> 202.6 | H194: =VLOOKUP($B194,'FSA23'!$E$5:$K$288,4,0) -> 180.64 | I194: =VLOOKUP($B194,'FSA23'!$E$5:$K$288,5,0) -> 189.31 | J194: =VLOOKUP($B194,'FSA23'!$E$5:$K$288,6,0) -> 149.51 | K194: =VLOOKUP($B194,'FSA23'!$E$5:$K$288,7,0) -> 205.82 | L194: 187.336 | M194: 184.2832 | N194: 185.01184 | R194: 1.76 | S194: 0.46 | T194: 0.99 | V194: =C194-($R194*6) ->  | W194: =D194-($R194*5) ->  | X194: 155.4 | Y194: 183.18 | Z194: 202.6 | AA194: 180.64 | AB194: 189.31 | AC194: 149.51 | AD194: 205.82 | AE194: 187.336 | AF194: 184.2832
B195: MonroeSoybeansAll | C195: =VLOOKUP($B195,#REF!,3,0) ->  | D195: =VLOOKUP($B195,#REF!,4,0) ->  | E195: =VLOOKUP($B195,'FSA21'!$E$5:$K$183,3,0) -> 48.45 | F195: =VLOOKUP($B195,'FSA21'!$E$5:$K$183,4,0) -> 54.95 | G195: =VLOOKUP($B195,'FSA23'!$E$5:$K$288,3,0) -> 52.41 | H195: =VLOOKUP($B195,'FSA23'!$E$5:$K$288,4,0) -> 49.28 | I195: =VLOOKUP($B195,'FSA23'!$E$5:$K$288,5,0) -> 50.97 | J195: =VLOOKUP($B195,'FSA23'!$E$5:$K$288,6,0) -> 44.51 | K195: =VLOOKUP($B195,'FSA23'!$E$5:$K$288,7,0) -> 53.6 | L195: =AVERAGE(G195:K195)+$S195 -> 50.614 | M195: =AVERAGE(H195:L195)+$S195 -> 50.2548 | N195: =AVERAGE(I195:M195)+$S195 -> 50.44976 | R195: 1.76 | S195: 0.46 | T195: 0.99 | V195: =C195-($S195*6) ->  | W195: =D195-($S195*5) ->  | X195: =E195 -> 48.45 | Y195: =F195 -> 54.95 | Z195: =G195 -> 52.41 | AA195: =H195 -> 49.28 | AB195: =I195 -> 50.97 | AC195: =J195 -> 44.51 | AD195: =K195 -> 53.6 | AE195: =L195 -> 50.614 | AF195: =M195 -> 50.2548
B196: MonroeWheatAll | C196: =VLOOKUP($B196,#REF!,3,0) ->  | D196: =VLOOKUP($B196,#REF!,4,0) ->  | E196: =VLOOKUP($B196,'FSA21'!$E$5:$K$183,3,0) -> 67.01 | F196: =VLOOKUP($B196,'FSA21'!$E$5:$K$183,4,0) -> 90.61 | G196: =VLOOKUP($B196,'FSA23'!$E$5:$K$288,3,0) -> 89.74 | H196: =VLOOKUP($B196,'FSA23'!$E$5:$K$288,4,0) -> 82.59 | I196: =VLOOKUP($B196,'FSA23'!$E$5:$K$288,5,0) -> 63.8 | J196: =VLOOKUP($B196,'FSA23'!$E$5:$K$288,6,0) -> 70.88 | K196: =VLOOKUP($B196,'FSA23'!$E$5:$K$288,7,0) -> 92.57 | L196: =AVERAGE(G196:K196)+$T196 -> 80.906 | M196: =AVERAGE(H196:L196)+$T196 -> 79.1392 | N196: =AVERAGE(I196:M196)+$T196 -> 78.44904 | R196: 1.76 | S196: 0.46 | T196: 0.99 | V196: =C196-($T196*6) ->  | W196: =D196-($T196*5) ->  | X196: 67.01 | Y196: 90.61 | Z196: 89.74 | AA196: 82.59 | AB196: 63.8 | AC196: 70.88 | AD196: 92.57 | AE196: 80.906 | AF196: 79.1392
B197: MontcalmCornIrrigated | C197: =VLOOKUP($B197,#REF!,3,0) ->  | D197: =VLOOKUP($B197,#REF!,4,0) ->  | E197: =VLOOKUP($B197,#REF!,5,0) ->  | F197: =VLOOKUP($B197,#REF!,6,0) ->  | G197: =VLOOKUP($B197,'FSA23'!$E$5:$K$288,3,0) -> 195.12 | H197: =VLOOKUP($B197,'FSA23'!$E$5:$K$288,4,0) -> 201.03 | I197: =VLOOKUP($B197,'FSA23'!$E$5:$K$288,5,0) -> 184.85 | J197: =VLOOKUP($B197,'FSA23'!$E$5:$K$288,6,0) -> 196.87 | K197: =VLOOKUP($B197,'FSA23'!$E$5:$K$288,7,0) -> 201.41 | L197: =AVERAGE(G197:K197)+$R197 -> 197.736 | M197: 198.2592 | N197: 197.70504 | R197: 1.88 | S197: 0.37 | T197: 0.51 | V197: =C197-($R197*6) ->  | W197: =D197-($R197*5) ->  | Z197: 195.12 | AA197: 201.03 | AB197: 184.85 | AC197: 196.87 | AD197: 201.41 | AE197: 197.736 | AF197: 198.2592
B198: MontcalmCornNonirrigated | C198: =VLOOKUP($B198,#REF!,3,0) ->  | D198: =VLOOKUP($B198,#REF!,4,0) ->  | E198: =VLOOKUP($B198,'FSA21'!$E$5:$K$183,3,0) -> 156.31 | F198: =VLOOKUP($B198,'FSA21'!$E$5:$K$183,4,0) -> 158.59 | G198: =VLOOKUP($B198,'FSA23'!$E$5:$K$288,3,0) -> 141.8 | H198: =VLOOKUP($B198,'FSA23'!$E$5:$K$288,4,0) -> 138.97 | I198: =VLOOKUP($B198,'FSA23'!$E$5:$K$288,5,0) -> 129.28 | J198: =VLOOKUP($B198,'FSA23'!$E$5:$K$288,6,0) -> 134.04 | K198: =VLOOKUP($B198,'FSA23'!$E$5:$K$288,7,0) -> 168.22 | L198: 144.342 | M198: 144.8504 | N198: 146.02648 | R198: 1.88 | S198: 0.37 | T198: 0.51 | V198: =C198-($R198*6) ->  | W198: =D198-($R198*5) ->  | X198: 156.31 | Y198: 158.59 | Z198: 141.8 | AA198: 138.97 | AB198: 129.28 | AC198: 134.04 | AD198: 168.22 | AE198: 144.342 | AF198: 144.8504
B199: MontcalmSoybeansIrrigated | C199: =VLOOKUP($B199,#REF!,3,0) ->  | D199: =VLOOKUP($B199,#REF!,4,0) ->  | E199: =VLOOKUP($B199,#REF!,5,0) ->  | F199: =VLOOKUP($B199,#REF!,6,0) ->  | G199: =VLOOKUP($B199,'FSA23'!$E$5:$K$288,3,0) -> 52.47 | H199: =VLOOKUP($B199,'FSA23'!$E$5:$K$288,4,0) -> 56.13 | I199: =VLOOKUP($B199,'FSA23'!$E$5:$K$288,5,0) -> 52.84 | J199: =VLOOKUP($B199,'FSA23'!$E$5:$K$288,6,0) -> 56.87 | K199: =VLOOKUP($B199,'FSA23'!$E$5:$K$288,7,0) -> 60.27 | L199: =AVERAGE(G199:K199)+$S199 -> 56.086 | M199: 56.8092 | N199: 56.94504 | R199: 1.88 | S199: 0.37 | T199: 0.51 | V199: =C199-($S199*6) ->  | W199: =D199-($S199*5) ->  | Z199: 52.47 | AA199: 56.13 | AB199: 52.84 | AC199: 56.87 | AD199: 60.27 | AE199: 56.086 | AF199: 56.8092
B200: MontcalmSoybeansNonirrigated | C200: =VLOOKUP($B200,#REF!,3,0) ->  | D200: =VLOOKUP($B200,#REF!,4,0) ->  | E200: =VLOOKUP($B200,'FSA21'!$E$5:$K$183,3,0) -> 45.49 | F200: =VLOOKUP($B200,'FSA21'!$E$5:$K$183,4,0) -> 51.87 | G200: =VLOOKUP($B200,'FSA23'!$E$5:$K$288,3,0) -> 35.6 | H200: =VLOOKUP($B200,'FSA23'!$E$5:$K$288,4,0) -> 42.09 | I200: =VLOOKUP($B200,'FSA23'!$E$5:$K$288,5,0) -> 36.85 | J200: =VLOOKUP($B200,'FSA23'!$E$5:$K$288,6,0) -> 45.18 | K200: =VLOOKUP($B200,'FSA23'!$E$5:$K$288,7,0) -> 47.5 | L200: 41.814 | M200: 43.0568 | N200: 43.25016 | R200: 1.88 | S200: 0.37 | T200: 0.51 | V200: =C200-($S200*6) ->  | W200: =D200-($S200*5) ->  | X200: 45.49 | Y200: 51.87 | Z200: 35.6 | AA200: 42.09 | AB200: 36.85 | AC200: 45.18 | AD200: 47.5 | AE200: 41.814 | AF200: 43.0568
... 89 more rows

Sheet FSA21 (hidden)
A1: ARC-CO TREND ADJUSTED YIELDS, BENCHMARK YIELDS AND GUARANTEE REVENUES FOR PROGRAM YEAR 2021 | M1: Program Year 2021 Benchmark Yields and Revenues
M2: A | N2: B | O2: C | P2: D | Q2: E
E3: 1 | F3: 2 | G3: 3 | H3: 4 | I3: 5 | J3: 6 | K3: 7 | L3: 8 | M3: 9 | O3: (A * B) | P3: (86% of C) | Q3: (10% of C)
A4: ST_Cty | B4: State Name | C4: County Name | D4: Crop Name | E4: Helper Column 1 | F4: ARC-CO Yield Designation | G4: 2015 trend adjusted (county yield or 80% of T) | H4: 2016 trend adjusted (county yield or 80% of T) | I4: 2017 trend adjusted (county yield or 80% of T) | J4: 2018 trend adjusted (county yield or 80% of T) | K4: 2019 trend adjusted (county yield or 80% of T) | M4: 2021 Bench Mark (2015-19 olympic avg) | N4: 2021 Bench Mark Price (2015-19 olympic avg) | O4: 2021 Benchmark Revenue | P4: 2021 Guarantee Revenue | Q4: 2021 Maximum Payment Rate
A5: 26001 | B5: Michigan | C5: Alcona | D5: Corn | E5: =C5&D5&F5 -> AlconaCornAll | F5: All | G5: 158.44 | H5: 121.72 | I5: 133.23 | J5: 124.93 | K5: 92.08 | M5: 126.63 | N5: 3.7 | O5: 468.53 | P5: 402.94 | Q5: 46.85
A6: 26003 | B6: Michigan | C6: Alger | D6: Corn | E6: =C6&D6&F6 -> AlgerCornAll | F6: All | G6: 132 | H6: 87 | I6: 58.4 | J6: 111 | K6: 58.49 | M6: 85.5 | N6: 3.7 | O6: 316.35 | P6: 272.06 | Q6: 31.64
A7: 26005 | B7: Michigan | C7: Allegan | D7: Corn | E7: AlleganCornNonirrigated | F7: Nonirrigated | G7: 163.88 | H7: 179.81 | I7: 185.76 | J7: 158.29 | K7: 157.16 | M7: 167.33 | N7: 3.7 | O7: 619.12 | P7: 532.44 | Q7: 61.91
A8: 26007 | B8: Michigan | C8: Alpena | D8: Corn | E8: AlpenaCornAll | F8: All | G8: 143.15 | H8: 103.08 | I8: 147.75 | J8: 114.22 | K8: 118.84 | M8: 125.4 | N8: 3.7 | O8: 463.98 | P8: 399.02 | Q8: 46.4
A9: 26009 | B9: Michigan | C9: Antrim | D9: Corn | E9: AntrimCornAll | F9: All | G9: 106.61 | H9: 103.42 | I9: 139.67 | J9: 114.3 | K9: 94 | M9: 108.11 | N9: 3.7 | O9: 400.01 | P9: 344.01 | Q9: 40
A10: 26011 | B10: Michigan | C10: Arenac | D10: Corn | E10: ArenacCornAll | F10: All | G10: 168.86 | H10: 152.06 | I10: 172.76 | J10: 171.88 | K10: 139.14 | M10: 164.27 | N10: 3.7 | O10: 607.8 | P10: 522.71 | Q10: 60.78
A11: 26015 | B11: Michigan | C11: Barry | D11: Corn | E11: BarryCornNonirrigated | F11: Nonirrigated | G11: 165.53 | H11: 149.48 | I11: 173.73 | J11: 149.52 | K11: 139.64 | M11: 154.84 | N11: 3.7 | O11: 572.91 | P11: 492.7 | Q11: 57.29
A12: 26017 | B12: Michigan | C12: Bay | D12: Corn | E12: BayCornNonirrigated | F12: Nonirrigated | G12: 190.4 | H12: 176.64 | I12: 175.75 | J12: 189.8 | K12: 161.99 | M12: 180.73 | N12: 3.7 | O12: 668.7 | P12: 575.08 | Q12: 66.87
A13: 26019 | B13: Michigan | C13: Benzie | D13: Corn | E13: BenzieCornAll | F13: All | G13: 88.3 | H13: 104.63 | I13: 131.12 | J13: 114.15 | K13: 93.77 | M13: 104.18 | N13: 3.7 | O13: 385.47 | P13: 331.5 | Q13: 38.55
A14: 26021 | B14: Michigan | C14: Berrien | D14: Corn | E14: BerrienCornNonirrigated | F14: Nonirrigated | G14: 182.84 | H14: 170.77 | I14: 179.19 | J14: 168.27 | K14: 148.7 | M14: 172.74 | N14: 3.7 | O14: 639.14 | P14: 549.66 | Q14: 63.91
A15: 26023 | B15: Michigan | C15: Branch | D15: Corn | E15: BranchCornNonirrigated | F15: Nonirrigated | G15: 164.8 | H15: 167.23 | I15: 162.84 | J15: 155.73 | K15: 154.39 | M15: 161.12 | N15: 3.7 | O15: 596.14 | P15: 512.68 | Q15: 59.61
A16: 26025 | B16: Michigan | C16: Calhoun | D16: Corn | E16: CalhounCornNonirrigated | F16: Nonirrigated | G16: 163.65 | H16: 143.12 | I16: 143.46 | J16: 146.78 | K16: 133.64 | M16: 144.45 | N16: 3.7 | O16: 534.47 | P16: 459.64 | Q16: 53.45
A17: 26027 | B17: Michigan | C17: Cass | D17: Corn | E17: CassCornIrrigated | F17: Irrigated | G17: 210 | H17: 198.11 | I17: 220.59 | J17: 158.94 | K17: 188.41 | M17: 198.84 | N17: 3.7 | O17: 735.71 | P17: 632.71 | Q17: 73.57
A18: 26027 | B18: Michigan | C18: Cass | D18: Corn | E18: CassCornNonirrigated | F18: Nonirrigated | G18: 158.7 | H18: 127.63 | I18: 160.81 | J18: 150.92 | K18: 133.37 | M18: 147.66 | N18: 3.7 | O18: 546.34 | P18: 469.85 | Q18: 54.63
A19: 26031 | B19: Michigan | C19: Cheboygan | D19: Corn | E19: CheboyganCornAll | F19: All | G19: 100.88 | H19: 97 | I19: 131 | J19: 117 | K19: 110.3 | M19: 109.39 | N19: 3.7 | O19: 404.74 | P19: 348.08 | Q19: 40.47
A20: 26035 | B20: Michigan | C20: Clare | D20: Corn | E20: ClareCornAll | F20: All | G20: 136.53 | H20: 124.91 | I20: 137.61 | J20: 143.81 | K20: 111.52 | M20: 133.02 | N20: 3.7 | O20: 492.17 | P20: 423.27 | Q20: 49.22
A21: 26037 | B21: Michigan | C21: Clinton | D21: Corn | E21: ClintonCornNonirrigated | F21: Nonirrigated | G21: 183.07 | H21: 162.77 | I21: 157.42 | J21: 148.35 | K21: 152.29 | M21: 157.49 | N21: 3.7 | O21: 582.71 | P21: 501.13 | Q21: 58.27
A22: 26041 | B22: Michigan | C22: Delta | D22: Corn | E22: DeltaCornAll | F22: All | G22: 141.1 | H22: 120.83 | I22: 57.44 | J22: 155.39 | K22: 57.76 | M22: 106.56 | N22: 3.7 | O22: 394.27 | P22: 339.07 | Q22: 39.43
A23: 26043 | B23: Michigan | C23: Dickinson | D23: Corn | E23: DickinsonCornAll | F23: All | G23: 170.29 | H23: 66.09 | I23: 80.84 | J23: 157.62 | K23: 61.6 | M23: 101.52 | N23: 3.7 | O23: 375.62 | P23: 323.03 | Q23: 37.56
A24: 26045 | B24: Michigan | C24: Eaton | D24: Corn | E24: EatonCornAll | F24: All | G24: 174.34 | H24: 153.32 | I24: 181.59 | J24: 158.43 | K24: 137.44 | M24: 162.03 | N24: 3.7 | O24: 599.51 | P24: 515.58 | Q24: 59.95
A25: 26047 | B25: Michigan | C25: Emmet | D25: Corn | E25: EmmetCornAll | F25: All | G25: 119.32 | H25: 112.77 | I25: 124.88 | J25: 114.66 | K25: 83.24 | M25: 115.58 | N25: 3.7 | O25: 427.65 | P25: 367.78 | Q25: 42.77
A26: 26049 | B26: Michigan | C26: Genesee | D26: Corn | E26: GeneseeCornAll | F26: All | G26: 184.69 | H26: 160.08 | I26: 175.39 | J26: 167.13 | K26: 142.03 | M26: 167.53 | N26: 3.7 | O26: 619.86 | P26: 533.08 | Q26: 61.99
A27: 26051 | B27: Michigan | C27: Gladwin | D27: Corn | E27: GladwinCornAll | F27: All | G27: 156.41 | H27: 153.67 | I27: 149.5 | J27: 170.65 | K27: 134.77 | M27: 153.19 | N27: 3.7 | O27: 566.8 | P27: 487.45 | Q27: 56.68
A28: 26055 | B28: Michigan | C28: Grand Traverse | D28: Corn | E28: Grand TraverseCornAll | F28: All | G28: 108.46 | H28: 82.96 | I28: 131.52 | J28: 86.93 | K28: 103.78 | M28: 99.72 | N28: 3.7 | O28: 368.96 | P28: 317.31 | Q28: 36.9
A29: 26057 | B29: Michigan | C29: Gratiot | D29: Corn | E29: GratiotCornNonirrigated | F29: Nonirrigated | G29: 182.33 | H29: 177.81 | I29: 163.29 | J29: 173.18 | K29: 150.38 | M29: 171.43 | N29: 3.7 | O29: 634.29 | P29: 545.49 | Q29: 63.43
A30: 26059 | B30: Michigan | C30: Hillsdale | D30: Corn | E30: HillsdaleCornNonirrigated | F30: Nonirrigated | G30: 163.83 | H30: 171.19 | I30: 168.5 | J30: 160.82 | K30: 159.97 | M30: 164.38 | N30: 3.7 | O30: 608.21 | P30: 523.06 | Q30: 60.82
A31: 26061 | B31: Michigan | C31: Houghton | D31: Corn | E31: HoughtonCornAll | F31: All | G31: 132 | H31: 87 | I31: 58.4 | J31: 111 | K31: 58.49 | M31: 85.5 | N31: 3.7 | O31: 316.35 | P31: 272.06 | Q31: 31.64
A32: 26063 | B32: Michigan | C32: Huron | D32: Corn | E32: HuronCornNonirrigated | F32: Nonirrigated | G32: 209.8 | H32: 174.16 | I32: 202.5 | J32: 176.03 | K32: 176.4 | M32: 184.98 | N32: 3.7 | O32: 684.43 | P32: 588.61 | Q32: 68.44
A33: 26065 | B33: Michigan | C33: Ingham | D33: Corn | E33: InghamCornAll | F33: All | G33: 181.76 | H33: 164.21 | I33: 168.14 | J33: 155.28 | K33: 156.57 | M33: 162.97 | N33: 3.7 | O33: 602.99 | P33: 518.57 | Q33: 60.3
A34: 26067 | B34: Michigan | C34: Ionia | D34: Corn | E34: IoniaCornNonirrigated | F34: Nonirrigated | G34: 193.97 | H34: 180.78 | I34: 173.03 | J34: 169.38 | K34: 160 | M34: 174.4 | N34: 3.7 | O34: 645.28 | P34: 554.94 | Q34: 64.53
A35: 26069 | B35: Michigan | C35: Iosco | D35: Corn | E35: IoscoCornAll | F35: All | G35: 151.62 | H35: 142.41 | I35: 172.88 | J35: 162.27 | K35: 140.43 | M35: 152.1 | N35: 3.7 | O35: 562.77 | P35: 483.98 | Q35: 56.28
A36: 26073 | B36: Michigan | C36: Isabella | D36: Corn | E36: IsabellaCornNonirrigated | F36: Nonirrigated | G36: 165.01 | H36: 164.57 | I36: 160.81 | J36: 150.44 | K36: 141.87 | M36: 158.61 | N36: 3.7 | O36: 586.86 | P36: 504.7 | Q36: 58.69
A37: 26075 | B37: Michigan | C37: Jackson | D37: Corn | E37: =C37&D37&F37 -> JacksonCornNonirrigated | F37: Nonirrigated | G37: 154.06 | H37: 123 | I37: 132.03 | J37: 134.88 | K37: 154.94 | M37: 140.32 | N37: 3.7 | O37: 519.18 | P37: 446.49 | Q37: 51.92
A38: 26077 | B38: Michigan | C38: Kalamazoo | D38: Corn | E38: KalamazooCornIrrigated | F38: Irrigated | G38: 211.35 | H38: 214.5 | I38: 218.15 | J38: 158.91 | K38: 191.07 | M38: 205.64 | N38: 3.7 | O38: 760.87 | P38: 654.35 | Q38: 76.09
A39: 26077 | B39: Michigan | C39: Kalamazoo | D39: Corn | E39: KalamazooCornNonirrigated | F39: Nonirrigated | G39: 169.75 | H39: 161.79 | I39: 149.77 | J39: 151.13 | K39: 141.4 | M39: 154.23 | N39: 3.7 | O39: 570.65 | P39: 490.76 | Q39: 57.07
A40: 26081 | B40: Michigan | C40: Kent | D40: Corn | E40: KentCornNonirrigated | F40: Nonirrigated | G40: 173.25 | H40: 170.52 | I40: 156.14 | J40: 148.58 | K40: 148.49 | M40: 158.41 | N40: 3.7 | O40: 586.12 | P40: 504.06 | Q40: 58.61
A41: 26087 | B41: Michigan | C41: Lapeer | D41: Corn | E41: LapeerCornAll | F41: All | G41: 189.99 | H41: 180.01 | I41: 188.86 | J41: 179.19 | K41: 146.75 | M41: 182.69 | N41: 3.7 | O41: 675.95 | P41: 581.32 | Q41: 67.6
A42: 26089 | B42: Michigan | C42: Leelanau | D42: Corn | E42: LeelanauCornAll | F42: All | G42: 80.9 | H42: 66.65 | I42: 115.99 | J42: 98.27 | K42: 105.72 | M42: 94.96 | N42: 3.7 | O42: 351.35 | P42: 302.16 | Q42: 35.14
A43: 26091 | B43: Michigan | C43: Lenawee | D43: Corn | E43: LenaweeCornNonirrigated | F43: Nonirrigated | G43: 179.44 | H43: 183.47 | I43: 187.1 | J43: 165.35 | K43: 173.53 | M43: 178.81 | N43: 3.7 | O43: 661.6 | P43: 568.98 | Q43: 66.16
A44: 26093 | B44: Michigan | C44: Livingston | D44: Corn | E44: LivingstonCornAll | F44: All | G44: 183.11 | H44: 154.99 | I44: 163.94 | J44: 135.9 | K44: 164.77 | M44: 161.23 | N44: 3.7 | O44: 596.55 | P44: 513.03 | Q44: 59.66
A45: 26099 | B45: Michigan | C45: Macomb | D45: Corn | E45: MacombCornAll | F45: All | G45: 169.58 | H45: 187.86 | I45: 185.06 | J45: 185.3 | K45: 155.21 | M45: 179.98 | N45: 3.7 | O45: 665.93 | P45: 572.7 | Q45: 66.59
A46: 26101 | B46: Michigan | C46: Manistee | D46: Corn | E46: ManisteeCornAll | F46: All | G46: 139.55 | H46: 152.82 | I46: 123.06 | J46: 144.45 | K46: 104.88 | M46: 135.69 | N46: 3.7 | O46: 502.05 | P46: 431.76 | Q46: 50.21
A47: 26103 | B47: Michigan | C47: Marquette | D47: Corn | E47: MarquetteCornAll | F47: All | G47: 132 | H47: 87 | I47: 58.4 | J47: 111 | K47: 58.49 | M47: 85.5 | N47: 3.7 | O47: 316.35 | P47: 272.06 | Q47: 31.64
A48: 26105 | B48: Michigan | C48: Mason | D48: Corn | E48: MasonCornNonirrigated | F48: Nonirrigated | G48: 145.77 | H48: 153.33 | I48: 173.53 | J48: 135.03 | K48: 137.08 | M48: 145.39 | N48: 3.7 | O48: 537.94 | P48: 462.63 | Q48: 53.79
A49: 26107 | B49: Michigan | C49: Mecosta | D49: Corn | E49: MecostaCornIrrigated | F49: Irrigated | G49: 177.31 | H49: 179.58 | I49: 193.67 | J49: 158.55 | K49: 168.37 | M49: 175.09 | N49: 3.7 | O49: 647.83 | P49: 557.13 | Q49: 64.78
A50: 26107 | B50: Michigan | C50: Mecosta | D50: Corn | E50: MecostaCornNonirrigated | F50: Nonirrigated | G50: 123.89 | H50: 138.88 | I50: 131.76 | J50: 120.43 | K50: 116.9 | M50: 125.36 | N50: 3.7 | O50: 463.83 | P50: 398.89 | Q50: 46.38
A51: 26109 | B51: Michigan | C51: Menominee | D51: Corn | E51: MenomineeCornAll | F51: All | G51: 149.66 | H51: 134.42 | I51: 67.64 | J51: 153.22 | K51: 65.02 | M51: 117.24 | N51: 3.7 | O51: 433.79 | P51: 373.06 | Q51: 43.38
A52: 26111 | B52: Michigan | C52: Midland | D52: Corn | E52: MidlandCornNonirrigated | F52: Nonirrigated | G52: 174.45 | H52: 172.68 | I52: 163.11 | J52: 167.88 | K52: 148.67 | M52: 167.89 | N52: 3.7 | O52: 621.19 | P52: 534.22 | Q52: 62.12
A53: 26113 | B53: Michigan | C53: Missaukee | D53: Corn | E53: MissaukeeCornNonirrigated | F53: Nonirrigated | G53: 158.52 | H53: 139.4 | I53: 156.89 | J53: 125.51 | K53: 147.26 | M53: 147.85 | N53: 3.7 | O53: 547.05 | P53: 470.46 | Q53: 54.71
A54: 26115 | B54: Michigan | C54: Monroe | D54: Corn | E54: MonroeCornNonirrigated | F54: Nonirrigated | G54: 155.4 | H54: 183.18 | I54: 198.4 | J54: 176.55 | K54: 185.33 | M54: 181.69 | N54: 3.7 | O54: 672.25 | P54: 578.14 | Q54: 67.23
A55: 26117 | B55: Michigan | C55: Montcalm | D55: Corn | E55: MontcalmCornNonirrigated | F55: Nonirrigated | G55: 156.31 | H55: 158.59 | I55: 138.98 | J55: 136.07 | K55: 126.3 | M55: 143.79 | N55: 3.7 | O55: 532.02 | P55: 457.54 | Q55: 53.2
A56: 26119 | B56: Michigan | C56: Montmorency | D56: Corn | E56: MontmorencyCornAll | F56: All | G56: 134.42 | H56: 84.65 | I56: 146.28 | J56: 85.51 | K56: 118.14 | M56: 112.69 | N56: 3.7 | O56: 416.95 | P56: 358.58 | Q56: 41.7
A57: 26121 | B57: Michigan | C57: Muskegon | D57: Corn | E57: MuskegonCornNonirrigated | F57: Nonirrigated | G57: 144.82 | H57: 161.66 | I57: 145.9 | J57: 129.68 | K57: 111.67 | M57: 140.13 | N57: 3.7 | O57: 518.48 | P57: 445.89 | Q57: 51.85
A58: 26123 | B58: Michigan | C58: Newaygo | D58: Corn | E58: NewaygoCornNonirrigated | F58: Nonirrigated | G58: 130.06 | H58: 164.03 | I58: 139.15 | J58: 103.84 | K58: 126.18 | M58: 131.8 | N58: 3.7 | O58: 487.66 | P58: 419.39 | Q58: 48.77
A59: 26125 | B59: Michigan | C59: Oakland | D59: Corn | E59: OaklandCornAll | F59: All | G59: 177.49 | H59: 156.95 | I59: 151.11 | J59: 125.13 | K59: 126.49 | M59: 144.85 | N59: 3.7 | O59: 535.95 | P59: 460.92 | Q59: 53.6
A60: 26127 | B60: Michigan | C60: Oceana | D60: Corn | E60: OceanaCornIrrigated | F60: Irrigated | G60: 150.3 | H60: 169.45 | I60: 167.65 | J60: 144.65 | K60: 140.27 | M60: 154.2 | N60: 3.7 | O60: 570.54 | P60: 490.66 | Q60: 57.05
A61: 26127 | B61: Michigan | C61: Oceana | D61: Corn | E61: OceanaCornNonirrigated | F61: Nonirrigated | G61: 110.38 | H61: 136.14 | I61: 141.53 | J61: 100.4 | K61: 113.31 | M61: 119.94 | N61: 3.7 | O61: 443.78 | P61: 381.65 | Q61: 44.38
A62: 26129 | B62: Michigan | C62: Ogemaw | D62: Corn | E62: OgemawCornAll | F62: All | G62: 152.03 | H62: 148.36 | I62: 155.72 | J62: 167.72 | K62: 148.25 | M62: 152.04 | N62: 3.7 | O62: 562.55 | P62: 483.79 | Q62: 56.26
A63: 26131 | B63: Michigan | C63: Ontonagon | D63: Corn | E63: OntonagonCornAll | F63: All | G63: 132 | H63: 87 | I63: 58.4 | J63: 111 | K63: 58.49 | M63: 85.5 | N63: 3.7 | O63: 316.35 | P63: 272.06 | Q63: 31.64
A64: 26133 | B64: Michigan | C64: Osceola | D64: Corn | E64: OsceolaCornAll | F64: All | G64: 138.94 | H64: 130.35 | I64: 166.25 | J64: 119.43 | K64: 141.34 | M64: 136.88 | N64: 3.7 | O64: 506.46 | P64: 435.56 | Q64: 50.65
A65: 26137 | B65: Michigan | C65: Otsego | D65: Corn | E65: OtsegoCornAll | F65: All | G65: 109.88 | H65: 82 | I65: 137.03 | J65: 97.53 | K65: 130.07 | M65: 112.49 | N65: 3.7 | O65: 416.21 | P65: 357.94 | Q65: 41.62
A66: 26139 | B66: Michigan | C66: Ottawa | D66: Corn | E66: OttawaCornNonirrigated | F66: Nonirrigated | G66: 167.07 | H66: 188.08 | I66: 172.26 | J66: 144.76 | K66: 140.74 | M66: 161.36 | N66: 3.7 | O66: 597.03 | P66: 513.45 | Q66: 59.7
A67: 26141 | B67: Michigan | C67: Presque Isle | D67: Corn | E67: Presque IsleCornAll | F67: All | G67: 117.96 | H67: 79.45 | I67: 128.89 | J67: 88.98 | K67: 88.31 | M67: 98.42 | N67: 3.7 | O67: 364.15 | P67: 313.17 | Q67: 36.42
A68: 26145 | B68: Michigan | C68: Saginaw | D68: Corn | E68: SaginawCornAll | F68: All | G68: 188.39 | H68: 183.94 | I68: 173.85 | J68: 185.38 | K68: 150.72 | M68: 181.06 | N68: 3.7 | O68: 669.92 | P68: 576.13 | Q68: 66.99
A69: 26151 | B69: Michigan | C69: Sanilac | D69: Corn | E69: =C69&D69&F69 -> SanilacCornAll | F69: All | G69: 202.11 | H69: 199.99 | I69: 200.25 | J69: 187.32 | K69: 176.57 | M69: 195.85 | N69: 3.7 | O69: 724.65 | P69: 623.2 | Q69: 72.47
A70: 26153 | B70: Michigan | C70: Schoolcraft | D70: Corn | E70: SchoolcraftCornAll | F70: All | G70: 132 | H70: 87 | I70: 61.6 | J70: 111 | K70: 61.6 | M70: 86.53 | N70: 3.7 | O70: 320.16 | P70: 275.34 | Q70: 32.02
A71: 26155 | B71: Michigan | C71: Shiawassee | D71: Corn | E71: ShiawasseeCornAll | F71: All | G71: 184.3 | H71: 161.38 | I71: 161.31 | J71: 156.76 | K71: 155.3 | M71: 159.82 | N71: 3.7 | O71: 591.33 | P71: 508.54 | Q71: 59.13
A72: 26147 | B72: Michigan | C72: St. Clair | D72: Corn | E72: St. ClairCornAll | F72: All | G72: 172.66 | H72: 173.9 | I72: 171.56 | J72: 182.74 | K72: 155.02 | M72: 172.71 | N72: 3.7 | O72: 639.03 | P72: 549.57 | Q72: 63.9
A73: 26157 | B73: Michigan | C73: Tuscola | D73: Corn | E73: TuscolaCornNonirrigated | F73: Nonirrigated | G73: 200.63 | H73: 188.63 | I73: 177.69 | J73: 176.13 | K73: 168.1 | M73: 180.82 | N73: 3.7 | O73: 669.03 | P73: 575.37 | Q73: 66.9
A74: 26159 | B74: Michigan | C74: Van Buren | D74: Corn | E74: Van BurenCornIrrigated | F74: Irrigated | G74: 209.43 | H74: 228.93 | I74: 210.24 | J74: 212.15 | K74: 194.58 | M74: 210.61 | N74: 3.7 | O74: 779.26 | P74: 670.16 | Q74: 77.93
A75: 26159 | B75: Michigan | C75: Van Buren | D75: Corn | E75: Van BurenCornNonirrigated | F75: Nonirrigated | G75: 170.43 | H75: 161.92 | I75: 164.11 | J75: 146.83 | K75: 125.47 | M75: 157.62 | N75: 3.7 | O75: 583.19 | P75: 501.54 | Q75: 58.32
A76: 26161 | B76: Michigan | C76: Washtenaw | D76: Corn | E76: WashtenawCornNonirrigated | F76: Nonirrigated | G76: 165.09 | H76: 144.53 | I76: 155.88 | J76: 137.2 | K76: 154.29 | M76: 151.57 | N76: 3.7 | O76: 560.81 | P76: 482.3 | Q76: 56.08
A77: 26163 | B77: Michigan | C77: Wayne | D77: Corn | E77: WayneCornAll | F77: All | G77: 111.36 | H77: 115.79 | I77: 144.04 | J77: 121.95 | K77: 133.52 | M77: 123.75 | N77: 3.7 | O77: 457.88 | P77: 393.78 | Q77: 45.79
A78: 26001 | B78: Michigan | C78: Alcona | D78: Soybeans | E78: AlconaSoybeansAll | F78: All | G78: 35.93 | H78: 40 | I78: 37 | J78: 35.03 | K78: 35.23 | M78: 36.05 | N78: 8.95 | O78: 322.65 | P78: 277.48 | Q78: 32.27
A79: 26005 | B79: Michigan | C79: Allegan | D79: Soybeans | E79: AlleganSoybeansNonirrigated | F79: Nonirrigated | G79: 48.24 | H79: 54.7 | I79: 49.69 | J79: 51.38 | K79: 38.75 | M79: 49.77 | N79: 8.95 | O79: 445.44 | P79: 383.08 | Q79: 44.54
A80: 26007 | B80: Michigan | C80: Alpena | D80: Soybeans | E80: AlpenaSoybeansAll | F80: All | G80: 39.1 | H80: 28.77 | I80: 35.31 | J80: 37.9 | K80: 26.52 | M80: 33.99 | N80: 8.95 | O80: 304.21 | P80: 261.62 | Q80: 30.42
A81: 26011 | B81: Michigan | C81: Arenac | D81: Soybeans | E81: ArenacSoybeansAll | F81: All | G81: 50.68 | H81: 48.31 | I81: 43.79 | J81: 48.15 | K81: 33.5 | M81: 46.75 | N81: 8.95 | O81: 418.41 | P81: 359.83 | Q81: 41.84
A82: 26015 | B82: Michigan | C82: Barry | D82: Soybeans | E82: BarrySoybeansNonirrigated | F82: Nonirrigated | G82: 49.19 | H82: 51.78 | I82: 45.42 | J82: 48.04 | K82: 48.14 | M82: 48.46 | N82: 8.95 | O82: 433.72 | P82: 373 | Q82: 43.37
A83: 26017 | B83: Michigan | C83: Bay | D83: Soybeans | E83: BaySoybeansNonirrigated | F83: Nonirrigated | G83: 58.3 | H83: 58.74 | I83: 49.58 | J83: 58.92 | K83: 38.39 | M83: 55.54 | N83: 8.95 | O83: 497.08 | P83: 427.49 | Q83: 49.71
A84: 26021 | B84: Michigan | C84: Berrien | D84: Soybeans | E84: BerrienSoybeansNonirrigated | F84: Nonirrigated | G84: 52.34 | H84: 53.69 | I84: 43.23 | J84: 52.86 | K84: 40.1 | M84: 49.48 | N84: 8.95 | O84: 442.85 | P84: 380.85 | Q84: 44.29
A85: 26023 | B85: Michigan | C85: Branch | D85: Soybeans | E85: BranchSoybeansNonirrigated | F85: Nonirrigated | G85: 47.98 | H85: 53.57 | I85: 41.12 | J85: 47.66 | K85: 44.24 | M85: 46.63 | N85: 8.95 | O85: 417.34 | P85: 358.91 | Q85: 41.73
A86: 26025 | B86: Michigan | C86: Calhoun | D86: Soybeans | E86: CalhounSoybeansNonirrigated | F86: Nonirrigated | G86: 47.68 | H86: 49.35 | I86: 35.4 | J86: 44.59 | K86: 37.13 | M86: 43.13 | N86: 8.95 | O86: 386.01 | P86: 331.97 | Q86: 38.6
A87: 26027 | B87: Michigan | C87: Cass | D87: Soybeans | E87: CassSoybeansIrrigated | F87: Irrigated | G87: 62.55 | H87: 67.02 | I87: 59.06 | J87: 51.62 | K87: 61.64 | M87: 61.08 | N87: 8.95 | O87: 546.67 | P87: 470.14 | Q87: 54.67
A88: 26027 | B88: Michigan | C88: Cass | D88: Soybeans | E88: CassSoybeansNonirrigated | F88: Nonirrigated | G88: 47.23 | H88: 44.61 | I88: 43.39 | J88: 50.5 | K88: 42.68 | M88: 45.08 | N88: 8.95 | O88: 403.47 | P88: 346.98 | Q88: 40.35
A89: 26035 | B89: Michigan | C89: Clare | D89: Soybeans | E89: ClareSoybeansAll | F89: All | G89: 33.28 | H89: 39.47 | I89: 34.13 | J89: 33.95 | K89: 26.43 | M89: 33.79 | N89: 8.95 | O89: 302.42 | P89: 260.08 | Q89: 30.24
A90: 26041 | B90: Michigan | C90: Delta | D90: Soybeans | E90: DeltaSoybeansAll | F90: All | G90: 36 | H90: 35 | I90: 37 | J90: 37 | K90: 34.4 | M90: 36 | N90: 8.95 | O90: 322.2 | P90: 277.09 | Q90: 32.22
A91: 26045 | B91: Michigan | C91: Eaton | D91: Soybeans | E91: EatonSoybeansNonirrigated | F91: Nonirrigated | G91: 49.42 | H91: 53.45 | I91: 44.27 | J91: 50.55 | K91: 36.28 | M91: 48.08 | N91: 8.95 | O91: 430.32 | P91: 370.08 | Q91: 43.03
A92: 26049 | B92: Michigan | C92: Genesee | D92: Soybeans | E92: GeneseeSoybeansAll | F92: All | G92: 50.75 | H92: 45.64 | I92: 42.43 | J92: 49.06 | K92: 38.23 | M92: 45.71 | N92: 8.95 | O92: 409.1 | P92: 351.83 | Q92: 40.91
A93: 26051 | B93: Michigan | C93: Gladwin | D93: Soybeans | E93: GladwinSoybeansAll | F93: All | G93: 44.91 | H93: 44.82 | I93: 40.48 | J93: 42.37 | K93: 32.84 | M93: 42.56 | N93: 8.95 | O93: 380.91 | P93: 327.58 | Q93: 38.09
A94: 26055 | B94: Michigan | C94: Grand Traverse | D94: Soybeans | E94: Grand TraverseSoybeansAll | F94: All | G94: 27.09 | H94: 30.48 | I94: 34.87 | J94: 27.75 | K94: 34.4 | M94: 30.88 | N94: 8.95 | O94: 276.38 | P94: 237.69 | Q94: 27.64
A95: 26057 | B95: Michigan | C95: Gratiot | D95: Soybeans | E95: GratiotSoybeansNonirrigated | F95: Nonirrigated | G95: 56.12 | H95: 57.1 | I95: 44.17 | J95: 53.75 | K95: 40.16 | M95: 51.35 | N95: 8.95 | O95: 459.58 | P95: 395.24 | Q95: 45.96
A96: 26059 | B96: Michigan | C96: Hillsdale | D96: Soybeans | E96: HillsdaleSoybeansNonirrigated | F96: Nonirrigated | G96: 48.32 | H96: 57.19 | I96: 45.2 | J96: 48.1 | K96: 43.71 | M96: 47.21 | N96: 8.95 | O96: 422.53 | P96: 363.38 | Q96: 42.25
A97: 26065 | B97: Michigan | C97: Ingham | D97: Soybeans | E97: InghamSoybeansNonirrigated | F97: Nonirrigated | G97: 53.52 | H97: 55.36 | I97: 49.34 | J97: 53.08 | K97: 40.7 | M97: 51.98 | N97: 8.95 | O97: 465.22 | P97: 400.09 | Q97: 46.52
A98: 26067 | B98: Michigan | C98: Ionia | D98: Soybeans | E98: IoniaSoybeansNonirrigated | F98: Nonirrigated | G98: 57.06 | H98: 58.74 | I98: 45.46 | J98: 55.13 | K98: 47 | M98: 53.06 | N98: 8.95 | O98: 474.89 | P98: 408.41 | Q98: 47.49
A99: 26069 | B99: Michigan | C99: Iosco | D99: Soybeans | E99: IoscoSoybeansAll | F99: All | G99: 40.85 | H99: 43.17 | I99: 37.64 | J99: 46.53 | K99: 31.64 | M99: 40.55 | N99: 8.95 | O99: 362.92 | P99: 312.11 | Q99: 36.29
A100: 26073 | B100: Michigan | C100: Isabella | D100: Soybeans | E100: IsabellaSoybeansNonirrigated | F100: Nonirrigated | G100: 48.24 | H100: 50.99 | I100: 40.63 | J100: 41.96 | K100: 35.56 | M100: 43.61 | N100: 8.95 | O100: 390.31 | P100: 335.67 | Q100: 39.03
A101: 26075 | B101: Michigan | C101: Jackson | D101: Soybeans | E101: =C101&D101&F101 -> JacksonSoybeansNonirrigated | F101: Nonirrigated | G101: 43.68 | H101: 48.19 | I101: 34.69 | J101: 42.77 | K101: 43.37 | M101: 43.27 | N101: 8.95 | O101: 387.27 | P101: 333.05 | Q101: 38.73
A102: 26077 | B102: Michigan | C102: Kalamazoo | D102: Soybeans | E102: KalamazooSoybeansNonirrigated | F102: Nonirrigated | G102: 48.58 | H102: 50.89 | I102: 38.19 | J102: 47.12 | K102: 41.73 | M102: 45.81 | N102: 8.95 | O102: 410 | P102: 352.6 | Q102: 41
A103: 26079 | B103: Michigan | C103: Kalkaska | D103: Soybeans | E103: KalkaskaSoybeansAll | F103: All | G103: 36 | H103: 36 | I103: 37 | J103: 37 | K103: 34.4 | M103: 36.33 | N103: 8.95 | O103: 325.15 | P103: 279.63 | Q103: 32.52
A104: 26081 | B104: Michigan | C104: Kent | D104: Soybeans | E104: KentSoybeansNonirrigated | F104: Nonirrigated | G104: 50.8 | H104: 53.97 | I104: 42.19 | J104: 45.36 | K104: 43.96 | M104: 46.71 | N104: 8.95 | O104: 418.05 | P104: 359.52 | Q104: 41.81
A105: 26087 | B105: Michigan | C105: Lapeer | D105: Soybeans | E105: LapeerSoybeansAll | F105: All | G105: 51.8 | H105: 53.49 | I105: 41.78 | J105: 46.75 | K105: 35.18 | M105: 46.78 | N105: 8.95 | O105: 418.68 | P105: 360.06 | Q105: 41.87
A106: 26091 | B106: Michigan | C106: Lenawee | D106: Soybeans | E106: LenaweeSoybeansNonirrigated | F106: Nonirrigated | G106: 52.69 | H106: 59.82 | I106: 50.39 | J106: 52.81 | K106: 50.62 | M106: 52.04 | N106: 8.95 | O106: 465.76 | P106: 400.55 | Q106: 46.58
A107: 26093 | B107: Michigan | C107: Livingston | D107: Soybeans | E107: LivingstonSoybeansAll | F107: All | G107: 49.16 | H107: 52.34 | I107: 40.43 | J107: 47.2 | K107: 46.05 | M107: 47.47 | N107: 8.95 | O107: 424.86 | P107: 365.38 | Q107: 42.49
A108: 26099 | B108: Michigan | C108: Macomb | D108: Soybeans | E108: MacombSoybeansAll | F108: All | G108: 44.11 | H108: 52.73 | I108: 43.14 | J108: 46.73 | K108: 36.67 | M108: 44.66 | N108: 8.95 | O108: 399.71 | P108: 343.75 | Q108: 39.97
A109: 26105 | B109: Michigan | C109: Mason | D109: Soybeans | E109: MasonSoybeansAll | F109: All | G109: 46.86 | H109: 48.38 | I109: 48.27 | J109: 46.42 | K109: 42.11 | M109: 47.18 | N109: 8.95 | O109: 422.26 | P109: 363.14 | Q109: 42.23
A110: 26109 | B110: Michigan | C110: Menominee | D110: Soybeans | E110: MenomineeSoybeansAll | F110: All | G110: 27.57 | H110: 22.13 | I110: 24.18 | J110: 37.72 | K110: 17.6 | M110: 24.63 | N110: 8.95 | O110: 220.44 | P110: 189.58 | Q110: 22.04
A111: 26111 | B111: Michigan | C111: Midland | D111: Soybeans | E111: MidlandSoybeansAll | F111: All | G111: 51.68 | H111: 50.97 | I111: 41.79 | J111: 46.28 | K111: 38.54 | M111: 46.35 | N111: 8.95 | O111: 414.83 | P111: 356.75 | Q111: 41.48
A112: 26113 | B112: Michigan | C112: Missaukee | D112: Soybeans | E112: MissaukeeSoybeansAll | F112: All | G112: 36 | H112: 36 | I112: 37 | J112: 37 | K112: 34.4 | M112: 36.33 | N112: 8.95 | O112: 325.15 | P112: 279.63 | Q112: 32.52
A113: 26115 | B113: Michigan | C113: Monroe | D113: Soybeans | E113: MonroeSoybeansAll | F113: All | G113: 48.45 | H113: 54.95 | I113: 51.13 | J113: 48.07 | K113: 49.83 | M113: 49.8 | N113: 8.95 | O113: 445.71 | P113: 383.31 | Q113: 44.57
A114: 26117 | B114: Michigan | C114: Montcalm | D114: Soybeans | E114: MontcalmSoybeansNonirrigated | F114: Nonirrigated | G114: 45.49 | H114: 51.87 | I114: 35.08 | J114: 41.51 | K114: 36.21 | M114: 41.07 | N114: 8.95 | O114: 367.58 | P114: 316.12 | Q114: 36.76
A115: 26119 | B115: Michigan | C115: Montmorency | D115: Soybeans | E115: MontmorencySoybeansAll | F115: All | G115: 36 | H115: 29.75 | I115: 41.79 | J115: 37 | K115: 30.57 | M115: 34.52 | N115: 8.95 | O115: 308.95 | P115: 265.7 | Q115: 30.9
A116: 26121 | B116: Michigan | C116: Muskegon | D116: Soybeans | E116: MuskegonSoybeansAll | F116: All | G116: 49.09 | H116: 53.52 | I116: 47.73 | J116: 46.42 | K116: 29.26 | M116: 47.75 | N116: 8.95 | O116: 427.36 | P116: 367.53 | Q116: 42.74
A117: 26123 | B117: Michigan | C117: Newaygo | D117: Soybeans | E117: NewaygoSoybeansAll | F117: All | G117: 41.74 | H117: 47.58 | I117: 35.43 | J117: 34.57 | K117: 41.6 | M117: 39.59 | N117: 8.95 | O117: 354.33 | P117: 304.72 | Q117: 35.43
A118: 26125 | B118: Michigan | C118: Oakland | D118: Soybeans | E118: OaklandSoybeansAll | F118: All | G118: 40.07 | H118: 35.8 | I118: 33.97 | J118: 31.69 | K118: 31.93 | M118: 33.9 | N118: 8.95 | O118: 303.41 | P118: 260.93 | Q118: 30.34
A119: 26127 | B119: Michigan | C119: Oceana | D119: Soybeans | E119: OceanaSoybeansNonirrigated | F119: Nonirrigated | G119: 33.8 | H119: 46.05 | I119: 40.03 | J119: 32.89 | K119: 28.14 | M119: 35.57 | N119: 8.95 | O119: 318.35 | P119: 273.78 | Q119: 31.84
A120: 26129 | B120: Michigan | C120: Ogemaw | D120: Soybeans | E120: OgemawSoybeansAll | F120: All | G120: 39.94 | H120: 45.27 | I120: 43.66 | J120: 40.06 | K120: 35 | M120: 41.22 | N120: 8.95 | O120: 368.92 | P120: 317.27 | Q120: 36.89
A121: 26133 | B121: Michigan | C121: Osceola | D121: Soybeans | E121: OsceolaSoybeansAll | F121: All | G121: 40.92 | H121: 38.82 | I121: 33.47 | J121: 29.81 | K121: 24 | M121: 34.03 | N121: 8.95 | O121: 304.57 | P121: 261.93 | Q121: 30.46
A122: 26139 | B122: Michigan | C122: Ottawa | D122: Soybeans | E122: OttawaSoybeansNonirrigated | F122: Nonirrigated | G122: 52.33 | H122: 63.3 | I122: 48.34 | J122: 44.95 | K122: 42.24 | M122: 48.54 | N122: 8.95 | O122: 434.43 | P122: 373.61 | Q122: 43.44
A123: 26141 | B123: Michigan | C123: Presque Isle | D123: Soybeans | E123: Presque IsleSoybeansAll | F123: All | G123: 30.76 | H123: 19.2 | I123: 37 | J123: 20.8 | K123: 20.8 | M123: 24.12 | N123: 8.95 | O123: 215.87 | P123: 185.65 | Q123: 21.59
A124: 26145 | B124: Michigan | C124: Saginaw | D124: Soybeans | E124: SaginawSoybeansNonirrigated | F124: Nonirrigated | G124: 54.94 | H124: 56.92 | I124: 46.59 | J124: 54.7 | K124: 40.9 | M124: 52.08 | N124: 8.95 | O124: 466.12 | P124: 400.86 | Q124: 46.61
A125: 26151 | B125: Michigan | C125: Sanilac | D125: Soybeans | E125: SanilacSoybeansAll | F125: All | G125: 55.31 | H125: 59.21 | I125: 49.25 | J125: 55.3 | K125: 41.23 | M125: 53.29 | N125: 8.95 | O125: 476.95 | P125: 410.18 | Q125: 47.7
A126: 26155 | B126: Michigan | C126: Shiawassee | D126: Soybeans | E126: ShiawasseeSoybeansNonirrigated | F126: Nonirrigated | G126: 53.6 | H126: 52.8 | I126: 41.68 | J126: 49.04 | K126: 35.82 | M126: 47.84 | N126: 8.95 | O126: 428.17 | P126: 368.23 | Q126: 42.82
A127: 26147 | B127: Michigan | C127: St. Clair | D127: Soybeans | E127: St. ClairSoybeansAll | F127: All | G127: 45.32 | H127: 50.83 | I127: 40.18 | J127: 47.34 | K127: 33.31 | M127: 44.28 | N127: 8.95 | O127: 396.31 | P127: 340.83 | Q127: 39.63
A128: 26149 | B128: Michigan | C128: St. Joseph | D128: Soybeans | E128: St. JosephSoybeansIrrigated | F128: Irrigated | G128: 59 | H128: 56.92 | I128: 50.24 | J128: 54.44 | K128: 47.06 | M128: 53.87 | N128: 8.95 | O128: 482.14 | P128: 414.64 | Q128: 48.21
A129: 26149 | B129: Michigan | C129: St. Joseph | D129: Soybeans | E129: St. JosephSoybeansNonirrigated | F129: Nonirrigated | G129: 44.14 | H129: 44.2 | I129: 32.57 | J129: 48.26 | K129: 41.74 | M129: 43.36 | N129: 8.95 | O129: 388.07 | P129: 333.74 | Q129: 38.81
A130: 26157 | B130: Michigan | C130: Tuscola | D130: Soybeans | E130: TuscolaSoybeansNonirrigated | F130: Nonirrigated | G130: 57.4 | H130: 58.53 | I130: 47.35 | J130: 56.87 | K130: 42.72 | M130: 53.87 | N130: 8.95 | O130: 482.14 | P130: 414.64 | Q130: 48.21
A131: 26159 | B131: Michigan | C131: Van Buren | D131: Soybeans | E131: Van BurenSoybeansNonirrigated | F131: Nonirrigated | G131: 48.36 | H131: 47.86 | I131: 39.99 | J131: 41.63 | K131: 34.25 | M131: 43.16 | N131: 8.95 | O131: 386.28 | P131: 332.2 | Q131: 38.63
A132: 26161 | B132: Michigan | C132: Washtenaw | D132: Soybeans | E132: WashtenawSoybeansNonirrigated | F132: Nonirrigated | G132: 48 | H132: 51.2 | I132: 39.6 | J132: 42.57 | K132: 45.36 | M132: 45.31 | N132: 8.95 | O132: 405.52 | P132: 348.75 | Q132: 40.55
A133: 26165 | B133: Michigan | C133: Wexford | D133: Soybeans | E133: =C133&D133&F133 -> WexfordSoybeansAll | F133: All | G133: 36 | H133: 36 | I133: 37 | J133: 37 | K133: 34.4 | M133: 36.33 | N133: 8.95 | O133: 325.15 | P133: 279.63 | Q133: 32.52
A134: 26005 | B134: Michigan | C134: Allegan | D134: Wheat | E134: AlleganWheatAll | F134: All | G134: 57.1 | H134: 70.12 | I134: 65.8 | J134: 78.16 | K134: 55.33 | M134: 64.34 | N134: 5.5 | O134: 353.87 | P134: 304.33 | Q134: 35.39
A135: 26011 | B135: Michigan | C135: Arenac | D135: Wheat | E135: ArenacWheatAll | F135: All | G135: 89.95 | H135: 85.08 | I135: 68.71 | J135: 77.86 | K135: 58.2 | M135: 77.22 | N135: 5.5 | O135: 424.71 | P135: 365.25 | Q135: 42.47
A136: 26015 | B136: Michigan | C136: Barry | D136: Wheat | E136: BarryWheatAll | F136: All | G136: 71.43 | H136: 91.94 | I136: 66.42 | J136: 76.95 | K136: 59.13 | M136: 71.6 | N136: 5.5 | O136: 393.8 | P136: 338.67 | Q136: 39.38
A137: 26017 | B137: Michigan | C137: Bay | D137: Wheat | E137: BayWheatAll | F137: All | G137: 99.5 | H137: 98.15 | I137: 84.13 | J137: 84.22 | K137: 75.58 | M137: 88.83 | N137: 5.5 | O137: 488.57 | P137: 420.17 | Q137: 48.86
A138: 26021 | B138: Michigan | C138: Berrien | D138: Wheat | E138: BerrienWheatAll | F138: All | G138: 76.4 | H138: 86.67 | I138: 68.8 | J138: 75.52 | K138: 70.54 | M138: 74.15 | N138: 5.5 | O138: 407.83 | P138: 350.73 | Q138: 40.78
A139: 26023 | B139: Michigan | C139: Branch | D139: Wheat | E139: BranchWheatAll | F139: All | G139: 65 | H139: 80.78 | I139: 79.49 | J139: 64.43 | K139: 70.71 | M139: 71.73 | N139: 5.5 | O139: 394.52 | P139: 339.29 | Q139: 39.45
A140: 26025 | B140: Michigan | C140: Calhoun | D140: Wheat | E140: CalhounWheatAll | F140: All | G140: 58.47 | H140: 77.11 | I140: 69.74 | J140: 64.88 | K140: 63.44 | M140: 66.02 | N140: 5.5 | O140: 363.11 | P140: 312.27 | Q140: 36.31
A141: 26035 | B141: Michigan | C141: Clare | D141: Wheat | E141: ClareWheatAll | F141: All | G141: 67.89 | H141: 71.8 | I141: 47.8 | J141: 65.21 | K141: 50.72 | M141: 61.27 | N141: 5.5 | O141: 336.99 | P141: 289.81 | Q141: 33.7
A142: 26037 | B142: Michigan | C142: Clinton | D142: Wheat | E142: ClintonWheatAll | F142: All | G142: 93.98 | H142: 96.4 | I142: 76.85 | J142: 91.91 | K142: 73.55 | M142: 87.58 | N142: 5.5 | O142: 481.69 | P142: 414.25 | Q142: 48.17
A143: 26041 | B143: Michigan | C143: Delta | D143: Wheat | E143: DeltaWheatAll | F143: All | G143: 51 | H143: 55 | I143: 52 | J143: 40 | K143: 53.1 | M143: 52.03 | N143: 5.5 | O143: 286.17 | P143: 246.11 | Q143: 28.62
A144: 26045 | B144: Michigan | C144: Eaton | D144: Wheat | E144: EatonWheatAll | F144: All | G144: 75.13 | H144: 85.58 | I144: 76.04 | J144: 77.41 | K144: 61.29 | M144: 76.19 | N144: 5.5 | O144: 419.05 | P144: 360.38 | Q144: 41.91
A145: 26049 | B145: Michigan | C145: Genesee | D145: Wheat | E145: GeneseeWheatAll | F145: All | G145: 81.92 | H145: 83.9 | I145: 71.28 | J145: 77.93 | K145: 64.3 | M145: 77.04 | N145: 5.5 | O145: 423.72 | P145: 364.4 | Q145: 42.37
A146: 26051 | B146: Michigan | C146: Gladwin | D146: Wheat | E146: GladwinWheatAll | F146: All | G146: 92.53 | H146: 84.08 | I146: 61.66 | J146: 75.93 | K146: 58.08 | M146: 73.89 | N146: 5.5 | O146: 406.4 | P146: 349.5 | Q146: 40.64
A147: 26055 | B147: Michigan | C147: Grand Traverse | D147: Wheat | E147: Grand TraverseWheatAll | F147: All | G147: 45.69 | H147: 47.42 | I147: 55.54 | J147: 38.43 | K147: 46.42 | M147: 46.51 | N147: 5.5 | O147: 255.81 | P147: 220 | Q147: 25.58
A148: 26057 | B148: Michigan | C148: Gratiot | D148: Wheat | E148: GratiotWheatAll | F148: All | G148: 92.42 | H148: 90.49 | I148: 78.74 | J148: 91.72 | K148: 69.12 | M148: 86.98 | N148: 5.5 | O148: 478.39 | P148: 411.42 | Q148: 47.84
A149: 26059 | B149: Michigan | C149: Hillsdale | D149: Wheat | E149: HillsdaleWheatAll | F149: All | G149: 73 | H149: 87.39 | I149: 84.7 | J149: 74.11 | K149: 59.36 | M149: 77.27 | N149: 5.5 | O149: 424.99 | P149: 365.49 | Q149: 42.5
A150: 26063 | B150: Michigan | C150: Huron | D150: Wheat | E150: HuronWheatAll | F150: All | G150: 114.12 | H150: 110.57 | I150: 98.78 | J150: 85.71 | K150: 91.71 | M150: 100.35 | N150: 5.5 | O150: 551.93 | P150: 474.66 | Q150: 55.19
A151: 26065 | B151: Michigan | C151: Ingham | D151: Wheat | E151: InghamWheatAll | F151: All | G151: 78 | H151: 98.72 | I151: 74.33 | J151: 83.71 | K151: 72.21 | M151: 78.68 | N151: 5.5 | O151: 432.74 | P151: 372.16 | Q151: 43.27
